Workbook

Sheet Net_Generation_for_Wind-1
A1: Data obtained from U.S. Energy Information Administration
A2: Net Generation for Wind
A3: http://www.eia.gov/electricity/data/browser/#/topic/0?agg=1,0,2&fuel=008&geo=vvvvvvvvvvvvo&sec=o3g&linechart=ELEC.GEN.WND-US-99.M~ELEC.GEN.WND-IA-99.M~ELEC.GEN.WND-TX-99.M&columnchart=ELEC.GEN.WND-US-99.M~ELEC.GEN.WND-IA-99.M~ELEC.GEN.WND-TX-99.M&map=ELEC.GEN.WND-US-99.M&freq=M&start=200101&end=201301&ctype=linechart&ltype=pin&pin=ELEC.GEN.WND-US-99.M&rse=0&maptype=0
A4: Sat Apr 13 2013 12:43:45 GMT-0600 (Mountain Daylight Time)
A5: Source: U.S. Energy Information Administration
A6: description | B6: units | C6: source key | D6: 200101 | E6: 200102 | F6: 200103 | G6: 200104 | H6: 200105 | I6: 200106 | J6: 200107 | K6: 200108 | L6: 200109 | M6: 200110 | N6: 200111 | O6: 200112 | P6: 200201 | Q6: 200202 | R6: 200203 | S6: 200204 | T6: 200205 | U6: 200206 | V6: 200207 | W6: 200208 | X6: 200209 | Y6: 200210 | Z6: 200211 | AA6: 200212 | AB6: 200301 | AC6: 200302 | AD6: 200303 | AE6: 200304 | AF6: 200305 | AG6: 200306 | AH6: 200307 | AI6: 200308 | AJ6: 200309 | AK6: 200310 | AL6: 200311 | AM6: 200312 | AN6: 200401 | AO6: 200402 | AP6: 200403 | AQ6: 200404 | AR6: 200405 | AS6: 200406 | AT6: 200407 | AU6: 200408 | AV6: 200409 | AW6: 200410 | AX6: 200411 | AY6: 200412 | AZ6: 200501 | BA6: 200502 | BB6: 200503 | BC6: 200504 | BD6: 200505 | BE6: 200506 | BF6: 200507 | BG6: 200508 | BH6: 200509 | BI6: 200510 | BJ6: 200511 | BK6: 200512 | BL6: 200601 | BM6: 200602 | BN6: 200603 | BO6: 200604 | BP6: 200605 | BQ6: 200606 | BR6: 200607 | BS6: 200608 | BT6: 200609 | BU6: 200610 | BV6: 200611 | BW6: 200612 | BX6: 200701 | BY6: 200702 | BZ6: 200703 | CA6: 200704 | CB6: 200705 | CC6: 200706 | CD6: 200707 | CE6: 200708 | CF6: 200709 | CG6: 200710 | CH6: 200711 | CI6: 200712 | CJ6: 200801 | CK6: 200802 | CL6: 200803 | CM6: 200804 | CN6: 200805 | CO6: 200806 | CP6: 200807 | CQ6: 200808 | CR6: 200809 | CS6: 200810 | CT6: 200811 | CU6: 200812 | CV6: 200901 | CW6: 200902 | CX6: 200903 | CY6: 200904 | CZ6: 200905 | DA6: 200906 | DB6: 200907 | DC6: 200908 | DD6: 200909 | DE6: 200910 | DF6: 200911 | DG6: 200912 | DH6: 2010-01-01 | DI6: 2010-02-01 | DJ6: 2010-03-01 | DK6: 2010-04-01 | DL6: 2010-05-01 | DM6: 2010-06-01 | DN6: 2010-07-01 | DO6: 2010-08-01 | DP6: 2010-09-01 | DQ6: 2010-10-01 | DR6: 2010-11-01 | DS6: 2010-12-01 | DT6: 2011-01-01 | DU6: 2011-02-01 | DV6: 2011-03-01 | DW6: 2011-04-01 | DX6: 2011-05-01 | DY6: 2011-06-01 | DZ6: 2011-07-01 | EA6: 2011-08-01 | EB6: 2011-09-01 | EC6: 2011-10-01 | ED6: 2011-11-01 | EE6: 2011-12-01 | EF6: 2012-01-01 | EG6: 2012-02-01 | EH6: 2012-03-01 | EI6: 2012-04-01 | EJ6: 2012-05-01 | EK6: 2012-06-01 | EL6: 2012-07-01 | EM6: 2012-08-01 | EN6: 2012-09-01 | EO6: 2012-10-01 | EP6: 2012-11-01 | EQ6: 2012-12-01 | ER6: 201301
A7: Pinned Series
A8: Net Generation : Wind : United States : All Sectors : Monthly | B8: thousand megawatthours | C8: ELEC.GEN.WND-US-99.M | D8: 389 | E8: 431 | F8: 532 | G8: 685 | H8: 635 | I8: 670 | J8: 635 | K8: 577 | L8: 490 | M8: 607 | N8: 470 | O8: 616 | P8: 811 | Q8: 714 | R8: 852 | S8: 1024 | T8: 1078 | U8: 1126 | V8: 890 | W8: 977 | X8: 736 | Y8: 734 | Z8: 656 | AA8: 755 | AB8: 632 | AC8: 745 | AD8: 1036 | AE8: 1093 | AF8: 1006 | AG8: 1047 | AH8: 953 | AI8: 815 | AJ8: 895 | AK8: 897 | AL8: 961 | AM8: 1105 | AN8: 999 | AO8: 1022 | AP8: 1291 | AQ8: 1295 | AR8: 1702 | AS8: 1397 | AT8: 1164 | AU8: 1051 | AV8: 1090 | AW8: 1029 | AX8: 932 | AY8: 1172 | AZ8: 1132 | BA8: 966 | BB8: 1561 | BC8: 1698 | BD8: 1746 | BE8: 1797 | BF8: 1421 | BG8: 1138 | BH8: 1468 | BI8: 1446 | BJ8: 1610 | BK8: 1828 | BL8: 2383 | BM8: 1922 | BN8: 2359 | BO8: 2472 | BP8: 2459 | BQ8: 2052 | BR8: 1955 | BS8: 1655 | BT8: 1879 | BU8: 2442 | BV8: 2540 | BW8: 2472 | BX8: 2452 | BY8: 2520 | BZ8: 3047 | CA8: 3172 | CB8: 2952 | CC8: 2620 | CD8: 2158 | CE8: 2699 | CF8: 2867 | CG8: 3377 | CH8: 3095 | CI8: 3490 | CJ8: 4273 | CK8: 3852 | CL8: 4782 | CM8: 5225 | CN8: 5340 | CO8: 5140 | CP8: 4008 | CQ8: 3264 | CR8: 3111 | CS8: 4756 | CT8: 4994 | CU8: 6616 | CV8: 5951 | CW8: 5852 | CX8: 7099 | CY8: 7458 | CZ8: 6262 | DA8: 5599 | DB8: 4955 | DC8: 5464 | DD8: 4651 | DE8: 6814 | DF8: 6875 | DG8: 6906 | DH8: 6854 | DI8: 5432 | DJ8: 8589 | DK8: 9764 | DL8: 8698 | DM8: 8049 | DN8: 6724 | DO8: 6686 | DP8: 7106 | DQ8: 7944 | DR8: 9748 | DS8: 9059 | DT8: 8550 | DU8: 10452 | DV8: 10545 | DW8: 12422 | DX8: 11772 | DY8: 10985 | DZ8: 7489 | EA8: 7474 | EB8: 6869 | EC8: 10525 | ED8: 12439 | EE8: 10656 | EF8: 13806 | EG8: 11164 | EH8: 13897 | EI8: 12812 | EJ8: 12573 | EK8: 11944 | EL8: 8724 | EM8: 8287 | EN8: 8680 | EO8: 12514 | EP8: 11513 | EQ8: 14175 | ER8: 14535 | FD8: National X-Wyoming
A9: Net Generation for Wind | B9: thousand megawatthours | FC9: 2008-2011 Monthly Average MWh
A10: United States | B10: thousand megawatthours | C10: ELEC.GEN.WND-US-99.M | FC10: =AVERAGE(CJ13:EE13) -> 6938.104167
A11: United States : All Sectors | B11: thousand megawatthours | C11: ELEC.GEN.WND-US-99.M | D11: 389 | E11: 431 | F11: 532 | G11: 685 | H11: 635 | I11: 670 | J11: 635 | K11: 577 | L11: 490 | M11: 607 | N11: 470 | O11: 616 | P11: 811 | Q11: 714 | R11: 852 | S11: 1024 | T11: 1078 | U11: 1126 | V11: 890 | W11: 977 | X11: 736 | Y11: 734 | Z11: 656 | AA11: 755 | AB11: 632 | AC11: 745 | AD11: 1036 | AE11: 1093 | AF11: 1006 | AG11: 1047 | AH11: 953 | AI11: 815 | AJ11: 895 | AK11: 897 | AL11: 961 | AM11: 1105 | AN11: 999 | AO11: 1022 | AP11: 1291 | AQ11: 1295 | AR11: 1702 | AS11: 1397 | AT11: 1164 | AU11: 1051 | AV11: 1090 | AW11: 1029 | AX11: 932 | AY11: 1172 | AZ11: 1132 | BA11: 966 | BB11: 1561 | BC11: 1698 | BD11: 1746 | BE11: 1797 | BF11: 1421 | BG11: 1138 | BH11: 1468 | BI11: 1446 | BJ11: 1610 | BK11: 1828 | BL11: 2383 | BM11: 1922 | BN11: 2359 | BO11: 2472 | BP11: 2459 | BQ11: 2052 | BR11: 1955 | BS11: 1655 | BT11: 1879 | BU11: 2442 | BV11: 2540 | BW11: 2472 | BX11: 2452 | BY11: 2520 | BZ11: 3047 | CA11: 3172 | CB11: 2952 | CC11: 2620 | CD11: 2158 | CE11: 2699 | CF11: 2867 | CG11: 3377 | CH11: 3095 | CI11: 3490 | CJ11: 4273 | CK11: 3852 | CL11: 4782 | CM11: 5225 | CN11: 5340 | CO11: 5140 | CP11: 4008 | CQ11: 3264 | CR11: 3111 | CS11: 4756 | CT11: 4994 | CU11: 6616 | CV11: 5951 | CW11: 5852 | CX11: 7099 | CY11: 7458 | CZ11: 6262 | DA11: 5599 | DB11: 4955 | DC11: 5464 | DD11: 4651 | DE11: 6814 | DF11: 6875 | DG11: 6906 | DH11: 6854 | DI11: 5432 | DJ11: 8589 | DK11: 9764 | DL11: 8698 | DM11: 8049 | DN11: 6724 | DO11: 6686 | DP11: 7106 | DQ11: 7944 | DR11: 9748 | DS11: 9059 | DT11: 8550 | DU11: 10452 | DV11: 10545 | DW11: 12422 | DX11: 11772 | DY11: 10985 | DZ11: 7489 | EA11: 7474 | EB11: 6869 | EC11: 10525 | ED11: 12439 | EE11: 10656 | EF11: 13806 | EG11: 11164 | EH11: 13897 | EI11: 12812 | EJ11: 12573 | EK11: 11944 | EL11: 8724 | EM11: 8287 | EN11: 8680 | EO11: 12514 | EP11: 11513 | EQ11: 14175 | ER11: 14535 | FC11: July and August Average Combined | FF11: Jul-Aug % of Average
CJ12: =AVERAGE($CJ$13:$CU$13) -> 4533.166667 | CK12: 4533.166667 | CL12: 4533.166667 | CM12: 4533.166667 | CN12: 4533.166667 | CO12: 4533.166667 | CP12: 4533.166667 | CQ12: 4533.166667 | CR12: 4533.166667 | CS12: 4533.166667 | CT12: 4533.166667 | CU12: =AVERAGE($CJ$13:$CU$13) -> 4533.166667 | CV12: =AVERAGE($CV$13:$DG$13) -> 5971.583333 | CW12: 5971.583333 | CX12: 5971.583333 | CY12: 5971.583333 | CZ12: 5971.583333 | DA12: 5971.583333 | DB12: 5971.583333 | DC12: 5971.583333 | DD12: 5971.583333 | DE12: 5971.583333 | DF12: 5971.583333 | DG12: =AVERAGE($CV$13:$DG$13) -> 5971.583333 | DH12: =AVERAGE($DH$13:$DS$13) -> 7617.25 | DI12: 7617.25 | DJ12: 7617.25 | DK12: 7617.25 | DL12: 7617.25 | DM12: 7617.25 | DN12: 7617.25 | DO12: 7617.25 | DP12: 7617.25 | DQ12: 7617.25 | DR12: 7617.25 | DS12: =AVERAGE($DH$13:$DS$13) -> 7617.25 | DT12: =AVERAGE($DT$13:$EE$13) -> 9630.416667 | DU12: 9630.416667 | DV12: 9630.416667 | DW12: 9630.416667 | DX12: 9630.416667 | DY12: 9630.416667 | DZ12: 9630.416667 | EA12: 9630.416667 | EB12: 9630.416667 | EC12: 9630.416667 | ED12: 9630.416667 | EE12: =AVERAGE($DT$13:$EE$13) -> 9630.416667 | EF12: =AVERAGE($EF$13:$EQ$13) -> 11308 | EG12: 11308 | EH12: 11308 | EI12: 11308 | EJ12: 11308 | EK12: 11308 | EL12: 11308 | EM12: 11308 | EN12: 11308 | EO12: 11308 | EP12: 11308 | EQ12: =AVERAGE($EF$13:$EQ$13) -> 11308 | FC12: =AVERAGE(CP13:CQ13,DB13:DC13,DN13:DO13,DZ13:EA13) -> 5619.125 | FF12: =FC12/FC10 -> 0.8098934327
A13: United States all Sectors X Wyoming All Sectors | CJ13: =CJ11-CJ391 -> 4206 | CK13: 3771 | CL13: 4700 | CM13: 5162 | CN13: 5303 | CO13: 5089 | CP13: 3967 | CQ13: 3213 | CR13: 3058 | CS13: 4665 | CT13: 4861 | CU13: 6403 | CV13: 5757 | CW13: 5675 | CX13: 6864 | CY13: 7330 | CZ13: 6123 | DA13: 5461 | DB13: 4852 | DC13: 5368 | DD13: 4522 | DE13: 6562 | DF13: 6612 | DG13: 6533 | DH13: 6571 | DI13: 5215 | DJ13: 8354 | DK13: 9463 | DL13: 8438 | DM13: 7841 | DN13: 6528 | DO13: 6499 | DP13: 6902 | DQ13: 7628 | DR13: 9319 | DS13: 8649 | DT13: 8000 | DU13: 9991 | DV13: 10051 | DW13: 11980 | DX13: 11398 | DY13: 10695 | DZ13: 7275 | EA13: 7251 | EB13: 6666 | EC13: 10150 | ED13: 11928 | EE13: 10180 | EF13: =EF11-EF391 -> 13184 | EG13: =EG11-EG391 -> 10805 | EH13: 13395 | EI13: 12456 | EJ13: 12257 | EK13: 11643 | EL13: 8543 | EM13: 8082 | EN13: 8487 | EO13: 12112 | EP13: 11042 | EQ13: =EQ11-EQ391 -> 13690
A14: United States : Electric Power | C14: ELEC.GEN.WND-US-98.M
A15: United States : Electric Utility | B15: thousand megawatthours | C15: ELEC.GEN.WND-US-1.M | D15: 13 | E15: 11 | F15: 10 | G15: 12 | H15: 11 | I15: 7 | J15: 7 | K15: 8 | L15: 8 | M15: 16 | N15: 14 | O15: 17 | P15: 19 | Q15: 18 | R15: 17 | S15: 17 | T15: 15 | U15: 11 | V15: 11 | W15: 14 | X15: 19 | Y15: 18 | Z15: 27 | AA15: 28 | AB15: 32 | AC15: 27 | AD15: 42 | AE15: 31 | AF15: 28 | AG15: 26 | AH15: 23 | AI15: 23 | AJ15: 24 | AK15: 30 | AL15: 36 | AM15: 32 | AN15: 35 | AO15: 27 | AP15: 45 | AQ15: 31 | AR15: 40 | AS15: 33 | AT15: 27 | AU15: 30 | AV15: 31 | AW15: 37 | AX15: 31 | AY15: 39 | AZ15: 41 | BA15: 54 | BB15: 80 | BC15: 81 | BD15: 86 | BE15: 73 | BF15: 50 | BG15: 45 | BH15: 95 | BI15: 126 | BJ15: 173 | BK15: 141 | BL15: 257 | BM15: 191 | BN15: 219 | BO15: 215 | BP15: 197 | BQ15: 126 | BR15: 121 | BS15: 103 | BT15: 156 | BU15: 229 | BV15: 259 | BW15: 279 | BX15: 374 | BY15: 311 | BZ15: 409 | CA15: 398 | CB15: 395 | CC15: 320 | CD15: 261 | CE15: 309 | CF15: 381 | CG15: 408 | CH15: 376 | CI15: 419 | CJ15: 539 | CK15: 469 | CL15: 561 | CM15: 686 | CN15: 620 | CO15: 665 | CP15: 494 | CQ15: 447 | CR15: 408 | CS15: 557 | CT15: 591 | CU15: 861 | CV15: 835 | CW15: 792 | CX15: 1070 | CY15: 990 | CZ15: 905 | DA15: 803 | DB15: 607 | DC15: 781 | DD15: 647 | DE15: 959 | DF15: 1035 | DG15: 924 | DH15: 918 | DI15: 706 | DJ15: 1145 | DK15: 1406 | DL15: 1229 | DM15: 1043 | DN15: 910 | DO15: 1002 | DP15: 1036 | DQ15: 1146 | DR15: 1354 | DS15: 1194 | DT15: 1310 | DU15: 1519 | DV15: 1508 | DW15: 1759 | DX15: 1622 | DY15: 1391 | DZ15: 997 | EA15: 959 | EB15: 965 | EC15: 1637 | ED15: 1813 | EE15: 1659 | EF15: 2258 | EG15: 1749 | EH15: 2303 | EI15: 2031 | EJ15: 2179 | EK15: 1987 | EL15: 1335 | EM15: 1335 | EN15: 1372 | EO15: 2069 | EP15: 2027 | EQ15: 2162 | ER15: 2471
A16: United States : Independent Power Producers | B16: thousand megawatthours | C16: ELEC.GEN.WND-US-94.M | D16: 376 | E16: 421 | F16: 522 | G16: 672 | H16: 624 | I16: 662 | J16: 628 | K16: 569 | L16: 482 | M16: 591 | N16: 456 | O16: 599 | P16: 792 | Q16: 696 | R16: 835 | S16: 1008 | T16: 1063 | U16: 1115 | V16: 879 | W16: 962 | X16: 717 | Y16: 717 | Z16: 629 | AA16: 728 | AB16: 601 | AC16: 718 | AD16: 995 | AE16: 1062 | AF16: 979 | AG16: 1021 | AH16: 930 | AI16: 792 | AJ16: 871 | AK16: 867 | AL16: 925 | AM16: 1073 | AN16: 964 | AO16: 995 | AP16: 1246 | AQ16: 1263 | AR16: 1662 | AS16: 1365 | AT16: 1138 | AU16: 1021 | AV16: 1059 | AW16: 992 | AX16: 901 | AY16: 1133 | AZ16: 1091 | BA16: 913 | BB16: 1480 | BC16: 1616 | BD16: 1660 | BE16: 1724 | BF16: 1371 | BG16: 1093 | BH16: 1373 | BI16: 1320 | BJ16: 1436 | BK16: 1687 | BL16: 2126 | BM16: 1731 | BN16: 2140 | BO16: 2257 | BP16: 2262 | BQ16: 1926 | BR16: 1834 | BS16: 1552 | BT16: 1723 | BU16: 2213 | BV16: 2282 | BW16: 2193 | BX16: 2078 | BY16: 2209 | BZ16: 2638 | CA16: 2774 | CB16: 2557 | CC16: 2300 | CD16: 1898 | CE16: 2390 | CF16: 2486 | CG16: 2969 | CH16: 2719 | CI16: 3071 | CJ16: 3735 | CK16: 3383 | CL16: 4221 | CM16: 4539 | CN16: 4720 | CO16: 4475 | CP16: 3514 | CQ16: 2818 | CR16: 2704 | CS16: 4199 | CT16: 4402 | CU16: 5755 | CV16: 5116 | CW16: 5061 | CX16: 6029 | CY16: 6467 | CZ16: 5357 | DA16: 4797 | DB16: 4348 | DC16: 4684 | DD16: 4004 | DE16: 5854 | DF16: 5840 | DG16: 5982 | DH16: 5936 | DI16: 4725 | DJ16: 7443 | DK16: 8356 | DL16: 7468 | DM16: 7005 | DN16: 5812 | DO16: 5683 | DP16: 6068 | DQ16: 6796 | DR16: 8392 | DS16: 7864 | DT16: 7237 | DU16: 8929 | DV16: 9032 | DW16: 10657 | DX16: 10145 | DY16: 9590 | DZ16: 6489 | EA16: 6512 | EB16: 5900 | EC16: 8882 | ED16: 10618 | EE16: 8990 | EF16: 11541 | EG16: 9409 | EH16: 11585 | EI16: 10773 | EJ16: 10386 | EK16: 9948 | EL16: 7384 | EM16: 6946 | EN16: 7303 | EO16: 10438 | EP16: 9481 | EQ16: 12005 | ER16: 12056
A17: United States : All Commercial | B17: thousand megawatthours | C17: ELEC.GEN.WND-US-96.M | D17: -- | E17: -- | F17: -- | G17: -- | H17: -- | I17: -- | J17: -- | K17: -- | L17: -- | M17: -- | N17: -- | O17: -- | P17: -- | Q17: -- | R17: -- | S17: -- | T17: -- | U17: -- | V17: -- | W17: -- | X17: -- | Y17: -- | Z17: -- | AA17: -- | AB17: -- | AC17: -- | AD17: -- | AE17: -- | AF17: -- | AG17: -- | AH17: -- | AI17: -- | AJ17: -- | AK17: -- | AL17: -- | AM17: -- | AN17: -- | AO17: -- | AP17: -- | AQ17: -- | AR17: -- | AS17: -- | AT17: -- | AU17: -- | AV17: -- | AW17: -- | AX17: -- | AY17: -- | AZ17: -- | BA17: -- | BB17: -- | BC17: -- | BD17: -- | BE17: -- | BF17: -- | BG17: -- | BH17: -- | BI17: -- | BJ17: -- | BK17: -- | BL17: -- | BM17: -- | BN17: -- | BO17: -- | BP17: -- | BQ17: -- | BR17: -- | BS17: -- | BT17: -- | BU17: -- | BV17: -- | BW17: -- | BX17: -- | BY17: -- | BZ17: -- | CA17: -- | CB17: -- | CC17: -- | CD17: -- | CE17: -- | CF17: -- | CG17: -- | CH17: -- | CI17: -- | CJ17: -- | CK17: -- | CL17: -- | CM17: -- | CN17: -- | CO17: -- | CP17: -- | CQ17: -- | CR17: -- | CS17: -- | CT17: -- | CU17: -- | CV17: 0 | CW17: 0 | CX17: 0 | CY17: 0 | CZ17: 0 | DA17: 0 | DB17: 0 | DC17: 0 | DD17: 0 | DE17: 0 | DF17: 0 | DG17: 0 | DH17: 1 | DI17: 1 | DJ17: 2 | DK17: 2 | DL17: 2 | DM17: 1 | DN17: 1 | DO17: NM | DP17: 1 | DQ17: 2 | DR17: 2 | DS17: NM | DT17: 3 | DU17: 4 | DV17: 4 | DW17: 5 | DX17: 5 | DY17: 4 | DZ17: 3 | EA17: 3 | EB17: 3 | EC17: 6 | ED17: 6 | EE17: 6 | EF17: NM | EG17: 5 | EH17: NM | EI17: 6 | EJ17: NM | EK17: NM | EL17: NM | EM17: NM | EN17: NM | EO17: NM | EP17: NM | EQ17: NM | ER17: NM
A18: United States : All Industrial | B18: thousand megawatthours | C18: ELEC.GEN.WND-US-97.M | D18: -- | E18: -- | F18: -- | G18: -- | H18: -- | I18: -- | J18: -- | K18: -- | L18: -- | M18: -- | N18: -- | O18: -- | P18: -- | Q18: -- | R18: -- | S18: -- | T18: -- | U18: -- | V18: -- | W18: -- | X18: -- | Y18: -- | Z18: -- | AA18: -- | AB18: -- | AC18: -- | AD18: -- | AE18: -- | AF18: -- | AG18: -- | AH18: -- | AI18: -- | AJ18: -- | AK18: -- | AL18: -- | AM18: -- | AN18: -- | AO18: -- | AP18: -- | AQ18: -- | AR18: -- | AS18: -- | AT18: -- | AU18: -- | AV18: -- | AW18: -- | AX18: -- | AY18: -- | AZ18: -- | BA18: -- | BB18: -- | BC18: -- | BD18: -- | BE18: -- | BF18: -- | BG18: -- | BH18: -- | BI18: -- | BJ18: -- | BK18: -- | BL18: -- | BM18: -- | BN18: -- | BO18: -- | BP18: -- | BQ18: -- | BR18: -- | BS18: -- | BT18: -- | BU18: -- | BV18: -- | BW18: -- | BX18: -- | BY18: -- | BZ18: -- | CA18: -- | CB18: -- | CC18: -- | CD18: -- | CE18: -- | CF18: -- | CG18: -- | CH18: -- | CI18: -- | CJ18: -- | CK18: -- | CL18: -- | CM18: -- | CN18: -- | CO18: -- | CP18: -- | CQ18: -- | CR18: -- | CS18: -- | CT18: -- | CU18: -- | CV18: -- | CW18: -- | CX18: -- | CY18: -- | CZ18: -- | DA18: -- | DB18: -- | DC18: -- | DD18: -- | DE18: -- | DF18: -- | DG18: -- | DH18: -- | DI18: -- | DJ18: -- | DK18: -- | DL18: -- | DM18: -- | DN18: -- | DO18: -- | DP18: -- | DQ18: -- | DR18: -- | DS18: -- | DT18: 0 | DU18: 0 | DV18: 0 | DW18: 0 | DX18: 0 | DY18: 0 | DZ18: 0 | EA18: 0 | EB18: 0 | EC18: 1 | ED18: 1 | EE18: 1 | EF18: NM | EG18: NM | EH18: NM | EI18: NM | EJ18: NM | EK18: NM | EL18: NM | EM18: NM | EN18: NM | EO18: NM | EP18: NM | EQ18: NM | ER18: NM
A19: New England | B19: thousand megawatthours | C19: ELEC.GEN.WND-NEW-99.M
A20: New England : All Sectors | B20: thousand megawatthours | C20: ELEC.GEN.WND-NEW-99.M | D20: 1 | E20: 1 | F20: 1 | G20: 1 | H20: 1 | I20: 1 | J20: 1 | K20: 0 | L20: 1 | M20: 1 | N20: 1 | O20: 1 | P20: 2 | Q20: -- | R20: 1 | S20: 1 | T20: 1 | U20: 0 | V20: 1 | W20: 0 | X20: 1 | Y20: 1 | Z20: 1 | AA20: 1 | AB20: 1 | AC20: 1 | AD20: 1 | AE20: 1 | AF20: 1 | AG20: 1 | AH20: 1 | AI20: 1 | AJ20: 1 | AK20: 1 | AL20: 1 | AM20: 1 | AN20: 1 | AO20: 1 | AP20: 1 | AQ20: 1 | AR20: 1 | AS20: 1 | AT20: 0 | AU20: 1 | AV20: 1 | AW20: 1 | AX20: 1 | AY20: 1 | AZ20: 1 | BA20: 1 | BB20: 1 | BC20: 1 | BD20: 1 | BE20: 1 | BF20: 1 | BG20: 1 | BH20: 1 | BI20: 1 | BJ20: 1 | BK20: 1 | BL20: 1 | BM20: 1 | BN20: 1 | BO20: 1 | BP20: 1 | BQ20: 0 | BR20: 1 | BS20: 1 | BT20: 1 | BU20: 1 | BV20: 1 | BW20: 1 | BX20: 1 | BY20: 1 | BZ20: 1 | CA20: 13 | CB20: 11 | CC20: 9 | CD20: 7 | CE20: 8 | CF20: 14 | CG20: 15 | CH20: 11 | CI20: 18 | CJ20: 19 | CK20: 13 | CL20: 14 | CM20: 12 | CN20: 10 | CO20: 8 | CP20: 7 | CQ20: 8 | CR20: 10 | CS20: 15 | CT20: 15 | CU20: 25 | CV20: 21 | CW20: 40 | CX20: 34 | CY20: 37 | CZ20: 30 | DA20: 25 | DB20: 18 | DC20: 23 | DD20: 27 | DE20: 38 | DF20: 46 | DG20: 38 | DH20: 47 | DI20: 49 | DJ20: 54 | DK20: 41 | DL20: 49 | DM20: NM | DN20: 39 | DO20: NM | DP20: 38 | DQ20: 86 | DR20: 72 | DS20: 84 | DT20: 71 | DU20: 86 | DV20: 82 | DW20: 74 | DX20: 49 | DY20: 44 | DZ20: 49 | EA20: 48 | EB20: 50 | EC20: 103 | ED20: 115 | EE20: 99 | EF20: 134 | EG20: 139 | EH20: 138 | EI20: 134 | EJ20: 94 | EK20: 89 | EL20: 75 | EM20: 67 | EN20: 89 | EO20: 128 | EP20: 96 | EQ20: 159 | ER20: 187
A21: New England : Electric Power | C21: ELEC.GEN.WND-NEW-98.M
A22: New England : Electric Utility | B22: thousand megawatthours | C22: ELEC.GEN.WND-NEW-1.M | D22: 1 | E22: 1 | F22: 1 | G22: 1 | H22: 1 | I22: 1 | J22: 1 | K22: 0 | L22: 1 | M22: 1 | N22: 1 | O22: 1 | P22: 2 | Q22: -- | R22: 1 | S22: 1 | T22: 1 | U22: 0 | V22: 1 | W22: 0 | X22: 1 | Y22: 1 | Z22: 1 | AA22: 1 | AB22: 1 | AC22: 1 | AD22: 1 | AE22: 1 | AF22: 1 | AG22: 1 | AH22: 1 | AI22: 1 | AJ22: 1 | AK22: 1 | AL22: 1 | AM22: 1 | AN22: 1 | AO22: 1 | AP22: 1 | AQ22: 1 | AR22: 1 | AS22: 1 | AT22: 0 | AU22: 1 | AV22: 1 | AW22: 1 | AX22: 1 | AY22: 1 | AZ22: 1 | BA22: 1 | BB22: 1 | BC22: 1 | BD22: 1 | BE22: 1 | BF22: 1 | BG22: 1 | BH22: 1 | BI22: 1 | BJ22: 1 | BK22: 1 | BL22: 1 | BM22: 1 | BN22: 1 | BO22: 1 | BP22: 1 | BQ22: 0 | BR22: 1 | BS22: 1 | BT22: 1 | BU22: 1 | BV22: 1 | BW22: 1 | BX22: 1 | BY22: 1 | BZ22: 1 | CA22: 1 | CB22: 1 | CC22: 1 | CD22: 1 | CE22: 0 | CF22: 1 | CG22: 1 | CH22: 1 | CI22: 1 | CJ22: 2 | CK22: 1 | CL22: 1 | CM22: 1 | CN22: 1 | CO22: 1 | CP22: 1 | CQ22: 1 | CR22: 1 | CS22: 1 | CT22: 1 | CU22: 1 | CV22: 2 | CW22: 2 | CX22: 2 | CY22: 2 | CZ22: 1 | DA22: 1 | DB22: 1 | DC22: 1 | DD22: 1 | DE22: 2 | DF22: 2 | DG22: 2 | DH22: NM | DI22: NM | DJ22: 3 | DK22: NM | DL22: NM | DM22: NM | DN22: NM | DO22: NM | DP22: NM | DQ22: 4 | DR22: 3 | DS22: NM | DT22: 2 | DU22: 2 | DV22: 2 | DW22: 2 | DX22: 4 | DY22: 4 | DZ22: 4 | EA22: 4 | EB22: 4 | EC22: 9 | ED22: 9 | EE22: 8 | EF22: 8 | EG22: 7 | EH22: 7 | EI22: 7 | EJ22: NM | EK22: NM | EL22: NM | EM22: NM | EN22: NM | EO22: 9 | EP22: 12 | EQ22: 10 | ER22: 17
A23: New England : Independent Power Producers | B23: thousand megawatthours | C23: ELEC.GEN.WND-NEW-94.M | D23: -- | E23: -- | F23: -- | G23: -- | H23: -- | I23: -- | J23: -- | K23: -- | L23: -- | M23: -- | N23: -- | O23: -- | P23: -- | Q23: -- | R23: -- | S23: -- | T23: -- | U23: -- | V23: -- | W23: -- | X23: -- | Y23: -- | Z23: -- | AA23: -- | AB23: -- | AC23: -- | AD23: -- | AE23: -- | AF23: -- | AG23: -- | AH23: -- | AI23: -- | AJ23: -- | AK23: -- | AL23: -- | AM23: -- | AN23: -- | AO23: -- | AP23: -- | AQ23: -- | AR23: -- | AS23: -- | AT23: -- | AU23: -- | AV23: -- | AW23: -- | AX23: -- | AY23: -- | AZ23: -- | BA23: -- | BB23: -- | BC23: -- | BD23: -- | BE23: -- | BF23: -- | BG23: -- | BH23: -- | BI23: -- | BJ23: -- | BK23: -- | BL23: -- | BM23: -- | BN23: -- | BO23: -- | BP23: -- | BQ23: -- | BR23: -- | BS23: -- | BT23: -- | BU23: -- | BV23: -- | BW23: -- | BX23: -- | BY23: -- | BZ23: -- | CA23: 12 | CB23: 10 | CC23: 8 | CD23: 6 | CE23: 8 | CF23: 14 | CG23: 14 | CH23: 10 | CI23: 17 | CJ23: 17 | CK23: 12 | CL23: 12 | CM23: 11 | CN23: 9 | CO23: 7 | CP23: 7 | CQ23: 7 | CR23: 10 | CS23: 14 | CT23: 14 | CU23: 23 | CV23: 20 | CW23: 38 | CX23: 33 | CY23: 36 | CZ23: 28 | DA23: 25 | DB23: 18 | DC23: 23 | DD23: 26 | DE23: 37 | DF23: 45 | DG23: 36 | DH23: 44 | DI23: 46 | DJ23: 51 | DK23: 39 | DL23: 46 | DM23: 30 | DN23: 37 | DO23: 24 | DP23: 35 | DQ23: 82 | DR23: 68 | DS23: 80 | DT23: 69 | DU23: 84 | DV23: 79 | DW23: 70 | DX23: 44 | DY23: 40 | DZ23: 44 | EA23: 44 | EB23: 45 | EC23: 93 | ED23: 104 | EE23: 90 | EF23: 125 | EG23: 131 | EH23: 129 | EI23: 125 | EJ23: 87 | EK23: 82 | EL23: 70 | EM23: 63 | EN23: 84 | EO23: 118 | EP23: 84 | EQ23: 147 | ER23: 169
A24: New England : All Commercial | B24: thousand megawatthours | C24: ELEC.GEN.WND-NEW-96.M | D24: -- | E24: -- | F24: -- | G24: -- | H24: -- | I24: -- | J24: -- | K24: -- | L24: -- | M24: -- | N24: -- | O24: -- | P24: -- | Q24: -- | R24: -- | S24: -- | T24: -- | U24: -- | V24: -- | W24: -- | X24: -- | Y24: -- | Z24: -- | AA24: -- | AB24: -- | AC24: -- | AD24: -- | AE24: -- | AF24: -- | AG24: -- | AH24: -- | AI24: -- | AJ24: -- | AK24: -- | AL24: -- | AM24: -- | AN24: -- | AO24: -- | AP24: -- | AQ24: -- | AR24: -- | AS24: -- | AT24: -- | AU24: -- | AV24: -- | AW24: -- | AX24: -- | AY24: -- | AZ24: -- | BA24: -- | BB24: -- | BC24: -- | BD24: -- | BE24: -- | BF24: -- | BG24: -- | BH24: -- | BI24: -- | BJ24: -- | BK24: -- | BL24: -- | BM24: -- | BN24: -- | BO24: -- | BP24: -- | BQ24: -- | BR24: -- | BS24: -- | BT24: -- | BU24: -- | BV24: -- | BW24: -- | BX24: -- | BY24: -- | BZ24: -- | CA24: -- | CB24: -- | CC24: -- | CD24: -- | CE24: -- | CF24: -- | CG24: -- | CH24: -- | CI24: -- | CJ24: -- | CK24: -- | CL24: -- | CM24: -- | CN24: -- | CO24: -- | CP24: -- | CQ24: -- | CR24: -- | CS24: -- | CT24: -- | CU24: -- | CV24: 0 | CW24: 0 | CX24: 0 | CY24: 0 | CZ24: 0 | DA24: 0 | DB24: 0 | DC24: 0 | DD24: 0 | DE24: 0 | DF24: 0 | DG24: 0 | DH24: 0 | DI24: 0 | DJ24: 0 | DK24: 0 | DL24: 0 | DM24: 0 | DN24: 0 | DO24: 0 | DP24: 0 | DQ24: 0 | DR24: 0 | DS24: 0 | DT24: 0 | DU24: 0 | DV24: NM | DW24: NM | DX24: NM | DY24: NM | DZ24: NM | EA24: NM | EB24: NM | EC24: NM | ED24: NM | EE24: NM | EF24: NM | EG24: NM | EH24: NM | EI24: NM | EJ24: NM | EK24: NM | EL24: NM | EM24: NM | EN24: NM | EO24: NM | EP24: NM | EQ24: NM | ER24: NM
A25: New England : All Industrial | B25: thousand megawatthours | C25: ELEC.GEN.WND-NEW-97.M | D25: -- | E25: -- | F25: -- | G25: -- | H25: -- | I25: -- | J25: -- | K25: -- | L25: -- | M25: -- | N25: -- | O25: -- | P25: -- | Q25: -- | R25: -- | S25: -- | T25: -- | U25: -- | V25: -- | W25: -- | X25: -- | Y25: -- | Z25: -- | AA25: -- | AB25: -- | AC25: -- | AD25: -- | AE25: -- | AF25: -- | AG25: -- | AH25: -- | AI25: -- | AJ25: -- | AK25: -- | AL25: -- | AM25: -- | AN25: -- | AO25: -- | AP25: -- | AQ25: -- | AR25: -- | AS25: -- | AT25: -- | AU25: -- | AV25: -- | AW25: -- | AX25: -- | AY25: -- | AZ25: -- | BA25: -- | BB25: -- | BC25: -- | BD25: -- | BE25: -- | BF25: -- | BG25: -- | BH25: -- | BI25: -- | BJ25: -- | BK25: -- | BL25: -- | BM25: -- | BN25: -- | BO25: -- | BP25: -- | BQ25: -- | BR25: -- | BS25: -- | BT25: -- | BU25: -- | BV25: -- | BW25: -- | BX25: -- | BY25: -- | BZ25: -- | CA25: -- | CB25: -- | CC25: -- | CD25: -- | CE25: -- | CF25: -- | CG25: -- | CH25: -- | CI25: -- | CJ25: -- | CK25: -- | CL25: -- | CM25: -- | CN25: -- | CO25: -- | CP25: -- | CQ25: -- | CR25: -- | CS25: -- | CT25: -- | CU25: -- | CV25: -- | CW25: -- | CX25: -- | CY25: -- | CZ25: -- | DA25: -- | DB25: -- | DC25: -- | DD25: -- | DE25: -- | DF25: -- | DG25: -- | DH25: -- | DI25: -- | DJ25: -- | DK25: -- | DL25: -- | DM25: -- | DN25: -- | DO25: -- | DP25: -- | DQ25: -- | DR25: -- | DS25: -- | DT25: -- | DU25: -- | DV25: -- | DW25: -- | DX25: -- | DY25: -- | DZ25: -- | EA25: -- | EB25: -- | EC25: -- | ED25: -- | EE25: -- | EF25: -- | EG25: -- | EH25: -- | EI25: -- | EJ25: -- | EK25: -- | EL25: -- | EM25: -- | EN25: -- | EO25: -- | EP25: -- | EQ25: -- | ER25: --
A26: Connecticut | B26: thousand megawatthours | C26: ELEC.GEN.WND-CT-99.M
A27: Connecticut : All Sectors | B27: thousand megawatthours | C27: ELEC.GEN.WND-CT-99.M | D27: -- | E27: -- | F27: -- | G27: -- | H27: -- | I27: -- | J27: -- | K27: -- | L27: -- | M27: -- | N27: -- | O27: -- | P27: -- | Q27: -- | R27: -- | S27: -- | T27: -- | U27: -- | V27: -- | W27: -- | X27: -- | Y27: -- | Z27: -- | AA27: -- | AB27: -- | AC27: -- | AD27: -- | AE27: -- | AF27: -- | AG27: -- | AH27: -- | AI27: -- | AJ27: -- | AK27: -- | AL27: -- | AM27: -- | AN27: -- | AO27: -- | AP27: -- | AQ27: -- | AR27: -- | AS27: -- | AT27: -- | AU27: -- | AV27: -- | AW27: -- | AX27: -- | AY27: -- | AZ27: -- | BA27: -- | BB27: -- | BC27: -- | BD27: -- | BE27: -- | BF27: -- | BG27: -- | BH27: -- | BI27: -- | BJ27: -- | BK27: -- | BL27: -- | BM27: -- | BN27: -- | BO27: -- | BP27: -- | BQ27: -- | BR27: -- | BS27: -- | BT27: -- | BU27: -- | BV27: -- | BW27: -- | BX27: -- | BY27: -- | BZ27: -- | CA27: -- | CB27: -- | CC27: -- | CD27: -- | CE27: -- | CF27: -- | CG27: -- | CH27: -- | CI27: -- | CJ27: -- | CK27: -- | CL27: -- | CM27: -- | CN27: -- | CO27: -- | CP27: -- | CQ27: -- | CR27: -- | CS27: -- | CT27: -- | CU27: -- | CV27: -- | CW27: -- | CX27: -- | CY27: -- | CZ27: -- | DA27: -- | DB27: -- | DC27: -- | DD27: -- | DE27: -- | DF27: -- | DG27: -- | DH27: -- | DI27: -- | DJ27: -- | DK27: -- | DL27: -- | DM27: -- | DN27: -- | DO27: -- | DP27: -- | DQ27: -- | DR27: -- | DS27: -- | DT27: -- | DU27: -- | DV27: -- | DW27: -- | DX27: -- | DY27: -- | DZ27: -- | EA27: -- | EB27: -- | EC27: -- | ED27: -- | EE27: -- | EF27: -- | EG27: -- | EH27: -- | EI27: -- | EJ27: -- | EK27: -- | EL27: -- | EM27: -- | EN27: -- | EO27: -- | EP27: -- | EQ27: -- | ER27: --
A28: Connecticut : Electric Power | C28: ELEC.GEN.WND-CT-98.M
A29: Connecticut : Electric Utility | B29: thousand megawatthours | C29: ELEC.GEN.WND-CT-1.M | D29: -- | E29: -- | F29: -- | G29: -- | H29: -- | I29: -- | J29: -- | K29: -- | L29: -- | M29: -- | N29: -- | O29: -- | P29: -- | Q29: -- | R29: -- | S29: -- | T29: -- | U29: -- | V29: -- | W29: -- | X29: -- | Y29: -- | Z29: -- | AA29: -- | AB29: -- | AC29: -- | AD29: -- | AE29: -- | AF29: -- | AG29: -- | AH29: -- | AI29: -- | AJ29: -- | AK29: -- | AL29: -- | AM29: -- | AN29: -- | AO29: -- | AP29: -- | AQ29: -- | AR29: -- | AS29: -- | AT29: -- | AU29: -- | AV29: -- | AW29: -- | AX29: -- | AY29: -- | AZ29: -- | BA29: -- | BB29: -- | BC29: -- | BD29: -- | BE29: -- | BF29: -- | BG29: -- | BH29: -- | BI29: -- | BJ29: -- | BK29: -- | BL29: -- | BM29: -- | BN29: -- | BO29: -- | BP29: -- | BQ29: -- | BR29: -- | BS29: -- | BT29: -- | BU29: -- | BV29: -- | BW29: -- | BX29: -- | BY29: -- | BZ29: -- | CA29: -- | CB29: -- | CC29: -- | CD29: -- | CE29: -- | CF29: -- | CG29: -- | CH29: -- | CI29: -- | CJ29: -- | CK29: -- | CL29: -- | CM29: -- | CN29: -- | CO29: -- | CP29: -- | CQ29: -- | CR29: -- | CS29: -- | CT29: -- | CU29: -- | CV29: -- | CW29: -- | CX29: -- | CY29: -- | CZ29: -- | DA29: -- | DB29: -- | DC29: -- | DD29: -- | DE29: -- | DF29: -- | DG29: -- | DH29: -- | DI29: -- | DJ29: -- | DK29: -- | DL29: -- | DM29: -- | DN29: -- | DO29: -- | DP29: -- | DQ29: -- | DR29: -- | DS29: -- | DT29: -- | DU29: -- | DV29: -- | DW29: -- | DX29: -- | DY29: -- | DZ29: -- | EA29: -- | EB29: -- | EC29: -- | ED29: -- | EE29: -- | EF29: -- | EG29: -- | EH29: -- | EI29: -- | EJ29: -- | EK29: -- | EL29: -- | EM29: -- | EN29: -- | EO29: -- | EP29: -- | EQ29: -- | ER29: --
A30: Connecticut : Independent Power Producers | B30: thousand megawatthours | C30: ELEC.GEN.WND-CT-94.M | D30: -- | E30: -- | F30: -- | G30: -- | H30: -- | I30: -- | J30: -- | K30: -- | L30: -- | M30: -- | N30: -- | O30: -- | P30: -- | Q30: -- | R30: -- | S30: -- | T30: -- | U30: -- | V30: -- | W30: -- | X30: -- | Y30: -- | Z30: -- | AA30: -- | AB30: -- | AC30: -- | AD30: -- | AE30: -- | AF30: -- | AG30: -- | AH30: -- | AI30: -- | AJ30: -- | AK30: -- | AL30: -- | AM30: -- | AN30: -- | AO30: -- | AP30: -- | AQ30: -- | AR30: -- | AS30: -- | AT30: -- | AU30: -- | AV30: -- | AW30: -- | AX30: -- | AY30: -- | AZ30: -- | BA30: -- | BB30: -- | BC30: -- | BD30: -- | BE30: -- | BF30: -- | BG30: -- | BH30: -- | BI30: -- | BJ30: -- | BK30: -- | BL30: -- | BM30: -- | BN30: -- | BO30: -- | BP30: -- | BQ30: -- | BR30: -- | BS30: -- | BT30: -- | BU30: -- | BV30: -- | BW30: -- | BX30: -- | BY30: -- | BZ30: -- | CA30: -- | CB30: -- | CC30: -- | CD30: -- | CE30: -- | CF30: -- | CG30: -- | CH30: -- | CI30: -- | CJ30: -- | CK30: -- | CL30: -- | CM30: -- | CN30: -- | CO30: -- | CP30: -- | CQ30: -- | CR30: -- | CS30: -- | CT30: -- | CU30: -- | CV30: -- | CW30: -- | CX30: -- | CY30: -- | CZ30: -- | DA30: -- | DB30: -- | DC30: -- | DD30: -- | DE30: -- | DF30: -- | DG30: -- | DH30: -- | DI30: -- | DJ30: -- | DK30: -- | DL30: -- | DM30: -- | DN30: -- | DO30: -- | DP30: -- | DQ30: -- | DR30: -- | DS30: -- | DT30: -- | DU30: -- | DV30: -- | DW30: -- | DX30: -- | DY30: -- | DZ30: -- | EA30: -- | EB30: -- | EC30: -- | ED30: -- | EE30: -- | EF30: -- | EG30: -- | EH30: -- | EI30: -- | EJ30: -- | EK30: -- | EL30: -- | EM30: -- | EN30: -- | EO30: -- | EP30: -- | EQ30: -- | ER30: --
A31: Connecticut : All Commercial | B31: thousand megawatthours | C31: ELEC.GEN.WND-CT-96.M | D31: -- | E31: -- | F31: -- | G31: -- | H31: -- | I31: -- | J31: -- | K31: -- | L31: -- | M31: -- | N31: -- | O31: -- | P31: -- | Q31: -- | R31: -- | S31: -- | T31: -- | U31: -- | V31: -- | W31: -- | X31: -- | Y31: -- | Z31: -- | AA31: -- | AB31: -- | AC31: -- | AD31: -- | AE31: -- | AF31: -- | AG31: -- | AH31: -- | AI31: -- | AJ31: -- | AK31: -- | AL31: -- | AM31: -- | AN31: -- | AO31: -- | AP31: -- | AQ31: -- | AR31: -- | AS31: -- | AT31: -- | AU31: -- | AV31: -- | AW31: -- | AX31: -- | AY31: -- | AZ31: -- | BA31: -- | BB31: -- | BC31: -- | BD31: -- | BE31: -- | BF31: -- | BG31: -- | BH31: -- | BI31: -- | BJ31: -- | BK31: -- | BL31: -- | BM31: -- | BN31: -- | BO31: -- | BP31: -- | BQ31: -- | BR31: -- | BS31: -- | BT31: -- | BU31: -- | BV31: -- | BW31: -- | BX31: -- | BY31: -- | BZ31: -- | CA31: -- | CB31: -- | CC31: -- | CD31: -- | CE31: -- | CF31: -- | CG31: -- | CH31: -- | CI31: -- | CJ31: -- | CK31: -- | CL31: -- | CM31: -- | CN31: -- | CO31: -- | CP31: -- | CQ31: -- | CR31: -- | CS31: -- | CT31: -- | CU31: -- | CV31: -- | CW31: -- | CX31: -- | CY31: -- | CZ31: -- | DA31: -- | DB31: -- | DC31: -- | DD31: -- | DE31: -- | DF31: -- | DG31: -- | DH31: -- | DI31: -- | DJ31: -- | DK31: -- | DL31: -- | DM31: -- | DN31: -- | DO31: -- | DP31: -- | DQ31: -- | DR31: -- | DS31: -- | DT31: -- | DU31: -- | DV31: -- | DW31: -- | DX31: -- | DY31: -- | DZ31: -- | EA31: -- | EB31: -- | EC31: -- | ED31: -- | EE31: -- | EF31: -- | EG31: -- | EH31: -- | EI31: -- | EJ31: -- | EK31: -- | EL31: -- | EM31: -- | EN31: -- | EO31: -- | EP31: -- | EQ31: -- | ER31: --
A32: Connecticut : All Industrial | B32: thousand megawatthours | C32: ELEC.GEN.WND-CT-97.M | D32: -- | E32: -- | F32: -- | G32: -- | H32: -- | I32: -- | J32: -- | K32: -- | L32: -- | M32: -- | N32: -- | O32: -- | P32: -- | Q32: -- | R32: -- | S32: -- | T32: -- | U32: -- | V32: -- | W32: -- | X32: -- | Y32: -- | Z32: -- | AA32: -- | AB32: -- | AC32: -- | AD32: -- | AE32: -- | AF32: -- | AG32: -- | AH32: -- | AI32: -- | AJ32: -- | AK32: -- | AL32: -- | AM32: -- | AN32: -- | AO32: -- | AP32: -- | AQ32: -- | AR32: -- | AS32: -- | AT32: -- | AU32: -- | AV32: -- | AW32: -- | AX32: -- | AY32: -- | AZ32: -- | BA32: -- | BB32: -- | BC32: -- | BD32: -- | BE32: -- | BF32: -- | BG32: -- | BH32: -- | BI32: -- | BJ32: -- | BK32: -- | BL32: -- | BM32: -- | BN32: -- | BO32: -- | BP32: -- | BQ32: -- | BR32: -- | BS32: -- | BT32: -- | BU32: -- | BV32: -- | BW32: -- | BX32: -- | BY32: -- | BZ32: -- | CA32: -- | CB32: -- | CC32: -- | CD32: -- | CE32: -- | CF32: -- | CG32: -- | CH32: -- | CI32: -- | CJ32: -- | CK32: -- | CL32: -- | CM32: -- | CN32: -- | CO32: -- | CP32: -- | CQ32: -- | CR32: -- | CS32: -- | CT32: -- | CU32: -- | CV32: -- | CW32: -- | CX32: -- | CY32: -- | CZ32: -- | DA32: -- | DB32: -- | DC32: -- | DD32: -- | DE32: -- | DF32: -- | DG32: -- | DH32: -- | DI32: -- | DJ32: -- | DK32: -- | DL32: -- | DM32: -- | DN32: -- | DO32: -- | DP32: -- | DQ32: -- | DR32: -- | DS32: -- | DT32: -- | DU32: -- | DV32: -- | DW32: -- | DX32: -- | DY32: -- | DZ32: -- | EA32: -- | EB32: -- | EC32: -- | ED32: -- | EE32: -- | EF32: -- | EG32: -- | EH32: -- | EI32: -- | EJ32: -- | EK32: -- | EL32: -- | EM32: -- | EN32: -- | EO32: -- | EP32: -- | EQ32: -- | ER32: --
A33: Maine | B33: thousand megawatthours | C33: ELEC.GEN.WND-ME-99.M
A34: Maine : All Sectors | B34: thousand megawatthours | C34: ELEC.GEN.WND-ME-99.M | D34: -- | E34: -- | F34: -- | G34: -- | H34: -- | I34: -- | J34: -- | K34: -- | L34: -- | M34: -- | N34: -- | O34: -- | P34: -- | Q34: -- | R34: -- | S34: -- | T34: -- | U34: -- | V34: -- | W34: -- | X34: -- | Y34: -- | Z34: -- | AA34: -- | AB34: -- | AC34: -- | AD34: -- | AE34: -- | AF34: -- | AG34: -- | AH34: -- | AI34: -- | AJ34: -- | AK34: -- | AL34: -- | AM34: -- | AN34: -- | AO34: -- | AP34: -- | AQ34: -- | AR34: -- | AS34: -- | AT34: -- | AU34: -- | AV34: -- | AW34: -- | AX34: -- | AY34: -- | AZ34: -- | BA34: -- | BB34: -- | BC34: -- | BD34: -- | BE34: -- | BF34: -- | BG34: -- | BH34: -- | BI34: -- | BJ34: -- | BK34: -- | BL34: -- | BM34: -- | BN34: -- | BO34: -- | BP34: -- | BQ34: -- | BR34: -- | BS34: -- | BT34: -- | BU34: -- | BV34: -- | BW34: -- | BX34: -- | BY34: -- | BZ34: -- | CA34: 12 | CB34: 10 | CC34: 8 | CD34: 6 | CE34: 8 | CF34: 14 | CG34: 14 | CH34: 10 | CI34: 17 | CJ34: 17 | CK34: 12 | CL34: 12 | CM34: 11 | CN34: 9 | CO34: 7 | CP34: 7 | CQ34: 7 | CR34: 10 | CS34: 14 | CT34: 14 | CU34: 13 | CV34: 16 | CW34: 31 | CX34: 27 | CY34: 29 | CZ34: 23 | DA34: 20 | DB34: 14 | DC34: 18 | DD34: 21 | DE34: 31 | DF34: 38 | DG34: 30 | DH34: 38 | DI34: 40 | DJ34: 44 | DK34: 33 | DL34: 40 | DM34: 26 | DN34: 31 | DO34: 21 | DP34: 30 | DQ34: 70 | DR34: 59 | DS34: 68 | DT34: 63 | DU34: 76 | DV34: 71 | DW34: 64 | DX34: 40 | DY34: 36 | DZ34: 40 | EA34: 39 | EB34: 41 | EC34: 81 | ED34: 85 | EE34: 73 | EF34: 106 | EG34: 95 | EH34: 85 | EI34: 82 | EJ34: 51 | EK34: 56 | EL34: 50 | EM34: 44 | EN34: 60 | EO34: 95 | EP34: 58 | EQ34: 102 | ER34: 106
A35: Maine : Electric Power | C35: ELEC.GEN.WND-ME-98.M
A36: Maine : Electric Utility | B36: thousand megawatthours | C36: ELEC.GEN.WND-ME-1.M | D36: -- | E36: -- | F36: -- | G36: -- | H36: -- | I36: -- | J36: -- | K36: -- | L36: -- | M36: -- | N36: -- | O36: -- | P36: -- | Q36: -- | R36: -- | S36: -- | T36: -- | U36: -- | V36: -- | W36: -- | X36: -- | Y36: -- | Z36: -- | AA36: -- | AB36: -- | AC36: -- | AD36: -- | AE36: -- | AF36: -- | AG36: -- | AH36: -- | AI36: -- | AJ36: -- | AK36: -- | AL36: -- | AM36: -- | AN36: -- | AO36: -- | AP36: -- | AQ36: -- | AR36: -- | AS36: -- | AT36: -- | AU36: -- | AV36: -- | AW36: -- | AX36: -- | AY36: -- | AZ36: -- | BA36: -- | BB36: -- | BC36: -- | BD36: -- | BE36: -- | BF36: -- | BG36: -- | BH36: -- | BI36: -- | BJ36: -- | BK36: -- | BL36: -- | BM36: -- | BN36: -- | BO36: -- | BP36: -- | BQ36: -- | BR36: -- | BS36: -- | BT36: -- | BU36: -- | BV36: -- | BW36: -- | BX36: -- | BY36: -- | BZ36: -- | CA36: -- | CB36: -- | CC36: -- | CD36: -- | CE36: -- | CF36: -- | CG36: -- | CH36: -- | CI36: -- | CJ36: -- | CK36: -- | CL36: -- | CM36: -- | CN36: -- | CO36: -- | CP36: -- | CQ36: -- | CR36: -- | CS36: -- | CT36: -- | CU36: -- | CV36: -- | CW36: -- | CX36: -- | CY36: -- | CZ36: -- | DA36: -- | DB36: -- | DC36: -- | DD36: -- | DE36: -- | DF36: -- | DG36: -- | DH36: -- | DI36: -- | DJ36: -- | DK36: -- | DL36: -- | DM36: -- | DN36: -- | DO36: -- | DP36: -- | DQ36: -- | DR36: -- | DS36: -- | DT36: -- | DU36: -- | DV36: -- | DW36: -- | DX36: -- | DY36: -- | DZ36: -- | EA36: -- | EB36: -- | EC36: -- | ED36: -- | EE36: -- | EF36: -- | EG36: -- | EH36: -- | EI36: -- | EJ36: -- | EK36: -- | EL36: -- | EM36: -- | EN36: -- | EO36: -- | EP36: -- | EQ36: -- | ER36: --
A37: Maine : Independent Power Producers | B37: thousand megawatthours | C37: ELEC.GEN.WND-ME-94.M | D37: -- | E37: -- | F37: -- | G37: -- | H37: -- | I37: -- | J37: -- | K37: -- | L37: -- | M37: -- | N37: -- | O37: -- | P37: -- | Q37: -- | R37: -- | S37: -- | T37: -- | U37: -- | V37: -- | W37: -- | X37: -- | Y37: -- | Z37: -- | AA37: -- | AB37: -- | AC37: -- | AD37: -- | AE37: -- | AF37: -- | AG37: -- | AH37: -- | AI37: -- | AJ37: -- | AK37: -- | AL37: -- | AM37: -- | AN37: -- | AO37: -- | AP37: -- | AQ37: -- | AR37: -- | AS37: -- | AT37: -- | AU37: -- | AV37: -- | AW37: -- | AX37: -- | AY37: -- | AZ37: -- | BA37: -- | BB37: -- | BC37: -- | BD37: -- | BE37: -- | BF37: -- | BG37: -- | BH37: -- | BI37: -- | BJ37: -- | BK37: -- | BL37: -- | BM37: -- | BN37: -- | BO37: -- | BP37: -- | BQ37: -- | BR37: -- | BS37: -- | BT37: -- | BU37: -- | BV37: -- | BW37: -- | BX37: -- | BY37: -- | BZ37: -- | CA37: 12 | CB37: 10 | CC37: 8 | CD37: 6 | CE37: 8 | CF37: 14 | CG37: 14 | CH37: 10 | CI37: 17 | CJ37: 17 | CK37: 12 | CL37: 12 | CM37: 11 | CN37: 9 | CO37: 7 | CP37: 7 | CQ37: 7 | CR37: 10 | CS37: 14 | CT37: 14 | CU37: 13 | CV37: 16 | CW37: 31 | CX37: 27 | CY37: 29 | CZ37: 23 | DA37: 20 | DB37: 14 | DC37: 18 | DD37: 21 | DE37: 31 | DF37: 38 | DG37: 30 | DH37: 38 | DI37: 40 | DJ37: 44 | DK37: 33 | DL37: 40 | DM37: 26 | DN37: 31 | DO37: 21 | DP37: 30 | DQ37: 70 | DR37: 59 | DS37: 68 | DT37: 63 | DU37: 76 | DV37: 71 | DW37: 64 | DX37: 40 | DY37: 36 | DZ37: 40 | EA37: 39 | EB37: 41 | EC37: 81 | ED37: 85 | EE37: 73 | EF37: 106 | EG37: 95 | EH37: 85 | EI37: 82 | EJ37: 51 | EK37: 56 | EL37: 50 | EM37: 44 | EN37: 60 | EO37: 95 | EP37: 58 | EQ37: 102 | ER37: 106
A38: Maine : All Commercial | B38: thousand megawatthours | C38: ELEC.GEN.WND-ME-96.M | D38: -- | E38: -- | F38: -- | G38: -- | H38: -- | I38: -- | J38: -- | K38: -- | L38: -- | M38: -- | N38: -- | O38: -- | P38: -- | Q38: -- | R38: -- | S38: -- | T38: -- | U38: -- | V38: -- | W38: -- | X38: -- | Y38: -- | Z38: -- | AA38: -- | AB38: -- | AC38: -- | AD38: -- | AE38: -- | AF38: -- | AG38: -- | AH38: -- | AI38: -- | AJ38: -- | AK38: -- | AL38: -- | AM38: -- | AN38: -- | AO38: -- | AP38: -- | AQ38: -- | AR38: -- | AS38: -- | AT38: -- | AU38: -- | AV38: -- | AW38: -- | AX38: -- | AY38: -- | AZ38: -- | BA38: -- | BB38: -- | BC38: -- | BD38: -- | BE38: -- | BF38: -- | BG38: -- | BH38: -- | BI38: -- | BJ38: -- | BK38: -- | BL38: -- | BM38: -- | BN38: -- | BO38: -- | BP38: -- | BQ38: -- | BR38: -- | BS38: -- | BT38: -- | BU38: -- | BV38: -- | BW38: -- | BX38: -- | BY38: -- | BZ38: -- | CA38: -- | CB38: -- | CC38: -- | CD38: -- | CE38: -- | CF38: -- | CG38: -- | CH38: -- | CI38: -- | CJ38: -- | CK38: -- | CL38: -- | CM38: -- | CN38: -- | CO38: -- | CP38: -- | CQ38: -- | CR38: -- | CS38: -- | CT38: -- | CU38: -- | CV38: -- | CW38: -- | CX38: -- | CY38: -- | CZ38: -- | DA38: -- | DB38: -- | DC38: -- | DD38: -- | DE38: -- | DF38: -- | DG38: -- | DH38: -- | DI38: -- | DJ38: -- | DK38: -- | DL38: -- | DM38: -- | DN38: -- | DO38: -- | DP38: -- | DQ38: -- | DR38: -- | DS38: -- | DT38: -- | DU38: -- | DV38: -- | DW38: -- | DX38: -- | DY38: -- | DZ38: -- | EA38: -- | EB38: -- | EC38: -- | ED38: -- | EE38: -- | EF38: -- | EG38: -- | EH38: -- | EI38: -- | EJ38: -- | EK38: -- | EL38: -- | EM38: -- | EN38: -- | EO38: -- | EP38: -- | EQ38: -- | ER38: --
A39: Maine : All Industrial | B39: thousand megawatthours | C39: ELEC.GEN.WND-ME-97.M | D39: -- | E39: -- | F39: -- | G39: -- | H39: -- | I39: -- | J39: -- | K39: -- | L39: -- | M39: -- | N39: -- | O39: -- | P39: -- | Q39: -- | R39: -- | S39: -- | T39: -- | U39: -- | V39: -- | W39: -- | X39: -- | Y39: -- | Z39: -- | AA39: -- | AB39: -- | AC39: -- | AD39: -- | AE39: -- | AF39: -- | AG39: -- | AH39: -- | AI39: -- | AJ39: -- | AK39: -- | AL39: -- | AM39: -- | AN39: -- | AO39: -- | AP39: -- | AQ39: -- | AR39: -- | AS39: -- | AT39: -- | AU39: -- | AV39: -- | AW39: -- | AX39: -- | AY39: -- | AZ39: -- | BA39: -- | BB39: -- | BC39: -- | BD39: -- | BE39: -- | BF39: -- | BG39: -- | BH39: -- | BI39: -- | BJ39: -- | BK39: -- | BL39: -- | BM39: -- | BN39: -- | BO39: -- | BP39: -- | BQ39: -- | BR39: -- | BS39: -- | BT39: -- | BU39: -- | BV39: -- | BW39: -- | BX39: -- | BY39: -- | BZ39: -- | CA39: -- | CB39: -- | CC39: -- | CD39: -- | CE39: -- | CF39: -- | CG39: -- | CH39: -- | CI39: -- | CJ39: -- | CK39: -- | CL39: -- | CM39: -- | CN39: -- | CO39: -- | CP39: -- | CQ39: -- | CR39: -- | CS39: -- | CT39: -- | CU39: -- | CV39: -- | CW39: -- | CX39: -- | CY39: -- | CZ39: -- | DA39: -- | DB39: -- | DC39: -- | DD39: -- | DE39: -- | DF39: -- | DG39: -- | DH39: -- | DI39: -- | DJ39: -- | DK39: -- | DL39: -- | DM39: -- | DN39: -- | DO39: -- | DP39: -- | DQ39: -- | DR39: -- | DS39: -- | DT39: -- | DU39: -- | DV39: -- | DW39: -- | DX39: -- | DY39: -- | DZ39: -- | EA39: -- | EB39: -- | EC39: -- | ED39: -- | EE39: -- | EF39: -- | EG39: -- | EH39: -- | EI39: -- | EJ39: -- | EK39: -- | EL39: -- | EM39: -- | EN39: -- | EO39: -- | EP39: -- | EQ39: -- | ER39: --
A40: Massachusetts | B40: thousand megawatthours | C40: ELEC.GEN.WND-MA-99.M
A41: Massachusetts : All Sectors | B41: thousand megawatthours | C41: ELEC.GEN.WND-MA-99.M | D41: -- | E41: -- | F41: -- | G41: -- | H41: -- | I41: -- | J41: -- | K41: -- | L41: -- | M41: -- | N41: -- | O41: -- | P41: -- | Q41: -- | R41: -- | S41: -- | T41: -- | U41: -- | V41: -- | W41: -- | X41: -- | Y41: -- | Z41: -- | AA41: -- | AB41: -- | AC41: -- | AD41: -- | AE41: -- | AF41: -- | AG41: -- | AH41: -- | AI41: -- | AJ41: -- | AK41: -- | AL41: -- | AM41: -- | AN41: -- | AO41: -- | AP41: -- | AQ41: -- | AR41: -- | AS41: -- | AT41: -- | AU41: -- | AV41: -- | AW41: -- | AX41: -- | AY41: -- | AZ41: -- | BA41: -- | BB41: -- | BC41: -- | BD41: -- | BE41: -- | BF41: -- | BG41: -- | BH41: -- | BI41: -- | BJ41: -- | BK41: -- | BL41: -- | BM41: -- | BN41: -- | BO41: -- | BP41: -- | BQ41: -- | BR41: -- | BS41: -- | BT41: -- | BU41: -- | BV41: -- | BW41: -- | BX41: -- | BY41: -- | BZ41: -- | CA41: -- | CB41: -- | CC41: -- | CD41: -- | CE41: -- | CF41: -- | CG41: -- | CH41: -- | CI41: -- | CJ41: 0 | CK41: 0 | CL41: 0 | CM41: 0 | CN41: 0 | CO41: 0 | CP41: 0 | CQ41: 0 | CR41: 0 | CS41: 0 | CT41: 0 | CU41: 0 | CV41: 0 | CW41: 1 | CX41: 1 | CY41: 1 | CZ41: 0 | DA41: 0 | DB41: 0 | DC41: 0 | DD41: 0 | DE41: 0 | DF41: 1 | DG41: 1 | DH41: 1 | DI41: 1 | DJ41: 2 | DK41: 2 | DL41: 2 | DM41: NM | DN41: 2 | DO41: NM | DP41: 2 | DQ41: 3 | DR41: 3 | DS41: 3 | DT41: 2 | DU41: 2 | DV41: 3 | DW41: 3 | DX41: 5 | DY41: 4 | DZ41: 5 | EA41: 5 | EB41: 5 | EC41: 9 | ED41: 11 | EE41: 9 | EF41: NM | EG41: 7 | EH41: 9 | EI41: 8 | EJ41: NM | EK41: NM | EL41: NM | EM41: NM | EN41: NM | EO41: NM | EP41: NM | EQ41: 13 | ER41: 20
A42: Massachusetts : Electric Power | C42: ELEC.GEN.WND-MA-98.M
A43: Massachusetts : Electric Utility | B43: thousand megawatthours | C43: ELEC.GEN.WND-MA-1.M | D43: -- | E43: -- | F43: -- | G43: -- | H43: -- | I43: -- | J43: -- | K43: -- | L43: -- | M43: -- | N43: -- | O43: -- | P43: -- | Q43: -- | R43: -- | S43: -- | T43: -- | U43: -- | V43: -- | W43: -- | X43: -- | Y43: -- | Z43: -- | AA43: -- | AB43: -- | AC43: -- | AD43: -- | AE43: -- | AF43: -- | AG43: -- | AH43: -- | AI43: -- | AJ43: -- | AK43: -- | AL43: -- | AM43: -- | AN43: -- | AO43: -- | AP43: -- | AQ43: -- | AR43: -- | AS43: -- | AT43: -- | AU43: -- | AV43: -- | AW43: -- | AX43: -- | AY43: -- | AZ43: -- | BA43: -- | BB43: -- | BC43: -- | BD43: -- | BE43: -- | BF43: -- | BG43: -- | BH43: -- | BI43: -- | BJ43: -- | BK43: -- | BL43: -- | BM43: -- | BN43: -- | BO43: -- | BP43: -- | BQ43: -- | BR43: -- | BS43: -- | BT43: -- | BU43: -- | BV43: -- | BW43: -- | BX43: -- | BY43: -- | BZ43: -- | CA43: -- | CB43: -- | CC43: -- | CD43: -- | CE43: -- | CF43: -- | CG43: -- | CH43: -- | CI43: -- | CJ43: 0 | CK43: 0 | CL43: 0 | CM43: 0 | CN43: 0 | CO43: 0 | CP43: 0 | CQ43: 0 | CR43: 0 | CS43: 0 | CT43: 0 | CU43: 0 | CV43: 0 | CW43: 1 | CX43: 1 | CY43: 1 | CZ43: 0 | DA43: 0 | DB43: 0 | DC43: 0 | DD43: 0 | DE43: 0 | DF43: 1 | DG43: 0 | DH43: NM | DI43: NM | DJ43: 1 | DK43: NM | DL43: NM | DM43: NM | DN43: NM | DO43: NM | DP43: NM | DQ43: 2 | DR43: 2 | DS43: NM | DT43: 1 | DU43: 1 | DV43: 1 | DW43: 1 | DX43: 3 | DY43: 3 | DZ43: 3 | EA43: 3 | EB43: 4 | EC43: 7 | ED43: 8 | EE43: 7 | EF43: NM | EG43: 5 | EH43: NM | EI43: NM | EJ43: NM | EK43: NM | EL43: NM | EM43: NM | EN43: NM | EO43: NM | EP43: NM | EQ43: NM | ER43: NM
A44: Massachusetts : Independent Power Producers | B44: thousand megawatthours | C44: ELEC.GEN.WND-MA-94.M | D44: -- | E44: -- | F44: -- | G44: -- | H44: -- | I44: -- | J44: -- | K44: -- | L44: -- | M44: -- | N44: -- | O44: -- | P44: -- | Q44: -- | R44: -- | S44: -- | T44: -- | U44: -- | V44: -- | W44: -- | X44: -- | Y44: -- | Z44: -- | AA44: -- | AB44: -- | AC44: -- | AD44: -- | AE44: -- | AF44: -- | AG44: -- | AH44: -- | AI44: -- | AJ44: -- | AK44: -- | AL44: -- | AM44: -- | AN44: -- | AO44: -- | AP44: -- | AQ44: -- | AR44: -- | AS44: -- | AT44: -- | AU44: -- | AV44: -- | AW44: -- | AX44: -- | AY44: -- | AZ44: -- | BA44: -- | BB44: -- | BC44: -- | BD44: -- | BE44: -- | BF44: -- | BG44: -- | BH44: -- | BI44: -- | BJ44: -- | BK44: -- | BL44: -- | BM44: -- | BN44: -- | BO44: -- | BP44: -- | BQ44: -- | BR44: -- | BS44: -- | BT44: -- | BU44: -- | BV44: -- | BW44: -- | BX44: -- | BY44: -- | BZ44: -- | CA44: -- | CB44: -- | CC44: -- | CD44: -- | CE44: -- | CF44: -- | CG44: -- | CH44: -- | CI44: -- | CJ44: -- | CK44: -- | CL44: -- | CM44: -- | CN44: -- | CO44: -- | CP44: -- | CQ44: -- | CR44: -- | CS44: -- | CT44: -- | CU44: -- | CV44: -- | CW44: -- | CX44: -- | CY44: -- | CZ44: -- | DA44: -- | DB44: -- | DC44: -- | DD44: -- | DE44: -- | DF44: -- | DG44: 0 | DH44: 0 | DI44: 0 | DJ44: 0 | DK44: 0 | DL44: 0 | DM44: 0 | DN44: 0 | DO44: 0 | DP44: 0 | DQ44: 1 | DR44: 1 | DS44: 1 | DT44: 1 | DU44: 1 | DV44: 1 | DW44: 1 | DX44: 0 | DY44: 0 | DZ44: 0 | EA44: 0 | EB44: 0 | EC44: 1 | ED44: 1 | EE44: 1 | EF44: NM | EG44: NM | EH44: NM | EI44: NM | EJ44: NM | EK44: NM | EL44: NM | EM44: NM | EN44: NM | EO44: NM | EP44: NM | EQ44: 6 | ER44: 13
A45: Massachusetts : All Commercial | B45: thousand megawatthours | C45: ELEC.GEN.WND-MA-96.M | D45: -- | E45: -- | F45: -- | G45: -- | H45: -- | I45: -- | J45: -- | K45: -- | L45: -- | M45: -- | N45: -- | O45: -- | P45: -- | Q45: -- | R45: -- | S45: -- | T45: -- | U45: -- | V45: -- | W45: -- | X45: -- | Y45: -- | Z45: -- | AA45: -- | AB45: -- | AC45: -- | AD45: -- | AE45: -- | AF45: -- | AG45: -- | AH45: -- | AI45: -- | AJ45: -- | AK45: -- | AL45: -- | AM45: -- | AN45: -- | AO45: -- | AP45: -- | AQ45: -- | AR45: -- | AS45: -- | AT45: -- | AU45: -- | AV45: -- | AW45: -- | AX45: -- | AY45: -- | AZ45: -- | BA45: -- | BB45: -- | BC45: -- | BD45: -- | BE45: -- | BF45: -- | BG45: -- | BH45: -- | BI45: -- | BJ45: -- | BK45: -- | BL45: -- | BM45: -- | BN45: -- | BO45: -- | BP45: -- | BQ45: -- | BR45: -- | BS45: -- | BT45: -- | BU45: -- | BV45: -- | BW45: -- | BX45: -- | BY45: -- | BZ45: -- | CA45: -- | CB45: -- | CC45: -- | CD45: -- | CE45: -- | CF45: -- | CG45: -- | CH45: -- | CI45: -- | CJ45: -- | CK45: -- | CL45: -- | CM45: -- | CN45: -- | CO45: -- | CP45: -- | CQ45: -- | CR45: -- | CS45: -- | CT45: -- | CU45: -- | CV45: 0 | CW45: 0 | CX45: 0 | CY45: 0 | CZ45: 0 | DA45: 0 | DB45: 0 | DC45: 0 | DD45: 0 | DE45: 0 | DF45: 0 | DG45: 0 | DH45: 0 | DI45: 0 | DJ45: 0 | DK45: 0 | DL45: 0 | DM45: 0 | DN45: 0 | DO45: 0 | DP45: 0 | DQ45: 0 | DR45: 0 | DS45: 0 | DT45: 0 | DU45: 0 | DV45: NM | DW45: NM | DX45: NM | DY45: NM | DZ45: NM | EA45: NM | EB45: NM | EC45: NM | ED45: NM | EE45: NM | EF45: NM | EG45: NM | EH45: NM | EI45: NM | EJ45: NM | EK45: NM | EL45: NM | EM45: NM | EN45: NM | EO45: NM | EP45: NM | EQ45: NM | ER45: NM
A46: Massachusetts : All Industrial | B46: thousand megawatthours | C46: ELEC.GEN.WND-MA-97.M | D46: -- | E46: -- | F46: -- | G46: -- | H46: -- | I46: -- | J46: -- | K46: -- | L46: -- | M46: -- | N46: -- | O46: -- | P46: -- | Q46: -- | R46: -- | S46: -- | T46: -- | U46: -- | V46: -- | W46: -- | X46: -- | Y46: -- | Z46: -- | AA46: -- | AB46: -- | AC46: -- | AD46: -- | AE46: -- | AF46: -- | AG46: -- | AH46: -- | AI46: -- | AJ46: -- | AK46: -- | AL46: -- | AM46: -- | AN46: -- | AO46: -- | AP46: -- | AQ46: -- | AR46: -- | AS46: -- | AT46: -- | AU46: -- | AV46: -- | AW46: -- | AX46: -- | AY46: -- | AZ46: -- | BA46: -- | BB46: -- | BC46: -- | BD46: -- | BE46: -- | BF46: -- | BG46: -- | BH46: -- | BI46: -- | BJ46: -- | BK46: -- | BL46: -- | BM46: -- | BN46: -- | BO46: -- | BP46: -- | BQ46: -- | BR46: -- | BS46: -- | BT46: -- | BU46: -- | BV46: -- | BW46: -- | BX46: -- | BY46: -- | BZ46: -- | CA46: -- | CB46: -- | CC46: -- | CD46: -- | CE46: -- | CF46: -- | CG46: -- | CH46: -- | CI46: -- | CJ46: -- | CK46: -- | CL46: -- | CM46: -- | CN46: -- | CO46: -- | CP46: -- | CQ46: -- | CR46: -- | CS46: -- | CT46: -- | CU46: -- | CV46: -- | CW46: -- | CX46: -- | CY46: -- | CZ46: -- | DA46: -- | DB46: -- | DC46: -- | DD46: -- | DE46: -- | DF46: -- | DG46: -- | DH46: -- | DI46: -- | DJ46: -- | DK46: -- | DL46: -- | DM46: -- | DN46: -- | DO46: -- | DP46: -- | DQ46: -- | DR46: -- | DS46: -- | DT46: -- | DU46: -- | DV46: -- | DW46: -- | DX46: -- | DY46: -- | DZ46: -- | EA46: -- | EB46: -- | EC46: -- | ED46: -- | EE46: -- | EF46: -- | EG46: -- | EH46: -- | EI46: -- | EJ46: -- | EK46: -- | EL46: -- | EM46: -- | EN46: -- | EO46: -- | EP46: -- | EQ46: -- | ER46: --
A47: New Hampshire | B47: thousand megawatthours | C47: ELEC.GEN.WND-NH-99.M
A48: New Hampshire : All Sectors | B48: thousand megawatthours | C48: ELEC.GEN.WND-NH-99.M | D48: -- | E48: -- | F48: -- | G48: -- | H48: -- | I48: -- | J48: -- | K48: -- | L48: -- | M48: -- | N48: -- | O48: -- | P48: -- | Q48: -- | R48: -- | S48: -- | T48: -- | U48: -- | V48: -- | W48: -- | X48: -- | Y48: -- | Z48: -- | AA48: -- | AB48: -- | AC48: -- | AD48: -- | AE48: -- | AF48: -- | AG48: -- | AH48: -- | AI48: -- | AJ48: -- | AK48: -- | AL48: -- | AM48: -- | AN48: -- | AO48: -- | AP48: -- | AQ48: -- | AR48: -- | AS48: -- | AT48: -- | AU48: -- | AV48: -- | AW48: -- | AX48: -- | AY48: -- | AZ48: -- | BA48: -- | BB48: -- | BC48: -- | BD48: -- | BE48: -- | BF48: -- | BG48: -- | BH48: -- | BI48: -- | BJ48: -- | BK48: -- | BL48: -- | BM48: -- | BN48: -- | BO48: -- | BP48: -- | BQ48: -- | BR48: -- | BS48: -- | BT48: -- | BU48: -- | BV48: -- | BW48: -- | BX48: -- | BY48: -- | BZ48: -- | CA48: -- | CB48: -- | CC48: -- | CD48: -- | CE48: -- | CF48: -- | CG48: -- | CH48: -- | CI48: -- | CJ48: -- | CK48: -- | CL48: -- | CM48: -- | CN48: -- | CO48: -- | CP48: -- | CQ48: -- | CR48: -- | CS48: -- | CT48: -- | CU48: 10 | CV48: 4 | CW48: 7 | CX48: 6 | CY48: 7 | CZ48: 5 | DA48: 4 | DB48: 3 | DC48: 4 | DD48: 5 | DE48: 5 | DF48: 6 | DG48: 5 | DH48: 6 | DI48: 6 | DJ48: 7 | DK48: 5 | DL48: 6 | DM48: 4 | DN48: 5 | DO48: 3 | DP48: 5 | DQ48: 11 | DR48: 9 | DS48: 10 | DT48: 6 | DU48: 7 | DV48: 6 | DW48: 6 | DX48: 4 | DY48: 3 | DZ48: 4 | EA48: 4 | EB48: 4 | EC48: 8 | ED48: 9 | EE48: 7 | EF48: 8 | EG48: 28 | EH48: 35 | EI48: 32 | EJ48: 29 | EK48: 18 | EL48: 16 | EM48: 14 | EN48: 17 | EO48: 14 | EP48: 19 | EQ48: 29 | ER48: 38
A49: New Hampshire : Electric Power | C49: ELEC.GEN.WND-NH-98.M
A50: New Hampshire : Electric Utility | B50: thousand megawatthours | C50: ELEC.GEN.WND-NH-1.M | D50: -- | E50: -- | F50: -- | G50: -- | H50: -- | I50: -- | J50: -- | K50: -- | L50: -- | M50: -- | N50: -- | O50: -- | P50: -- | Q50: -- | R50: -- | S50: -- | T50: -- | U50: -- | V50: -- | W50: -- | X50: -- | Y50: -- | Z50: -- | AA50: -- | AB50: -- | AC50: -- | AD50: -- | AE50: -- | AF50: -- | AG50: -- | AH50: -- | AI50: -- | AJ50: -- | AK50: -- | AL50: -- | AM50: -- | AN50: -- | AO50: -- | AP50: -- | AQ50: -- | AR50: -- | AS50: -- | AT50: -- | AU50: -- | AV50: -- | AW50: -- | AX50: -- | AY50: -- | AZ50: -- | BA50: -- | BB50: -- | BC50: -- | BD50: -- | BE50: -- | BF50: -- | BG50: -- | BH50: -- | BI50: -- | BJ50: -- | BK50: -- | BL50: -- | BM50: -- | BN50: -- | BO50: -- | BP50: -- | BQ50: -- | BR50: -- | BS50: -- | BT50: -- | BU50: -- | BV50: -- | BW50: -- | BX50: -- | BY50: -- | BZ50: -- | CA50: -- | CB50: -- | CC50: -- | CD50: -- | CE50: -- | CF50: -- | CG50: -- | CH50: -- | CI50: -- | CJ50: -- | CK50: -- | CL50: -- | CM50: -- | CN50: -- | CO50: -- | CP50: -- | CQ50: -- | CR50: -- | CS50: -- | CT50: -- | CU50: -- | CV50: -- | CW50: -- | CX50: -- | CY50: -- | CZ50: -- | DA50: -- | DB50: -- | DC50: -- | DD50: -- | DE50: -- | DF50: -- | DG50: -- | DH50: -- | DI50: -- | DJ50: -- | DK50: -- | DL50: -- | DM50: -- | DN50: -- | DO50: -- | DP50: -- | DQ50: -- | DR50: -- | DS50: -- | DT50: -- | DU50: -- | DV50: -- | DW50: -- | DX50: -- | DY50: -- | DZ50: -- | EA50: -- | EB50: -- | EC50: -- | ED50: -- | EE50: -- | EF50: -- | EG50: -- | EH50: -- | EI50: -- | EJ50: -- | EK50: -- | EL50: -- | EM50: -- | EN50: -- | EO50: -- | EP50: -- | EQ50: -- | ER50: --
A51: New Hampshire : Independent Power Producers | B51: thousand megawatthours | C51: ELEC.GEN.WND-NH-94.M | D51: -- | E51: -- | F51: -- | G51: -- | H51: -- | I51: -- | J51: -- | K51: -- | L51: -- | M51: -- | N51: -- | O51: -- | P51: -- | Q51: -- | R51: -- | S51: -- | T51: -- | U51: -- | V51: -- | W51: -- | X51: -- | Y51: -- | Z51: -- | AA51: -- | AB51: -- | AC51: -- | AD51: -- | AE51: -- | AF51: -- | AG51: -- | AH51: -- | AI51: -- | AJ51: -- | AK51: -- | AL51: -- | AM51: -- | AN51: -- | AO51: -- | AP51: -- | AQ51: -- | AR51: -- | AS51: -- | AT51: -- | AU51: -- | AV51: -- | AW51: -- | AX51: -- | AY51: -- | AZ51: -- | BA51: -- | BB51: -- | BC51: -- | BD51: -- | BE51: -- | BF51: -- | BG51: -- | BH51: -- | BI51: -- | BJ51: -- | BK51: -- | BL51: -- | BM51: -- | BN51: -- | BO51: -- | BP51: -- | BQ51: -- | BR51: -- | BS51: -- | BT51: -- | BU51: -- | BV51: -- | BW51: -- | BX51: -- | BY51: -- | BZ51: -- | CA51: -- | CB51: -- | CC51: -- | CD51: -- | CE51: -- | CF51: -- | CG51: -- | CH51: -- | CI51: -- | CJ51: -- | CK51: -- | CL51: -- | CM51: -- | CN51: -- | CO51: -- | CP51: -- | CQ51: -- | CR51: -- | CS51: -- | CT51: -- | CU51: 10 | CV51: 4 | CW51: 7 | CX51: 6 | CY51: 7 | CZ51: 5 | DA51: 4 | DB51: 3 | DC51: 4 | DD51: 5 | DE51: 5 | DF51: 6 | DG51: 5 | DH51: 6 | DI51: 6 | DJ51: 7 | DK51: 5 | DL51: 6 | DM51: 4 | DN51: 5 | DO51: 3 | DP51: 5 | DQ51: 11 | DR51: 9 | DS51: 10 | DT51: 6 | DU51: 7 | DV51: 6 | DW51: 6 | DX51: 4 | DY51: 3 | DZ51: 4 | EA51: 4 | EB51: 4 | EC51: 8 | ED51: 9 | EE51: 7 | EF51: 8 | EG51: 28 | EH51: 35 | EI51: 32 | EJ51: 29 | EK51: 18 | EL51: 16 | EM51: 14 | EN51: 17 | EO51: 14 | EP51: 19 | EQ51: 29 | ER51: 38
A52: New Hampshire : All Commercial | B52: thousand megawatthours | C52: ELEC.GEN.WND-NH-96.M | D52: -- | E52: -- | F52: -- | G52: -- | H52: -- | I52: -- | J52: -- | K52: -- | L52: -- | M52: -- | N52: -- | O52: -- | P52: -- | Q52: -- | R52: -- | S52: -- | T52: -- | U52: -- | V52: -- | W52: -- | X52: -- | Y52: -- | Z52: -- | AA52: -- | AB52: -- | AC52: -- | AD52: -- | AE52: -- | AF52: -- | AG52: -- | AH52: -- | AI52: -- | AJ52: -- | AK52: -- | AL52: -- | AM52: -- | AN52: -- | AO52: -- | AP52: -- | AQ52: -- | AR52: -- | AS52: -- | AT52: -- | AU52: -- | AV52: -- | AW52: -- | AX52: -- | AY52: -- | AZ52: -- | BA52: -- | BB52: -- | BC52: -- | BD52: -- | BE52: -- | BF52: -- | BG52: -- | BH52: -- | BI52: -- | BJ52: -- | BK52: -- | BL52: -- | BM52: -- | BN52: -- | BO52: -- | BP52: -- | BQ52: -- | BR52: -- | BS52: -- | BT52: -- | BU52: -- | BV52: -- | BW52: -- | BX52: -- | BY52: -- | BZ52: -- | CA52: -- | CB52: -- | CC52: -- | CD52: -- | CE52: -- | CF52: -- | CG52: -- | CH52: -- | CI52: -- | CJ52: -- | CK52: -- | CL52: -- | CM52: -- | CN52: -- | CO52: -- | CP52: -- | CQ52: -- | CR52: -- | CS52: -- | CT52: -- | CU52: -- | CV52: -- | CW52: -- | CX52: -- | CY52: -- | CZ52: -- | DA52: -- | DB52: -- | DC52: -- | DD52: -- | DE52: -- | DF52: -- | DG52: -- | DH52: -- | DI52: -- | DJ52: -- | DK52: -- | DL52: -- | DM52: -- | DN52: -- | DO52: -- | DP52: -- | DQ52: -- | DR52: -- | DS52: -- | DT52: -- | DU52: -- | DV52: -- | DW52: -- | DX52: -- | DY52: -- | DZ52: -- | EA52: -- | EB52: -- | EC52: -- | ED52: -- | EE52: -- | EF52: -- | EG52: -- | EH52: -- | EI52: -- | EJ52: -- | EK52: -- | EL52: -- | EM52: -- | EN52: -- | EO52: -- | EP52: -- | EQ52: -- | ER52: --
A53: New Hampshire : All Industrial | B53: thousand megawatthours | C53: ELEC.GEN.WND-NH-97.M | D53: -- | E53: -- | F53: -- | G53: -- | H53: -- | I53: -- | J53: -- | K53: -- | L53: -- | M53: -- | N53: -- | O53: -- | P53: -- | Q53: -- | R53: -- | S53: -- | T53: -- | U53: -- | V53: -- | W53: -- | X53: -- | Y53: -- | Z53: -- | AA53: -- | AB53: -- | AC53: -- | AD53: -- | AE53: -- | AF53: -- | AG53: -- | AH53: -- | AI53: -- | AJ53: -- | AK53: -- | AL53: -- | AM53: -- | AN53: -- | AO53: -- | AP53: -- | AQ53: -- | AR53: -- | AS53: -- | AT53: -- | AU53: -- | AV53: -- | AW53: -- | AX53: -- | AY53: -- | AZ53: -- | BA53: -- | BB53: -- | BC53: -- | BD53: -- | BE53: -- | BF53: -- | BG53: -- | BH53: -- | BI53: -- | BJ53: -- | BK53: -- | BL53: -- | BM53: -- | BN53: -- | BO53: -- | BP53: -- | BQ53: -- | BR53: -- | BS53: -- | BT53: -- | BU53: -- | BV53: -- | BW53: -- | BX53: -- | BY53: -- | BZ53: -- | CA53: -- | CB53: -- | CC53: -- | CD53: -- | CE53: -- | CF53: -- | CG53: -- | CH53: -- | CI53: -- | CJ53: -- | CK53: -- | CL53: -- | CM53: -- | CN53: -- | CO53: -- | CP53: -- | CQ53: -- | CR53: -- | CS53: -- | CT53: -- | CU53: -- | CV53: -- | CW53: -- | CX53: -- | CY53: -- | CZ53: -- | DA53: -- | DB53: -- | DC53: -- | DD53: -- | DE53: -- | DF53: -- | DG53: -- | DH53: -- | DI53: -- | DJ53: -- | DK53: -- | DL53: -- | DM53: -- | DN53: -- | DO53: -- | DP53: -- | DQ53: -- | DR53: -- | DS53: -- | DT53: -- | DU53: -- | DV53: -- | DW53: -- | DX53: -- | DY53: -- | DZ53: -- | EA53: -- | EB53: -- | EC53: -- | ED53: -- | EE53: -- | EF53: -- | EG53: -- | EH53: -- | EI53: -- | EJ53: -- | EK53: -- | EL53: -- | EM53: -- | EN53: -- | EO53: -- | EP53: -- | EQ53: -- | ER53: --
A54: Rhode Island | B54: thousand megawatthours | C54: ELEC.GEN.WND-RI-99.M
A55: Rhode Island : All Sectors | B55: thousand megawatthours | C55: ELEC.GEN.WND-RI-99.M | D55: -- | E55: -- | F55: -- | G55: -- | H55: -- | I55: -- | J55: -- | K55: -- | L55: -- | M55: -- | N55: -- | O55: -- | P55: -- | Q55: -- | R55: -- | S55: -- | T55: -- | U55: -- | V55: -- | W55: -- | X55: -- | Y55: -- | Z55: -- | AA55: -- | AB55: -- | AC55: -- | AD55: -- | AE55: -- | AF55: -- | AG55: -- | AH55: -- | AI55: -- | AJ55: -- | AK55: -- | AL55: -- | AM55: -- | AN55: -- | AO55: -- | AP55: -- | AQ55: -- | AR55: -- | AS55: -- | AT55: -- | AU55: -- | AV55: -- | AW55: -- | AX55: -- | AY55: -- | AZ55: -- | BA55: -- | BB55: -- | BC55: -- | BD55: -- | BE55: -- | BF55: -- | BG55: -- | BH55: -- | BI55: -- | BJ55: -- | BK55: -- | BL55: -- | BM55: -- | BN55: -- | BO55: -- | BP55: -- | BQ55: -- | BR55: -- | BS55: -- | BT55: -- | BU55: -- | BV55: -- | BW55: -- | BX55: -- | BY55: -- | BZ55: -- | CA55: -- | CB55: -- | CC55: -- | CD55: -- | CE55: -- | CF55: -- | CG55: -- | CH55: -- | CI55: -- | CJ55: -- | CK55: -- | CL55: -- | CM55: -- | CN55: -- | CO55: -- | CP55: -- | CQ55: -- | CR55: -- | CS55: -- | CT55: -- | CU55: -- | CV55: -- | CW55: -- | CX55: -- | CY55: -- | CZ55: -- | DA55: -- | DB55: -- | DC55: -- | DD55: -- | DE55: -- | DF55: -- | DG55: -- | DH55: 0 | DI55: 0 | DJ55: 0 | DK55: 0 | DL55: 0 | DM55: 0 | DN55: 0 | DO55: 0 | DP55: 0 | DQ55: 0 | DR55: 0 | DS55: 0 | DT55: 0 | DU55: 0 | DV55: 0 | DW55: 0 | DX55: 0 | DY55: 0 | DZ55: 0 | EA55: 0 | EB55: 0 | EC55: 0 | ED55: 0 | EE55: 0 | EF55: NM | EG55: NM | EH55: NM | EI55: NM | EJ55: NM | EK55: NM | EL55: NM | EM55: NM | EN55: NM | EO55: NM | EP55: NM | EQ55: NM | ER55: NM
A56: Rhode Island : Electric Power | C56: ELEC.GEN.WND-RI-98.M
A57: Rhode Island : Electric Utility | B57: thousand megawatthours | C57: ELEC.GEN.WND-RI-1.M | D57: -- | E57: -- | F57: -- | G57: -- | H57: -- | I57: -- | J57: -- | K57: -- | L57: -- | M57: -- | N57: -- | O57: -- | P57: -- | Q57: -- | R57: -- | S57: -- | T57: -- | U57: -- | V57: -- | W57: -- | X57: -- | Y57: -- | Z57: -- | AA57: -- | AB57: -- | AC57: -- | AD57: -- | AE57: -- | AF57: -- | AG57: -- | AH57: -- | AI57: -- | AJ57: -- | AK57: -- | AL57: -- | AM57: -- | AN57: -- | AO57: -- | AP57: -- | AQ57: -- | AR57: -- | AS57: -- | AT57: -- | AU57: -- | AV57: -- | AW57: -- | AX57: -- | AY57: -- | AZ57: -- | BA57: -- | BB57: -- | BC57: -- | BD57: -- | BE57: -- | BF57: -- | BG57: -- | BH57: -- | BI57: -- | BJ57: -- | BK57: -- | BL57: -- | BM57: -- | BN57: -- | BO57: -- | BP57: -- | BQ57: -- | BR57: -- | BS57: -- | BT57: -- | BU57: -- | BV57: -- | BW57: -- | BX57: -- | BY57: -- | BZ57: -- | CA57: -- | CB57: -- | CC57: -- | CD57: -- | CE57: -- | CF57: -- | CG57: -- | CH57: -- | CI57: -- | CJ57: -- | CK57: -- | CL57: -- | CM57: -- | CN57: -- | CO57: -- | CP57: -- | CQ57: -- | CR57: -- | CS57: -- | CT57: -- | CU57: -- | CV57: -- | CW57: -- | CX57: -- | CY57: -- | CZ57: -- | DA57: -- | DB57: -- | DC57: -- | DD57: -- | DE57: -- | DF57: -- | DG57: -- | DH57: -- | DI57: -- | DJ57: -- | DK57: -- | DL57: -- | DM57: -- | DN57: -- | DO57: -- | DP57: -- | DQ57: -- | DR57: -- | DS57: -- | DT57: -- | DU57: -- | DV57: -- | DW57: -- | DX57: -- | DY57: -- | DZ57: -- | EA57: -- | EB57: -- | EC57: -- | ED57: -- | EE57: -- | EF57: -- | EG57: -- | EH57: -- | EI57: -- | EJ57: -- | EK57: -- | EL57: -- | EM57: -- | EN57: -- | EO57: -- | EP57: -- | EQ57: -- | ER57: --
A58: Rhode Island : Independent Power Producers | B58: thousand megawatthours | C58: ELEC.GEN.WND-RI-94.M | D58: -- | E58: -- | F58: -- | G58: -- | H58: -- | I58: -- | J58: -- | K58: -- | L58: -- | M58: -- | N58: -- | O58: -- | P58: -- | Q58: -- | R58: -- | S58: -- | T58: -- | U58: -- | V58: -- | W58: -- | X58: -- | Y58: -- | Z58: -- | AA58: -- | AB58: -- | AC58: -- | AD58: -- | AE58: -- | AF58: -- | AG58: -- | AH58: -- | AI58: -- | AJ58: -- | AK58: -- | AL58: -- | AM58: -- | AN58: -- | AO58: -- | AP58: -- | AQ58: -- | AR58: -- | AS58: -- | AT58: -- | AU58: -- | AV58: -- | AW58: -- | AX58: -- | AY58: -- | AZ58: -- | BA58: -- | BB58: -- | BC58: -- | BD58: -- | BE58: -- | BF58: -- | BG58: -- | BH58: -- | BI58: -- | BJ58: -- | BK58: -- | BL58: -- | BM58: -- | BN58: -- | BO58: -- | BP58: -- | BQ58: -- | BR58: -- | BS58: -- | BT58: -- | BU58: -- | BV58: -- | BW58: -- | BX58: -- | BY58: -- | BZ58: -- | CA58: -- | CB58: -- | CC58: -- | CD58: -- | CE58: -- | CF58: -- | CG58: -- | CH58: -- | CI58: -- | CJ58: -- | CK58: -- | CL58: -- | CM58: -- | CN58: -- | CO58: -- | CP58: -- | CQ58: -- | CR58: -- | CS58: -- | CT58: -- | CU58: -- | CV58: -- | CW58: -- | CX58: -- | CY58: -- | CZ58: -- | DA58: -- | DB58: -- | DC58: -- | DD58: -- | DE58: -- | DF58: -- | DG58: -- | DH58: 0 | DI58: 0 | DJ58: 0 | DK58: 0 | DL58: 0 | DM58: 0 | DN58: 0 | DO58: 0 | DP58: 0 | DQ58: 0 | DR58: 0 | DS58: 0 | DT58: 0 | DU58: 0 | DV58: 0 | DW58: 0 | DX58: 0 | DY58: 0 | DZ58: 0 | EA58: 0 | EB58: 0 | EC58: 0 | ED58: 0 | EE58: 0 | EF58: NM | EG58: NM | EH58: NM | EI58: NM | EJ58: NM | EK58: NM | EL58: NM | EM58: NM | EN58: NM | EO58: NM | EP58: NM | EQ58: NM | ER58: NM
A59: Rhode Island : All Commercial | B59: thousand megawatthours | C59: ELEC.GEN.WND-RI-96.M | D59: -- | E59: -- | F59: -- | G59: -- | H59: -- | I59: -- | J59: -- | K59: -- | L59: -- | M59: -- | N59: -- | O59: -- | P59: -- | Q59: -- | R59: -- | S59: -- | T59: -- | U59: -- | V59: -- | W59: -- | X59: -- | Y59: -- | Z59: -- | AA59: -- | AB59: -- | AC59: -- | AD59: -- | AE59: -- | AF59: -- | AG59: -- | AH59: -- | AI59: -- | AJ59: -- | AK59: -- | AL59: -- | AM59: -- | AN59: -- | AO59: -- | AP59: -- | AQ59: -- | AR59: -- | AS59: -- | AT59: -- | AU59: -- | AV59: -- | AW59: -- | AX59: -- | AY59: -- | AZ59: -- | BA59: -- | BB59: -- | BC59: -- | BD59: -- | BE59: -- | BF59: -- | BG59: -- | BH59: -- | BI59: -- | BJ59: -- | BK59: -- | BL59: -- | BM59: -- | BN59: -- | BO59: -- | BP59: -- | BQ59: -- | BR59: -- | BS59: -- | BT59: -- | BU59: -- | BV59: -- | BW59: -- | BX59: -- | BY59: -- | BZ59: -- | CA59: -- | CB59: -- | CC59: -- | CD59: -- | CE59: -- | CF59: -- | CG59: -- | CH59: -- | CI59: -- | CJ59: -- | CK59: -- | CL59: -- | CM59: -- | CN59: -- | CO59: -- | CP59: -- | CQ59: -- | CR59: -- | CS59: -- | CT59: -- | CU59: -- | CV59: -- | CW59: -- | CX59: -- | CY59: -- | CZ59: -- | DA59: -- | DB59: -- | DC59: -- | DD59: -- | DE59: -- | DF59: -- | DG59: -- | DH59: -- | DI59: -- | DJ59: -- | DK59: -- | DL59: -- | DM59: -- | DN59: -- | DO59: -- | DP59: -- | DQ59: -- | DR59: -- | DS59: -- | DT59: -- | DU59: -- | DV59: -- | DW59: -- | DX59: -- | DY59: -- | DZ59: -- | EA59: -- | EB59: -- | EC59: -- | ED59: -- | EE59: -- | EF59: -- | EG59: -- | EH59: -- | EI59: -- | EJ59: -- | EK59: -- | EL59: -- | EM59: -- | EN59: -- | EO59: -- | EP59: -- | EQ59: -- | ER59: --
A60: Rhode Island : All Industrial | B60: thousand megawatthours | C60: ELEC.GEN.WND-RI-97.M | D60: -- | E60: -- | F60: -- | G60: -- | H60: -- | I60: -- | J60: -- | K60: -- | L60: -- | M60: -- | N60: -- | O60: -- | P60: -- | Q60: -- | R60: -- | S60: -- | T60: -- | U60: -- | V60: -- | W60: -- | X60: -- | Y60: -- | Z60: -- | AA60: -- | AB60: -- | AC60: -- | AD60: -- | AE60: -- | AF60: -- | AG60: -- | AH60: -- | AI60: -- | AJ60: -- | AK60: -- | AL60: -- | AM60: -- | AN60: -- | AO60: -- | AP60: -- | AQ60: -- | AR60: -- | AS60: -- | AT60: -- | AU60: -- | AV60: -- | AW60: -- | AX60: -- | AY60: -- | AZ60: -- | BA60: -- | BB60: -- | BC60: -- | BD60: -- | BE60: -- | BF60: -- | BG60: -- | BH60: -- | BI60: -- | BJ60: -- | BK60: -- | BL60: -- | BM60: -- | BN60: -- | BO60: -- | BP60: -- | BQ60: -- | BR60: -- | BS60: -- | BT60: -- | BU60: -- | BV60: -- | BW60: -- | BX60: -- | BY60: -- | BZ60: -- | CA60: -- | CB60: -- | CC60: -- | CD60: -- | CE60: -- | CF60: -- | CG60: -- | CH60: -- | CI60: -- | CJ60: -- | CK60: -- | CL60: -- | CM60: -- | CN60: -- | CO60: -- | CP60: -- | CQ60: -- | CR60: -- | CS60: -- | CT60: -- | CU60: -- | CV60: -- | CW60: -- | CX60: -- | CY60: -- | CZ60: -- | DA60: -- | DB60: -- | DC60: -- | DD60: -- | DE60: -- | DF60: -- | DG60: -- | DH60: -- | DI60: -- | DJ60: -- | DK60: -- | DL60: -- | DM60: -- | DN60: -- | DO60: -- | DP60: -- | DQ60: -- | DR60: -- | DS60: -- | DT60: -- | DU60: -- | DV60: -- | DW60: -- | DX60: -- | DY60: -- | DZ60: -- | EA60: -- | EB60: -- | EC60: -- | ED60: -- | EE60: -- | EF60: -- | EG60: -- | EH60: -- | EI60: -- | EJ60: -- | EK60: -- | EL60: -- | EM60: -- | EN60: -- | EO60: -- | EP60: -- | EQ60: -- | ER60: --
A61: Vermont | B61: thousand megawatthours | C61: ELEC.GEN.WND-VT-99.M
A62: Vermont : All Sectors | B62: thousand megawatthours | C62: ELEC.GEN.WND-VT-99.M | D62: 1 | E62: 1 | F62: 1 | G62: 1 | H62: 1 | I62: 1 | J62: 1 | K62: 0 | L62: 1 | M62: 1 | N62: 1 | O62: 1 | P62: 2 | Q62: -- | R62: 1 | S62: 1 | T62: 1 | U62: 0 | V62: 1 | W62: 0 | X62: 1 | Y62: 1 | Z62: 1 | AA62: 1 | AB62: 1 | AC62: 1 | AD62: 1 | AE62: 1 | AF62: 1 | AG62: 1 | AH62: 1 | AI62: 1 | AJ62: 1 | AK62: 1 | AL62: 1 | AM62: 1 | AN62: 1 | AO62: 1 | AP62: 1 | AQ62: 1 | AR62: 1 | AS62: 1 | AT62: 0 | AU62: 1 | AV62: 1 | AW62: 1 | AX62: 1 | AY62: 1 | AZ62: 1 | BA62: 1 | BB62: 1 | BC62: 1 | BD62: 1 | BE62: 1 | BF62: 1 | BG62: 1 | BH62: 1 | BI62: 1 | BJ62: 1 | BK62: 1 | BL62: 1 | BM62: 1 | BN62: 1 | BO62: 1 | BP62: 1 | BQ62: 0 | BR62: 1 | BS62: 1 | BT62: 1 | BU62: 1 | BV62: 1 | BW62: 1 | BX62: 1 | BY62: 1 | BZ62: 1 | CA62: 1 | CB62: 1 | CC62: 1 | CD62: 1 | CE62: 0 | CF62: 1 | CG62: 1 | CH62: 1 | CI62: 1 | CJ62: 1 | CK62: 1 | CL62: 1 | CM62: 1 | CN62: 1 | CO62: 1 | CP62: 0 | CQ62: 1 | CR62: 0 | CS62: 1 | CT62: 1 | CU62: 1 | CV62: 2 | CW62: 1 | CX62: 1 | CY62: 1 | CZ62: 1 | DA62: 0 | DB62: 1 | DC62: 0 | DD62: 1 | DE62: 1 | DF62: 1 | DG62: 2 | DH62: 1 | DI62: 2 | DJ62: 1 | DK62: 1 | DL62: 1 | DM62: 1 | DN62: 1 | DO62: 1 | DP62: 1 | DQ62: 2 | DR62: 1 | DS62: 2 | DT62: 1 | DU62: 1 | DV62: 1 | DW62: 1 | DX62: 0 | DY62: 1 | DZ62: 1 | EA62: 1 | EB62: 0 | EC62: 5 | ED62: 11 | EE62: 11 | EF62: 12 | EG62: 9 | EH62: 8 | EI62: 11 | EJ62: 7 | EK62: 7 | EL62: 4 | EM62: 4 | EN62: 7 | EO62: 12 | EP62: 14 | EQ62: 15 | ER62: 23 | FD62: http://www.eia.gov/electricity/data/browser/#/plant/56751/?freq=M&pin=ELEC.GEN.WND-US-99.M
A63: Vermont : Electric Power | C63: ELEC.GEN.WND-VT-98.M | FD63: http://www.eia.gov/electricity/data/browser/#/plant/57079/?freq=M&pin=ELEC.GEN.WND-US-99.M
A64: Vermont : Electric Utility | B64: thousand megawatthours | C64: ELEC.GEN.WND-VT-1.M | D64: 1 | E64: 1 | F64: 1 | G64: 1 | H64: 1 | I64: 1 | J64: 1 | K64: 0 | L64: 1 | M64: 1 | N64: 1 | O64: 1 | P64: 2 | Q64: -- | R64: 1 | S64: 1 | T64: 1 | U64: 0 | V64: 1 | W64: 0 | X64: 1 | Y64: 1 | Z64: 1 | AA64: 1 | AB64: 1 | AC64: 1 | AD64: 1 | AE64: 1 | AF64: 1 | AG64: 1 | AH64: 1 | AI64: 1 | AJ64: 1 | AK64: 1 | AL64: 1 | AM64: 1 | AN64: 1 | AO64: 1 | AP64: 1 | AQ64: 1 | AR64: 1 | AS64: 1 | AT64: 0 | AU64: 1 | AV64: 1 | AW64: 1 | AX64: 1 | AY64: 1 | AZ64: 1 | BA64: 1 | BB64: 1 | BC64: 1 | BD64: 1 | BE64: 1 | BF64: 1 | BG64: 1 | BH64: 1 | BI64: 1 | BJ64: 1 | BK64: 1 | BL64: 1 | BM64: 1 | BN64: 1 | BO64: 1 | BP64: 1 | BQ64: 0 | BR64: 1 | BS64: 1 | BT64: 1 | BU64: 1 | BV64: 1 | BW64: 1 | BX64: 1 | BY64: 1 | BZ64: 1 | CA64: 1 | CB64: 1 | CC64: 1 | CD64: 1 | CE64: 0 | CF64: 1 | CG64: 1 | CH64: 1 | CI64: 1 | CJ64: 1 | CK64: 1 | CL64: 1 | CM64: 1 | CN64: 1 | CO64: 1 | CP64: 0 | CQ64: 1 | CR64: 0 | CS64: 1 | CT64: 1 | CU64: 1 | CV64: 2 | CW64: 1 | CX64: 1 | CY64: 1 | CZ64: 1 | DA64: 0 | DB64: 1 | DC64: 0 | DD64: 1 | DE64: 1 | DF64: 1 | DG64: 2 | DH64: 1 | DI64: 2 | DJ64: 1 | DK64: 1 | DL64: 1 | DM64: 1 | DN64: 1 | DO64: 1 | DP64: 1 | DQ64: 2 | DR64: 1 | DS64: 2 | DT64: 1 | DU64: 1 | DV64: 1 | DW64: 1 | DX64: 0 | DY64: 1 | DZ64: 1 | EA64: 1 | EB64: 0 | EC64: 1 | ED64: 1 | EE64: 1 | EF64: 1 | EG64: 1 | EH64: 1 | EI64: 1 | EJ64: 1 | EK64: 1 | EL64: 1 | EM64: 1 | EN64: 1 | EO64: 4 | EP64: 8 | EQ64: 6 | ER64: 11 | FD64: http://www.eia.gov/electricity/data/browser/#/plant/57107/?freq=M&pin=ELEC.GEN.WND-US-99.M
A65: Vermont : Independent Power Producers | B65: thousand megawatthours | C65: ELEC.GEN.WND-VT-94.M | D65: -- | E65: -- | F65: -- | G65: -- | H65: -- | I65: -- | J65: -- | K65: -- | L65: -- | M65: -- | N65: -- | O65: -- | P65: -- | Q65: -- | R65: -- | S65: -- | T65: -- | U65: -- | V65: -- | W65: -- | X65: -- | Y65: -- | Z65: -- | AA65: -- | AB65: -- | AC65: -- | AD65: -- | AE65: -- | AF65: -- | AG65: -- | AH65: -- | AI65: -- | AJ65: -- | AK65: -- | AL65: -- | AM65: -- | AN65: -- | AO65: -- | AP65: -- | AQ65: -- | AR65: -- | AS65: -- | AT65: -- | AU65: -- | AV65: -- | AW65: -- | AX65: -- | AY65: -- | AZ65: -- | BA65: -- | BB65: -- | BC65: -- | BD65: -- | BE65: -- | BF65: -- | BG65: -- | BH65: -- | BI65: -- | BJ65: -- | BK65: -- | BL65: -- | BM65: -- | BN65: -- | BO65: -- | BP65: -- | BQ65: -- | BR65: -- | BS65: -- | BT65: -- | BU65: -- | BV65: -- | BW65: -- | BX65: -- | BY65: -- | BZ65: -- | CA65: -- | CB65: -- | CC65: -- | CD65: -- | CE65: -- | CF65: -- | CG65: -- | CH65: -- | CI65: -- | CJ65: -- | CK65: -- | CL65: -- | CM65: -- | CN65: -- | CO65: -- | CP65: -- | CQ65: -- | CR65: -- | CS65: -- | CT65: -- | CU65: -- | CV65: -- | CW65: -- | CX65: -- | CY65: -- | CZ65: -- | DA65: -- | DB65: -- | DC65: -- | DD65: -- | DE65: -- | DF65: -- | DG65: -- | DH65: -- | DI65: -- | DJ65: -- | DK65: -- | DL65: -- | DM65: -- | DN65: -- | DO65: -- | DP65: -- | DQ65: -- | DR65: -- | DS65: -- | DT65: -- | DU65: -- | DV65: -- | DW65: -- | DX65: -- | DY65: -- | DZ65: -- | EA65: -- | EB65: -- | EC65: 3 | ED65: 10 | EE65: 9 | EF65: 10 | EG65: 7 | EH65: 7 | EI65: 10 | EJ65: 7 | EK65: 6 | EL65: 3 | EM65: 4 | EN65: 6 | EO65: 8 | EP65: 6 | EQ65: 10 | ER65: 12
A66: Vermont : All Commercial | B66: thousand megawatthours | C66: ELEC.GEN.WND-VT-96.M | D66: -- | E66: -- | F66: -- | G66: -- | H66: -- | I66: -- | J66: -- | K66: -- | L66: -- | M66: -- | N66: -- | O66: -- | P66: -- | Q66: -- | R66: -- | S66: -- | T66: -- | U66: -- | V66: -- | W66: -- | X66: -- | Y66: -- | Z66: -- | AA66: -- | AB66: -- | AC66: -- | AD66: -- | AE66: -- | AF66: -- | AG66: -- | AH66: -- | AI66: -- | AJ66: -- | AK66: -- | AL66: -- | AM66: -- | AN66: -- | AO66: -- | AP66: -- | AQ66: -- | AR66: -- | AS66: -- | AT66: -- | AU66: -- | AV66: -- | AW66: -- | AX66: -- | AY66: -- | AZ66: -- | BA66: -- | BB66: -- | BC66: -- | BD66: -- | BE66: -- | BF66: -- | BG66: -- | BH66: -- | BI66: -- | BJ66: -- | BK66: -- | BL66: -- | BM66: -- | BN66: -- | BO66: -- | BP66: -- | BQ66: -- | BR66: -- | BS66: -- | BT66: -- | BU66: -- | BV66: -- | BW66: -- | BX66: -- | BY66: -- | BZ66: -- | CA66: -- | CB66: -- | CC66: -- | CD66: -- | CE66: -- | CF66: -- | CG66: -- | CH66: -- | CI66: -- | CJ66: -- | CK66: -- | CL66: -- | CM66: -- | CN66: -- | CO66: -- | CP66: -- | CQ66: -- | CR66: -- | CS66: -- | CT66: -- | CU66: -- | CV66: -- | CW66: -- | CX66: -- | CY66: -- | CZ66: -- | DA66: -- | DB66: -- | DC66: -- | DD66: -- | DE66: -- | DF66: -- | DG66: -- | DH66: -- | DI66: -- | DJ66: -- | DK66: -- | DL66: -- | DM66: -- | DN66: -- | DO66: -- | DP66: -- | DQ66: -- | DR66: -- | DS66: -- | DT66: -- | DU66: -- | DV66: -- | DW66: -- | DX66: -- | DY66: -- | DZ66: -- | EA66: -- | EB66: -- | EC66: -- | ED66: -- | EE66: -- | EF66: -- | EG66: -- | EH66: -- | EI66: -- | EJ66: -- | EK66: -- | EL66: -- | EM66: -- | EN66: -- | EO66: -- | EP66: -- | EQ66: -- | ER66: --
A67: Vermont : All Industrial | B67: thousand megawatthours | C67: ELEC.GEN.WND-VT-97.M | D67: -- | E67: -- | F67: -- | G67: -- | H67: -- | I67: -- | J67: -- | K67: -- | L67: -- | M67: -- | N67: -- | O67: -- | P67: -- | Q67: -- | R67: -- | S67: -- | T67: -- | U67: -- | V67: -- | W67: -- | X67: -- | Y67: -- | Z67: -- | AA67: -- | AB67: -- | AC67: -- | AD67: -- | AE67: -- | AF67: -- | AG67: -- | AH67: -- | AI67: -- | AJ67: -- | AK67: -- | AL67: -- | AM67: -- | AN67: -- | AO67: -- | AP67: -- | AQ67: -- | AR67: -- | AS67: -- | AT67: -- | AU67: -- | AV67: -- | AW67: -- | AX67: -- | AY67: -- | AZ67: -- | BA67: -- | BB67: -- | BC67: -- | BD67: -- | BE67: -- | BF67: -- | BG67: -- | BH67: -- | BI67: -- | BJ67: -- | BK67: -- | BL67: -- | BM67: -- | BN67: -- | BO67: -- | BP67: -- | BQ67: -- | BR67: -- | BS67: -- | BT67: -- | BU67: -- | BV67: -- | BW67: -- | BX67: -- | BY67: -- | BZ67: -- | CA67: -- | CB67: -- | CC67: -- | CD67: -- | CE67: -- | CF67: -- | CG67: -- | CH67: -- | CI67: -- | CJ67: -- | CK67: -- | CL67: -- | CM67: -- | CN67: -- | CO67: -- | CP67: -- | CQ67: -- | CR67: -- | CS67: -- | CT67: -- | CU67: -- | CV67: -- | CW67: -- | CX67: -- | CY67: -- | CZ67: -- | DA67: -- | DB67: -- | DC67: -- | DD67: -- | DE67: -- | DF67: -- | DG67: -- | DH67: -- | DI67: -- | DJ67: -- | DK67: -- | DL67: -- | DM67: -- | DN67: -- | DO67: -- | DP67: -- | DQ67: -- | DR67: -- | DS67: -- | DT67: -- | DU67: -- | DV67: -- | DW67: -- | DX67: -- | DY67: -- | DZ67: -- | EA67: -- | EB67: -- | EC67: -- | ED67: -- | EE67: -- | EF67: -- | EG67: -- | EH67: -- | EI67: -- | EJ67: -- | EK67: -- | EL67: -- | EM67: -- | EN67: -- | EO67: -- | EP67: -- | EQ67: -- | ER67: -- | FD67: Spanish Fork Wind 2 | FG67: Monthly | FH67: Annual | FJ67: Milford 1 | FM67: Monthly | FN67: Annual | FP67: Milford 2 | FS67: Monthly | FT67: Annual
A68: Middle Atlantic | B68: thousand megawatthours | C68: ELEC.GEN.WND-MAT-99.M | FC68: =MONTH(FD68) -> 7 | FD68: 2008-07-01 | FE68: 2754.182 | FF68: 1 | FG68: =AVERAGEIF($FC$68:$FC$109,FF68,$FE$68:$FE$109) -> 3225.279 | FH68: =AVERAGE($FG$68:$FG$79) -> 3926.607361 | FI68: =MONTH(FJ68) -> 11 | FJ68: 2009-11-01 | FK68: 10540 | FL68: 1 | FM68: =AVERAGEIF($FI$68:$FI$108,FL68,$FK$68:$FK$108) -> 18962.5 | FN68: =AVERAGE($FM$68:$FM$79) -> 33782.32639 | FO68: =MONTH(FP68) -> 5 | FP68: 2011-05-01 | FQ68: 14447 | FR68: 1 | FS68: =AVERAGEIF($FO$68:$FO$90,FR68,$FQ$68:$FQ$90) -> 8316.5 | FT68: =AVERAGE($FQ$68:$FQ$90) -> 14957.17391
A69: Middle Atlantic : All Sectors | B69: thousand megawatthours | C69: ELEC.GEN.WND-MAT-99.M | D69: 3 | E69: 2 | F69: 3 | G69: 3 | H69: 3 | I69: 3 | J69: 3 | K69: 3 | L69: 3 | M69: 3 | N69: 2 | O69: 3 | P69: 14 | Q69: 10 | R69: 12 | S69: 11 | T69: 10 | U69: 9 | V69: 9 | W69: 8 | X69: 8 | Y69: 9 | Z69: 12 | AA69: 29 | AB69: 11 | AC69: 10 | AD69: 10 | AE69: 10 | AF69: 8 | AG69: 6 | AH69: 7 | AI69: 5 | AJ69: 7 | AK69: 12 | AL69: 23 | AM69: 45 | AN69: 54 | AO69: 39 | AP69: 44 | AQ69: 43 | AR69: 30 | AS69: 23 | AT69: 20 | AU69: 17 | AV69: 23 | AW69: 33 | AX69: 41 | AY69: 55 | AZ69: 36 | BA69: 36 | BB69: 44 | BC69: 34 | BD69: 25 | BE69: 20 | BF69: 17 | BG69: 16 | BH69: 23 | BI69: 35 | BJ69: 52 | BK69: 49 | BL69: 97 | BM69: 99 | BN69: 95 | BO69: 88 | BP69: 71 | BQ69: 53 | BR69: 66 | BS69: 56 | BT69: 70 | BU69: 106 | BV69: 83 | BW69: 149 | BX69: 135 | BY69: 141 | BZ69: 161 | CA69: 134 | CB69: 72 | CC69: 82 | CD69: 68 | CE69: 74 | CF69: 83 | CG69: 112 | CH69: 121 | CI69: 141 | CJ69: 188 | CK69: 146 | CL69: 159 | CM69: 144 | CN69: 177 | CO69: 199 | CP69: 117 | CQ69: 93 | CR69: 104 | CS69: 164 | CT69: 188 | CU69: 321 | CV69: 221 | CW69: 278 | CX69: 231 | CY69: 361 | CZ69: 298 | DA69: 139 | DB69: 200 | DC69: 172 | DD69: 227 | DE69: 313 | DF69: 383 | DG69: 539 | DH69: 455 | DI69: 398 | DJ69: 415 | DK69: 388 | DL69: 324 | DM69: 289 | DN69: 235 | DO69: 231 | DP69: 368 | DQ69: 443 | DR69: 438 | DS69: 478 | DT69: 353 | DU69: 539 | DV69: 528 | DW69: 543 | DX69: 301 | DY69: 265 | DZ69: 215 | EA69: 246 | EB69: 238 | EC69: 386 | ED69: 526 | EE69: 492 | EF69: 655 | EG69: 515 | EH69: 548 | EI69: 496 | EJ69: 308 | EK69: 374 | EL69: 240 | EM69: 243 | EN69: 314 | EO69: 484 | EP69: 446 | EQ69: 631 | ER69: 778 | FC69: =MONTH(FD69) -> 8 | FD69: 2008-08-01 | FE69: 2874.776 | FF69: 2 | FG69: =AVERAGEIF($FC$68:$FC$109,FF69,$FE$68:$FE$109) -> 3377.606 | FH69: =AVERAGE($FG$68:$FG$79) -> 3926.607361 | FI69: =MONTH(FJ69) -> 12 | FJ69: 2009-12-01 | FK69: 29442 | FL69: 2 | FM69: 26956.5 | FN69: =AVERAGE($FM$68:$FM$79) -> 33782.32639 | FO69: 6 | FP69: 2011-06-01 | FQ69: 19552 | FR69: 2 | FS69: 9759.5 | FT69: 14957.17391
A70: Middle Atlantic : Electric Power | C70: ELEC.GEN.WND-MAT-98.M | FC70: 9 | FD70: 2008-09-01 | FE70: 2796.415 | FF70: 3 | FG70: 4738.789 | FH70: 3926.607361 | FI70: 1 | FJ70: 2010-01-01 | FK70: 26994 | FL70: 3 | FM70: 45911.25 | FN70: 33782.32639 | FO70: 7 | FP70: 2011-07-01 | FQ70: 15405 | FR70: 3 | FS70: 20465 | FT70: 14957.17391
A71: Middle Atlantic : Electric Utility | B71: thousand megawatthours | C71: ELEC.GEN.WND-MAT-1.M | D71: -- | E71: -- | F71: -- | G71: -- | H71: -- | I71: -- | J71: -- | K71: -- | L71: -- | M71: -- | N71: -- | O71: -- | P71: -- | Q71: -- | R71: -- | S71: -- | T71: -- | U71: -- | V71: -- | W71: -- | X71: -- | Y71: -- | Z71: -- | AA71: -- | AB71: -- | AC71: -- | AD71: -- | AE71: -- | AF71: -- | AG71: -- | AH71: -- | AI71: -- | AJ71: -- | AK71: -- | AL71: -- | AM71: -- | AN71: -- | AO71: -- | AP71: -- | AQ71: -- | AR71: -- | AS71: -- | AT71: -- | AU71: -- | AV71: -- | AW71: -- | AX71: -- | AY71: -- | AZ71: -- | BA71: -- | BB71: -- | BC71: -- | BD71: -- | BE71: -- | BF71: -- | BG71: -- | BH71: -- | BI71: -- | BJ71: -- | BK71: -- | BL71: -- | BM71: -- | BN71: -- | BO71: -- | BP71: -- | BQ71: -- | BR71: -- | BS71: -- | BT71: -- | BU71: -- | BV71: -- | BW71: -- | BX71: -- | BY71: -- | BZ71: -- | CA71: -- | CB71: -- | CC71: -- | CD71: -- | CE71: -- | CF71: -- | CG71: -- | CH71: -- | CI71: -- | CJ71: -- | CK71: -- | CL71: -- | CM71: -- | CN71: -- | CO71: -- | CP71: -- | CQ71: -- | CR71: -- | CS71: -- | CT71: -- | CU71: -- | CV71: -- | CW71: -- | CX71: -- | CY71: -- | CZ71: -- | DA71: -- | DB71: -- | DC71: -- | DD71: -- | DE71: -- | DF71: -- | DG71: -- | DH71: -- | DI71: -- | DJ71: -- | DK71: -- | DL71: -- | DM71: -- | DN71: -- | DO71: -- | DP71: -- | DQ71: -- | DR71: -- | DS71: -- | DT71: -- | DU71: -- | DV71: -- | DW71: -- | DX71: -- | DY71: -- | DZ71: -- | EA71: -- | EB71: -- | EC71: -- | ED71: -- | EE71: -- | EF71: -- | EG71: -- | EH71: -- | EI71: -- | EJ71: -- | EK71: -- | EL71: -- | EM71: -- | EN71: -- | EO71: -- | EP71: -- | EQ71: -- | ER71: -- | FC71: 10 | FD71: 2008-10-01 | FE71: 4262.876 | FF71: 4 | FG71: 4049.967 | FH71: 3926.607361 | FI71: 2 | FJ71: 2010-02-01 | FK71: 13727 | FL71: 4 | FM71: 39322.66667 | FN71: 33782.32639 | FO71: 8 | FP71: 2011-08-01 | FQ71: 18141 | FR71: 4 | FS71: 17701 | FT71: 14957.17391
A72: Middle Atlantic : Independent Power Producers | B72: thousand megawatthours | C72: ELEC.GEN.WND-MAT-94.M | D72: 3 | E72: 2 | F72: 3 | G72: 3 | H72: 3 | I72: 3 | J72: 3 | K72: 3 | L72: 3 | M72: 3 | N72: 2 | O72: 3 | P72: 14 | Q72: 10 | R72: 12 | S72: 11 | T72: 10 | U72: 9 | V72: 9 | W72: 8 | X72: 8 | Y72: 9 | Z72: 12 | AA72: 29 | AB72: 11 | AC72: 10 | AD72: 10 | AE72: 10 | AF72: 8 | AG72: 6 | AH72: 7 | AI72: 5 | AJ72: 7 | AK72: 12 | AL72: 23 | AM72: 45 | AN72: 54 | AO72: 39 | AP72: 44 | AQ72: 43 | AR72: 30 | AS72: 23 | AT72: 20 | AU72: 17 | AV72: 23 | AW72: 33 | AX72: 41 | AY72: 55 | AZ72: 36 | BA72: 36 | BB72: 44 | BC72: 34 | BD72: 25 | BE72: 20 | BF72: 17 | BG72: 16 | BH72: 23 | BI72: 35 | BJ72: 52 | BK72: 49 | BL72: 97 | BM72: 99 | BN72: 95 | BO72: 88 | BP72: 71 | BQ72: 53 | BR72: 66 | BS72: 56 | BT72: 70 | BU72: 106 | BV72: 83 | BW72: 149 | BX72: 135 | BY72: 141 | BZ72: 161 | CA72: 134 | CB72: 72 | CC72: 82 | CD72: 68 | CE72: 74 | CF72: 83 | CG72: 112 | CH72: 121 | CI72: 141 | CJ72: 188 | CK72: 146 | CL72: 159 | CM72: 144 | CN72: 177 | CO72: 199 | CP72: 117 | CQ72: 93 | CR72: 104 | CS72: 164 | CT72: 188 | CU72: 321 | CV72: 221 | CW72: 278 | CX72: 231 | CY72: 361 | CZ72: 298 | DA72: 139 | DB72: 200 | DC72: 172 | DD72: 227 | DE72: 313 | DF72: 383 | DG72: 539 | DH72: 455 | DI72: 398 | DJ72: 415 | DK72: 388 | DL72: 324 | DM72: 289 | DN72: 235 | DO72: 231 | DP72: 368 | DQ72: 443 | DR72: 438 | DS72: 478 | DT72: 353 | DU72: 539 | DV72: 528 | DW72: 543 | DX72: 301 | DY72: 265 | DZ72: 215 | EA72: 246 | EB72: 238 | EC72: 386 | ED72: 526 | EE72: 492 | EF72: 654 | EG72: 514 | EH72: 547 | EI72: 495 | EJ72: 307 | EK72: 373 | EL72: 240 | EM72: 242 | EN72: 313 | EO72: 483 | EP72: 445 | EQ72: 630 | ER72: 777 | FC72: 11 | FD72: 2008-11-01 | FE72: 5244.558 | FF72: 5 | FG72: 4392.254667 | FH72: 3926.607361 | FI72: 3 | FJ72: 2010-03-01 | FK72: 40641 | FL72: 5 | FM72: 44060.66667 | FN72: 33782.32639 | FO72: 9 | FP72: 2011-09-01 | FQ72: 6072 | FR72: 5 | FS72: 19410 | FT72: 14957.17391
A73: Middle Atlantic : All Commercial | B73: thousand megawatthours | C73: ELEC.GEN.WND-MAT-96.M | D73: -- | E73: -- | F73: -- | G73: -- | H73: -- | I73: -- | J73: -- | K73: -- | L73: -- | M73: -- | N73: -- | O73: -- | P73: -- | Q73: -- | R73: -- | S73: -- | T73: -- | U73: -- | V73: -- | W73: -- | X73: -- | Y73: -- | Z73: -- | AA73: -- | AB73: -- | AC73: -- | AD73: -- | AE73: -- | AF73: -- | AG73: -- | AH73: -- | AI73: -- | AJ73: -- | AK73: -- | AL73: -- | AM73: -- | AN73: -- | AO73: -- | AP73: -- | AQ73: -- | AR73: -- | AS73: -- | AT73: -- | AU73: -- | AV73: -- | AW73: -- | AX73: -- | AY73: -- | AZ73: -- | BA73: -- | BB73: -- | BC73: -- | BD73: -- | BE73: -- | BF73: -- | BG73: -- | BH73: -- | BI73: -- | BJ73: -- | BK73: -- | BL73: -- | BM73: -- | BN73: -- | BO73: -- | BP73: -- | BQ73: -- | BR73: -- | BS73: -- | BT73: -- | BU73: -- | BV73: -- | BW73: -- | BX73: -- | BY73: -- | BZ73: -- | CA73: -- | CB73: -- | CC73: -- | CD73: -- | CE73: -- | CF73: -- | CG73: -- | CH73: -- | CI73: -- | CJ73: -- | CK73: -- | CL73: -- | CM73: -- | CN73: -- | CO73: -- | CP73: -- | CQ73: -- | CR73: -- | CS73: -- | CT73: -- | CU73: -- | CV73: -- | CW73: -- | CX73: -- | CY73: -- | CZ73: -- | DA73: -- | DB73: -- | DC73: -- | DD73: -- | DE73: -- | DF73: -- | DG73: -- | DH73: -- | DI73: -- | DJ73: -- | DK73: -- | DL73: -- | DM73: -- | DN73: -- | DO73: -- | DP73: -- | DQ73: -- | DR73: -- | DS73: -- | DT73: -- | DU73: -- | DV73: -- | DW73: -- | DX73: -- | DY73: -- | DZ73: -- | EA73: -- | EB73: -- | EC73: -- | ED73: -- | EE73: -- | EF73: -- | EG73: -- | EH73: -- | EI73: -- | EJ73: -- | EK73: -- | EL73: -- | EM73: -- | EN73: -- | EO73: -- | EP73: -- | EQ73: -- | ER73: -- | FC73: 12 | FD73: 2008-12-01 | FE73: 5967.193 | FF73: 6 | FG73: 4070.257667 | FH73: 3926.607361 | FI73: 4 | FJ73: 2010-04-01 | FK73: 38373 | FL73: 6 | FM73: 45804 | FN73: 33782.32639 | FO73: 10 | FP73: 2011-10-01 | FQ73: 10091 | FR73: 6 | FS73: 23942 | FT73: 14957.17391
A74: Middle Atlantic : All Industrial | B74: thousand megawatthours | C74: ELEC.GEN.WND-MAT-97.M | D74: -- | E74: -- | F74: -- | G74: -- | H74: -- | I74: -- | J74: -- | K74: -- | L74: -- | M74: -- | N74: -- | O74: -- | P74: -- | Q74: -- | R74: -- | S74: -- | T74: -- | U74: -- | V74: -- | W74: -- | X74: -- | Y74: -- | Z74: -- | AA74: -- | AB74: -- | AC74: -- | AD74: -- | AE74: -- | AF74: -- | AG74: -- | AH74: -- | AI74: -- | AJ74: -- | AK74: -- | AL74: -- | AM74: -- | AN74: -- | AO74: -- | AP74: -- | AQ74: -- | AR74: -- | AS74: -- | AT74: -- | AU74: -- | AV74: -- | AW74: -- | AX74: -- | AY74: -- | AZ74: -- | BA74: -- | BB74: -- | BC74: -- | BD74: -- | BE74: -- | BF74: -- | BG74: -- | BH74: -- | BI74: -- | BJ74: -- | BK74: -- | BL74: -- | BM74: -- | BN74: -- | BO74: -- | BP74: -- | BQ74: -- | BR74: -- | BS74: -- | BT74: -- | BU74: -- | BV74: -- | BW74: -- | BX74: -- | BY74: -- | BZ74: -- | CA74: -- | CB74: -- | CC74: -- | CD74: -- | CE74: -- | CF74: -- | CG74: -- | CH74: -- | CI74: -- | CJ74: -- | CK74: -- | CL74: -- | CM74: -- | CN74: -- | CO74: -- | CP74: -- | CQ74: -- | CR74: -- | CS74: -- | CT74: -- | CU74: -- | CV74: -- | CW74: -- | CX74: -- | CY74: -- | CZ74: -- | DA74: -- | DB74: -- | DC74: -- | DD74: -- | DE74: -- | DF74: -- | DG74: -- | DH74: -- | DI74: -- | DJ74: -- | DK74: -- | DL74: -- | DM74: -- | DN74: -- | DO74: -- | DP74: -- | DQ74: -- | DR74: -- | DS74: -- | DT74: -- | DU74: -- | DV74: -- | DW74: -- | DX74: -- | DY74: -- | DZ74: -- | EA74: -- | EB74: -- | EC74: -- | ED74: -- | EE74: -- | EF74: NM | EG74: NM | EH74: NM | EI74: NM | EJ74: NM | EK74: NM | EL74: NM | EM74: NM | EN74: NM | EO74: NM | EP74: NM | EQ74: NM | ER74: NM | FC74: 1 | FD74: 2009-01-01 | FE74: 5228.33 | FF74: 7 | FG74: 3360.09675 | FH74: 3926.607361 | FI74: 5 | FJ74: 2010-05-01 | FK74: 44783 | FL74: 7 | FM74: 34793 | FN74: 33782.32639 | FO74: 11 | FP74: 2011-11-01 | FQ74: 18546 | FR74: 7 | FS74: 15644.5 | FT74: 14957.17391
A75: New Jersey | B75: thousand megawatthours | C75: ELEC.GEN.WND-NJ-99.M | FC75: 2 | FD75: 2009-02-01 | FE75: 4025.087 | FF75: 8 | FG75: 4210.189 | FH75: 3926.607361 | FI75: 6 | FJ75: 2010-06-01 | FK75: 33172 | FL75: 8 | FM75: 39583.66667 | FN75: 33782.32639 | FO75: 12 | FP75: 2011-12-01 | FQ75: 8737 | FR75: 8 | FS75: 14528.5 | FT75: 14957.17391
A76: New Jersey : All Sectors | B76: thousand megawatthours | C76: ELEC.GEN.WND-NJ-99.M | D76: -- | E76: -- | F76: -- | G76: -- | H76: -- | I76: -- | J76: -- | K76: -- | L76: -- | M76: -- | N76: -- | O76: -- | P76: -- | Q76: -- | R76: -- | S76: -- | T76: -- | U76: -- | V76: -- | W76: -- | X76: -- | Y76: -- | Z76: -- | AA76: -- | AB76: -- | AC76: -- | AD76: -- | AE76: -- | AF76: -- | AG76: -- | AH76: -- | AI76: -- | AJ76: -- | AK76: -- | AL76: -- | AM76: -- | AN76: -- | AO76: -- | AP76: -- | AQ76: -- | AR76: -- | AS76: -- | AT76: -- | AU76: -- | AV76: -- | AW76: -- | AX76: -- | AY76: -- | AZ76: -- | BA76: -- | BB76: -- | BC76: -- | BD76: -- | BE76: -- | BF76: -- | BG76: -- | BH76: -- | BI76: -- | BJ76: -- | BK76: -- | BL76: -- | BM76: -- | BN76: 2 | BO76: 2 | BP76: 2 | BQ76: 1 | BR76: 1 | BS76: 1 | BT76: 1 | BU76: 2 | BV76: 2 | BW76: 2 | BX76: 2 | BY76: 2 | BZ76: 3 | CA76: 2 | CB76: 1 | CC76: 1 | CD76: 1 | CE76: 1 | CF76: 1 | CG76: 2 | CH76: 2 | CI76: 2 | CJ76: 2 | CK76: 1 | CL76: 2 | CM76: 1 | CN76: 2 | CO76: 2 | CP76: 1 | CQ76: 1 | CR76: 1 | CS76: 2 | CT76: 2 | CU76: 3 | CV76: 1 | CW76: 2 | CX76: 2 | CY76: 2 | CZ76: 2 | DA76: 1 | DB76: 1 | DC76: 1 | DD76: 1 | DE76: 2 | DF76: 2 | DG76: 3 | DH76: 1 | DI76: 1 | DJ76: 1 | DK76: 1 | DL76: 1 | DM76: 1 | DN76: 1 | DO76: 1 | DP76: 1 | DQ76: 1 | DR76: 1 | DS76: 1 | DT76: 1 | DU76: 1 | DV76: 1 | DW76: 1 | DX76: 1 | DY76: 1 | DZ76: 1 | EA76: 1 | EB76: 1 | EC76: 1 | ED76: 1 | EE76: 1 | EF76: NM | EG76: NM | EH76: NM | EI76: NM | EJ76: NM | EK76: NM | EL76: NM | EM76: NM | EN76: NM | EO76: NM | EP76: NM | EQ76: NM | ER76: NM | FC76: 3 | FD76: 2009-03-01 | FE76: 4531.937 | FF76: 9 | FG76: 2907.38275 | FH76: 3926.607361 | FI76: 7 | FJ76: 2010-07-01 | FK76: 32256 | FL76: 9 | FM76: 23265.66667 | FN76: 33782.32639 | FO76: 1 | FP76: 2012-01-01 | FQ76: 10738 | FR76: 9 | FS76: 7682 | FT76: 14957.17391
A77: New Jersey : Electric Power | C77: ELEC.GEN.WND-NJ-98.M | FC77: 4 | FD77: 2009-04-01 | FE77: 4071.902 | FF77: 10 | FG77: 3667.5405 | FH77: 3926.607361 | FI77: 8 | FJ77: 2010-08-01 | FK77: 52398 | FL77: 10 | FM77: 24189 | FN77: 33782.32639 | FO77: 2 | FP77: 2012-02-01 | FQ77: 10975 | FR77: 10 | FS77: 10955.5 | FT77: 14957.17391
A78: New Jersey : Electric Utility | B78: thousand megawatthours | C78: ELEC.GEN.WND-NJ-1.M | D78: -- | E78: -- | F78: -- | G78: -- | H78: -- | I78: -- | J78: -- | K78: -- | L78: -- | M78: -- | N78: -- | O78: -- | P78: -- | Q78: -- | R78: -- | S78: -- | T78: -- | U78: -- | V78: -- | W78: -- | X78: -- | Y78: -- | Z78: -- | AA78: -- | AB78: -- | AC78: -- | AD78: -- | AE78: -- | AF78: -- | AG78: -- | AH78: -- | AI78: -- | AJ78: -- | AK78: -- | AL78: -- | AM78: -- | AN78: -- | AO78: -- | AP78: -- | AQ78: -- | AR78: -- | AS78: -- | AT78: -- | AU78: -- | AV78: -- | AW78: -- | AX78: -- | AY78: -- | AZ78: -- | BA78: -- | BB78: -- | BC78: -- | BD78: -- | BE78: -- | BF78: -- | BG78: -- | BH78: -- | BI78: -- | BJ78: -- | BK78: -- | BL78: -- | BM78: -- | BN78: -- | BO78: -- | BP78: -- | BQ78: -- | BR78: -- | BS78: -- | BT78: -- | BU78: -- | BV78: -- | BW78: -- | BX78: -- | BY78: -- | BZ78: -- | CA78: -- | CB78: -- | CC78: -- | CD78: -- | CE78: -- | CF78: -- | CG78: -- | CH78: -- | CI78: -- | CJ78: -- | CK78: -- | CL78: -- | CM78: -- | CN78: -- | CO78: -- | CP78: -- | CQ78: -- | CR78: -- | CS78: -- | CT78: -- | CU78: -- | CV78: -- | CW78: -- | CX78: -- | CY78: -- | CZ78: -- | DA78: -- | DB78: -- | DC78: -- | DD78: -- | DE78: -- | DF78: -- | DG78: -- | DH78: -- | DI78: -- | DJ78: -- | DK78: -- | DL78: -- | DM78: -- | DN78: -- | DO78: -- | DP78: -- | DQ78: -- | DR78: -- | DS78: -- | DT78: -- | DU78: -- | DV78: -- | DW78: -- | DX78: -- | DY78: -- | DZ78: -- | EA78: -- | EB78: -- | EC78: -- | ED78: -- | EE78: -- | EF78: -- | EG78: -- | EH78: -- | EI78: -- | EJ78: -- | EK78: -- | EL78: -- | EM78: -- | EN78: -- | EO78: -- | EP78: -- | EQ78: -- | ER78: -- | FC78: 5 | FD78: 2009-05-01 | FE78: 3274.76 | FF78: 11 | FG78: 4536.555 | FH78: 3926.607361 | FI78: 9 | FJ78: 2010-09-01 | FK78: 34880 | FL78: 11 | FM78: 27827.25 | FN78: 33782.32639 | FO78: 3 | FP78: 2012-03-01 | FQ78: 29120 | FR78: 11 | FS78: 16983.5 | FT78: 14957.17391
A79: New Jersey : Independent Power Producers | B79: thousand megawatthours | C79: ELEC.GEN.WND-NJ-94.M | D79: -- | E79: -- | F79: -- | G79: -- | H79: -- | I79: -- | J79: -- | K79: -- | L79: -- | M79: -- | N79: -- | O79: -- | P79: -- | Q79: -- | R79: -- | S79: -- | T79: -- | U79: -- | V79: -- | W79: -- | X79: -- | Y79: -- | Z79: -- | AA79: -- | AB79: -- | AC79: -- | AD79: -- | AE79: -- | AF79: -- | AG79: -- | AH79: -- | AI79: -- | AJ79: -- | AK79: -- | AL79: -- | AM79: -- | AN79: -- | AO79: -- | AP79: -- | AQ79: -- | AR79: -- | AS79: -- | AT79: -- | AU79: -- | AV79: -- | AW79: -- | AX79: -- | AY79: -- | AZ79: -- | BA79: -- | BB79: -- | BC79: -- | BD79: -- | BE79: -- | BF79: -- | BG79: -- | BH79: -- | BI79: -- | BJ79: -- | BK79: -- | BL79: -- | BM79: -- | BN79: 2 | BO79: 2 | BP79: 2 | BQ79: 1 | BR79: 1 | BS79: 1 | BT79: 1 | BU79: 2 | BV79: 2 | BW79: 2 | BX79: 2 | BY79: 2 | BZ79: 3 | CA79: 2 | CB79: 1 | CC79: 1 | CD79: 1 | CE79: 1 | CF79: 1 | CG79: 2 | CH79: 2 | CI79: 2 | CJ79: 2 | CK79: 1 | CL79: 2 | CM79: 1 | CN79: 2 | CO79: 2 | CP79: 1 | CQ79: 1 | CR79: 1 | CS79: 2 | CT79: 2 | CU79: 3 | CV79: 1 | CW79: 2 | CX79: 2 | CY79: 2 | CZ79: 2 | DA79: 1 | DB79: 1 | DC79: 1 | DD79: 1 | DE79: 2 | DF79: 2 | DG79: 3 | DH79: 1 | DI79: 1 | DJ79: 1 | DK79: 1 | DL79: 1 | DM79: 1 | DN79: 1 | DO79: 1 | DP79: 1 | DQ79: 1 | DR79: 1 | DS79: 1 | DT79: 1 | DU79: 1 | DV79: 1 | DW79: 1 | DX79: 1 | DY79: 1 | DZ79: 1 | EA79: 1 | EB79: 1 | EC79: 1 | ED79: 1 | EE79: 1 | EF79: NM | EG79: NM | EH79: NM | EI79: NM | EJ79: NM | EK79: NM | EL79: NM | EM79: NM | EN79: NM | EO79: NM | EP79: NM | EQ79: NM | ER79: NM | FC79: 6 | FD79: 2009-06-01 | FE79: 2536.335 | FF79: 12 | FG79: 4583.371 | FH79: 3926.607361 | FI79: 10 | FJ79: 2010-10-01 | FK79: 22932 | FL79: 12 | FM79: 34711.75 | FN79: 33782.32639 | FO79: 4 | FP79: 2012-04-01 | FQ79: 17701 | FR79: 12 | FS79: 15470 | FT79: 14957.17391
A80: New Jersey : All Commercial | B80: thousand megawatthours | C80: ELEC.GEN.WND-NJ-96.M | D80: -- | E80: -- | F80: -- | G80: -- | H80: -- | I80: -- | J80: -- | K80: -- | L80: -- | M80: -- | N80: -- | O80: -- | P80: -- | Q80: -- | R80: -- | S80: -- | T80: -- | U80: -- | V80: -- | W80: -- | X80: -- | Y80: -- | Z80: -- | AA80: -- | AB80: -- | AC80: -- | AD80: -- | AE80: -- | AF80: -- | AG80: -- | AH80: -- | AI80: -- | AJ80: -- | AK80: -- | AL80: -- | AM80: -- | AN80: -- | AO80: -- | AP80: -- | AQ80: -- | AR80: -- | AS80: -- | AT80: -- | AU80: -- | AV80: -- | AW80: -- | AX80: -- | AY80: -- | AZ80: -- | BA80: -- | BB80: -- | BC80: -- | BD80: -- | BE80: -- | BF80: -- | BG80: -- | BH80: -- | BI80: -- | BJ80: -- | BK80: -- | BL80: -- | BM80: -- | BN80: -- | BO80: -- | BP80: -- | BQ80: -- | BR80: -- | BS80: -- | BT80: -- | BU80: -- | BV80: -- | BW80: -- | BX80: -- | BY80: -- | BZ80: -- | CA80: -- | CB80: -- | CC80: -- | CD80: -- | CE80: -- | CF80: -- | CG80: -- | CH80: -- | CI80: -- | CJ80: -- | CK80: -- | CL80: -- | CM80: -- | CN80: -- | CO80: -- | CP80: -- | CQ80: -- | CR80: -- | CS80: -- | CT80: -- | CU80: -- | CV80: -- | CW80: -- | CX80: -- | CY80: -- | CZ80: -- | DA80: -- | DB80: -- | DC80: -- | DD80: -- | DE80: -- | DF80: -- | DG80: -- | DH80: -- | DI80: -- | DJ80: -- | DK80: -- | DL80: -- | DM80: -- | DN80: -- | DO80: -- | DP80: -- | DQ80: -- | DR80: -- | DS80: -- | DT80: -- | DU80: -- | DV80: -- | DW80: -- | DX80: -- | DY80: -- | DZ80: -- | EA80: -- | EB80: -- | EC80: -- | ED80: -- | EE80: -- | EF80: -- | EG80: -- | EH80: -- | EI80: -- | EJ80: -- | EK80: -- | EL80: -- | EM80: -- | EN80: -- | EO80: -- | EP80: -- | EQ80: -- | ER80: -- | FC80: 7 | FD80: 2009-07-01 | FE80: 2316.226 | FI80: 11 | FJ80: 2010-11-01 | FK80: 22861 | FO80: 5 | FP80: 2012-05-01 | FQ80: 24373
A81: New Jersey : All Industrial | B81: thousand megawatthours | C81: ELEC.GEN.WND-NJ-97.M | D81: -- | E81: -- | F81: -- | G81: -- | H81: -- | I81: -- | J81: -- | K81: -- | L81: -- | M81: -- | N81: -- | O81: -- | P81: -- | Q81: -- | R81: -- | S81: -- | T81: -- | U81: -- | V81: -- | W81: -- | X81: -- | Y81: -- | Z81: -- | AA81: -- | AB81: -- | AC81: -- | AD81: -- | AE81: -- | AF81: -- | AG81: -- | AH81: -- | AI81: -- | AJ81: -- | AK81: -- | AL81: -- | AM81: -- | AN81: -- | AO81: -- | AP81: -- | AQ81: -- | AR81: -- | AS81: -- | AT81: -- | AU81: -- | AV81: -- | AW81: -- | AX81: -- | AY81: -- | AZ81: -- | BA81: -- | BB81: -- | BC81: -- | BD81: -- | BE81: -- | BF81: -- | BG81: -- | BH81: -- | BI81: -- | BJ81: -- | BK81: -- | BL81: -- | BM81: -- | BN81: -- | BO81: -- | BP81: -- | BQ81: -- | BR81: -- | BS81: -- | BT81: -- | BU81: -- | BV81: -- | BW81: -- | BX81: -- | BY81: -- | BZ81: -- | CA81: -- | CB81: -- | CC81: -- | CD81: -- | CE81: -- | CF81: -- | CG81: -- | CH81: -- | CI81: -- | CJ81: -- | CK81: -- | CL81: -- | CM81: -- | CN81: -- | CO81: -- | CP81: -- | CQ81: -- | CR81: -- | CS81: -- | CT81: -- | CU81: -- | CV81: -- | CW81: -- | CX81: -- | CY81: -- | CZ81: -- | DA81: -- | DB81: -- | DC81: -- | DD81: -- | DE81: -- | DF81: -- | DG81: -- | DH81: -- | DI81: -- | DJ81: -- | DK81: -- | DL81: -- | DM81: -- | DN81: -- | DO81: -- | DP81: -- | DQ81: -- | DR81: -- | DS81: -- | DT81: -- | DU81: -- | DV81: -- | DW81: -- | DX81: -- | DY81: -- | DZ81: -- | EA81: -- | EB81: -- | EC81: -- | ED81: -- | EE81: -- | EF81: -- | EG81: -- | EH81: -- | EI81: -- | EJ81: -- | EK81: -- | EL81: -- | EM81: -- | EN81: -- | EO81: -- | EP81: -- | EQ81: -- | ER81: -- | FC81: 8 | FD81: 2009-08-01 | FE81: 2517.897 | FI81: 12 | FJ81: 2010-12-01 | FK81: 37734 | FO81: 6 | FP81: 2012-06-01 | FQ81: 28332
A82: New York | B82: thousand megawatthours | C82: ELEC.GEN.WND-NY-99.M | FC82: 9 | FD82: 2009-09-01 | FE82: 2983.206 | FI82: 1 | FJ82: 2011-01-01 | FK82: 14286 | FO82: 7 | FP82: 2012-07-01 | FQ82: 15884
A83: New York : All Sectors | B83: thousand megawatthours | C83: ELEC.GEN.WND-NY-99.M | D83: 2 | E83: 1 | F83: 2 | G83: 2 | H83: 2 | I83: 2 | J83: 2 | K83: 2 | L83: 2 | M83: 2 | N83: 2 | O83: 2 | P83: 5 | Q83: 5 | R83: 5 | S83: 5 | T83: 5 | U83: 6 | V83: 6 | W83: 6 | X83: 5 | Y83: 5 | Z83: 5 | AA83: 24 | AB83: 3 | AC83: 3 | AD83: 4 | AE83: 3 | AF83: 3 | AG83: 3 | AH83: 3 | AI83: 3 | AJ83: 3 | AK83: 4 | AL83: 4 | AM83: 5 | AN83: 13 | AO83: 11 | AP83: 13 | AQ83: 11 | AR83: 10 | AS83: 7 | AT83: 6 | AU83: 5 | AV83: 6 | AW83: 9 | AX83: 12 | AY83: 15 | AZ83: 9 | BA83: 9 | BB83: 11 | BC83: 8 | BD83: 6 | BE83: 5 | BF83: 5 | BG83: 5 | BH83: 8 | BI83: 8 | BJ83: 15 | BK83: 13 | BL83: 59 | BM83: 61 | BN83: 54 | BO83: 55 | BP83: 42 | BQ83: 33 | BR83: 46 | BS83: 38 | BT83: 47 | BU83: 68 | BV83: 53 | BW83: 100 | BX83: 84 | BY83: 93 | BZ83: 107 | CA83: 87 | CB83: 45 | CC83: 50 | CD83: 44 | CE83: 51 | CF83: 55 | CG83: 65 | CH83: 73 | CI83: 78 | CJ83: 109 | CK83: 85 | CL83: 88 | CM83: 83 | CN83: 110 | CO83: 157 | CP83: 88 | CQ83: 62 | CR83: 68 | CS83: 94 | CT83: 99 | CU83: 208 | CV83: 163 | CW83: 208 | CX83: 176 | CY83: 298 | CZ83: 222 | DA83: 96 | DB83: 153 | DC83: 128 | DD83: 134 | DE83: 184 | DF83: 202 | DG83: 302 | DH83: 230 | DI83: 206 | DJ83: 238 | DK83: 236 | DL83: 196 | DM83: 173 | DN83: 157 | DO83: 157 | DP83: 235 | DQ83: 255 | DR83: 257 | DS83: 255 | DT83: 178 | DU83: 326 | DV83: 312 | DW83: 325 | DX83: 187 | DY83: 173 | DZ83: 146 | EA83: 156 | EB83: 151 | EC83: 242 | ED83: 330 | EE83: 304 | EF83: 395 | EG83: 314 | EH83: 325 | EI83: 278 | EJ83: 173 | EK83: 211 | EL83: 127 | EM83: 152 | EN83: 187 | EO83: 274 | EP83: 244 | EQ83: 353 | ER83: 423 | FC83: 10 | FD83: 2009-10-01 | FE83: 4707.605 | FI83: 2 | FJ83: 2011-02-01 | FK83: 49916 | FO83: 8 | FP83: 2012-08-01 | FQ83: 10916
A84: New York : Electric Power | C84: ELEC.GEN.WND-NY-98.M | FC84: 11 | FD84: 2009-11-01 | FE84: 4783.749 | FI84: 3 | FJ84: 2011-03-01 | FK84: 54649 | FO84: 9 | FP84: 2012-09-01 | FQ84: 9292
A85: New York : Electric Utility | B85: thousand megawatthours | C85: ELEC.GEN.WND-NY-1.M | D85: -- | E85: -- | F85: -- | G85: -- | H85: -- | I85: -- | J85: -- | K85: -- | L85: -- | M85: -- | N85: -- | O85: -- | P85: -- | Q85: -- | R85: -- | S85: -- | T85: -- | U85: -- | V85: -- | W85: -- | X85: -- | Y85: -- | Z85: -- | AA85: -- | AB85: -- | AC85: -- | AD85: -- | AE85: -- | AF85: -- | AG85: -- | AH85: -- | AI85: -- | AJ85: -- | AK85: -- | AL85: -- | AM85: -- | AN85: -- | AO85: -- | AP85: -- | AQ85: -- | AR85: -- | AS85: -- | AT85: -- | AU85: -- | AV85: -- | AW85: -- | AX85: -- | AY85: -- | AZ85: -- | BA85: -- | BB85: -- | BC85: -- | BD85: -- | BE85: -- | BF85: -- | BG85: -- | BH85: -- | BI85: -- | BJ85: -- | BK85: -- | BL85: -- | BM85: -- | BN85: -- | BO85: -- | BP85: -- | BQ85: -- | BR85: -- | BS85: -- | BT85: -- | BU85: -- | BV85: -- | BW85: -- | BX85: -- | BY85: -- | BZ85: -- | CA85: -- | CB85: -- | CC85: -- | CD85: -- | CE85: -- | CF85: -- | CG85: -- | CH85: -- | CI85: -- | CJ85: -- | CK85: -- | CL85: -- | CM85: -- | CN85: -- | CO85: -- | CP85: -- | CQ85: -- | CR85: -- | CS85: -- | CT85: -- | CU85: -- | CV85: -- | CW85: -- | CX85: -- | CY85: -- | CZ85: -- | DA85: -- | DB85: -- | DC85: -- | DD85: -- | DE85: -- | DF85: -- | DG85: -- | DH85: -- | DI85: -- | DJ85: -- | DK85: -- | DL85: -- | DM85: -- | DN85: -- | DO85: -- | DP85: -- | DQ85: -- | DR85: -- | DS85: -- | DT85: -- | DU85: -- | DV85: -- | DW85: -- | DX85: -- | DY85: -- | DZ85: -- | EA85: -- | EB85: -- | EC85: -- | ED85: -- | EE85: -- | EF85: -- | EG85: -- | EH85: -- | EI85: -- | EJ85: -- | EK85: -- | EL85: -- | EM85: -- | EN85: -- | EO85: -- | EP85: -- | EQ85: -- | ER85: -- | FC85: 12 | FD85: 2009-12-01 | FE85: 5437.966 | FI85: 4 | FJ85: 2011-04-01 | FK85: 39778 | FO85: 10 | FP85: 2012-10-01 | FQ85: 11820
A86: New York : Independent Power Producers | B86: thousand megawatthours | C86: ELEC.GEN.WND-NY-94.M | D86: 2 | E86: 1 | F86: 2 | G86: 2 | H86: 2 | I86: 2 | J86: 2 | K86: 2 | L86: 2 | M86: 2 | N86: 2 | O86: 2 | P86: 5 | Q86: 5 | R86: 5 | S86: 5 | T86: 5 | U86: 6 | V86: 6 | W86: 6 | X86: 5 | Y86: 5 | Z86: 5 | AA86: 24 | AB86: 3 | AC86: 3 | AD86: 4 | AE86: 3 | AF86: 3 | AG86: 3 | AH86: 3 | AI86: 3 | AJ86: 3 | AK86: 4 | AL86: 4 | AM86: 5 | AN86: 13 | AO86: 11 | AP86: 13 | AQ86: 11 | AR86: 10 | AS86: 7 | AT86: 6 | AU86: 5 | AV86: 6 | AW86: 9 | AX86: 12 | AY86: 15 | AZ86: 9 | BA86: 9 | BB86: 11 | BC86: 8 | BD86: 6 | BE86: 5 | BF86: 5 | BG86: 5 | BH86: 8 | BI86: 8 | BJ86: 15 | BK86: 13 | BL86: 59 | BM86: 61 | BN86: 54 | BO86: 55 | BP86: 42 | BQ86: 33 | BR86: 46 | BS86: 38 | BT86: 47 | BU86: 68 | BV86: 53 | BW86: 100 | BX86: 84 | BY86: 93 | BZ86: 107 | CA86: 87 | CB86: 45 | CC86: 50 | CD86: 44 | CE86: 51 | CF86: 55 | CG86: 65 | CH86: 73 | CI86: 78 | CJ86: 109 | CK86: 85 | CL86: 88 | CM86: 83 | CN86: 110 | CO86: 157 | CP86: 88 | CQ86: 62 | CR86: 68 | CS86: 94 | CT86: 99 | CU86: 208 | CV86: 163 | CW86: 208 | CX86: 176 | CY86: 298 | CZ86: 222 | DA86: 96 | DB86: 153 | DC86: 128 | DD86: 134 | DE86: 184 | DF86: 202 | DG86: 302 | DH86: 230 | DI86: 206 | DJ86: 238 | DK86: 236 | DL86: 196 | DM86: 173 | DN86: 157 | DO86: 157 | DP86: 235 | DQ86: 255 | DR86: 257 | DS86: 255 | DT86: 178 | DU86: 326 | DV86: 312 | DW86: 325 | DX86: 187 | DY86: 173 | DZ86: 146 | EA86: 156 | EB86: 151 | EC86: 242 | ED86: 330 | EE86: 304 | EF86: 394 | EG86: 313 | EH86: 324 | EI86: 278 | EJ86: 172 | EK86: 210 | EL86: 126 | EM86: 151 | EN86: 186 | EO86: 273 | EP86: 243 | EQ86: 352 | ER86: 422 | FC86: 1 | FD86: 2010-01-01 | FE86: 3159.264 | FF86: Jan | FI86: 5 | FJ86: 2011-05-01 | FK86: 37239 | FO86: 11 | FP86: 2012-11-01 | FQ86: 15421
A87: New York : All Commercial | B87: thousand megawatthours | C87: ELEC.GEN.WND-NY-96.M | D87: -- | E87: -- | F87: -- | G87: -- | H87: -- | I87: -- | J87: -- | K87: -- | L87: -- | M87: -- | N87: -- | O87: -- | P87: -- | Q87: -- | R87: -- | S87: -- | T87: -- | U87: -- | V87: -- | W87: -- | X87: -- | Y87: -- | Z87: -- | AA87: -- | AB87: -- | AC87: -- | AD87: -- | AE87: -- | AF87: -- | AG87: -- | AH87: -- | AI87: -- | AJ87: -- | AK87: -- | AL87: -- | AM87: -- | AN87: -- | AO87: -- | AP87: -- | AQ87: -- | AR87: -- | AS87: -- | AT87: -- | AU87: -- | AV87: -- | AW87: -- | AX87: -- | AY87: -- | AZ87: -- | BA87: -- | BB87: -- | BC87: -- | BD87: -- | BE87: -- | BF87: -- | BG87: -- | BH87: -- | BI87: -- | BJ87: -- | BK87: -- | BL87: -- | BM87: -- | BN87: -- | BO87: -- | BP87: -- | BQ87: -- | BR87: -- | BS87: -- | BT87: -- | BU87: -- | BV87: -- | BW87: -- | BX87: -- | BY87: -- | BZ87: -- | CA87: -- | CB87: -- | CC87: -- | CD87: -- | CE87: -- | CF87: -- | CG87: -- | CH87: -- | CI87: -- | CJ87: -- | CK87: -- | CL87: -- | CM87: -- | CN87: -- | CO87: -- | CP87: -- | CQ87: -- | CR87: -- | CS87: -- | CT87: -- | CU87: -- | CV87: -- | CW87: -- | CX87: -- | CY87: -- | CZ87: -- | DA87: -- | DB87: -- | DC87: -- | DD87: -- | DE87: -- | DF87: -- | DG87: -- | DH87: -- | DI87: -- | DJ87: -- | DK87: -- | DL87: -- | DM87: -- | DN87: -- | DO87: -- | DP87: -- | DQ87: -- | DR87: -- | DS87: -- | DT87: -- | DU87: -- | DV87: -- | DW87: -- | DX87: -- | DY87: -- | DZ87: -- | EA87: -- | EB87: -- | EC87: -- | ED87: -- | EE87: -- | EF87: -- | EG87: -- | EH87: -- | EI87: -- | EJ87: -- | EK87: -- | EL87: -- | EM87: -- | EN87: -- | EO87: -- | EP87: -- | EQ87: -- | ER87: -- | FC87: 2 | FD87: 2010-02-01 | FE87: 1606.55 | FF87: Feb | FI87: 6 | FJ87: 2011-06-01 | FK87: 44680 | FO87: 12 | FP87: 2012-12-01 | FQ87: 22203
A88: New York : All Industrial | B88: thousand megawatthours | C88: ELEC.GEN.WND-NY-97.M | D88: -- | E88: -- | F88: -- | G88: -- | H88: -- | I88: -- | J88: -- | K88: -- | L88: -- | M88: -- | N88: -- | O88: -- | P88: -- | Q88: -- | R88: -- | S88: -- | T88: -- | U88: -- | V88: -- | W88: -- | X88: -- | Y88: -- | Z88: -- | AA88: -- | AB88: -- | AC88: -- | AD88: -- | AE88: -- | AF88: -- | AG88: -- | AH88: -- | AI88: -- | AJ88: -- | AK88: -- | AL88: -- | AM88: -- | AN88: -- | AO88: -- | AP88: -- | AQ88: -- | AR88: -- | AS88: -- | AT88: -- | AU88: -- | AV88: -- | AW88: -- | AX88: -- | AY88: -- | AZ88: -- | BA88: -- | BB88: -- | BC88: -- | BD88: -- | BE88: -- | BF88: -- | BG88: -- | BH88: -- | BI88: -- | BJ88: -- | BK88: -- | BL88: -- | BM88: -- | BN88: -- | BO88: -- | BP88: -- | BQ88: -- | BR88: -- | BS88: -- | BT88: -- | BU88: -- | BV88: -- | BW88: -- | BX88: -- | BY88: -- | BZ88: -- | CA88: -- | CB88: -- | CC88: -- | CD88: -- | CE88: -- | CF88: -- | CG88: -- | CH88: -- | CI88: -- | CJ88: -- | CK88: -- | CL88: -- | CM88: -- | CN88: -- | CO88: -- | CP88: -- | CQ88: -- | CR88: -- | CS88: -- | CT88: -- | CU88: -- | CV88: -- | CW88: -- | CX88: -- | CY88: -- | CZ88: -- | DA88: -- | DB88: -- | DC88: -- | DD88: -- | DE88: -- | DF88: -- | DG88: -- | DH88: -- | DI88: -- | DJ88: -- | DK88: -- | DL88: -- | DM88: -- | DN88: -- | DO88: -- | DP88: -- | DQ88: -- | DR88: -- | DS88: -- | DT88: -- | DU88: -- | DV88: -- | DW88: -- | DX88: -- | DY88: -- | DZ88: -- | EA88: -- | EB88: -- | EC88: -- | ED88: -- | EE88: -- | EF88: NM | EG88: NM | EH88: NM | EI88: NM | EJ88: NM | EK88: NM | EL88: NM | EM88: NM | EN88: NM | EO88: NM | EP88: NM | EQ88: NM | ER88: NM | FC88: 3 | FD88: 2010-03-01 | FE88: 4756.45 | FF88: Mar | FI88: 7 | FJ88: 2011-07-01 | FK88: 35550 | FO88: 1 | FP88: 2013-01-01 | FQ88: 5895
A89: Pennsylvania | B89: thousand megawatthours | C89: ELEC.GEN.WND-PA-99.M | FC89: 4 | FD89: 2010-04-01 | FE89: 4491.013 | FF89: Apr | FI89: 8 | FJ89: 2011-08-01 | FK89: 40807 | FO89: 2 | FP89: 2013-02-01 | FQ89: 8544
A90: Pennsylvania : All Sectors | B90: thousand megawatthours | C90: ELEC.GEN.WND-PA-99.M | D90: 1 | E90: 1 | F90: 1 | G90: 1 | H90: 1 | I90: 1 | J90: 1 | K90: 1 | L90: 1 | M90: 1 | N90: 1 | O90: 1 | P90: 9 | Q90: 5 | R90: 7 | S90: 6 | T90: 5 | U90: 3 | V90: 3 | W90: 2 | X90: 3 | Y90: 4 | Z90: 7 | AA90: 5 | AB90: 7 | AC90: 7 | AD90: 6 | AE90: 7 | AF90: 6 | AG90: 3 | AH90: 4 | AI90: 2 | AJ90: 4 | AK90: 8 | AL90: 18 | AM90: 40 | AN90: 41 | AO90: 29 | AP90: 31 | AQ90: 32 | AR90: 21 | AS90: 16 | AT90: 14 | AU90: 12 | AV90: 17 | AW90: 24 | AX90: 30 | AY90: 40 | AZ90: 26 | BA90: 27 | BB90: 33 | BC90: 26 | BD90: 19 | BE90: 15 | BF90: 12 | BG90: 11 | BH90: 15 | BI90: 26 | BJ90: 37 | BK90: 36 | BL90: 37 | BM90: 38 | BN90: 39 | BO90: 31 | BP90: 27 | BQ90: 19 | BR90: 19 | BS90: 18 | BT90: 22 | BU90: 37 | BV90: 27 | BW90: 46 | BX90: 49 | BY90: 45 | BZ90: 51 | CA90: 45 | CB90: 26 | CC90: 30 | CD90: 23 | CE90: 22 | CF90: 26 | CG90: 46 | CH90: 46 | CI90: 61 | CJ90: 77 | CK90: 60 | CL90: 69 | CM90: 59 | CN90: 65 | CO90: 40 | CP90: 27 | CQ90: 30 | CR90: 35 | CS90: 69 | CT90: 87 | CU90: 109 | CV90: 57 | CW90: 69 | CX90: 53 | CY90: 60 | CZ90: 74 | DA90: 43 | DB90: 46 | DC90: 43 | DD90: 92 | DE90: 127 | DF90: 178 | DG90: 234 | DH90: 224 | DI90: 190 | DJ90: 176 | DK90: 151 | DL90: 128 | DM90: 116 | DN90: 77 | DO90: 73 | DP90: 132 | DQ90: 186 | DR90: 179 | DS90: 222 | DT90: 174 | DU90: 212 | DV90: 215 | DW90: 217 | DX90: 114 | DY90: 92 | DZ90: 69 | EA90: 90 | EB90: 87 | EC90: 144 | ED90: 195 | EE90: 187 | EF90: 259 | EG90: 199 | EH90: 221 | EI90: 216 | EJ90: 133 | EK90: 162 | EL90: 113 | EM90: 90 | EN90: 126 | EO90: 209 | EP90: 202 | EQ90: 276 | ER90: 354 | FC90: 5 | FD90: 2010-05-01 | FE90: 5241.213 | FF90: May | FI90: 9 | FJ90: 2011-09-01 | FK90: 13531 | FO90: 3 | FP90: 2013-03-01 | FQ90: 11810
A91: Pennsylvania : Electric Power | C91: ELEC.GEN.WND-PA-98.M | FC91: 6 | FD91: 2010-06-01 | FE91: 3882.31 | FF91: Jun | FI91: 10 | FJ91: 2011-10-01 | FK91: 23353
A92: Pennsylvania : Electric Utility | B92: thousand megawatthours | C92: ELEC.GEN.WND-PA-1.M | D92: -- | E92: -- | F92: -- | G92: -- | H92: -- | I92: -- | J92: -- | K92: -- | L92: -- | M92: -- | N92: -- | O92: -- | P92: -- | Q92: -- | R92: -- | S92: -- | T92: -- | U92: -- | V92: -- | W92: -- | X92: -- | Y92: -- | Z92: -- | AA92: -- | AB92: -- | AC92: -- | AD92: -- | AE92: -- | AF92: -- | AG92: -- | AH92: -- | AI92: -- | AJ92: -- | AK92: -- | AL92: -- | AM92: -- | AN92: -- | AO92: -- | AP92: -- | AQ92: -- | AR92: -- | AS92: -- | AT92: -- | AU92: -- | AV92: -- | AW92: -- | AX92: -- | AY92: -- | AZ92: -- | BA92: -- | BB92: -- | BC92: -- | BD92: -- | BE92: -- | BF92: -- | BG92: -- | BH92: -- | BI92: -- | BJ92: -- | BK92: -- | BL92: -- | BM92: -- | BN92: -- | BO92: -- | BP92: -- | BQ92: -- | BR92: -- | BS92: -- | BT92: -- | BU92: -- | BV92: -- | BW92: -- | BX92: -- | BY92: -- | BZ92: -- | CA92: -- | CB92: -- | CC92: -- | CD92: -- | CE92: -- | CF92: -- | CG92: -- | CH92: -- | CI92: -- | CJ92: -- | CK92: -- | CL92: -- | CM92: -- | CN92: -- | CO92: -- | CP92: -- | CQ92: -- | CR92: -- | CS92: -- | CT92: -- | CU92: -- | CV92: -- | CW92: -- | CX92: -- | CY92: -- | CZ92: -- | DA92: -- | DB92: -- | DC92: -- | DD92: -- | DE92: -- | DF92: -- | DG92: -- | DH92: -- | DI92: -- | DJ92: -- | DK92: -- | DL92: -- | DM92: -- | DN92: -- | DO92: -- | DP92: -- | DQ92: -- | DR92: -- | DS92: -- | DT92: -- | DU92: -- | DV92: -- | DW92: -- | DX92: -- | DY92: -- | DZ92: -- | EA92: -- | EB92: -- | EC92: -- | ED92: -- | EE92: -- | EF92: -- | EG92: -- | EH92: -- | EI92: -- | EJ92: -- | EK92: -- | EL92: -- | EM92: -- | EN92: -- | EO92: -- | EP92: -- | EQ92: -- | ER92: -- | FC92: 7 | FD92: 2010-07-01 | FE92: 3775.106 | FF92: Jul | FI92: 11 | FJ92: 2011-11-01 | FK92: 41510
A93: Pennsylvania : Independent Power Producers | B93: thousand megawatthours | C93: ELEC.GEN.WND-PA-94.M | D93: 1 | E93: 1 | F93: 1 | G93: 1 | H93: 1 | I93: 1 | J93: 1 | K93: 1 | L93: 1 | M93: 1 | N93: 1 | O93: 1 | P93: 9 | Q93: 5 | R93: 7 | S93: 6 | T93: 5 | U93: 3 | V93: 3 | W93: 2 | X93: 3 | Y93: 4 | Z93: 7 | AA93: 5 | AB93: 7 | AC93: 7 | AD93: 6 | AE93: 7 | AF93: 6 | AG93: 3 | AH93: 4 | AI93: 2 | AJ93: 4 | AK93: 8 | AL93: 18 | AM93: 40 | AN93: 41 | AO93: 29 | AP93: 31 | AQ93: 32 | AR93: 21 | AS93: 16 | AT93: 14 | AU93: 12 | AV93: 17 | AW93: 24 | AX93: 30 | AY93: 40 | AZ93: 26 | BA93: 27 | BB93: 33 | BC93: 26 | BD93: 19 | BE93: 15 | BF93: 12 | BG93: 11 | BH93: 15 | BI93: 26 | BJ93: 37 | BK93: 36 | BL93: 37 | BM93: 38 | BN93: 39 | BO93: 31 | BP93: 27 | BQ93: 19 | BR93: 19 | BS93: 18 | BT93: 22 | BU93: 37 | BV93: 27 | BW93: 46 | BX93: 49 | BY93: 45 | BZ93: 51 | CA93: 45 | CB93: 26 | CC93: 30 | CD93: 23 | CE93: 22 | CF93: 26 | CG93: 46 | CH93: 46 | CI93: 61 | CJ93: 77 | CK93: 60 | CL93: 69 | CM93: 59 | CN93: 65 | CO93: 40 | CP93: 27 | CQ93: 30 | CR93: 35 | CS93: 69 | CT93: 87 | CU93: 109 | CV93: 57 | CW93: 69 | CX93: 53 | CY93: 60 | CZ93: 74 | DA93: 43 | DB93: 46 | DC93: 43 | DD93: 92 | DE93: 127 | DF93: 178 | DG93: 234 | DH93: 224 | DI93: 190 | DJ93: 176 | DK93: 151 | DL93: 128 | DM93: 116 | DN93: 77 | DO93: 73 | DP93: 132 | DQ93: 186 | DR93: 179 | DS93: 222 | DT93: 174 | DU93: 212 | DV93: 215 | DW93: 217 | DX93: 114 | DY93: 92 | DZ93: 69 | EA93: 90 | EB93: 87 | EC93: 144 | ED93: 195 | EE93: 187 | EF93: 259 | EG93: 199 | EH93: 221 | EI93: 216 | EJ93: 133 | EK93: 162 | EL93: 113 | EM93: 90 | EN93: 126 | EO93: 209 | EP93: 202 | EQ93: 276 | ER93: 354 | FC93: 8 | FD93: 2010-08-01 | FE93: 6132.44 | FF93: Aug | FI93: 12 | FJ93: 2011-12-01 | FK93: 19121 | FO93: Utah Three Project Average
A94: Pennsylvania : All Commercial | B94: thousand megawatthours | C94: ELEC.GEN.WND-PA-96.M | D94: -- | E94: -- | F94: -- | G94: -- | H94: -- | I94: -- | J94: -- | K94: -- | L94: -- | M94: -- | N94: -- | O94: -- | P94: -- | Q94: -- | R94: -- | S94: -- | T94: -- | U94: -- | V94: -- | W94: -- | X94: -- | Y94: -- | Z94: -- | AA94: -- | AB94: -- | AC94: -- | AD94: -- | AE94: -- | AF94: -- | AG94: -- | AH94: -- | AI94: -- | AJ94: -- | AK94: -- | AL94: -- | AM94: -- | AN94: -- | AO94: -- | AP94: -- | AQ94: -- | AR94: -- | AS94: -- | AT94: -- | AU94: -- | AV94: -- | AW94: -- | AX94: -- | AY94: -- | AZ94: -- | BA94: -- | BB94: -- | BC94: -- | BD94: -- | BE94: -- | BF94: -- | BG94: -- | BH94: -- | BI94: -- | BJ94: -- | BK94: -- | BL94: -- | BM94: -- | BN94: -- | BO94: -- | BP94: -- | BQ94: -- | BR94: -- | BS94: -- | BT94: -- | BU94: -- | BV94: -- | BW94: -- | BX94: -- | BY94: -- | BZ94: -- | CA94: -- | CB94: -- | CC94: -- | CD94: -- | CE94: -- | CF94: -- | CG94: -- | CH94: -- | CI94: -- | CJ94: -- | CK94: -- | CL94: -- | CM94: -- | CN94: -- | CO94: -- | CP94: -- | CQ94: -- | CR94: -- | CS94: -- | CT94: -- | CU94: -- | CV94: -- | CW94: -- | CX94: -- | CY94: -- | CZ94: -- | DA94: -- | DB94: -- | DC94: -- | DD94: -- | DE94: -- | DF94: -- | DG94: -- | DH94: -- | DI94: -- | DJ94: -- | DK94: -- | DL94: -- | DM94: -- | DN94: -- | DO94: -- | DP94: -- | DQ94: -- | DR94: -- | DS94: -- | DT94: -- | DU94: -- | DV94: -- | DW94: -- | DX94: -- | DY94: -- | DZ94: -- | EA94: -- | EB94: -- | EC94: -- | ED94: -- | EE94: -- | EF94: -- | EG94: -- | EH94: -- | EI94: -- | EJ94: -- | EK94: -- | EL94: -- | EM94: -- | EN94: -- | EO94: -- | EP94: -- | EQ94: -- | ER94: -- | FC94: 9 | FD94: 2010-09-01 | FE94: 4082.207 | FF94: Sep | FI94: 1 | FJ94: 2012-01-01 | FK94: 20679
A95: Pennsylvania : All Industrial | B95: thousand megawatthours | C95: ELEC.GEN.WND-PA-97.M | D95: -- | E95: -- | F95: -- | G95: -- | H95: -- | I95: -- | J95: -- | K95: -- | L95: -- | M95: -- | N95: -- | O95: -- | P95: -- | Q95: -- | R95: -- | S95: -- | T95: -- | U95: -- | V95: -- | W95: -- | X95: -- | Y95: -- | Z95: -- | AA95: -- | AB95: -- | AC95: -- | AD95: -- | AE95: -- | AF95: -- | AG95: -- | AH95: -- | AI95: -- | AJ95: -- | AK95: -- | AL95: -- | AM95: -- | AN95: -- | AO95: -- | AP95: -- | AQ95: -- | AR95: -- | AS95: -- | AT95: -- | AU95: -- | AV95: -- | AW95: -- | AX95: -- | AY95: -- | AZ95: -- | BA95: -- | BB95: -- | BC95: -- | BD95: -- | BE95: -- | BF95: -- | BG95: -- | BH95: -- | BI95: -- | BJ95: -- | BK95: -- | BL95: -- | BM95: -- | BN95: -- | BO95: -- | BP95: -- | BQ95: -- | BR95: -- | BS95: -- | BT95: -- | BU95: -- | BV95: -- | BW95: -- | BX95: -- | BY95: -- | BZ95: -- | CA95: -- | CB95: -- | CC95: -- | CD95: -- | CE95: -- | CF95: -- | CG95: -- | CH95: -- | CI95: -- | CJ95: -- | CK95: -- | CL95: -- | CM95: -- | CN95: -- | CO95: -- | CP95: -- | CQ95: -- | CR95: -- | CS95: -- | CT95: -- | CU95: -- | CV95: -- | CW95: -- | CX95: -- | CY95: -- | CZ95: -- | DA95: -- | DB95: -- | DC95: -- | DD95: -- | DE95: -- | DF95: -- | DG95: -- | DH95: -- | DI95: -- | DJ95: -- | DK95: -- | DL95: -- | DM95: -- | DN95: -- | DO95: -- | DP95: -- | DQ95: -- | DR95: -- | DS95: -- | DT95: -- | DU95: -- | DV95: -- | DW95: -- | DX95: -- | DY95: -- | DZ95: -- | EA95: -- | EB95: -- | EC95: -- | ED95: -- | EE95: -- | EF95: -- | EG95: -- | EH95: -- | EI95: -- | EJ95: -- | EK95: -- | EL95: -- | EM95: -- | EN95: -- | EO95: -- | EP95: -- | EQ95: -- | ER95: -- | FC95: 10 | FD95: 2010-10-01 | FE95: 2683.864 | FF95: Oct | FI95: 2 | FJ95: 2012-02-01 | FK95: 24897 | FP95: Annual | FR95: July and August
A96: East North Central | B96: thousand megawatthours | C96: ELEC.GEN.WND-ENC-99.M | FC96: 11 | FD96: 2010-11-01 | FE96: 2702.356 | FF96: Nov | FI96: 3 | FJ96: 2012-03-01 | FK96: 63297
A97: East North Central : All Sectors | B97: thousand megawatthours | C97: ELEC.GEN.WND-ENC-99.M | D97: 4 | E97: 4 | F97: 3 | G97: 5 | H97: 4 | I97: 4 | J97: 4 | K97: 4 | L97: 6 | M97: 12 | N97: 11 | O97: 10 | P97: 5 | Q97: 6 | R97: 5 | S97: 5 | T97: 4 | U97: 2 | V97: 2 | W97: 2 | X97: 3 | Y97: 3 | Z97: 4 | AA97: 5 | AB97: 7 | AC97: 10 | AD97: 12 | AE97: 12 | AF97: 10 | AG97: 7 | AH97: 8 | AI97: 6 | AJ97: 10 | AK97: 10 | AL97: 13 | AM97: 14 | AN97: 11 | AO97: 13 | AP97: 21 | AQ97: 20 | AR97: 18 | AS97: 10 | AT97: 7 | AU97: 9 | AV97: 13 | AW97: 20 | AX97: 17 | AY97: 26 | AZ97: 15 | BA97: 15 | BB97: 20 | BC97: 21 | BD97: 18 | BE97: 13 | BF97: 9 | BG97: 6 | BH97: 14 | BI97: 16 | BJ97: 27 | BK97: 75 | BL97: 32 | BM97: 29 | BN97: 35 | BO97: 43 | BP97: 31 | BQ97: 20 | BR97: 19 | BS97: 15 | BT97: 22 | BU97: 40 | BV97: 38 | BW97: 50 | BX97: 40 | BY97: 33 | BZ97: 41 | CA97: 64 | CB97: 77 | CC97: 47 | CD97: 31 | CE97: 31 | CF97: 77 | CG97: 119 | CH97: 109 | CI97: 121 | CJ97: 256 | CK97: 200 | CL97: 215 | CM97: 244 | CN97: 264 | CO97: 224 | CP97: 151 | CQ97: 120 | CR97: 161 | CS97: 364 | CT97: 446 | CU97: 575 | CV97: 430 | CW97: 560 | CX97: 549 | CY97: 620 | CZ97: 442 | DA97: 290 | DB97: 206 | DC97: 300 | DD97: 190 | DE97: 513 | DF97: 667 | DG97: 822 | DH97: 782 | DI97: 516 | DJ97: 748 | DK97: 994 | DL97: 729 | DM97: 448 | DN97: 399 | DO97: 372 | DP97: 743 | DQ97: 995 | DR97: 1174 | DS97: 951 | DT97: 839 | DU97: 1172 | DV97: 1071 | DW97: 1327 | DX97: 972 | DY97: 735 | DZ97: 400 | EA97: 382 | EB97: 694 | EC97: 931 | ED97: 1597 | EE97: 1220 | EF97: 1716 | EG97: 1232 | EH97: 1637 | EI97: 1518 | EJ97: 1120 | EK97: 1023 | EL97: 604 | EM97: 559 | EN97: 827 | EO97: 1469 | EP97: 1113 | EQ97: 1695 | ER97: 2163 | FC97: 12 | FD97: 2010-12-01 | FE97: 4416.227 | FF97: Dec | FI97: 4 | FJ97: 2012-04-01 | FK97: 39817
A98: East North Central : Electric Power | C98: ELEC.GEN.WND-ENC-98.M | FC98: 1 | FD98: 2011-01-01 | FE98: 1288.243 | FI98: 5 | FJ98: 2012-05-01 | FK98: 50160
A99: East North Central : Electric Utility | B99: thousand megawatthours | C99: ELEC.GEN.WND-ENC-1.M | D99: 4 | E99: 4 | F99: 3 | G99: 5 | H99: 4 | I99: 1 | J99: 2 | K99: 2 | L99: 3 | M99: 5 | N99: 5 | O99: 5 | P99: 5 | Q99: 6 | R99: 5 | S99: 5 | T99: 4 | U99: 2 | V99: 2 | W99: 2 | X99: 3 | Y99: 3 | Z99: 4 | AA99: 5 | AB99: 5 | AC99: 3 | AD99: 4 | AE99: 4 | AF99: 3 | AG99: 2 | AH99: 3 | AI99: 2 | AJ99: 4 | AK99: 3 | AL99: 5 | AM99: 5 | AN99: 5 | AO99: 4 | AP99: 5 | AQ99: 3 | AR99: 3 | AS99: 3 | AT99: 1 | AU99: 2 | AV99: 3 | AW99: 5 | AX99: 3 | AY99: 6 | AZ99: 4 | BA99: 4 | BB99: 5 | BC99: 4 | BD99: 4 | BE99: 3 | BF99: 3 | BG99: 2 | BH99: 5 | BI99: 5 | BJ99: 7 | BK99: 5 | BL99: 6 | BM99: 6 | BN99: 5 | BO99: 6 | BP99: 5 | BQ99: 3 | BR99: 3 | BS99: 2 | BT99: 4 | BU99: 6 | BV99: 4 | BW99: 7 | BX99: 5 | BY99: 6 | BZ99: 6 | CA99: 6 | CB99: 6 | CC99: 4 | CD99: 3 | CE99: 2 | CF99: 6 | CG99: 8 | CH99: 8 | CI99: 6 | CJ99: 6 | CK99: 4 | CL99: 4 | CM99: 6 | CN99: 16 | CO99: 26 | CP99: 20 | CQ99: 14 | CR99: 22 | CS99: 43 | CT99: 45 | CU99: 76 | CV99: 57 | CW99: 64 | CX99: 65 | CY99: 60 | CZ99: 59 | DA99: 32 | DB99: 26 | DC99: 34 | DD99: 19 | DE99: 49 | DF99: 49 | DG99: 59 | DH99: 62 | DI99: 31 | DJ99: 37 | DK99: 72 | DL99: 47 | DM99: 29 | DN99: 30 | DO99: 34 | DP99: 48 | DQ99: 49 | DR99: 67 | DS99: 57 | DT99: 40 | DU99: 66 | DV99: 50 | DW99: 63 | DX99: 62 | DY99: 42 | DZ99: 27 | EA99: 21 | EB99: 38 | EC99: 52 | ED99: 69 | EE99: 71 | EF99: 153 | EG99: 103 | EH99: 143 | EI99: 115 | EJ99: 107 | EK99: 92 | EL99: 56 | EM99: 61 | EN99: 78 | EO99: 118 | EP99: 107 | EQ99: 148 | ER99: 215 | FC99: 2 | FD99: 2011-02-01 | FE99: 4501.181 | FI99: 6 | FJ99: 2012-06-01 | FK99: 59560
A100: East North Central : Independent Power Producers | B100: thousand megawatthours | C100: ELEC.GEN.WND-ENC-94.M | D100: -- | E100: -- | F100: -- | G100: -- | H100: -- | I100: 3 | J100: 2 | K100: 2 | L100: 3 | M100: 7 | N100: 6 | O100: 5 | P100: 0 | Q100: 0 | R100: 0 | S100: 0 | T100: 0 | U100: 0 | V100: 0 | W100: 0 | X100: 0 | Y100: 0 | Z100: 0 | AA100: 0 | AB100: 2 | AC100: 7 | AD100: 8 | AE100: 8 | AF100: 7 | AG100: 5 | AH100: 5 | AI100: 5 | AJ100: 6 | AK100: 7 | AL100: 8 | AM100: 9 | AN100: 6 | AO100: 9 | AP100: 16 | AQ100: 16 | AR100: 15 | AS100: 8 | AT100: 6 | AU100: 7 | AV100: 10 | AW100: 15 | AX100: 14 | AY100: 20 | AZ100: 11 | BA100: 12 | BB100: 15 | BC100: 16 | BD100: 14 | BE100: 10 | BF100: 6 | BG100: 5 | BH100: 9 | BI100: 11 | BJ100: 20 | BK100: 69 | BL100: 26 | BM100: 23 | BN100: 30 | BO100: 37 | BP100: 26 | BQ100: 17 | BR100: 16 | BS100: 12 | BT100: 19 | BU100: 33 | BV100: 33 | BW100: 43 | BX100: 34 | BY100: 27 | BZ100: 35 | CA100: 58 | CB100: 71 | CC100: 44 | CD100: 28 | CE100: 28 | CF100: 71 | CG100: 112 | CH100: 102 | CI100: 116 | CJ100: 250 | CK100: 196 | CL100: 211 | CM100: 238 | CN100: 248 | CO100: 197 | CP100: 131 | CQ100: 106 | CR100: 139 | CS100: 321 | CT100: 401 | CU100: 499 | CV100: 373 | CW100: 496 | CX100: 484 | CY100: 560 | CZ100: 383 | DA100: 258 | DB100: 180 | DC100: 266 | DD100: 172 | DE100: 464 | DF100: 617 | DG100: 764 | DH100: 720 | DI100: 485 | DJ100: 711 | DK100: 921 | DL100: 682 | DM100: 419 | DN100: 369 | DO100: 337 | DP100: 695 | DQ100: 946 | DR100: 1106 | DS100: 894 | DT100: 798 | DU100: 1107 | DV100: 1021 | DW100: 1264 | DX100: 910 | DY100: 693 | DZ100: 373 | EA100: 361 | EB100: 655 | EC100: 878 | ED100: 1527 | EE100: 1148 | EF100: 1562 | EG100: 1129 | EH100: 1492 | EI100: 1401 | EJ100: 1011 | EK100: 930 | EL100: 547 | EM100: 496 | EN100: 748 | EO100: 1349 | EP100: 1005 | EQ100: 1545 | ER100: 1946 | FC100: 3 | FD100: 2011-03-01 | FE100: 4927.98 | FI100: 7 | FJ100: 2012-07-01 | FK100: 36573
A101: East North Central : All Commercial | B101: thousand megawatthours | C101: ELEC.GEN.WND-ENC-96.M | D101: -- | E101: -- | F101: -- | G101: -- | H101: -- | I101: -- | J101: -- | K101: -- | L101: -- | M101: -- | N101: -- | O101: -- | P101: -- | Q101: -- | R101: -- | S101: -- | T101: -- | U101: -- | V101: -- | W101: -- | X101: -- | Y101: -- | Z101: -- | AA101: -- | AB101: -- | AC101: -- | AD101: -- | AE101: -- | AF101: -- | AG101: -- | AH101: -- | AI101: -- | AJ101: -- | AK101: -- | AL101: -- | AM101: -- | AN101: -- | AO101: -- | AP101: -- | AQ101: -- | AR101: -- | AS101: -- | AT101: -- | AU101: -- | AV101: -- | AW101: -- | AX101: -- | AY101: -- | AZ101: -- | BA101: -- | BB101: -- | BC101: -- | BD101: -- | BE101: -- | BF101: -- | BG101: -- | BH101: -- | BI101: -- | BJ101: -- | BK101: -- | BL101: -- | BM101: -- | BN101: -- | BO101: -- | BP101: -- | BQ101: -- | BR101: -- | BS101: -- | BT101: -- | BU101: -- | BV101: -- | BW101: -- | BX101: -- | BY101: -- | BZ101: -- | CA101: -- | CB101: -- | CC101: -- | CD101: -- | CE101: -- | CF101: -- | CG101: -- | CH101: -- | CI101: -- | CJ101: -- | CK101: -- | CL101: -- | CM101: -- | CN101: -- | CO101: -- | CP101: -- | CQ101: -- | CR101: -- | CS101: -- | CT101: -- | CU101: -- | CV101: -- | CW101: -- | CX101: -- | CY101: -- | CZ101: -- | DA101: -- | DB101: -- | DC101: -- | DD101: -- | DE101: -- | DF101: -- | DG101: -- | DH101: -- | DI101: -- | DJ101: NM | DK101: NM | DL101: NM | DM101: NM | DN101: NM | DO101: NM | DP101: NM | DQ101: NM | DR101: NM | DS101: NM | DT101: 0 | DU101: 0 | DV101: 0 | DW101: 0 | DX101: 0 | DY101: 0 | DZ101: 0 | EA101: 0 | EB101: 0 | EC101: 0 | ED101: 0 | EE101: 0 | EF101: NM | EG101: NM | EH101: NM | EI101: NM | EJ101: NM | EK101: NM | EL101: NM | EM101: NM | EN101: NM | EO101: NM | EP101: NM | EQ101: NM | ER101: NM | FC101: 4 | FD101: 2011-04-01 | FE101: 3586.986 | FI101: 8 | FJ101: 2012-08-01 | FK101: 25546
A102: East North Central : All Industrial | B102: thousand megawatthours | C102: ELEC.GEN.WND-ENC-97.M | D102: -- | E102: -- | F102: -- | G102: -- | H102: -- | I102: -- | J102: -- | K102: -- | L102: -- | M102: -- | N102: -- | O102: -- | P102: -- | Q102: -- | R102: -- | S102: -- | T102: -- | U102: -- | V102: -- | W102: -- | X102: -- | Y102: -- | Z102: -- | AA102: -- | AB102: -- | AC102: -- | AD102: -- | AE102: -- | AF102: -- | AG102: -- | AH102: -- | AI102: -- | AJ102: -- | AK102: -- | AL102: -- | AM102: -- | AN102: -- | AO102: -- | AP102: -- | AQ102: -- | AR102: -- | AS102: -- | AT102: -- | AU102: -- | AV102: -- | AW102: -- | AX102: -- | AY102: -- | AZ102: -- | BA102: -- | BB102: -- | BC102: -- | BD102: -- | BE102: -- | BF102: -- | BG102: -- | BH102: -- | BI102: -- | BJ102: -- | BK102: -- | BL102: -- | BM102: -- | BN102: -- | BO102: -- | BP102: -- | BQ102: -- | BR102: -- | BS102: -- | BT102: -- | BU102: -- | BV102: -- | BW102: -- | BX102: -- | BY102: -- | BZ102: -- | CA102: -- | CB102: -- | CC102: -- | CD102: -- | CE102: -- | CF102: -- | CG102: -- | CH102: -- | CI102: -- | CJ102: -- | CK102: -- | CL102: -- | CM102: -- | CN102: -- | CO102: -- | CP102: -- | CQ102: -- | CR102: -- | CS102: -- | CT102: -- | CU102: -- | CV102: -- | CW102: -- | CX102: -- | CY102: -- | CZ102: -- | DA102: -- | DB102: -- | DC102: -- | DD102: -- | DE102: -- | DF102: -- | DG102: -- | DH102: -- | DI102: -- | DJ102: -- | DK102: -- | DL102: -- | DM102: -- | DN102: -- | DO102: -- | DP102: -- | DQ102: -- | DR102: -- | DS102: -- | DT102: -- | DU102: -- | DV102: -- | DW102: -- | DX102: -- | DY102: -- | DZ102: 0 | EA102: 0 | EB102: 0 | EC102: 0 | ED102: 1 | EE102: 0 | EF102: NM | EG102: NM | EH102: NM | EI102: NM | EJ102: NM | EK102: NM | EL102: NM | EM102: NM | EN102: NM | EO102: NM | EP102: NM | EQ102: NM | ER102: NM | FC102: 5 | FD102: 2011-05-01 | FE102: 4660.791 | FI102: 9 | FJ102: 2012-09-01 | FK102: 21386
A103: Illinois | B103: thousand megawatthours | C103: ELEC.GEN.WND-IL-99.M | FC103: 6 | FD103: 2011-06-01 | FE103: 5792.128 | FI103: 10 | FJ103: 2012-10-01 | FK103: 26282
A104: Illinois : All Sectors | B104: thousand megawatthours | C104: ELEC.GEN.WND-IL-99.M | D104: -- | E104: -- | F104: -- | G104: -- | H104: -- | I104: -- | J104: -- | K104: -- | L104: -- | M104: -- | N104: -- | O104: -- | P104: -- | Q104: -- | R104: -- | S104: -- | T104: -- | U104: -- | V104: -- | W104: -- | X104: -- | Y104: -- | Z104: -- | AA104: -- | AB104: 2 | AC104: 1 | AD104: 1 | AE104: 1 | AF104: 1 | AG104: 1 | AH104: 2 | AI104: 2 | AJ104: 1 | AK104: 1 | AL104: 1 | AM104: 2 | AN104: 0 | AO104: 3 | AP104: 8 | AQ104: 10 | AR104: 9 | AS104: 5 | AT104: 3 | AU104: 4 | AV104: 5 | AW104: 9 | AX104: 9 | AY104: 13 | AZ104: 6 | BA104: 7 | BB104: 10 | BC104: 10 | BD104: 9 | BE104: 5 | BF104: 3 | BG104: 2 | BH104: 5 | BI104: 7 | BJ104: 12 | BK104: 65 | BL104: 19 | BM104: 18 | BN104: 23 | BO104: 29 | BP104: 21 | BQ104: 14 | BR104: 13 | BS104: 10 | BT104: 15 | BU104: 28 | BV104: 28 | BW104: 36 | BX104: 28 | BY104: 21 | BZ104: 28 | CA104: 51 | CB104: 64 | CC104: 40 | CD104: 26 | CE104: 26 | CF104: 66 | CG104: 106 | CH104: 95 | CI104: 112 | CJ104: 240 | CK104: 189 | CL104: 201 | CM104: 226 | CN104: 208 | CO104: 160 | CP104: 82 | CQ104: 69 | CR104: 93 | CS104: 229 | CT104: 298 | CU104: 342 | CV104: 252 | CW104: 302 | CX104: 264 | CY104: 306 | CZ104: 204 | DA104: 148 | DB104: 97 | DC104: 147 | DD104: 101 | DE104: 259 | DF104: 329 | DG104: 411 | DH104: 357 | DI104: 242 | DJ104: 402 | DK104: 503 | DL104: 392 | DM104: 218 | DN104: 205 | DO104: 196 | DP104: 373 | DQ104: 524 | DR104: 609 | DS104: 432 | DT104: 407 | DU104: 598 | DV104: 567 | DW104: 723 | DX104: 538 | DY104: 423 | DZ104: 239 | EA104: 224 | EB104: 402 | EC104: 512 | ED104: 908 | EE104: 672 | EF104: 882 | EG104: 618 | EH104: 867 | EI104: 781 | EJ104: 645 | EK104: 574 | EL104: 332 | EM104: 295 | EN104: 446 | EO104: 762 | EP104: 571 | EQ104: 936 | ER104: 1150 | FC104: 7 | FD104: 2011-07-01 | FE104: 4594.873 | FI104: 11 | FJ104: 2012-11-01 | FK104: 36398
A105: Illinois : Electric Power | C105: ELEC.GEN.WND-IL-98.M | FC105: 8 | FD105: 2011-08-01 | FE105: 5315.643 | FI105: 12 | FJ105: 2012-12-01 | FK105: 52550
A106: Illinois : Electric Utility | B106: thousand megawatthours | C106: ELEC.GEN.WND-IL-1.M | D106: -- | E106: -- | F106: -- | G106: -- | H106: -- | I106: -- | J106: -- | K106: -- | L106: -- | M106: -- | N106: -- | O106: -- | P106: -- | Q106: -- | R106: -- | S106: -- | T106: -- | U106: -- | V106: -- | W106: -- | X106: -- | Y106: -- | Z106: -- | AA106: -- | AB106: -- | AC106: -- | AD106: -- | AE106: -- | AF106: -- | AG106: -- | AH106: -- | AI106: -- | AJ106: -- | AK106: -- | AL106: -- | AM106: -- | AN106: -- | AO106: -- | AP106: -- | AQ106: -- | AR106: -- | AS106: -- | AT106: -- | AU106: -- | AV106: -- | AW106: -- | AX106: -- | AY106: -- | AZ106: -- | BA106: -- | BB106: -- | BC106: -- | BD106: -- | BE106: -- | BF106: -- | BG106: -- | BH106: -- | BI106: -- | BJ106: -- | BK106: -- | BL106: 0 | BM106: 0 | BN106: 0 | BO106: 0 | BP106: 0 | BQ106: 0 | BR106: 0 | BS106: 0 | BT106: 0 | BU106: 0 | BV106: 0 | BW106: 0 | BX106: 0 | BY106: 0 | BZ106: 0 | CA106: 0 | CB106: 0 | CC106: 0 | CD106: 0 | CE106: 0 | CF106: 0 | CG106: 1 | CH106: 1 | CI106: 0 | CJ106: 0 | CK106: 0 | CL106: 0 | CM106: 0 | CN106: 0 | CO106: 0 | CP106: 0 | CQ106: 0 | CR106: 0 | CS106: 0 | CT106: 0 | CU106: 1 | CV106: 0 | CW106: 0 | CX106: 0 | CY106: 0 | CZ106: 0 | DA106: 0 | DB106: 0 | DC106: 0 | DD106: 0 | DE106: 0 | DF106: 0 | DG106: 0 | DH106: 1 | DI106: 0 | DJ106: 1 | DK106: 1 | DL106: 1 | DM106: 0 | DN106: 0 | DO106: 0 | DP106: 1 | DQ106: 1 | DR106: 1 | DS106: 1 | DT106: 1 | DU106: 1 | DV106: 1 | DW106: 1 | DX106: 1 | DY106: 1 | DZ106: 0 | EA106: 0 | EB106: 1 | EC106: 1 | ED106: 2 | EE106: 1 | EF106: NM | EG106: NM | EH106: NM | EI106: NM | EJ106: NM | EK106: NM | EL106: NM | EM106: NM | EN106: NM | EO106: NM | EP106: NM | EQ106: NM | ER106: NM | FC106: 9 | FD106: 2011-09-01 | FE106: 1767.703 | FI106: 1 | FJ106: 2013-01-01 | FK106: 13891
A107: Illinois : Independent Power Producers | B107: thousand megawatthours | C107: ELEC.GEN.WND-IL-94.M | D107: -- | E107: -- | F107: -- | G107: -- | H107: -- | I107: -- | J107: -- | K107: -- | L107: -- | M107: -- | N107: -- | O107: -- | P107: -- | Q107: -- | R107: -- | S107: -- | T107: -- | U107: -- | V107: -- | W107: -- | X107: -- | Y107: -- | Z107: -- | AA107: -- | AB107: 2 | AC107: 1 | AD107: 1 | AE107: 1 | AF107: 1 | AG107: 1 | AH107: 2 | AI107: 2 | AJ107: 1 | AK107: 1 | AL107: 1 | AM107: 2 | AN107: 0 | AO107: 3 | AP107: 8 | AQ107: 10 | AR107: 9 | AS107: 5 | AT107: 3 | AU107: 4 | AV107: 5 | AW107: 9 | AX107: 9 | AY107: 13 | AZ107: 6 | BA107: 7 | BB107: 10 | BC107: 10 | BD107: 9 | BE107: 5 | BF107: 3 | BG107: 2 | BH107: 5 | BI107: 7 | BJ107: 12 | BK107: 65 | BL107: 19 | BM107: 18 | BN107: 23 | BO107: 29 | BP107: 20 | BQ107: 14 | BR107: 12 | BS107: 10 | BT107: 14 | BU107: 27 | BV107: 28 | BW107: 35 | BX107: 28 | BY107: 21 | BZ107: 28 | CA107: 51 | CB107: 64 | CC107: 40 | CD107: 26 | CE107: 26 | CF107: 66 | CG107: 105 | CH107: 95 | CI107: 111 | CJ107: 240 | CK107: 189 | CL107: 200 | CM107: 225 | CN107: 208 | CO107: 159 | CP107: 82 | CQ107: 69 | CR107: 93 | CS107: 228 | CT107: 298 | CU107: 342 | CV107: 252 | CW107: 301 | CX107: 264 | CY107: 306 | CZ107: 204 | DA107: 147 | DB107: 97 | DC107: 147 | DD107: 101 | DE107: 259 | DF107: 329 | DG107: 411 | DH107: 356 | DI107: 242 | DJ107: 401 | DK107: 502 | DL107: 391 | DM107: 218 | DN107: 204 | DO107: 196 | DP107: 373 | DQ107: 523 | DR107: 608 | DS107: 431 | DT107: 406 | DU107: 597 | DV107: 566 | DW107: 722 | DX107: 537 | DY107: 422 | DZ107: 239 | EA107: 224 | EB107: 401 | EC107: 511 | ED107: 906 | EE107: 671 | EF107: 880 | EG107: 616 | EH107: 865 | EI107: 779 | EJ107: 644 | EK107: 573 | EL107: 332 | EM107: 295 | EN107: 445 | EO107: 760 | EP107: 570 | EQ107: 935 | ER107: 1149 | FC107: 10 | FD107: 2011-10-01 | FE107: 3015.817 | FI107: 2 | FJ107: 2013-02-01 | FK107: 19286
A108: Illinois : All Commercial | B108: thousand megawatthours | C108: ELEC.GEN.WND-IL-96.M | D108: -- | E108: -- | F108: -- | G108: -- | H108: -- | I108: -- | J108: -- | K108: -- | L108: -- | M108: -- | N108: -- | O108: -- | P108: -- | Q108: -- | R108: -- | S108: -- | T108: -- | U108: -- | V108: -- | W108: -- | X108: -- | Y108: -- | Z108: -- | AA108: -- | AB108: -- | AC108: -- | AD108: -- | AE108: -- | AF108: -- | AG108: -- | AH108: -- | AI108: -- | AJ108: -- | AK108: -- | AL108: -- | AM108: -- | AN108: -- | AO108: -- | AP108: -- | AQ108: -- | AR108: -- | AS108: -- | AT108: -- | AU108: -- | AV108: -- | AW108: -- | AX108: -- | AY108: -- | AZ108: -- | BA108: -- | BB108: -- | BC108: -- | BD108: -- | BE108: -- | BF108: -- | BG108: -- | BH108: -- | BI108: -- | BJ108: -- | BK108: -- | BL108: -- | BM108: -- | BN108: -- | BO108: -- | BP108: -- | BQ108: -- | BR108: -- | BS108: -- | BT108: -- | BU108: -- | BV108: -- | BW108: -- | BX108: -- | BY108: -- | BZ108: -- | CA108: -- | CB108: -- | CC108: -- | CD108: -- | CE108: -- | CF108: -- | CG108: -- | CH108: -- | CI108: -- | CJ108: -- | CK108: -- | CL108: -- | CM108: -- | CN108: -- | CO108: -- | CP108: -- | CQ108: -- | CR108: -- | CS108: -- | CT108: -- | CU108: -- | CV108: -- | CW108: -- | CX108: -- | CY108: -- | CZ108: -- | DA108: -- | DB108: -- | DC108: -- | DD108: -- | DE108: -- | DF108: -- | DG108: -- | DH108: -- | DI108: -- | DJ108: -- | DK108: -- | DL108: -- | DM108: -- | DN108: -- | DO108: -- | DP108: -- | DQ108: -- | DR108: -- | DS108: -- | DT108: -- | DU108: -- | DV108: -- | DW108: -- | DX108: -- | DY108: -- | DZ108: -- | EA108: -- | EB108: -- | EC108: -- | ED108: -- | EE108: -- | EF108: -- | EG108: -- | EH108: -- | EI108: -- | EJ108: -- | EK108: -- | EL108: -- | EM108: -- | EN108: -- | EO108: -- | EP108: -- | EQ108: -- | ER108: -- | FC108: 11 | FD108: 2011-11-01 | FE108: 5415.557 | FI108: 3 | FJ108: 2013-03-01 | FK108: 25058
A109: Illinois : All Industrial | B109: thousand megawatthours | C109: ELEC.GEN.WND-IL-97.M | D109: -- | E109: -- | F109: -- | G109: -- | H109: -- | I109: -- | J109: -- | K109: -- | L109: -- | M109: -- | N109: -- | O109: -- | P109: -- | Q109: -- | R109: -- | S109: -- | T109: -- | U109: -- | V109: -- | W109: -- | X109: -- | Y109: -- | Z109: -- | AA109: -- | AB109: -- | AC109: -- | AD109: -- | AE109: -- | AF109: -- | AG109: -- | AH109: -- | AI109: -- | AJ109: -- | AK109: -- | AL109: -- | AM109: -- | AN109: -- | AO109: -- | AP109: -- | AQ109: -- | AR109: -- | AS109: -- | AT109: -- | AU109: -- | AV109: -- | AW109: -- | AX109: -- | AY109: -- | AZ109: -- | BA109: -- | BB109: -- | BC109: -- | BD109: -- | BE109: -- | BF109: -- | BG109: -- | BH109: -- | BI109: -- | BJ109: -- | BK109: -- | BL109: -- | BM109: -- | BN109: -- | BO109: -- | BP109: -- | BQ109: -- | BR109: -- | BS109: -- | BT109: -- | BU109: -- | BV109: -- | BW109: -- | BX109: -- | BY109: -- | BZ109: -- | CA109: -- | CB109: -- | CC109: -- | CD109: -- | CE109: -- | CF109: -- | CG109: -- | CH109: -- | CI109: -- | CJ109: -- | CK109: -- | CL109: -- | CM109: -- | CN109: -- | CO109: -- | CP109: -- | CQ109: -- | CR109: -- | CS109: -- | CT109: -- | CU109: -- | CV109: -- | CW109: -- | CX109: -- | CY109: -- | CZ109: -- | DA109: -- | DB109: -- | DC109: -- | DD109: -- | DE109: -- | DF109: -- | DG109: -- | DH109: -- | DI109: -- | DJ109: -- | DK109: -- | DL109: -- | DM109: -- | DN109: -- | DO109: -- | DP109: -- | DQ109: -- | DR109: -- | DS109: -- | DT109: -- | DU109: -- | DV109: -- | DW109: -- | DX109: -- | DY109: -- | DZ109: -- | EA109: -- | EB109: -- | EC109: -- | ED109: -- | EE109: -- | EF109: -- | EG109: -- | EH109: -- | EI109: -- | EJ109: -- | EK109: -- | EL109: -- | EM109: -- | EN109: -- | EO109: -- | EP109: -- | EQ109: -- | ER109: -- | FC109: 12 | FD109: 2011-12-01 | FE109: 2512.098
A110: Indiana | B110: thousand megawatthours | C110: ELEC.GEN.WND-IN-99.M
A111: Indiana : All Sectors | B111: thousand megawatthours | C111: ELEC.GEN.WND-IN-99.M | D111: -- | E111: -- | F111: -- | G111: -- | H111: -- | I111: -- | J111: -- | K111: -- | L111: -- | M111: -- | N111: -- | O111: -- | P111: -- | Q111: -- | R111: -- | S111: -- | T111: -- | U111: -- | V111: -- | W111: -- | X111: -- | Y111: -- | Z111: -- | AA111: -- | AB111: -- | AC111: -- | AD111: -- | AE111: -- | AF111: -- | AG111: -- | AH111: -- | AI111: -- | AJ111: -- | AK111: -- | AL111: -- | AM111: -- | AN111: -- | AO111: -- | AP111: -- | AQ111: -- | AR111: -- | AS111: -- | AT111: -- | AU111: -- | AV111: -- | AW111: -- | AX111: -- | AY111: -- | AZ111: -- | BA111: -- | BB111: -- | BC111: -- | BD111: -- | BE111: -- | BF111: -- | BG111: -- | BH111: -- | BI111: -- | BJ111: -- | BK111: -- | BL111: -- | BM111: -- | BN111: -- | BO111: -- | BP111: -- | BQ111: -- | BR111: -- | BS111: -- | BT111: -- | BU111: -- | BV111: -- | BW111: -- | BX111: -- | BY111: -- | BZ111: -- | CA111: -- | CB111: -- | CC111: -- | CD111: -- | CE111: -- | CF111: -- | CG111: -- | CH111: -- | CI111: -- | CJ111: -- | CK111: -- | CL111: -- | CM111: -- | CN111: 26 | CO111: 27 | CP111: 18 | CQ111: 14 | CR111: 17 | CS111: 37 | CT111: 43 | CU111: 57 | CV111: 49 | CW111: 109 | CX111: 133 | CY111: 161 | CZ111: 94 | DA111: 69 | DB111: 43 | DC111: 64 | DD111: 45 | DE111: 145 | DF111: 220 | DG111: 272 | DH111: 271 | DI111: 187 | DJ111: 225 | DK111: 316 | DL111: 221 | DM111: 157 | DN111: 119 | DO111: 91 | DP111: 246 | DQ111: 342 | DR111: 396 | DS111: 364 | DT111: 315 | DU111: 390 | DV111: 377 | DW111: 429 | DX111: 270 | DY111: 203 | DZ111: 82 | EA111: 83 | EB111: 164 | EC111: 246 | ED111: 432 | EE111: 295 | EF111: 416 | EG111: 307 | EH111: 374 | EI111: 386 | EJ111: 212 | EK111: 184 | EL111: 113 | EM111: 94 | EN111: 162 | EO111: 324 | EP111: 234 | EQ111: 357 | ER111: 450
A112: Indiana : Electric Power | C112: ELEC.GEN.WND-IN-98.M
A113: Indiana : Electric Utility | B113: thousand megawatthours | C113: ELEC.GEN.WND-IN-1.M | D113: -- | E113: -- | F113: -- | G113: -- | H113: -- | I113: -- | J113: -- | K113: -- | L113: -- | M113: -- | N113: -- | O113: -- | P113: -- | Q113: -- | R113: -- | S113: -- | T113: -- | U113: -- | V113: -- | W113: -- | X113: -- | Y113: -- | Z113: -- | AA113: -- | AB113: -- | AC113: -- | AD113: -- | AE113: -- | AF113: -- | AG113: -- | AH113: -- | AI113: -- | AJ113: -- | AK113: -- | AL113: -- | AM113: -- | AN113: -- | AO113: -- | AP113: -- | AQ113: -- | AR113: -- | AS113: -- | AT113: -- | AU113: -- | AV113: -- | AW113: -- | AX113: -- | AY113: -- | AZ113: -- | BA113: -- | BB113: -- | BC113: -- | BD113: -- | BE113: -- | BF113: -- | BG113: -- | BH113: -- | BI113: -- | BJ113: -- | BK113: -- | BL113: -- | BM113: -- | BN113: -- | BO113: -- | BP113: -- | BQ113: -- | BR113: -- | BS113: -- | BT113: -- | BU113: -- | BV113: -- | BW113: -- | BX113: -- | BY113: -- | BZ113: -- | CA113: -- | CB113: -- | CC113: -- | CD113: -- | CE113: -- | CF113: -- | CG113: -- | CH113: -- | CI113: -- | CJ113: -- | CK113: -- | CL113: -- | CM113: -- | CN113: -- | CO113: -- | CP113: -- | CQ113: -- | CR113: -- | CS113: -- | CT113: -- | CU113: -- | CV113: -- | CW113: -- | CX113: -- | CY113: -- | CZ113: -- | DA113: -- | DB113: -- | DC113: -- | DD113: -- | DE113: -- | DF113: -- | DG113: -- | DH113: -- | DI113: -- | DJ113: -- | DK113: -- | DL113: -- | DM113: -- | DN113: -- | DO113: -- | DP113: -- | DQ113: -- | DR113: -- | DS113: -- | DT113: -- | DU113: -- | DV113: -- | DW113: -- | DX113: -- | DY113: -- | DZ113: -- | EA113: -- | EB113: -- | EC113: -- | ED113: -- | EE113: -- | EF113: -- | EG113: -- | EH113: -- | EI113: -- | EJ113: -- | EK113: -- | EL113: -- | EM113: -- | EN113: -- | EO113: -- | EP113: -- | EQ113: -- | ER113: --
A114: Indiana : Independent Power Producers | B114: thousand megawatthours | C114: ELEC.GEN.WND-IN-94.M | D114: -- | E114: -- | F114: -- | G114: -- | H114: -- | I114: -- | J114: -- | K114: -- | L114: -- | M114: -- | N114: -- | O114: -- | P114: -- | Q114: -- | R114: -- | S114: -- | T114: -- | U114: -- | V114: -- | W114: -- | X114: -- | Y114: -- | Z114: -- | AA114: -- | AB114: -- | AC114: -- | AD114: -- | AE114: -- | AF114: -- | AG114: -- | AH114: -- | AI114: -- | AJ114: -- | AK114: -- | AL114: -- | AM114: -- | AN114: -- | AO114: -- | AP114: -- | AQ114: -- | AR114: -- | AS114: -- | AT114: -- | AU114: -- | AV114: -- | AW114: -- | AX114: -- | AY114: -- | AZ114: -- | BA114: -- | BB114: -- | BC114: -- | BD114: -- | BE114: -- | BF114: -- | BG114: -- | BH114: -- | BI114: -- | BJ114: -- | BK114: -- | BL114: -- | BM114: -- | BN114: -- | BO114: -- | BP114: -- | BQ114: -- | BR114: -- | BS114: -- | BT114: -- | BU114: -- | BV114: -- | BW114: -- | BX114: -- | BY114: -- | BZ114: -- | CA114: -- | CB114: -- | CC114: -- | CD114: -- | CE114: -- | CF114: -- | CG114: -- | CH114: -- | CI114: -- | CJ114: -- | CK114: -- | CL114: -- | CM114: -- | CN114: 26 | CO114: 27 | CP114: 18 | CQ114: 14 | CR114: 17 | CS114: 37 | CT114: 43 | CU114: 57 | CV114: 49 | CW114: 109 | CX114: 133 | CY114: 161 | CZ114: 94 | DA114: 69 | DB114: 43 | DC114: 64 | DD114: 45 | DE114: 145 | DF114: 220 | DG114: 272 | DH114: 271 | DI114: 187 | DJ114: 225 | DK114: 316 | DL114: 221 | DM114: 156 | DN114: 119 | DO114: 90 | DP114: 246 | DQ114: 342 | DR114: 396 | DS114: 363 | DT114: 315 | DU114: 390 | DV114: 376 | DW114: 429 | DX114: 269 | DY114: 203 | DZ114: 82 | EA114: 83 | EB114: 164 | EC114: 246 | ED114: 432 | EE114: 295 | EF114: 416 | EG114: 306 | EH114: 373 | EI114: 386 | EJ114: 212 | EK114: 184 | EL114: 113 | EM114: 94 | EN114: 162 | EO114: 324 | EP114: 234 | EQ114: 357 | ER114: 450
A115: Indiana : All Commercial | B115: thousand megawatthours | C115: ELEC.GEN.WND-IN-96.M | D115: -- | E115: -- | F115: -- | G115: -- | H115: -- | I115: -- | J115: -- | K115: -- | L115: -- | M115: -- | N115: -- | O115: -- | P115: -- | Q115: -- | R115: -- | S115: -- | T115: -- | U115: -- | V115: -- | W115: -- | X115: -- | Y115: -- | Z115: -- | AA115: -- | AB115: -- | AC115: -- | AD115: -- | AE115: -- | AF115: -- | AG115: -- | AH115: -- | AI115: -- | AJ115: -- | AK115: -- | AL115: -- | AM115: -- | AN115: -- | AO115: -- | AP115: -- | AQ115: -- | AR115: -- | AS115: -- | AT115: -- | AU115: -- | AV115: -- | AW115: -- | AX115: -- | AY115: -- | AZ115: -- | BA115: -- | BB115: -- | BC115: -- | BD115: -- | BE115: -- | BF115: -- | BG115: -- | BH115: -- | BI115: -- | BJ115: -- | BK115: -- | BL115: -- | BM115: -- | BN115: -- | BO115: -- | BP115: -- | BQ115: -- | BR115: -- | BS115: -- | BT115: -- | BU115: -- | BV115: -- | BW115: -- | BX115: -- | BY115: -- | BZ115: -- | CA115: -- | CB115: -- | CC115: -- | CD115: -- | CE115: -- | CF115: -- | CG115: -- | CH115: -- | CI115: -- | CJ115: -- | CK115: -- | CL115: -- | CM115: -- | CN115: -- | CO115: -- | CP115: -- | CQ115: -- | CR115: -- | CS115: -- | CT115: -- | CU115: -- | CV115: -- | CW115: -- | CX115: -- | CY115: -- | CZ115: -- | DA115: -- | DB115: -- | DC115: -- | DD115: -- | DE115: -- | DF115: -- | DG115: -- | DH115: -- | DI115: -- | DJ115: NM | DK115: NM | DL115: NM | DM115: NM | DN115: NM | DO115: NM | DP115: NM | DQ115: NM | DR115: NM | DS115: NM | DT115: 0 | DU115: 0 | DV115: 0 | DW115: 0 | DX115: 0 | DY115: 0 | DZ115: 0 | EA115: 0 | EB115: 0 | EC115: 0 | ED115: 0 | EE115: 0 | EF115: NM | EG115: NM | EH115: NM | EI115: NM | EJ115: NM | EK115: NM | EL115: NM | EM115: NM | EN115: NM | EO115: NM | EP115: NM | EQ115: NM | ER115: NM
A116: Indiana : All Industrial | B116: thousand megawatthours | C116: ELEC.GEN.WND-IN-97.M | D116: -- | E116: -- | F116: -- | G116: -- | H116: -- | I116: -- | J116: -- | K116: -- | L116: -- | M116: -- | N116: -- | O116: -- | P116: -- | Q116: -- | R116: -- | S116: -- | T116: -- | U116: -- | V116: -- | W116: -- | X116: -- | Y116: -- | Z116: -- | AA116: -- | AB116: -- | AC116: -- | AD116: -- | AE116: -- | AF116: -- | AG116: -- | AH116: -- | AI116: -- | AJ116: -- | AK116: -- | AL116: -- | AM116: -- | AN116: -- | AO116: -- | AP116: -- | AQ116: -- | AR116: -- | AS116: -- | AT116: -- | AU116: -- | AV116: -- | AW116: -- | AX116: -- | AY116: -- | AZ116: -- | BA116: -- | BB116: -- | BC116: -- | BD116: -- | BE116: -- | BF116: -- | BG116: -- | BH116: -- | BI116: -- | BJ116: -- | BK116: -- | BL116: -- | BM116: -- | BN116: -- | BO116: -- | BP116: -- | BQ116: -- | BR116: -- | BS116: -- | BT116: -- | BU116: -- | BV116: -- | BW116: -- | BX116: -- | BY116: -- | BZ116: -- | CA116: -- | CB116: -- | CC116: -- | CD116: -- | CE116: -- | CF116: -- | CG116: -- | CH116: -- | CI116: -- | CJ116: -- | CK116: -- | CL116: -- | CM116: -- | CN116: -- | CO116: -- | CP116: -- | CQ116: -- | CR116: -- | CS116: -- | CT116: -- | CU116: -- | CV116: -- | CW116: -- | CX116: -- | CY116: -- | CZ116: -- | DA116: -- | DB116: -- | DC116: -- | DD116: -- | DE116: -- | DF116: -- | DG116: -- | DH116: -- | DI116: -- | DJ116: -- | DK116: -- | DL116: -- | DM116: -- | DN116: -- | DO116: -- | DP116: -- | DQ116: -- | DR116: -- | DS116: -- | DT116: -- | DU116: -- | DV116: -- | DW116: -- | DX116: -- | DY116: -- | DZ116: -- | EA116: -- | EB116: -- | EC116: -- | ED116: -- | EE116: -- | EF116: -- | EG116: -- | EH116: -- | EI116: -- | EJ116: -- | EK116: -- | EL116: -- | EM116: -- | EN116: -- | EO116: -- | EP116: -- | EQ116: -- | ER116: --
A117: Michigan | B117: thousand megawatthours | C117: ELEC.GEN.WND-MI-99.M
A118: Michigan : All Sectors | B118: thousand megawatthours | C118: ELEC.GEN.WND-MI-99.M | D118: -- | E118: -- | F118: -- | G118: -- | H118: -- | I118: -- | J118: -- | K118: -- | L118: -- | M118: -- | N118: -- | O118: 0 | P118: 0 | Q118: 0 | R118: 0 | S118: 0 | T118: 0 | U118: 0 | V118: 0 | W118: 0 | X118: 0 | Y118: 0 | Z118: 0 | AA118: 0 | AB118: 0 | AC118: 0 | AD118: 0 | AE118: 0 | AF118: 0 | AG118: 0 | AH118: 0 | AI118: 0 | AJ118: 0 | AK118: 0 | AL118: 0 | AM118: 0 | AN118: 0 | AO118: 0 | AP118: 0 | AQ118: 0 | AR118: 0 | AS118: 0 | AT118: 0 | AU118: 0 | AV118: 0 | AW118: 0 | AX118: 0 | AY118: 0 | AZ118: 0 | BA118: 0 | BB118: 0 | BC118: 0 | BD118: 0 | BE118: 0 | BF118: 0 | BG118: 0 | BH118: 0 | BI118: 0 | BJ118: 0 | BK118: 0 | BL118: 0 | BM118: 0 | BN118: 0 | BO118: 0 | BP118: 0 | BQ118: 0 | BR118: 0 | BS118: 0 | BT118: 0 | BU118: 0 | BV118: 0 | BW118: 0 | BX118: 0 | BY118: 0 | BZ118: 0 | CA118: 0 | CB118: 0 | CC118: 0 | CD118: 0 | CE118: 0 | CF118: 0 | CG118: 0 | CH118: 0 | CI118: 0 | CJ118: 10 | CK118: 6 | CL118: 10 | CM118: 12 | CN118: 13 | CO118: 8 | CP118: 8 | CQ118: 5 | CR118: 6 | CS118: 12 | CT118: 16 | CU118: 36 | CV118: 30 | CW118: 31 | CX118: 28 | CY118: 36 | CZ118: 29 | DA118: 12 | DB118: 13 | DC118: 19 | DD118: 9 | DE118: 27 | DF118: 22 | DG118: 43 | DH118: 38 | DI118: 24 | DJ118: 33 | DK118: 37 | DL118: 27 | DM118: 16 | DN118: 15 | DO118: 19 | DP118: 32 | DQ118: 33 | DR118: 39 | DS118: 46 | DT118: 34 | DU118: 52 | DV118: 31 | DW118: 49 | DX118: 35 | DY118: 24 | DZ118: 12 | EA118: 18 | EB118: 27 | EC118: 40 | ED118: 73 | EE118: 62 | EF118: 114 | EG118: 92 | EH118: 107 | EI118: 95 | EJ118: 77 | EK118: 77 | EL118: 47 | EM118: 56 | EN118: 65 | EO118: 113 | EP118: 100 | EQ118: 165 | ER118: 229
A119: Michigan : Electric Power | C119: ELEC.GEN.WND-MI-98.M
A120: Michigan : Electric Utility | B120: thousand megawatthours | C120: ELEC.GEN.WND-MI-1.M | D120: -- | E120: -- | F120: -- | G120: -- | H120: -- | I120: -- | J120: -- | K120: -- | L120: -- | M120: -- | N120: -- | O120: -- | P120: -- | Q120: -- | R120: -- | S120: -- | T120: -- | U120: -- | V120: -- | W120: -- | X120: -- | Y120: -- | Z120: -- | AA120: -- | AB120: -- | AC120: -- | AD120: -- | AE120: -- | AF120: -- | AG120: -- | AH120: -- | AI120: -- | AJ120: -- | AK120: -- | AL120: -- | AM120: -- | AN120: -- | AO120: -- | AP120: -- | AQ120: -- | AR120: -- | AS120: -- | AT120: -- | AU120: -- | AV120: -- | AW120: -- | AX120: -- | AY120: -- | AZ120: -- | BA120: -- | BB120: -- | BC120: -- | BD120: -- | BE120: -- | BF120: -- | BG120: -- | BH120: -- | BI120: -- | BJ120: -- | BK120: -- | BL120: -- | BM120: -- | BN120: -- | BO120: -- | BP120: -- | BQ120: -- | BR120: -- | BS120: -- | BT120: -- | BU120: -- | BV120: -- | BW120: -- | BX120: -- | BY120: -- | BZ120: -- | CA120: -- | CB120: -- | CC120: -- | CD120: -- | CE120: -- | CF120: -- | CG120: -- | CH120: -- | CI120: -- | CJ120: -- | CK120: -- | CL120: -- | CM120: -- | CN120: -- | CO120: -- | CP120: -- | CQ120: -- | CR120: -- | CS120: -- | CT120: -- | CU120: -- | CV120: -- | CW120: -- | CX120: -- | CY120: -- | CZ120: -- | DA120: -- | DB120: -- | DC120: -- | DD120: -- | DE120: -- | DF120: -- | DG120: -- | DH120: -- | DI120: -- | DJ120: -- | DK120: -- | DL120: -- | DM120: -- | DN120: -- | DO120: -- | DP120: -- | DQ120: -- | DR120: -- | DS120: -- | DT120: -- | DU120: -- | DV120: -- | DW120: -- | DX120: -- | DY120: -- | DZ120: -- | EA120: -- | EB120: -- | EC120: -- | ED120: 2 | EE120: 1 | EF120: 31 | EG120: 23 | EH120: 29 | EI120: 27 | EJ120: 24 | EK120: 22 | EL120: 15 | EM120: 15 | EN120: 16 | EO120: 25 | EP120: 21 | EQ120: 64 | ER120: 94
A121: Michigan : Independent Power Producers | B121: thousand megawatthours | C121: ELEC.GEN.WND-MI-94.M | D121: -- | E121: -- | F121: -- | G121: -- | H121: -- | I121: -- | J121: -- | K121: -- | L121: -- | M121: -- | N121: -- | O121: 0 | P121: 0 | Q121: 0 | R121: 0 | S121: 0 | T121: 0 | U121: 0 | V121: 0 | W121: 0 | X121: 0 | Y121: 0 | Z121: 0 | AA121: 0 | AB121: 0 | AC121: 0 | AD121: 0 | AE121: 0 | AF121: 0 | AG121: 0 | AH121: 0 | AI121: 0 | AJ121: 0 | AK121: 0 | AL121: 0 | AM121: 0 | AN121: 0 | AO121: 0 | AP121: 0 | AQ121: 0 | AR121: 0 | AS121: 0 | AT121: 0 | AU121: 0 | AV121: 0 | AW121: 0 | AX121: 0 | AY121: 0 | AZ121: 0 | BA121: 0 | BB121: 0 | BC121: 0 | BD121: 0 | BE121: 0 | BF121: 0 | BG121: 0 | BH121: 0 | BI121: 0 | BJ121: 0 | BK121: 0 | BL121: 0 | BM121: 0 | BN121: 0 | BO121: 0 | BP121: 0 | BQ121: 0 | BR121: 0 | BS121: 0 | BT121: 0 | BU121: 0 | BV121: 0 | BW121: 0 | BX121: 0 | BY121: 0 | BZ121: 0 | CA121: 0 | CB121: 0 | CC121: 0 | CD121: 0 | CE121: 0 | CF121: 0 | CG121: 0 | CH121: 0 | CI121: 0 | CJ121: 10 | CK121: 6 | CL121: 10 | CM121: 12 | CN121: 13 | CO121: 8 | CP121: 8 | CQ121: 5 | CR121: 6 | CS121: 12 | CT121: 16 | CU121: 36 | CV121: 30 | CW121: 31 | CX121: 28 | CY121: 36 | CZ121: 29 | DA121: 12 | DB121: 13 | DC121: 19 | DD121: 9 | DE121: 27 | DF121: 22 | DG121: 43 | DH121: 38 | DI121: 24 | DJ121: 33 | DK121: 37 | DL121: 27 | DM121: 16 | DN121: 15 | DO121: 19 | DP121: 32 | DQ121: 33 | DR121: 39 | DS121: 46 | DT121: 34 | DU121: 52 | DV121: 31 | DW121: 49 | DX121: 35 | DY121: 24 | DZ121: 12 | EA121: 18 | EB121: 27 | EC121: 40 | ED121: 72 | EE121: 61 | EF121: 83 | EG121: 69 | EH121: 78 | EI121: 69 | EJ121: 53 | EK121: 55 | EL121: 32 | EM121: 41 | EN121: 49 | EO121: 88 | EP121: 79 | EQ121: 101 | ER121: 135
A122: Michigan : All Commercial | B122: thousand megawatthours | C122: ELEC.GEN.WND-MI-96.M | D122: -- | E122: -- | F122: -- | G122: -- | H122: -- | I122: -- | J122: -- | K122: -- | L122: -- | M122: -- | N122: -- | O122: -- | P122: -- | Q122: -- | R122: -- | S122: -- | T122: -- | U122: -- | V122: -- | W122: -- | X122: -- | Y122: -- | Z122: -- | AA122: -- | AB122: -- | AC122: -- | AD122: -- | AE122: -- | AF122: -- | AG122: -- | AH122: -- | AI122: -- | AJ122: -- | AK122: -- | AL122: -- | AM122: -- | AN122: -- | AO122: -- | AP122: -- | AQ122: -- | AR122: -- | AS122: -- | AT122: -- | AU122: -- | AV122: -- | AW122: -- | AX122: -- | AY122: -- | AZ122: -- | BA122: -- | BB122: -- | BC122: -- | BD122: -- | BE122: -- | BF122: -- | BG122: -- | BH122: -- | BI122: -- | BJ122: -- | BK122: -- | BL122: -- | BM122: -- | BN122: -- | BO122: -- | BP122: -- | BQ122: -- | BR122: -- | BS122: -- | BT122: -- | BU122: -- | BV122: -- | BW122: -- | BX122: -- | BY122: -- | BZ122: -- | CA122: -- | CB122: -- | CC122: -- | CD122: -- | CE122: -- | CF122: -- | CG122: -- | CH122: -- | CI122: -- | CJ122: -- | CK122: -- | CL122: -- | CM122: -- | CN122: -- | CO122: -- | CP122: -- | CQ122: -- | CR122: -- | CS122: -- | CT122: -- | CU122: -- | CV122: -- | CW122: -- | CX122: -- | CY122: -- | CZ122: -- | DA122: -- | DB122: -- | DC122: -- | DD122: -- | DE122: -- | DF122: -- | DG122: -- | DH122: -- | DI122: -- | DJ122: -- | DK122: -- | DL122: -- | DM122: -- | DN122: -- | DO122: -- | DP122: -- | DQ122: -- | DR122: -- | DS122: -- | DT122: -- | DU122: -- | DV122: -- | DW122: -- | DX122: -- | DY122: -- | DZ122: -- | EA122: -- | EB122: -- | EC122: -- | ED122: -- | EE122: -- | EF122: -- | EG122: -- | EH122: -- | EI122: -- | EJ122: -- | EK122: -- | EL122: -- | EM122: -- | EN122: -- | EO122: -- | EP122: -- | EQ122: -- | ER122: --
A123: Michigan : All Industrial | B123: thousand megawatthours | C123: ELEC.GEN.WND-MI-97.M | D123: -- | E123: -- | F123: -- | G123: -- | H123: -- | I123: -- | J123: -- | K123: -- | L123: -- | M123: -- | N123: -- | O123: -- | P123: -- | Q123: -- | R123: -- | S123: -- | T123: -- | U123: -- | V123: -- | W123: -- | X123: -- | Y123: -- | Z123: -- | AA123: -- | AB123: -- | AC123: -- | AD123: -- | AE123: -- | AF123: -- | AG123: -- | AH123: -- | AI123: -- | AJ123: -- | AK123: -- | AL123: -- | AM123: -- | AN123: -- | AO123: -- | AP123: -- | AQ123: -- | AR123: -- | AS123: -- | AT123: -- | AU123: -- | AV123: -- | AW123: -- | AX123: -- | AY123: -- | AZ123: -- | BA123: -- | BB123: -- | BC123: -- | BD123: -- | BE123: -- | BF123: -- | BG123: -- | BH123: -- | BI123: -- | BJ123: -- | BK123: -- | BL123: -- | BM123: -- | BN123: -- | BO123: -- | BP123: -- | BQ123: -- | BR123: -- | BS123: -- | BT123: -- | BU123: -- | BV123: -- | BW123: -- | BX123: -- | BY123: -- | BZ123: -- | CA123: -- | CB123: -- | CC123: -- | CD123: -- | CE123: -- | CF123: -- | CG123: -- | CH123: -- | CI123: -- | CJ123: -- | CK123: -- | CL123: -- | CM123: -- | CN123: -- | CO123: -- | CP123: -- | CQ123: -- | CR123: -- | CS123: -- | CT123: -- | CU123: -- | CV123: -- | CW123: -- | CX123: -- | CY123: -- | CZ123: -- | DA123: -- | DB123: -- | DC123: -- | DD123: -- | DE123: -- | DF123: -- | DG123: -- | DH123: -- | DI123: -- | DJ123: -- | DK123: -- | DL123: -- | DM123: -- | DN123: -- | DO123: -- | DP123: -- | DQ123: -- | DR123: -- | DS123: -- | DT123: -- | DU123: -- | DV123: -- | DW123: -- | DX123: -- | DY123: -- | DZ123: -- | EA123: -- | EB123: -- | EC123: -- | ED123: -- | EE123: -- | EF123: -- | EG123: -- | EH123: -- | EI123: -- | EJ123: -- | EK123: -- | EL123: -- | EM123: -- | EN123: -- | EO123: -- | EP123: -- | EQ123: -- | ER123: --
A124: Ohio | B124: thousand megawatthours | C124: ELEC.GEN.WND-OH-99.M
A125: Ohio : All Sectors | B125: thousand megawatthours | C125: ELEC.GEN.WND-OH-99.M | D125: -- | E125: -- | F125: -- | G125: -- | H125: -- | I125: -- | J125: -- | K125: -- | L125: -- | M125: -- | N125: -- | O125: -- | P125: -- | Q125: -- | R125: -- | S125: -- | T125: -- | U125: -- | V125: -- | W125: -- | X125: -- | Y125: -- | Z125: -- | AA125: -- | AB125: -- | AC125: -- | AD125: -- | AE125: -- | AF125: -- | AG125: -- | AH125: -- | AI125: -- | AJ125: -- | AK125: -- | AL125: -- | AM125: -- | AN125: -- | AO125: -- | AP125: -- | AQ125: -- | AR125: -- | AS125: -- | AT125: -- | AU125: -- | AV125: -- | AW125: -- | AX125: -- | AY125: -- | AZ125: 1 | BA125: 1 | BB125: 1 | BC125: 1 | BD125: 1 | BE125: 1 | BF125: 1 | BG125: 1 | BH125: 1 | BI125: 2 | BJ125: 2 | BK125: 2 | BL125: 2 | BM125: 1 | BN125: 1 | BO125: 1 | BP125: 1 | BQ125: 1 | BR125: 1 | BS125: 1 | BT125: 1 | BU125: 1 | BV125: 1 | BW125: 2 | BX125: 1 | BY125: 1 | BZ125: 1 | CA125: 1 | CB125: 2 | CC125: 1 | CD125: 1 | CE125: 1 | CF125: 1 | CG125: 2 | CH125: 2 | CI125: 2 | CJ125: 1 | CK125: 1 | CL125: 1 | CM125: 1 | CN125: 1 | CO125: 1 | CP125: 1 | CQ125: 1 | CR125: 1 | CS125: 2 | CT125: 2 | CU125: 3 | CV125: 1 | CW125: 1 | CX125: 1 | CY125: 2 | CZ125: 1 | DA125: 1 | DB125: 1 | DC125: 1 | DD125: 0 | DE125: 1 | DF125: 2 | DG125: 2 | DH125: 1 | DI125: 1 | DJ125: 1 | DK125: 1 | DL125: 1 | DM125: 1 | DN125: 1 | DO125: 1 | DP125: 1 | DQ125: 1 | DR125: 2 | DS125: 1 | DT125: 1 | DU125: 1 | DV125: 1 | DW125: 2 | DX125: 1 | DY125: 1 | DZ125: 12 | EA125: 13 | EB125: 26 | EC125: 28 | ED125: 50 | EE125: 62 | EF125: 112 | EG125: 93 | EH125: 117 | EI125: 111 | EJ125: 52 | EK125: 69 | EL125: 43 | EM125: 36 | EN125: 52 | EO125: 119 | EP125: 72 | EQ125: 112 | ER125: 139
A126: Ohio : Electric Power | C126: ELEC.GEN.WND-OH-98.M
A127: Ohio : Electric Utility | B127: thousand megawatthours | C127: ELEC.GEN.WND-OH-1.M | D127: -- | E127: -- | F127: -- | G127: -- | H127: -- | I127: -- | J127: -- | K127: -- | L127: -- | M127: -- | N127: -- | O127: -- | P127: -- | Q127: -- | R127: -- | S127: -- | T127: -- | U127: -- | V127: -- | W127: -- | X127: -- | Y127: -- | Z127: -- | AA127: -- | AB127: -- | AC127: -- | AD127: -- | AE127: -- | AF127: -- | AG127: -- | AH127: -- | AI127: -- | AJ127: -- | AK127: -- | AL127: -- | AM127: -- | AN127: -- | AO127: -- | AP127: -- | AQ127: -- | AR127: -- | AS127: -- | AT127: -- | AU127: -- | AV127: -- | AW127: -- | AX127: -- | AY127: -- | AZ127: 1 | BA127: 1 | BB127: 1 | BC127: 1 | BD127: 1 | BE127: 1 | BF127: 1 | BG127: 1 | BH127: 1 | BI127: 2 | BJ127: 2 | BK127: 2 | BL127: 2 | BM127: 1 | BN127: 1 | BO127: 1 | BP127: 1 | BQ127: 1 | BR127: 1 | BS127: 1 | BT127: 1 | BU127: 1 | BV127: 1 | BW127: 2 | BX127: 1 | BY127: 1 | BZ127: 1 | CA127: 1 | CB127: 2 | CC127: 1 | CD127: 1 | CE127: 1 | CF127: 1 | CG127: 2 | CH127: 2 | CI127: 2 | CJ127: 1 | CK127: 1 | CL127: 1 | CM127: 1 | CN127: 1 | CO127: 1 | CP127: 1 | CQ127: 1 | CR127: 1 | CS127: 2 | CT127: 2 | CU127: 3 | CV127: 1 | CW127: 1 | CX127: 1 | CY127: 2 | CZ127: 1 | DA127: 1 | DB127: 1 | DC127: 1 | DD127: 0 | DE127: 1 | DF127: 2 | DG127: 2 | DH127: 1 | DI127: 1 | DJ127: 1 | DK127: 1 | DL127: 1 | DM127: 1 | DN127: 1 | DO127: 1 | DP127: 1 | DQ127: 1 | DR127: 2 | DS127: 1 | DT127: 1 | DU127: 1 | DV127: 1 | DW127: 2 | DX127: 1 | DY127: 1 | DZ127: 1 | EA127: 0 | EB127: 1 | EC127: 1 | ED127: 2 | EE127: 2 | EF127: NM | EG127: NM | EH127: NM | EI127: NM | EJ127: NM | EK127: NM | EL127: NM | EM127: NM | EN127: NM | EO127: NM | EP127: NM | EQ127: NM | ER127: NM
A128: Ohio : Independent Power Producers | B128: thousand megawatthours | C128: ELEC.GEN.WND-OH-94.M | D128: -- | E128: -- | F128: -- | G128: -- | H128: -- | I128: -- | J128: -- | K128: -- | L128: -- | M128: -- | N128: -- | O128: -- | P128: -- | Q128: -- | R128: -- | S128: -- | T128: -- | U128: -- | V128: -- | W128: -- | X128: -- | Y128: -- | Z128: -- | AA128: -- | AB128: -- | AC128: -- | AD128: -- | AE128: -- | AF128: -- | AG128: -- | AH128: -- | AI128: -- | AJ128: -- | AK128: -- | AL128: -- | AM128: -- | AN128: -- | AO128: -- | AP128: -- | AQ128: -- | AR128: -- | AS128: -- | AT128: -- | AU128: -- | AV128: -- | AW128: -- | AX128: -- | AY128: -- | AZ128: -- | BA128: -- | BB128: -- | BC128: -- | BD128: -- | BE128: -- | BF128: -- | BG128: -- | BH128: -- | BI128: -- | BJ128: -- | BK128: -- | BL128: -- | BM128: -- | BN128: -- | BO128: -- | BP128: -- | BQ128: -- | BR128: -- | BS128: -- | BT128: -- | BU128: -- | BV128: -- | BW128: -- | BX128: -- | BY128: -- | BZ128: -- | CA128: -- | CB128: -- | CC128: -- | CD128: -- | CE128: -- | CF128: -- | CG128: -- | CH128: -- | CI128: -- | CJ128: -- | CK128: -- | CL128: -- | CM128: -- | CN128: -- | CO128: -- | CP128: -- | CQ128: -- | CR128: -- | CS128: -- | CT128: -- | CU128: -- | CV128: -- | CW128: -- | CX128: -- | CY128: -- | CZ128: -- | DA128: -- | DB128: -- | DC128: -- | DD128: -- | DE128: -- | DF128: -- | DG128: -- | DH128: -- | DI128: -- | DJ128: -- | DK128: -- | DL128: -- | DM128: -- | DN128: -- | DO128: -- | DP128: -- | DQ128: -- | DR128: -- | DS128: -- | DT128: -- | DU128: -- | DV128: -- | DW128: -- | DX128: -- | DY128: -- | DZ128: 12 | EA128: 12 | EB128: 25 | EC128: 26 | ED128: 47 | EE128: 60 | EF128: 110 | EG128: 91 | EH128: 114 | EI128: 108 | EJ128: 49 | EK128: 67 | EL128: 41 | EM128: 35 | EN128: 50 | EO128: 116 | EP128: 70 | EQ128: 109 | ER128: 136
A129: Ohio : All Commercial | B129: thousand megawatthours | C129: ELEC.GEN.WND-OH-96.M | D129: -- | E129: -- | F129: -- | G129: -- | H129: -- | I129: -- | J129: -- | K129: -- | L129: -- | M129: -- | N129: -- | O129: -- | P129: -- | Q129: -- | R129: -- | S129: -- | T129: -- | U129: -- | V129: -- | W129: -- | X129: -- | Y129: -- | Z129: -- | AA129: -- | AB129: -- | AC129: -- | AD129: -- | AE129: -- | AF129: -- | AG129: -- | AH129: -- | AI129: -- | AJ129: -- | AK129: -- | AL129: -- | AM129: -- | AN129: -- | AO129: -- | AP129: -- | AQ129: -- | AR129: -- | AS129: -- | AT129: -- | AU129: -- | AV129: -- | AW129: -- | AX129: -- | AY129: -- | AZ129: -- | BA129: -- | BB129: -- | BC129: -- | BD129: -- | BE129: -- | BF129: -- | BG129: -- | BH129: -- | BI129: -- | BJ129: -- | BK129: -- | BL129: -- | BM129: -- | BN129: -- | BO129: -- | BP129: -- | BQ129: -- | BR129: -- | BS129: -- | BT129: -- | BU129: -- | BV129: -- | BW129: -- | BX129: -- | BY129: -- | BZ129: -- | CA129: -- | CB129: -- | CC129: -- | CD129: -- | CE129: -- | CF129: -- | CG129: -- | CH129: -- | CI129: -- | CJ129: -- | CK129: -- | CL129: -- | CM129: -- | CN129: -- | CO129: -- | CP129: -- | CQ129: -- | CR129: -- | CS129: -- | CT129: -- | CU129: -- | CV129: -- | CW129: -- | CX129: -- | CY129: -- | CZ129: -- | DA129: -- | DB129: -- | DC129: -- | DD129: -- | DE129: -- | DF129: -- | DG129: -- | DH129: -- | DI129: -- | DJ129: -- | DK129: -- | DL129: -- | DM129: -- | DN129: -- | DO129: -- | DP129: -- | DQ129: -- | DR129: -- | DS129: -- | DT129: -- | DU129: -- | DV129: -- | DW129: -- | DX129: -- | DY129: -- | DZ129: -- | EA129: -- | EB129: -- | EC129: -- | ED129: -- | EE129: -- | EF129: -- | EG129: -- | EH129: -- | EI129: -- | EJ129: -- | EK129: -- | EL129: -- | EM129: -- | EN129: -- | EO129: -- | EP129: -- | EQ129: -- | ER129: --
A130: Ohio : All Industrial | B130: thousand megawatthours | C130: ELEC.GEN.WND-OH-97.M | D130: -- | E130: -- | F130: -- | G130: -- | H130: -- | I130: -- | J130: -- | K130: -- | L130: -- | M130: -- | N130: -- | O130: -- | P130: -- | Q130: -- | R130: -- | S130: -- | T130: -- | U130: -- | V130: -- | W130: -- | X130: -- | Y130: -- | Z130: -- | AA130: -- | AB130: -- | AC130: -- | AD130: -- | AE130: -- | AF130: -- | AG130: -- | AH130: -- | AI130: -- | AJ130: -- | AK130: -- | AL130: -- | AM130: -- | AN130: -- | AO130: -- | AP130: -- | AQ130: -- | AR130: -- | AS130: -- | AT130: -- | AU130: -- | AV130: -- | AW130: -- | AX130: -- | AY130: -- | AZ130: -- | BA130: -- | BB130: -- | BC130: -- | BD130: -- | BE130: -- | BF130: -- | BG130: -- | BH130: -- | BI130: -- | BJ130: -- | BK130: -- | BL130: -- | BM130: -- | BN130: -- | BO130: -- | BP130: -- | BQ130: -- | BR130: -- | BS130: -- | BT130: -- | BU130: -- | BV130: -- | BW130: -- | BX130: -- | BY130: -- | BZ130: -- | CA130: -- | CB130: -- | CC130: -- | CD130: -- | CE130: -- | CF130: -- | CG130: -- | CH130: -- | CI130: -- | CJ130: -- | CK130: -- | CL130: -- | CM130: -- | CN130: -- | CO130: -- | CP130: -- | CQ130: -- | CR130: -- | CS130: -- | CT130: -- | CU130: -- | CV130: -- | CW130: -- | CX130: -- | CY130: -- | CZ130: -- | DA130: -- | DB130: -- | DC130: -- | DD130: -- | DE130: -- | DF130: -- | DG130: -- | DH130: -- | DI130: -- | DJ130: -- | DK130: -- | DL130: -- | DM130: -- | DN130: -- | DO130: -- | DP130: -- | DQ130: -- | DR130: -- | DS130: -- | DT130: -- | DU130: -- | DV130: -- | DW130: -- | DX130: -- | DY130: -- | DZ130: 0 | EA130: 0 | EB130: 0 | EC130: 0 | ED130: 1 | EE130: 0 | EF130: NM | EG130: NM | EH130: NM | EI130: NM | EJ130: NM | EK130: NM | EL130: NM | EM130: NM | EN130: NM | EO130: NM | EP130: NM | EQ130: NM | ER130: NM
A131: Wisconsin | B131: thousand megawatthours | C131: ELEC.GEN.WND-WI-99.M
A132: Wisconsin : All Sectors | B132: thousand megawatthours | C132: ELEC.GEN.WND-WI-99.M | D132: 4 | E132: 4 | F132: 3 | G132: 5 | H132: 4 | I132: 4 | J132: 4 | K132: 4 | L132: 6 | M132: 12 | N132: 11 | O132: 10 | P132: 5 | Q132: 6 | R132: 5 | S132: 5 | T132: 4 | U132: 2 | V132: 2 | W132: 2 | X132: 3 | Y132: 3 | Z132: 4 | AA132: 5 | AB132: 5 | AC132: 9 | AD132: 10 | AE132: 10 | AF132: 8 | AG132: 5 | AH132: 6 | AI132: 4 | AJ132: 8 | AK132: 8 | AL132: 12 | AM132: 12 | AN132: 10 | AO132: 9 | AP132: 13 | AQ132: 10 | AR132: 9 | AS132: 5 | AT132: 4 | AU132: 5 | AV132: 8 | AW132: 11 | AX132: 8 | AY132: 13 | AZ132: 8 | BA132: 7 | BB132: 9 | BC132: 9 | BD132: 8 | BE132: 7 | BF132: 5 | BG132: 3 | BH132: 8 | BI132: 7 | BJ132: 13 | BK132: 8 | BL132: 11 | BM132: 9 | BN132: 10 | BO132: 12 | BP132: 8 | BQ132: 5 | BR132: 5 | BS132: 4 | BT132: 7 | BU132: 10 | BV132: 8 | BW132: 12 | BX132: 11 | BY132: 10 | BZ132: 12 | CA132: 11 | CB132: 11 | CC132: 6 | CD132: 4 | CE132: 4 | CF132: 9 | CG132: 11 | CH132: 12 | CI132: 8 | CJ132: 5 | CK132: 3 | CL132: 3 | CM132: 5 | CN132: 16 | CO132: 28 | CP132: 43 | CQ132: 30 | CR132: 45 | CS132: 85 | CT132: 86 | CU132: 137 | CV132: 98 | CW132: 117 | CX132: 123 | CY132: 116 | CZ132: 114 | DA132: 60 | DB132: 52 | DC132: 69 | DD132: 35 | DE132: 80 | DF132: 94 | DG132: 94 | DH132: 114 | DI132: 61 | DJ132: 86 | DK132: 136 | DL132: 89 | DM132: 57 | DN132: 59 | DO132: 65 | DP132: 90 | DQ132: 94 | DR132: 128 | DS132: 108 | DT132: 83 | DU132: 131 | DV132: 96 | DW132: 124 | DX132: 128 | DY132: 83 | DZ132: 56 | EA132: 44 | EB132: 76 | EC132: 105 | ED132: 134 | EE132: 128 | EF132: 193 | EG132: 123 | EH132: 173 | EI132: 145 | EJ132: 134 | EK132: 118 | EL132: 68 | EM132: 77 | EN132: 103 | EO132: 151 | EP132: 136 | EQ132: 125 | ER132: 194
A133: Wisconsin : Electric Power | C133: ELEC.GEN.WND-WI-98.M
A134: Wisconsin : Electric Utility | B134: thousand megawatthours | C134: ELEC.GEN.WND-WI-1.M | D134: 4 | E134: 4 | F134: 3 | G134: 5 | H134: 4 | I134: 1 | J134: 2 | K134: 2 | L134: 3 | M134: 5 | N134: 5 | O134: 5 | P134: 5 | Q134: 6 | R134: 5 | S134: 5 | T134: 4 | U134: 2 | V134: 2 | W134: 2 | X134: 3 | Y134: 3 | Z134: 4 | AA134: 5 | AB134: 5 | AC134: 3 | AD134: 4 | AE134: 4 | AF134: 3 | AG134: 2 | AH134: 3 | AI134: 2 | AJ134: 4 | AK134: 3 | AL134: 5 | AM134: 5 | AN134: 5 | AO134: 4 | AP134: 5 | AQ134: 3 | AR134: 3 | AS134: 3 | AT134: 1 | AU134: 2 | AV134: 3 | AW134: 5 | AX134: 3 | AY134: 6 | AZ134: 3 | BA134: 3 | BB134: 4 | BC134: 3 | BD134: 3 | BE134: 2 | BF134: 2 | BG134: 1 | BH134: 3 | BI134: 3 | BJ134: 5 | BK134: 4 | BL134: 4 | BM134: 4 | BN134: 3 | BO134: 4 | BP134: 3 | BQ134: 2 | BR134: 2 | BS134: 2 | BT134: 3 | BU134: 4 | BV134: 3 | BW134: 5 | BX134: 4 | BY134: 5 | BZ134: 5 | CA134: 5 | CB134: 4 | CC134: 3 | CD134: 2 | CE134: 2 | CF134: 4 | CG134: 5 | CH134: 5 | CI134: 4 | CJ134: 4 | CK134: 3 | CL134: 3 | CM134: 5 | CN134: 14 | CO134: 25 | CP134: 20 | CQ134: 13 | CR134: 21 | CS134: 41 | CT134: 42 | CU134: 73 | CV134: 56 | CW134: 62 | CX134: 63 | CY134: 58 | CZ134: 58 | DA134: 31 | DB134: 26 | DC134: 33 | DD134: 18 | DE134: 47 | DF134: 47 | DG134: 56 | DH134: 60 | DI134: 29 | DJ134: 35 | DK134: 70 | DL134: 45 | DM134: 28 | DN134: 29 | DO134: 33 | DP134: 46 | DQ134: 46 | DR134: 65 | DS134: 55 | DT134: 39 | DU134: 63 | DV134: 48 | DW134: 60 | DX134: 60 | DY134: 40 | DZ134: 26 | EA134: 21 | EB134: 36 | EC134: 50 | ED134: 64 | EE134: 67 | EF134: 119 | EG134: 77 | EH134: 111 | EI134: 86 | EJ134: 81 | EK134: 68 | EL134: 39 | EM134: 45 | EN134: 61 | EO134: 91 | EP134: 83 | EQ134: 82 | ER134: 118
A135: Wisconsin : Independent Power Producers | B135: thousand megawatthours | C135: ELEC.GEN.WND-WI-94.M | D135: -- | E135: -- | F135: -- | G135: -- | H135: -- | I135: 3 | J135: 2 | K135: 2 | L135: 3 | M135: 7 | N135: 6 | O135: 5 | P135: -- | Q135: -- | R135: -- | S135: -- | T135: -- | U135: -- | V135: -- | W135: -- | X135: -- | Y135: -- | Z135: -- | AA135: -- | AB135: -- | AC135: 5 | AD135: 6 | AE135: 6 | AF135: 5 | AG135: 3 | AH135: 3 | AI135: 3 | AJ135: 5 | AK135: 5 | AL135: 7 | AM135: 7 | AN135: 5 | AO135: 5 | AP135: 8 | AQ135: 6 | AR135: 5 | AS135: 3 | AT135: 2 | AU135: 3 | AV135: 5 | AW135: 6 | AX135: 4 | AY135: 7 | AZ135: 4 | BA135: 4 | BB135: 5 | BC135: 6 | BD135: 5 | BE135: 4 | BF135: 3 | BG135: 2 | BH135: 4 | BI135: 4 | BJ135: 8 | BK135: 4 | BL135: 7 | BM135: 5 | BN135: 6 | BO135: 8 | BP135: 5 | BQ135: 3 | BR135: 3 | BS135: 2 | BT135: 4 | BU135: 6 | BV135: 5 | BW135: 7 | BX135: 6 | BY135: 5 | BZ135: 7 | CA135: 7 | CB135: 6 | CC135: 4 | CD135: 2 | CE135: 2 | CF135: 5 | CG135: 6 | CH135: 7 | CI135: 4 | CJ135: 1 | CK135: 0 | CL135: 0 | CM135: 1 | CN135: 2 | CO135: 3 | CP135: 24 | CQ135: 17 | CR135: 23 | CS135: 44 | CT135: 44 | CU135: 64 | CV135: 43 | CW135: 54 | CX135: 60 | CY135: 58 | CZ135: 56 | DA135: 29 | DB135: 26 | DC135: 36 | DD135: 17 | DE135: 33 | DF135: 47 | DG135: 38 | DH135: 54 | DI135: 32 | DJ135: 52 | DK135: 66 | DL135: 43 | DM135: 29 | DN135: 30 | DO135: 32 | DP135: 44 | DQ135: 48 | DR135: 64 | DS135: 53 | DT135: 44 | DU135: 67 | DV135: 48 | DW135: 64 | DX135: 68 | DY135: 43 | DZ135: 30 | EA135: 23 | EB135: 39 | EC135: 55 | ED135: 70 | EE135: 61 | EF135: 74 | EG135: 46 | EH135: 62 | EI135: 59 | EJ135: 53 | EK135: 51 | EL135: 29 | EM135: 33 | EN135: 43 | EO135: 60 | EP135: 53 | EQ135: 43 | ER135: 76
A136: Wisconsin : All Commercial | B136: thousand megawatthours | C136: ELEC.GEN.WND-WI-96.M | D136: -- | E136: -- | F136: -- | G136: -- | H136: -- | I136: -- | J136: -- | K136: -- | L136: -- | M136: -- | N136: -- | O136: -- | P136: -- | Q136: -- | R136: -- | S136: -- | T136: -- | U136: -- | V136: -- | W136: -- | X136: -- | Y136: -- | Z136: -- | AA136: -- | AB136: -- | AC136: -- | AD136: -- | AE136: -- | AF136: -- | AG136: -- | AH136: -- | AI136: -- | AJ136: -- | AK136: -- | AL136: -- | AM136: -- | AN136: -- | AO136: -- | AP136: -- | AQ136: -- | AR136: -- | AS136: -- | AT136: -- | AU136: -- | AV136: -- | AW136: -- | AX136: -- | AY136: -- | AZ136: -- | BA136: -- | BB136: -- | BC136: -- | BD136: -- | BE136: -- | BF136: -- | BG136: -- | BH136: -- | BI136: -- | BJ136: -- | BK136: -- | BL136: -- | BM136: -- | BN136: -- | BO136: -- | BP136: -- | BQ136: -- | BR136: -- | BS136: -- | BT136: -- | BU136: -- | BV136: -- | BW136: -- | BX136: -- | BY136: -- | BZ136: -- | CA136: -- | CB136: -- | CC136: -- | CD136: -- | CE136: -- | CF136: -- | CG136: -- | CH136: -- | CI136: -- | CJ136: -- | CK136: -- | CL136: -- | CM136: -- | CN136: -- | CO136: -- | CP136: -- | CQ136: -- | CR136: -- | CS136: -- | CT136: -- | CU136: -- | CV136: -- | CW136: -- | CX136: -- | CY136: -- | CZ136: -- | DA136: -- | DB136: -- | DC136: -- | DD136: -- | DE136: -- | DF136: -- | DG136: -- | DH136: -- | DI136: -- | DJ136: -- | DK136: -- | DL136: -- | DM136: -- | DN136: -- | DO136: -- | DP136: -- | DQ136: -- | DR136: -- | DS136: -- | DT136: -- | DU136: -- | DV136: -- | DW136: -- | DX136: -- | DY136: -- | DZ136: -- | EA136: -- | EB136: -- | EC136: -- | ED136: -- | EE136: -- | EF136: -- | EG136: -- | EH136: -- | EI136: -- | EJ136: -- | EK136: -- | EL136: -- | EM136: -- | EN136: -- | EO136: -- | EP136: -- | EQ136: -- | ER136: --
A137: Wisconsin : All Industrial | B137: thousand megawatthours | C137: ELEC.GEN.WND-WI-97.M | D137: -- | E137: -- | F137: -- | G137: -- | H137: -- | I137: -- | J137: -- | K137: -- | L137: -- | M137: -- | N137: -- | O137: -- | P137: -- | Q137: -- | R137: -- | S137: -- | T137: -- | U137: -- | V137: -- | W137: -- | X137: -- | Y137: -- | Z137: -- | AA137: -- | AB137: -- | AC137: -- | AD137: -- | AE137: -- | AF137: -- | AG137: -- | AH137: -- | AI137: -- | AJ137: -- | AK137: -- | AL137: -- | AM137: -- | AN137: -- | AO137: -- | AP137: -- | AQ137: -- | AR137: -- | AS137: -- | AT137: -- | AU137: -- | AV137: -- | AW137: -- | AX137: -- | AY137: -- | AZ137: -- | BA137: -- | BB137: -- | BC137: -- | BD137: -- | BE137: -- | BF137: -- | BG137: -- | BH137: -- | BI137: -- | BJ137: -- | BK137: -- | BL137: -- | BM137: -- | BN137: -- | BO137: -- | BP137: -- | BQ137: -- | BR137: -- | BS137: -- | BT137: -- | BU137: -- | BV137: -- | BW137: -- | BX137: -- | BY137: -- | BZ137: -- | CA137: -- | CB137: -- | CC137: -- | CD137: -- | CE137: -- | CF137: -- | CG137: -- | CH137: -- | CI137: -- | CJ137: -- | CK137: -- | CL137: -- | CM137: -- | CN137: -- | CO137: -- | CP137: -- | CQ137: -- | CR137: -- | CS137: -- | CT137: -- | CU137: -- | CV137: -- | CW137: -- | CX137: -- | CY137: -- | CZ137: -- | DA137: -- | DB137: -- | DC137: -- | DD137: -- | DE137: -- | DF137: -- | DG137: -- | DH137: -- | DI137: -- | DJ137: -- | DK137: -- | DL137: -- | DM137: -- | DN137: -- | DO137: -- | DP137: -- | DQ137: -- | DR137: -- | DS137: -- | DT137: -- | DU137: -- | DV137: -- | DW137: -- | DX137: -- | DY137: -- | DZ137: -- | EA137: -- | EB137: -- | EC137: -- | ED137: -- | EE137: -- | EF137: -- | EG137: -- | EH137: -- | EI137: -- | EJ137: -- | EK137: -- | EL137: -- | EM137: -- | EN137: -- | EO137: -- | EP137: -- | EQ137: -- | ER137: --
A138: West North Central | B138: thousand megawatthours | C138: ELEC.GEN.WND-WNC-99.M
A139: West North Central : All Sectors | B139: thousand megawatthours | C139: ELEC.GEN.WND-WNC-99.M | D139: 130 | E139: 106 | F139: 105 | G139: 146 | H139: 122 | I139: 100 | J139: 79 | K139: 74 | L139: 82 | M139: 144 | N139: 149 | O139: 192 | P139: 229 | Q139: 255 | R139: 186 | S139: 240 | T139: 217 | U139: 196 | V139: 111 | W139: 140 | X139: 163 | Y139: 165 | Z139: 190 | AA139: 215 | AB139: 200 | AC139: 210 | AD139: 252 | AE139: 229 | AF139: 190 | AG139: 131 | AH139: 149 | AI139: 112 | AJ139: 185 | AK139: 233 | AL139: 276 | AM139: 301 | AN139: 220 | AO139: 253 | AP139: 280 | AQ139: 237 | AR139: 272 | AS139: 161 | AT139: 123 | AU139: 153 | AV139: 222 | AW139: 224 | AX139: 221 | AY139: 267 | AZ139: 238 | BA139: 269 | BB139: 357 | BC139: 383 | BD139: 407 | BE139: 312 | BF139: 258 | BG139: 186 | BH139: 354 | BI139: 366 | BJ139: 524 | BK139: 477 | BL139: 600 | BM139: 512 | BN139: 611 | BO139: 618 | BP139: 579 | BQ139: 368 | BR139: 353 | BS139: 297 | BT139: 408 | BU139: 577 | BV139: 533 | BW139: 688 | BX139: 803 | BY139: 579 | BZ139: 760 | CA139: 708 | CB139: 741 | CC139: 475 | CD139: 382 | CE139: 371 | CF139: 636 | CG139: 697 | CH139: 761 | CI139: 622 | CJ139: 950 | CK139: 763 | CL139: 870 | CM139: 1183 | CN139: 1096 | CO139: 784 | CP139: 678 | CQ139: 693 | CR139: 942 | CS139: 1238 | CT139: 1328 | CU139: 1929 | CV139: 1727 | CW139: 1760 | CX139: 2009 | CY139: 2050 | CZ139: 1817 | DA139: 1162 | DB139: 1049 | DC139: 1312 | DD139: 1107 | DE139: 1794 | DF139: 1943 | DG139: 1908 | DH139: 1902 | DI139: 1445 | DJ139: 2186 | DK139: 2357 | DL139: 2202 | DM139: 1603 | DN139: 1404 | DO139: 1740 | DP139: 2048 | DQ139: 2270 | DR139: 2674 | DS139: 2349 | DT139: 2323 | DU139: 2988 | DV139: 2610 | DW139: 3014 | DX139: 3220 | DY139: 2460 | DZ139: 1550 | EA139: 1445 | EB139: 1778 | EC139: 3120 | ED139: 3529 | EE139: 3249 | EF139: 3889 | EG139: 2882 | EH139: 3542 | EI139: 3460 | EJ139: 3427 | EK139: 2946 | EL139: 1978 | EM139: 2054 | EN139: 2402 | EO139: 3641 | EP139: 3650 | EQ139: 3471 | ER139: 4342
A140: West North Central : Electric Power | C140: ELEC.GEN.WND-WNC-98.M
A141: West North Central : Electric Utility | B141: thousand megawatthours | C141: ELEC.GEN.WND-WNC-1.M | D141: 1 | E141: 1 | F141: 1 | G141: 1 | H141: 1 | I141: 1 | J141: 1 | K141: 1 | L141: 1 | M141: 1 | N141: 2 | O141: 2 | P141: 2 | Q141: 3 | R141: 2 | S141: 3 | T141: 3 | U141: 2 | V141: 2 | W141: 2 | X141: 2 | Y141: 2 | Z141: 3 | AA141: 3 | AB141: 8 | AC141: 7 | AD141: 7 | AE141: 5 | AF141: 5 | AG141: 4 | AH141: 5 | AI141: 5 | AJ141: 5 | AK141: 5 | AL141: 5 | AM141: 6 | AN141: 6 | AO141: 6 | AP141: 6 | AQ141: 6 | AR141: 6 | AS141: 5 | AT141: 4 | AU141: 5 | AV141: 5 | AW141: 6 | AX141: 6 | AY141: 6 | AZ141: 15 | BA141: 33 | BB141: 51 | BC141: 53 | BD141: 60 | BE141: 44 | BF141: 33 | BG141: 28 | BH141: 70 | BI141: 95 | BJ141: 132 | BK141: 107 | BL141: 143 | BM141: 121 | BN141: 149 | BO141: 147 | BP141: 138 | BQ141: 83 | BR141: 73 | BS141: 70 | BT141: 107 | BU141: 154 | BV141: 139 | BW141: 191 | BX141: 230 | BY141: 162 | BZ141: 206 | CA141: 203 | CB141: 210 | CC141: 130 | CD141: 106 | CE141: 100 | CF141: 169 | CG141: 195 | CH141: 213 | CI141: 166 | CJ141: 256 | CK141: 204 | CL141: 235 | CM141: 333 | CN141: 276 | CO141: 198 | CP141: 160 | CQ141: 137 | CR141: 194 | CS141: 273 | CT141: 311 | CU141: 472 | CV141: 441 | CW141: 485 | CX141: 557 | CY141: 566 | CZ141: 473 | DA141: 300 | DB141: 259 | DC141: 346 | DD141: 276 | DE141: 483 | DF141: 536 | DG141: 497 | DH141: 501 | DI141: 423 | DJ141: 625 | DK141: 679 | DL141: 595 | DM141: 432 | DN141: 379 | DO141: 464 | DP141: 563 | DQ141: 638 | DR141: 753 | DS141: 661 | DT141: 646 | DU141: 866 | DV141: 795 | DW141: 918 | DX141: 939 | DY141: 740 | DZ141: 476 | EA141: 430 | EB141: 532 | EC141: 952 | ED141: 1040 | EE141: 1043 | EF141: 1243 | EG141: 962 | EH141: 1137 | EI141: 1096 | EJ141: 1144 | EK141: 961 | EL141: 622 | EM141: 658 | EN141: 792 | EO141: 1148 | EP141: 1200 | EQ141: 1093 | ER141: 1436
A142: West North Central : Independent Power Producers | B142: thousand megawatthours | C142: ELEC.GEN.WND-WNC-94.M | D142: 129 | E142: 106 | F142: 104 | G142: 144 | H142: 121 | I142: 99 | J142: 78 | K142: 73 | L142: 81 | M142: 143 | N142: 148 | O142: 190 | P142: 226 | Q142: 252 | R142: 183 | S142: 237 | T142: 215 | U142: 194 | V142: 109 | W142: 138 | X142: 161 | Y142: 163 | Z142: 188 | AA142: 212 | AB142: 192 | AC142: 204 | AD142: 245 | AE142: 224 | AF142: 185 | AG142: 126 | AH142: 144 | AI142: 107 | AJ142: 180 | AK142: 229 | AL142: 270 | AM142: 295 | AN142: 215 | AO142: 248 | AP142: 274 | AQ142: 231 | AR142: 266 | AS142: 156 | AT142: 118 | AU142: 148 | AV142: 217 | AW142: 218 | AX142: 215 | AY142: 261 | AZ142: 223 | BA142: 236 | BB142: 306 | BC142: 329 | BD142: 348 | BE142: 268 | BF142: 224 | BG142: 158 | BH142: 284 | BI142: 272 | BJ142: 393 | BK142: 370 | BL142: 457 | BM142: 391 | BN142: 462 | BO142: 471 | BP142: 441 | BQ142: 285 | BR142: 280 | BS142: 227 | BT142: 301 | BU142: 423 | BV142: 394 | BW142: 498 | BX142: 573 | BY142: 417 | BZ142: 554 | CA142: 505 | CB142: 531 | CC142: 345 | CD142: 276 | CE142: 271 | CF142: 467 | CG142: 502 | CH142: 548 | CI142: 456 | CJ142: 695 | CK142: 559 | CL142: 635 | CM142: 850 | CN142: 820 | CO142: 586 | CP142: 518 | CQ142: 556 | CR142: 749 | CS142: 966 | CT142: 1017 | CU142: 1457 | CV142: 1286 | CW142: 1275 | CX142: 1452 | CY142: 1484 | CZ142: 1344 | DA142: 862 | DB142: 790 | DC142: 965 | DD142: 831 | DE142: 1311 | DF142: 1407 | DG142: 1411 | DH142: 1401 | DI142: 1022 | DJ142: 1560 | DK142: 1678 | DL142: 1606 | DM142: 1170 | DN142: 1024 | DO142: 1275 | DP142: 1484 | DQ142: 1630 | DR142: 1920 | DS142: 1687 | DT142: 1676 | DU142: 2120 | DV142: 1814 | DW142: 2094 | DX142: 2278 | DY142: 1717 | DZ142: 1073 | EA142: 1014 | EB142: 1245 | EC142: 2165 | ED142: 2486 | EE142: 2203 | EF142: 2643 | EG142: 1917 | EH142: 2402 | EI142: 2361 | EJ142: 2281 | EK142: 1983 | EL142: 1355 | EM142: 1395 | EN142: 1609 | EO142: 2490 | EP142: 2448 | EQ142: 2375 | ER142: 2903
A143: West North Central : All Commercial | B143: thousand megawatthours | C143: ELEC.GEN.WND-WNC-96.M | D143: -- | E143: -- | F143: -- | G143: -- | H143: -- | I143: -- | J143: -- | K143: -- | L143: -- | M143: -- | N143: -- | O143: -- | P143: -- | Q143: -- | R143: -- | S143: -- | T143: -- | U143: -- | V143: -- | W143: -- | X143: -- | Y143: -- | Z143: -- | AA143: -- | AB143: -- | AC143: -- | AD143: -- | AE143: -- | AF143: -- | AG143: -- | AH143: -- | AI143: -- | AJ143: -- | AK143: -- | AL143: -- | AM143: -- | AN143: -- | AO143: -- | AP143: -- | AQ143: -- | AR143: -- | AS143: -- | AT143: -- | AU143: -- | AV143: -- | AW143: -- | AX143: -- | AY143: -- | AZ143: -- | BA143: -- | BB143: -- | BC143: -- | BD143: -- | BE143: -- | BF143: -- | BG143: -- | BH143: -- | BI143: -- | BJ143: -- | BK143: -- | BL143: -- | BM143: -- | BN143: -- | BO143: -- | BP143: -- | BQ143: -- | BR143: -- | BS143: -- | BT143: -- | BU143: -- | BV143: -- | BW143: -- | BX143: -- | BY143: -- | BZ143: -- | CA143: -- | CB143: -- | CC143: -- | CD143: -- | CE143: -- | CF143: -- | CG143: -- | CH143: -- | CI143: -- | CJ143: -- | CK143: -- | CL143: -- | CM143: -- | CN143: -- | CO143: -- | CP143: -- | CQ143: -- | CR143: -- | CS143: -- | CT143: -- | CU143: -- | CV143: -- | CW143: -- | CX143: -- | CY143: -- | CZ143: -- | DA143: -- | DB143: -- | DC143: -- | DD143: -- | DE143: -- | DF143: -- | DG143: -- | DH143: 1 | DI143: 1 | DJ143: 1 | DK143: 1 | DL143: 1 | DM143: 1 | DN143: 1 | DO143: 1 | DP143: 1 | DQ143: 1 | DR143: 1 | DS143: 1 | DT143: 2 | DU143: 2 | DV143: 2 | DW143: 2 | DX143: 2 | DY143: 2 | DZ143: 1 | EA143: 1 | EB143: 2 | EC143: 3 | ED143: 4 | EE143: 3 | EF143: NM | EG143: NM | EH143: NM | EI143: NM | EJ143: NM | EK143: NM | EL143: NM | EM143: NM | EN143: NM | EO143: NM | EP143: NM | EQ143: NM | ER143: NM
A144: West North Central : All Industrial | B144: thousand megawatthours | C144: ELEC.GEN.WND-WNC-97.M | D144: -- | E144: -- | F144: -- | G144: -- | H144: -- | I144: -- | J144: -- | K144: -- | L144: -- | M144: -- | N144: -- | O144: -- | P144: -- | Q144: -- | R144: -- | S144: -- | T144: -- | U144: -- | V144: -- | W144: -- | X144: -- | Y144: -- | Z144: -- | AA144: -- | AB144: -- | AC144: -- | AD144: -- | AE144: -- | AF144: -- | AG144: -- | AH144: -- | AI144: -- | AJ144: -- | AK144: -- | AL144: -- | AM144: -- | AN144: -- | AO144: -- | AP144: -- | AQ144: -- | AR144: -- | AS144: -- | AT144: -- | AU144: -- | AV144: -- | AW144: -- | AX144: -- | AY144: -- | AZ144: -- | BA144: -- | BB144: -- | BC144: -- | BD144: -- | BE144: -- | BF144: -- | BG144: -- | BH144: -- | BI144: -- | BJ144: -- | BK144: -- | BL144: -- | BM144: -- | BN144: -- | BO144: -- | BP144: -- | BQ144: -- | BR144: -- | BS144: -- | BT144: -- | BU144: -- | BV144: -- | BW144: -- | BX144: -- | BY144: -- | BZ144: -- | CA144: -- | CB144: -- | CC144: -- | CD144: -- | CE144: -- | CF144: -- | CG144: -- | CH144: -- | CI144: -- | CJ144: -- | CK144: -- | CL144: -- | CM144: -- | CN144: -- | CO144: -- | CP144: -- | CQ144: -- | CR144: -- | CS144: -- | CT144: -- | CU144: -- | CV144: -- | CW144: -- | CX144: -- | CY144: -- | CZ144: -- | DA144: -- | DB144: -- | DC144: -- | DD144: -- | DE144: -- | DF144: -- | DG144: -- | DH144: -- | DI144: -- | DJ144: -- | DK144: -- | DL144: -- | DM144: -- | DN144: -- | DO144: -- | DP144: -- | DQ144: -- | DR144: -- | DS144: -- | DT144: -- | DU144: -- | DV144: -- | DW144: -- | DX144: -- | DY144: -- | DZ144: -- | EA144: -- | EB144: -- | EC144: -- | ED144: -- | EE144: -- | EF144: -- | EG144: -- | EH144: -- | EI144: -- | EJ144: -- | EK144: -- | EL144: -- | EM144: -- | EN144: -- | EO144: -- | EP144: -- | EQ144: -- | ER144: --
A145: Iowa | B145: thousand megawatthours | C145: ELEC.GEN.WND-IA-99.M
A146: Iowa : All Sectors | B146: thousand megawatthours | C146: ELEC.GEN.WND-IA-99.M | D146: 44 | E146: 33 | F146: 38 | G146: 54 | H146: 48 | I146: 35 | J146: 23 | K146: 25 | L146: 26 | M146: 52 | N146: 51 | O146: 59 | P146: 84 | Q146: 103 | R146: 80 | S146: 97 | T146: 87 | U146: 75 | V146: 45 | W146: 47 | X146: 53 | Y146: 73 | Z146: 81 | AA146: 95 | AB146: 87 | AC146: 91 | AD146: 105 | AE146: 99 | AF146: 78 | AG146: 50 | AH146: 50 | AI146: 33 | AJ146: 67 | AK146: 99 | AL146: 100 | AM146: 123 | AN146: 103 | AO146: 119 | AP146: 120 | AQ146: 101 | AR146: 109 | AS146: 57 | AT146: 38 | AU146: 52 | AV146: 86 | AW146: 82 | AX146: 76 | AY146: 107 | AZ146: 81 | BA146: 111 | BB146: 156 | BC146: 156 | BD146: 174 | BE146: 122 | BF146: 90 | BG146: 66 | BH146: 148 | BI146: 154 | BJ146: 226 | BK146: 163 | BL146: 244 | BM146: 204 | BN146: 251 | BO146: 251 | BP146: 239 | BQ146: 132 | BR146: 113 | BS146: 93 | BT146: 141 | BU146: 209 | BV146: 181 | BW146: 258 | BX146: 312 | BY146: 221 | BZ146: 280 | CA146: 283 | CB146: 288 | CC146: 171 | CD146: 125 | CE146: 120 | CF146: 223 | CG146: 244 | CH146: 297 | CI146: 195 | CJ146: 327 | CK146: 245 | CL146: 288 | CM146: 420 | CN146: 340 | CO146: 253 | CP146: 174 | CQ146: 160 | CR146: 253 | CS146: 391 | CT146: 464 | CU146: 766 | CV146: 640 | CW146: 720 | CX146: 797 | CY146: 796 | CZ146: 697 | DA146: 440 | DB146: 362 | DC146: 491 | DD146: 328 | DE146: 663 | DF146: 760 | DG146: 726 | DH146: 738 | DI146: 649 | DJ146: 851 | DK146: 908 | DL146: 771 | DM146: 555 | DN146: 452 | DO146: 596 | DP146: 745 | DQ146: 873 | DR146: 1115 | DS146: 917 | DT146: 807 | DU146: 989 | DV146: 872 | DW146: 1065 | DX146: 1129 | DY146: 850 | DZ146: 484 | EA146: 414 | EB146: 572 | EC146: 1102 | ED146: 1257 | EE146: 1167 | EF146: 1491 | EG146: 1134 | EH146: 1364 | EI146: 1292 | EJ146: 1308 | EK146: 1060 | EL146: 643 | EM146: 701 | EN146: 872 | EO146: 1356 | EP146: 1398 | EQ146: 1326 | ER146: 1652
A147: Iowa : Electric Power | C147: ELEC.GEN.WND-IA-98.M
A148: Iowa : Electric Utility | B148: thousand megawatthours | C148: ELEC.GEN.WND-IA-1.M | D148: 1 | E148: 1 | F148: 1 | G148: 1 | H148: 1 | I148: 1 | J148: 1 | K148: 1 | L148: 1 | M148: 1 | N148: 1 | O148: 1 | P148: 1 | Q148: 2 | R148: 1 | S148: 2 | T148: 1 | U148: 1 | V148: 1 | W148: 1 | X148: 1 | Y148: 1 | Z148: 1 | AA148: 1 | AB148: 2 | AC148: 3 | AD148: 3 | AE148: 1 | AF148: 1 | AG148: 1 | AH148: 1 | AI148: 1 | AJ148: 1 | AK148: 1 | AL148: 1 | AM148: 1 | AN148: 1 | AO148: 1 | AP148: 1 | AQ148: 1 | AR148: 1 | AS148: 0 | AT148: 0 | AU148: 0 | AV148: 1 | AW148: 1 | AX148: 1 | AY148: 1 | AZ148: 13 | BA148: 30 | BB148: 47 | BC148: 49 | BD148: 55 | BE148: 40 | BF148: 30 | BG148: 25 | BH148: 66 | BI148: 71 | BJ148: 103 | BK148: 80 | BL148: 112 | BM148: 97 | BN148: 123 | BO148: 119 | BP148: 114 | BQ148: 66 | BR148: 52 | BS148: 46 | BT148: 68 | BU148: 101 | BV148: 88 | BW148: 135 | BX148: 168 | BY148: 124 | BZ148: 155 | CA148: 160 | CB148: 162 | CC148: 95 | CD148: 66 | CE148: 65 | CF148: 121 | CG148: 134 | CH148: 164 | CI148: 117 | CJ148: 196 | CK148: 153 | CL148: 179 | CM148: 263 | CN148: 214 | CO148: 154 | CP148: 105 | CQ148: 90 | CR148: 140 | CS148: 217 | CT148: 244 | CU148: 399 | CV148: 312 | CW148: 363 | CX148: 400 | CY148: 408 | CZ148: 324 | DA148: 201 | DB148: 160 | DC148: 227 | DD148: 160 | DE148: 331 | DF148: 377 | DG148: 335 | DH148: 325 | DI148: 303 | DJ148: 422 | DK148: 457 | DL148: 379 | DM148: 273 | DN148: 225 | DO148: 286 | DP148: 359 | DQ148: 423 | DR148: 530 | DS148: 426 | DT148: 369 | DU148: 471 | DV148: 423 | DW148: 520 | DX148: 524 | DY148: 412 | DZ148: 233 | EA148: 194 | EB148: 269 | EC148: 513 | ED148: 587 | EE148: 606 | EF148: 766 | EG148: 609 | EH148: 731 | EI148: 659 | EJ148: 706 | EK148: 557 | EL148: 337 | EM148: 368 | EN148: 462 | EO148: 722 | EP148: 798 | EQ148: 724 | ER148: 930
A149: Iowa : Independent Power Producers | B149: thousand megawatthours | C149: ELEC.GEN.WND-IA-94.M | D149: 43 | E149: 32 | F149: 37 | G149: 53 | H149: 47 | I149: 35 | J149: 22 | K149: 24 | L149: 26 | M149: 51 | N149: 51 | O149: 58 | P149: 82 | Q149: 101 | R149: 79 | S149: 95 | T149: 86 | U149: 74 | V149: 45 | W149: 47 | X149: 53 | Y149: 72 | Z149: 80 | AA149: 94 | AB149: 84 | AC149: 89 | AD149: 102 | AE149: 98 | AF149: 77 | AG149: 49 | AH149: 49 | AI149: 33 | AJ149: 66 | AK149: 98 | AL149: 100 | AM149: 122 | AN149: 102 | AO149: 118 | AP149: 119 | AQ149: 100 | AR149: 108 | AS149: 56 | AT149: 38 | AU149: 52 | AV149: 85 | AW149: 81 | AX149: 75 | AY149: 106 | AZ149: 68 | BA149: 81 | BB149: 109 | BC149: 108 | BD149: 119 | BE149: 82 | BF149: 60 | BG149: 40 | BH149: 82 | BI149: 84 | BJ149: 123 | BK149: 83 | BL149: 132 | BM149: 107 | BN149: 129 | BO149: 132 | BP149: 126 | BQ149: 66 | BR149: 61 | BS149: 48 | BT149: 73 | BU149: 109 | BV149: 93 | BW149: 123 | BX149: 144 | BY149: 97 | BZ149: 125 | CA149: 122 | CB149: 125 | CC149: 76 | CD149: 59 | CE149: 55 | CF149: 101 | CG149: 110 | CH149: 134 | CI149: 77 | CJ149: 131 | CK149: 93 | CL149: 109 | CM149: 158 | CN149: 126 | CO149: 99 | CP149: 69 | CQ149: 70 | CR149: 113 | CS149: 174 | CT149: 220 | CU149: 368 | CV149: 328 | CW149: 357 | CX149: 397 | CY149: 388 | CZ149: 373 | DA149: 239 | DB149: 202 | DC149: 264 | DD149: 168 | DE149: 333 | DF149: 383 | DG149: 391 | DH149: 413 | DI149: 347 | DJ149: 429 | DK149: 451 | DL149: 392 | DM149: 282 | DN149: 227 | DO149: 311 | DP149: 386 | DQ149: 449 | DR149: 586 | DS149: 490 | DT149: 438 | DU149: 517 | DV149: 449 | DW149: 544 | DX149: 604 | DY149: 438 | DZ149: 251 | EA149: 220 | EB149: 303 | EC149: 589 | ED149: 669 | EE149: 561 | EF149: 725 | EG149: 525 | EH149: 632 | EI149: 633 | EJ149: 602 | EK149: 503 | EL149: 306 | EM149: 333 | EN149: 410 | EO149: 633 | EP149: 600 | EQ149: 602 | ER149: 723
A150: Iowa : All Commercial | B150: thousand megawatthours | C150: ELEC.GEN.WND-IA-96.M | D150: -- | E150: -- | F150: -- | G150: -- | H150: -- | I150: -- | J150: -- | K150: -- | L150: -- | M150: -- | N150: -- | O150: -- | P150: -- | Q150: -- | R150: -- | S150: -- | T150: -- | U150: -- | V150: -- | W150: -- | X150: -- | Y150: -- | Z150: -- | AA150: -- | AB150: -- | AC150: -- | AD150: -- | AE150: -- | AF150: -- | AG150: -- | AH150: -- | AI150: -- | AJ150: -- | AK150: -- | AL150: -- | AM150: -- | AN150: -- | AO150: -- | AP150: -- | AQ150: -- | AR150: -- | AS150: -- | AT150: -- | AU150: -- | AV150: -- | AW150: -- | AX150: -- | AY150: -- | AZ150: -- | BA150: -- | BB150: -- | BC150: -- | BD150: -- | BE150: -- | BF150: -- | BG150: -- | BH150: -- | BI150: -- | BJ150: -- | BK150: -- | BL150: -- | BM150: -- | BN150: -- | BO150: -- | BP150: -- | BQ150: -- | BR150: -- | BS150: -- | BT150: -- | BU150: -- | BV150: -- | BW150: -- | BX150: -- | BY150: -- | BZ150: -- | CA150: -- | CB150: -- | CC150: -- | CD150: -- | CE150: -- | CF150: -- | CG150: -- | CH150: -- | CI150: -- | CJ150: -- | CK150: -- | CL150: -- | CM150: -- | CN150: -- | CO150: -- | CP150: -- | CQ150: -- | CR150: -- | CS150: -- | CT150: -- | CU150: -- | CV150: -- | CW150: -- | CX150: -- | CY150: -- | CZ150: -- | DA150: -- | DB150: -- | DC150: -- | DD150: -- | DE150: -- | DF150: -- | DG150: -- | DH150: -- | DI150: -- | DJ150: -- | DK150: -- | DL150: -- | DM150: -- | DN150: -- | DO150: -- | DP150: -- | DQ150: -- | DR150: -- | DS150: -- | DT150: 0 | DU150: 0 | DV150: 0 | DW150: 0 | DX150: 0 | DY150: 0 | DZ150: 0 | EA150: 0 | EB150: 0 | EC150: 0 | ED150: 0 | EE150: 0 | EF150: NM | EG150: NM | EH150: NM | EI150: NM | EJ150: NM | EK150: NM | EL150: NM | EM150: NM | EN150: NM | EO150: NM | EP150: NM | EQ150: NM | ER150: NM
A151: Iowa : All Industrial | B151: thousand megawatthours | C151: ELEC.GEN.WND-IA-97.M | D151: -- | E151: -- | F151: -- | G151: -- | H151: -- | I151: -- | J151: -- | K151: -- | L151: -- | M151: -- | N151: -- | O151: -- | P151: -- | Q151: -- | R151: -- | S151: -- | T151: -- | U151: -- | V151: -- | W151: -- | X151: -- | Y151: -- | Z151: -- | AA151: -- | AB151: -- | AC151: -- | AD151: -- | AE151: -- | AF151: -- | AG151: -- | AH151: -- | AI151: -- | AJ151: -- | AK151: -- | AL151: -- | AM151: -- | AN151: -- | AO151: -- | AP151: -- | AQ151: -- | AR151: -- | AS151: -- | AT151: -- | AU151: -- | AV151: -- | AW151: -- | AX151: -- | AY151: -- | AZ151: -- | BA151: -- | BB151: -- | BC151: -- | BD151: -- | BE151: -- | BF151: -- | BG151: -- | BH151: -- | BI151: -- | BJ151: -- | BK151: -- | BL151: -- | BM151: -- | BN151: -- | BO151: -- | BP151: -- | BQ151: -- | BR151: -- | BS151: -- | BT151: -- | BU151: -- | BV151: -- | BW151: -- | BX151: -- | BY151: -- | BZ151: -- | CA151: -- | CB151: -- | CC151: -- | CD151: -- | CE151: -- | CF151: -- | CG151: -- | CH151: -- | CI151: -- | CJ151: -- | CK151: -- | CL151: -- | CM151: -- | CN151: -- | CO151: -- | CP151: -- | CQ151: -- | CR151: -- | CS151: -- | CT151: -- | CU151: -- | CV151: -- | CW151: -- | CX151: -- | CY151: -- | CZ151: -- | DA151: -- | DB151: -- | DC151: -- | DD151: -- | DE151: -- | DF151: -- | DG151: -- | DH151: -- | DI151: -- | DJ151: -- | DK151: -- | DL151: -- | DM151: -- | DN151: -- | DO151: -- | DP151: -- | DQ151: -- | DR151: -- | DS151: -- | DT151: -- | DU151: -- | DV151: -- | DW151: -- | DX151: -- | DY151: -- | DZ151: -- | EA151: -- | EB151: -- | EC151: -- | ED151: -- | EE151: -- | EF151: -- | EG151: -- | EH151: -- | EI151: -- | EJ151: -- | EK151: -- | EL151: -- | EM151: -- | EN151: -- | EO151: -- | EP151: -- | EQ151: -- | ER151: --
A152: Kansas | B152: thousand megawatthours | C152: ELEC.GEN.WND-KS-99.M
A153: Kansas : All Sectors | B153: thousand megawatthours | C153: ELEC.GEN.WND-KS-99.M | D153: -- | E153: -- | F153: -- | G153: -- | H153: -- | I153: -- | J153: -- | K153: -- | L153: -- | M153: -- | N153: -- | O153: 40 | P153: 46 | Q153: 47 | R153: 47 | S153: 47 | T153: 46 | U153: 43 | V153: 30 | W153: 33 | X153: 34 | Y153: 30 | Z153: 32 | AA153: 31 | AB153: 29 | AC153: 23 | AD153: 40 | AE153: 40 | AF153: 31 | AG153: 23 | AH153: 31 | AI153: 27 | AJ153: 30 | AK153: 26 | AL153: 29 | AM153: 37 | AN153: 23 | AO153: 31 | AP153: 37 | AQ153: 34 | AR153: 43 | AS153: 26 | AT153: 23 | AU153: 23 | AV153: 34 | AW153: 28 | AX153: 26 | AY153: 30 | AZ153: 18 | BA153: 19 | BB153: 33 | BC153: 36 | BD153: 30 | BE153: 35 | BF153: 32 | BG153: 17 | BH153: 36 | BI153: 28 | BJ153: 36 | BK153: 105 | BL153: 88 | BM153: 67 | BN153: 94 | BO153: 97 | BP153: 66 | BQ153: 69 | BR153: 63 | BS153: 54 | BT153: 79 | BU153: 105 | BV153: 102 | BW153: 108 | BX153: 97 | BY153: 93 | BZ153: 113 | CA153: 105 | CB153: 98 | CC153: 63 | CD153: 63 | CE153: 91 | CF153: 101 | CG153: 135 | CH153: 103 | CI153: 90 | CJ153: 137 | CK153: 121 | CL153: 150 | CM153: 183 | CN153: 167 | CO153: 124 | CP153: 133 | CQ153: 93 | CR153: 124 | CS153: 166 | CT153: 164 | CU153: 198 | CV153: 220 | CW153: 218 | CX153: 275 | CY153: 270 | CZ153: 237 | DA153: 193 | DB153: 169 | DC153: 224 | DD153: 159 | DE153: 305 | DF153: 278 | DG153: 314 | DH153: 235 | DI153: 190 | DJ153: 367 | DK153: 362 | DL153: 284 | DM153: 283 | DN153: 246 | DO153: 258 | DP153: 288 | DQ153: 294 | DR153: 345 | DS153: 254 | DT153: 279 | DU153: 320 | DV153: 328 | DW153: 357 | DX153: 356 | DY153: 358 | DZ153: 234 | EA153: 205 | EB153: 218 | EC153: 355 | ED153: 386 | EE153: 324 | EF153: 433 | EG153: 309 | EH153: 380 | EI153: 359 | EJ153: 425 | EK153: 467 | EL153: 355 | EM153: 326 | EN153: 321 | EO153: 446 | EP153: 631 | EQ153: 665 | ER153: 728
A154: Kansas : Electric Power | C154: ELEC.GEN.WND-KS-98.M
A155: Kansas : Electric Utility | B155: thousand megawatthours | C155: ELEC.GEN.WND-KS-1.M | D155: -- | E155: -- | F155: -- | G155: -- | H155: -- | I155: -- | J155: -- | K155: -- | L155: -- | M155: -- | N155: -- | O155: -- | P155: -- | Q155: -- | R155: -- | S155: -- | T155: -- | U155: -- | V155: -- | W155: -- | X155: -- | Y155: -- | Z155: -- | AA155: -- | AB155: 0 | AC155: 0 | AD155: 0 | AE155: 0 | AF155: 0 | AG155: 0 | AH155: -- | AI155: 0 | AJ155: 0 | AK155: 0 | AL155: 0 | AM155: 0 | AN155: 0 | AO155: 0 | AP155: 0 | AQ155: 0 | AR155: 0 | AS155: 0 | AT155: 0 | AU155: 0 | AV155: 0 | AW155: 0 | AX155: 0 | AY155: 0 | AZ155: -- | BA155: -- | BB155: -- | BC155: 0 | BD155: 0 | BE155: 0 | BF155: 0 | BG155: 0 | BH155: 0 | BI155: 0 | BJ155: 0 | BK155: 0 | BL155: 0 | BM155: 0 | BN155: 0 | BO155: 0 | BP155: 0 | BQ155: -- | BR155: -- | BS155: 5 | BT155: 19 | BU155: 28 | BV155: 26 | BW155: 28 | BX155: 27 | BY155: 20 | BZ155: 26 | CA155: 21 | CB155: 27 | CC155: 15 | CD155: 23 | CE155: 21 | CF155: 30 | CG155: 40 | CH155: 26 | CI155: 28 | CJ155: 35 | CK155: 30 | CL155: 35 | CM155: 43 | CN155: 40 | CO155: 29 | CP155: 35 | CQ155: 25 | CR155: 33 | CS155: 34 | CT155: 39 | CU155: 38 | CV155: 34 | CW155: 38 | CX155: 52 | CY155: 69 | CZ155: 62 | DA155: 48 | DB155: 46 | DC155: 58 | DD155: 41 | DE155: 67 | DF155: 54 | DG155: 72 | DH155: 59 | DI155: 50 | DJ155: 87 | DK155: 83 | DL155: 73 | DM155: 65 | DN155: 60 | DO155: 60 | DP155: 68 | DQ155: 67 | DR155: 77 | DS155: 71 | DT155: 73 | DU155: 86 | DV155: 88 | DW155: 92 | DX155: 98 | DY155: 105 | DZ155: 68 | EA155: 58 | EB155: 63 | EC155: 100 | ED155: 99 | EE155: 86 | EF155: 94 | EG155: 76 | EH155: 81 | EI155: 77 | EJ155: 92 | EK155: 100 | EL155: 78 | EM155: 63 | EN155: 48 | EO155: 40 | EP155: 44 | EQ155: 57 | ER155: 51
A156: Kansas : Independent Power Producers | B156: thousand megawatthours | C156: ELEC.GEN.WND-KS-94.M | D156: -- | E156: -- | F156: -- | G156: -- | H156: -- | I156: -- | J156: -- | K156: -- | L156: -- | M156: -- | N156: -- | O156: 40 | P156: 46 | Q156: 47 | R156: 47 | S156: 47 | T156: 46 | U156: 43 | V156: 30 | W156: 33 | X156: 34 | Y156: 30 | Z156: 32 | AA156: 31 | AB156: 29 | AC156: 23 | AD156: 40 | AE156: 40 | AF156: 30 | AG156: 23 | AH156: 31 | AI156: 27 | AJ156: 30 | AK156: 26 | AL156: 29 | AM156: 37 | AN156: 23 | AO156: 31 | AP156: 37 | AQ156: 33 | AR156: 43 | AS156: 25 | AT156: 23 | AU156: 22 | AV156: 34 | AW156: 28 | AX156: 25 | AY156: 30 | AZ156: 18 | BA156: 19 | BB156: 33 | BC156: 36 | BD156: 30 | BE156: 35 | BF156: 31 | BG156: 17 | BH156: 35 | BI156: 28 | BJ156: 36 | BK156: 105 | BL156: 88 | BM156: 67 | BN156: 94 | BO156: 97 | BP156: 66 | BQ156: 69 | BR156: 63 | BS156: 49 | BT156: 59 | BU156: 77 | BV156: 77 | BW156: 80 | BX156: 70 | BY156: 73 | BZ156: 87 | CA156: 84 | CB156: 70 | CC156: 48 | CD156: 40 | CE156: 70 | CF156: 71 | CG156: 94 | CH156: 77 | CI156: 62 | CJ156: 102 | CK156: 90 | CL156: 115 | CM156: 139 | CN156: 127 | CO156: 96 | CP156: 98 | CQ156: 68 | CR156: 92 | CS156: 132 | CT156: 125 | CU156: 160 | CV156: 186 | CW156: 180 | CX156: 223 | CY156: 201 | CZ156: 175 | DA156: 145 | DB156: 123 | DC156: 166 | DD156: 119 | DE156: 238 | DF156: 224 | DG156: 242 | DH156: 176 | DI156: 140 | DJ156: 280 | DK156: 279 | DL156: 211 | DM156: 218 | DN156: 185 | DO156: 198 | DP156: 220 | DQ156: 227 | DR156: 269 | DS156: 182 | DT156: 206 | DU156: 234 | DV156: 240 | DW156: 264 | DX156: 258 | DY156: 253 | DZ156: 165 | EA156: 147 | EB156: 155 | EC156: 255 | ED156: 287 | EE156: 238 | EF156: 339 | EG156: 233 | EH156: 299 | EI156: 282 | EJ156: 333 | EK156: 368 | EL156: 276 | EM156: 264 | EN156: 273 | EO156: 405 | EP156: 587 | EQ156: 608 | ER156: 677
A157: Kansas : All Commercial | B157: thousand megawatthours | C157: ELEC.GEN.WND-KS-96.M | D157: -- | E157: -- | F157: -- | G157: -- | H157: -- | I157: -- | J157: -- | K157: -- | L157: -- | M157: -- | N157: -- | O157: -- | P157: -- | Q157: -- | R157: -- | S157: -- | T157: -- | U157: -- | V157: -- | W157: -- | X157: -- | Y157: -- | Z157: -- | AA157: -- | AB157: -- | AC157: -- | AD157: -- | AE157: -- | AF157: -- | AG157: -- | AH157: -- | AI157: -- | AJ157: -- | AK157: -- | AL157: -- | AM157: -- | AN157: -- | AO157: -- | AP157: -- | AQ157: -- | AR157: -- | AS157: -- | AT157: -- | AU157: -- | AV157: -- | AW157: -- | AX157: -- | AY157: -- | AZ157: -- | BA157: -- | BB157: -- | BC157: -- | BD157: -- | BE157: -- | BF157: -- | BG157: -- | BH157: -- | BI157: -- | BJ157: -- | BK157: -- | BL157: -- | BM157: -- | BN157: -- | BO157: -- | BP157: -- | BQ157: -- | BR157: -- | BS157: -- | BT157: -- | BU157: -- | BV157: -- | BW157: -- | BX157: -- | BY157: -- | BZ157: -- | CA157: -- | CB157: -- | CC157: -- | CD157: -- | CE157: -- | CF157: -- | CG157: -- | CH157: -- | CI157: -- | CJ157: -- | CK157: -- | CL157: -- | CM157: -- | CN157: -- | CO157: -- | CP157: -- | CQ157: -- | CR157: -- | CS157: -- | CT157: -- | CU157: -- | CV157: -- | CW157: -- | CX157: -- | CY157: -- | CZ157: -- | DA157: -- | DB157: -- | DC157: -- | DD157: -- | DE157: -- | DF157: -- | DG157: -- | DH157: -- | DI157: -- | DJ157: -- | DK157: -- | DL157: -- | DM157: -- | DN157: -- | DO157: -- | DP157: -- | DQ157: -- | DR157: -- | DS157: -- | DT157: -- | DU157: -- | DV157: -- | DW157: -- | DX157: -- | DY157: -- | DZ157: -- | EA157: -- | EB157: -- | EC157: -- | ED157: -- | EE157: -- | EF157: -- | EG157: -- | EH157: -- | EI157: -- | EJ157: -- | EK157: -- | EL157: -- | EM157: -- | EN157: -- | EO157: -- | EP157: -- | EQ157: -- | ER157: --
A158: Kansas : All Industrial | B158: thousand megawatthours | C158: ELEC.GEN.WND-KS-97.M | D158: -- | E158: -- | F158: -- | G158: -- | H158: -- | I158: -- | J158: -- | K158: -- | L158: -- | M158: -- | N158: -- | O158: -- | P158: -- | Q158: -- | R158: -- | S158: -- | T158: -- | U158: -- | V158: -- | W158: -- | X158: -- | Y158: -- | Z158: -- | AA158: -- | AB158: -- | AC158: -- | AD158: -- | AE158: -- | AF158: -- | AG158: -- | AH158: -- | AI158: -- | AJ158: -- | AK158: -- | AL158: -- | AM158: -- | AN158: -- | AO158: -- | AP158: -- | AQ158: -- | AR158: -- | AS158: -- | AT158: -- | AU158: -- | AV158: -- | AW158: -- | AX158: -- | AY158: -- | AZ158: -- | BA158: -- | BB158: -- | BC158: -- | BD158: -- | BE158: -- | BF158: -- | BG158: -- | BH158: -- | BI158: -- | BJ158: -- | BK158: -- | BL158: -- | BM158: -- | BN158: -- | BO158: -- | BP158: -- | BQ158: -- | BR158: -- | BS158: -- | BT158: -- | BU158: -- | BV158: -- | BW158: -- | BX158: -- | BY158: -- | BZ158: -- | CA158: -- | CB158: -- | CC158: -- | CD158: -- | CE158: -- | CF158: -- | CG158: -- | CH158: -- | CI158: -- | CJ158: -- | CK158: -- | CL158: -- | CM158: -- | CN158: -- | CO158: -- | CP158: -- | CQ158: -- | CR158: -- | CS158: -- | CT158: -- | CU158: -- | CV158: -- | CW158: -- | CX158: -- | CY158: -- | CZ158: -- | DA158: -- | DB158: -- | DC158: -- | DD158: -- | DE158: -- | DF158: -- | DG158: -- | DH158: -- | DI158: -- | DJ158: -- | DK158: -- | DL158: -- | DM158: -- | DN158: -- | DO158: -- | DP158: -- | DQ158: -- | DR158: -- | DS158: -- | DT158: -- | DU158: -- | DV158: -- | DW158: -- | DX158: -- | DY158: -- | DZ158: -- | EA158: -- | EB158: -- | EC158: -- | ED158: -- | EE158: -- | EF158: -- | EG158: -- | EH158: -- | EI158: -- | EJ158: -- | EK158: -- | EL158: -- | EM158: -- | EN158: -- | EO158: -- | EP158: -- | EQ158: -- | ER158: --
A159: Minnesota | B159: thousand megawatthours | C159: ELEC.GEN.WND-MN-99.M
A160: Minnesota : All Sectors | B160: thousand megawatthours | C160: ELEC.GEN.WND-MN-99.M | D160: 86 | E160: 73 | F160: 67 | G160: 91 | H160: 73 | I160: 64 | J160: 56 | K160: 49 | L160: 55 | M160: 91 | N160: 97 | O160: 92 | P160: 98 | Q160: 103 | R160: 58 | S160: 95 | T160: 83 | U160: 77 | V160: 34 | W160: 58 | X160: 74 | Y160: 61 | Z160: 76 | AA160: 88 | AB160: 79 | AC160: 92 | AD160: 103 | AE160: 86 | AF160: 78 | AG160: 54 | AH160: 64 | AI160: 47 | AJ160: 84 | AK160: 82 | AL160: 110 | AM160: 100 | AN160: 61 | AO160: 64 | AP160: 81 | AQ160: 68 | AR160: 82 | AS160: 53 | AT160: 38 | AU160: 50 | AV160: 67 | AW160: 74 | AX160: 84 | AY160: 92 | AZ160: 110 | BA160: 112 | BB160: 133 | BC160: 146 | BD160: 164 | BE160: 123 | BF160: 108 | BG160: 78 | BH160: 138 | BI160: 126 | BJ160: 199 | BK160: 145 | BL160: 199 | BM160: 175 | BN160: 194 | BO160: 199 | BP160: 202 | BQ160: 116 | BR160: 124 | BS160: 98 | BT160: 133 | BU160: 193 | BV160: 183 | BW160: 239 | BX160: 284 | BY160: 199 | BZ160: 276 | CA160: 247 | CB160: 268 | CC160: 167 | CD160: 128 | CE160: 100 | CF160: 230 | CG160: 236 | CH160: 267 | CI160: 236 | CJ160: 385 | CK160: 313 | CL160: 326 | CM160: 427 | CN160: 397 | CO160: 251 | CP160: 223 | CQ160: 246 | CR160: 349 | CS160: 397 | CT160: 453 | CU160: 587 | CV160: 504 | CW160: 509 | CX160: 556 | CY160: 560 | CZ160: 493 | DA160: 299 | DB160: 269 | DC160: 317 | DD160: 258 | DE160: 418 | DF160: 411 | DG160: 459 | DH160: 440 | DI160: 274 | DJ160: 449 | DK160: 482 | DL160: 440 | DM160: 294 | DN160: 268 | DO160: 329 | DP160: 344 | DQ160: 432 | DR160: 505 | DS160: 534 | DT160: 465 | DU160: 691 | DV160: 543 | DW160: 642 | DX160: 712 | DY160: 479 | DZ160: 290 | EA160: 272 | EB160: 359 | EC160: 732 | ED160: 807 | EE160: 733 | EF160: 820 | EG160: 596 | EH160: 709 | EI160: 750 | EJ160: 721 | EK160: 581 | EL160: 376 | EM160: 399 | EN160: 481 | EO160: 766 | EP160: 705 | EQ160: 625 | ER160: 826
A161: Minnesota : Electric Power | C161: ELEC.GEN.WND-MN-98.M
A162: Minnesota : Electric Utility | B162: thousand megawatthours | C162: ELEC.GEN.WND-MN-1.M | D162: -- | E162: -- | F162: -- | G162: -- | H162: -- | I162: -- | J162: -- | K162: -- | L162: -- | M162: -- | N162: -- | O162: -- | P162: -- | Q162: -- | R162: -- | S162: -- | T162: -- | U162: -- | V162: -- | W162: -- | X162: -- | Y162: -- | Z162: -- | AA162: -- | AB162: -- | AC162: -- | AD162: -- | AE162: -- | AF162: -- | AG162: -- | AH162: -- | AI162: -- | AJ162: -- | AK162: -- | AL162: -- | AM162: -- | AN162: 0 | AO162: 0 | AP162: 0 | AQ162: 0 | AR162: 0 | AS162: 0 | AT162: 0 | AU162: 0 | AV162: 0 | AW162: 0 | AX162: 0 | AY162: 0 | AZ162: 0 | BA162: 0 | BB162: 0 | BC162: 0 | BD162: 0 | BE162: 0 | BF162: 0 | BG162: 0 | BH162: 0 | BI162: 0 | BJ162: 0 | BK162: 0 | BL162: 2 | BM162: 1 | BN162: 1 | BO162: 1 | BP162: 1 | BQ162: 1 | BR162: 1 | BS162: 1 | BT162: 1 | BU162: 1 | BV162: 1 | BW162: 2 | BX162: 3 | BY162: 2 | BZ162: 3 | CA162: 2 | CB162: 3 | CC162: 2 | CD162: 1 | CE162: 1 | CF162: 2 | CG162: 2 | CH162: 2 | CI162: 2 | CJ162: 3 | CK162: 2 | CL162: 2 | CM162: 3 | CN162: 3 | CO162: 2 | CP162: 5 | CQ162: 6 | CR162: 6 | CS162: 6 | CT162: 6 | CU162: 5 | CV162: 37 | CW162: 39 | CX162: 49 | CY162: 38 | CZ162: 38 | DA162: 22 | DB162: 20 | DC162: 26 | DD162: 15 | DE162: 31 | DF162: 36 | DG162: 32 | DH162: 37 | DI162: 13 | DJ162: 33 | DK162: 41 | DL162: 34 | DM162: 22 | DN162: 21 | DO162: 27 | DP162: 30 | DQ162: 38 | DR162: 44 | DS162: 51 | DT162: 73 | DU162: 145 | DV162: 122 | DW162: 138 | DX162: 137 | DY162: 88 | DZ162: 65 | EA162: 64 | EB162: 86 | EC162: 156 | ED162: 160 | EE162: 145 | EF162: 155 | EG162: 118 | EH162: 113 | EI162: 150 | EJ162: 158 | EK162: 136 | EL162: 82 | EM162: 89 | EN162: 123 | EO162: 175 | EP162: 181 | EQ162: 147 | ER162: 197
A163: Minnesota : Independent Power Producers | B163: thousand megawatthours | C163: ELEC.GEN.WND-MN-94.M | D163: 86 | E163: 73 | F163: 67 | G163: 91 | H163: 73 | I163: 64 | J163: 56 | K163: 49 | L163: 55 | M163: 91 | N163: 97 | O163: 92 | P163: 98 | Q163: 103 | R163: 58 | S163: 95 | T163: 83 | U163: 77 | V163: 34 | W163: 58 | X163: 74 | Y163: 61 | Z163: 76 | AA163: 88 | AB163: 79 | AC163: 92 | AD163: 103 | AE163: 86 | AF163: 78 | AG163: 54 | AH163: 64 | AI163: 47 | AJ163: 84 | AK163: 82 | AL163: 110 | AM163: 100 | AN163: 61 | AO163: 64 | AP163: 80 | AQ163: 67 | AR163: 82 | AS163: 53 | AT163: 37 | AU163: 50 | AV163: 67 | AW163: 74 | AX163: 83 | AY163: 91 | AZ163: 110 | BA163: 112 | BB163: 133 | BC163: 146 | BD163: 163 | BE163: 122 | BF163: 108 | BG163: 78 | BH163: 138 | BI163: 126 | BJ163: 199 | BK163: 145 | BL163: 197 | BM163: 174 | BN163: 193 | BO163: 198 | BP163: 201 | BQ163: 115 | BR163: 123 | BS163: 97 | BT163: 132 | BU163: 192 | BV163: 182 | BW163: 237 | BX163: 281 | BY163: 197 | BZ163: 273 | CA163: 244 | CB163: 265 | CC163: 166 | CD163: 127 | CE163: 99 | CF163: 227 | CG163: 234 | CH163: 265 | CI163: 235 | CJ163: 382 | CK163: 311 | CL163: 323 | CM163: 424 | CN163: 394 | CO163: 249 | CP163: 218 | CQ163: 240 | CR163: 343 | CS163: 390 | CT163: 447 | CU163: 582 | CV163: 467 | CW163: 470 | CX163: 507 | CY163: 522 | CZ163: 455 | DA163: 277 | DB163: 249 | DC163: 291 | DD163: 243 | DE163: 388 | DF163: 375 | DG163: 427 | DH163: 402 | DI163: 261 | DJ163: 415 | DK163: 440 | DL163: 406 | DM163: 271 | DN163: 246 | DO163: 301 | DP163: 313 | DQ163: 393 | DR163: 460 | DS163: 483 | DT163: 391 | DU163: 543 | DV163: 420 | DW163: 502 | DX163: 574 | DY163: 389 | DZ163: 224 | EA163: 207 | EB163: 272 | EC163: 574 | ED163: 644 | EE163: 585 | EF163: 662 | EG163: 476 | EH163: 593 | EI163: 597 | EJ163: 561 | EK163: 443 | EL163: 293 | EM163: 309 | EN163: 357 | EO163: 589 | EP163: 522 | EQ163: 476 | ER163: 627
A164: Minnesota : All Commercial | B164: thousand megawatthours | C164: ELEC.GEN.WND-MN-96.M | D164: -- | E164: -- | F164: -- | G164: -- | H164: -- | I164: -- | J164: -- | K164: -- | L164: -- | M164: -- | N164: -- | O164: -- | P164: -- | Q164: -- | R164: -- | S164: -- | T164: -- | U164: -- | V164: -- | W164: -- | X164: -- | Y164: -- | Z164: -- | AA164: -- | AB164: -- | AC164: -- | AD164: -- | AE164: -- | AF164: -- | AG164: -- | AH164: -- | AI164: -- | AJ164: -- | AK164: -- | AL164: -- | AM164: -- | AN164: -- | AO164: -- | AP164: -- | AQ164: -- | AR164: -- | AS164: -- | AT164: -- | AU164: -- | AV164: -- | AW164: -- | AX164: -- | AY164: -- | AZ164: -- | BA164: -- | BB164: -- | BC164: -- | BD164: -- | BE164: -- | BF164: -- | BG164: -- | BH164: -- | BI164: -- | BJ164: -- | BK164: -- | BL164: -- | BM164: -- | BN164: -- | BO164: -- | BP164: -- | BQ164: -- | BR164: -- | BS164: -- | BT164: -- | BU164: -- | BV164: -- | BW164: -- | BX164: -- | BY164: -- | BZ164: -- | CA164: -- | CB164: -- | CC164: -- | CD164: -- | CE164: -- | CF164: -- | CG164: -- | CH164: -- | CI164: -- | CJ164: -- | CK164: -- | CL164: -- | CM164: -- | CN164: -- | CO164: -- | CP164: -- | CQ164: -- | CR164: -- | CS164: -- | CT164: -- | CU164: -- | CV164: -- | CW164: -- | CX164: -- | CY164: -- | CZ164: -- | DA164: -- | DB164: -- | DC164: -- | DD164: -- | DE164: -- | DF164: -- | DG164: -- | DH164: 1 | DI164: 1 | DJ164: 1 | DK164: 1 | DL164: 1 | DM164: 1 | DN164: 1 | DO164: 1 | DP164: 1 | DQ164: 1 | DR164: 1 | DS164: 1 | DT164: 1 | DU164: 2 | DV164: 2 | DW164: 2 | DX164: 2 | DY164: 2 | DZ164: 1 | EA164: 1 | EB164: 1 | EC164: 3 | ED164: 3 | EE164: 3 | EF164: NM | EG164: NM | EH164: NM | EI164: NM | EJ164: NM | EK164: NM | EL164: NM | EM164: NM | EN164: NM | EO164: NM | EP164: NM | EQ164: NM | ER164: NM
A165: Minnesota : All Industrial | B165: thousand megawatthours | C165: ELEC.GEN.WND-MN-97.M | D165: -- | E165: -- | F165: -- | G165: -- | H165: -- | I165: -- | J165: -- | K165: -- | L165: -- | M165: -- | N165: -- | O165: -- | P165: -- | Q165: -- | R165: -- | S165: -- | T165: -- | U165: -- | V165: -- | W165: -- | X165: -- | Y165: -- | Z165: -- | AA165: -- | AB165: -- | AC165: -- | AD165: -- | AE165: -- | AF165: -- | AG165: -- | AH165: -- | AI165: -- | AJ165: -- | AK165: -- | AL165: -- | AM165: -- | AN165: -- | AO165: -- | AP165: -- | AQ165: -- | AR165: -- | AS165: -- | AT165: -- | AU165: -- | AV165: -- | AW165: -- | AX165: -- | AY165: -- | AZ165: -- | BA165: -- | BB165: -- | BC165: -- | BD165: -- | BE165: -- | BF165: -- | BG165: -- | BH165: -- | BI165: -- | BJ165: -- | BK165: -- | BL165: -- | BM165: -- | BN165: -- | BO165: -- | BP165: -- | BQ165: -- | BR165: -- | BS165: -- | BT165: -- | BU165: -- | BV165: -- | BW165: -- | BX165: -- | BY165: -- | BZ165: -- | CA165: -- | CB165: -- | CC165: -- | CD165: -- | CE165: -- | CF165: -- | CG165: -- | CH165: -- | CI165: -- | CJ165: -- | CK165: -- | CL165: -- | CM165: -- | CN165: -- | CO165: -- | CP165: -- | CQ165: -- | CR165: -- | CS165: -- | CT165: -- | CU165: -- | CV165: -- | CW165: -- | CX165: -- | CY165: -- | CZ165: -- | DA165: -- | DB165: -- | DC165: -- | DD165: -- | DE165: -- | DF165: -- | DG165: -- | DH165: -- | DI165: -- | DJ165: -- | DK165: -- | DL165: -- | DM165: -- | DN165: -- | DO165: -- | DP165: -- | DQ165: -- | DR165: -- | DS165: -- | DT165: -- | DU165: -- | DV165: -- | DW165: -- | DX165: -- | DY165: -- | DZ165: -- | EA165: -- | EB165: -- | EC165: -- | ED165: -- | EE165: -- | EF165: -- | EG165: -- | EH165: -- | EI165: -- | EJ165: -- | EK165: -- | EL165: -- | EM165: -- | EN165: -- | EO165: -- | EP165: -- | EQ165: -- | ER165: --
A166: Missouri | B166: thousand megawatthours | C166: ELEC.GEN.WND-MO-99.M
A167: Missouri : All Sectors | B167: thousand megawatthours | C167: ELEC.GEN.WND-MO-99.M | D167: -- | E167: -- | F167: -- | G167: -- | H167: -- | I167: -- | J167: -- | K167: -- | L167: -- | M167: -- | N167: -- | O167: -- | P167: -- | Q167: -- | R167: -- | S167: -- | T167: -- | U167: -- | V167: -- | W167: -- | X167: -- | Y167: -- | Z167: -- | AA167: -- | AB167: -- | AC167: -- | AD167: -- | AE167: -- | AF167: -- | AG167: -- | AH167: -- | AI167: -- | AJ167: -- | AK167: -- | AL167: -- | AM167: -- | AN167: -- | AO167: -- | AP167: -- | AQ167: -- | AR167: -- | AS167: -- | AT167: -- | AU167: -- | AV167: -- | AW167: -- | AX167: -- | AY167: -- | AZ167: -- | BA167: -- | BB167: -- | BC167: -- | BD167: -- | BE167: -- | BF167: -- | BG167: -- | BH167: -- | BI167: -- | BJ167: -- | BK167: -- | BL167: -- | BM167: -- | BN167: -- | BO167: -- | BP167: -- | BQ167: -- | BR167: -- | BS167: -- | BT167: -- | BU167: -- | BV167: -- | BW167: -- | BX167: -- | BY167: -- | BZ167: -- | CA167: -- | CB167: -- | CC167: -- | CD167: -- | CE167: -- | CF167: -- | CG167: -- | CH167: -- | CI167: -- | CJ167: 11 | CK167: 7 | CL167: 13 | CM167: 19 | CN167: 17 | CO167: 16 | CP167: 17 | CQ167: 12 | CR167: 19 | CS167: 30 | CT167: 12 | CU167: 30 | CV167: 26 | CW167: 26 | CX167: 34 | CY167: 59 | CZ167: 41 | DA167: 23 | DB167: 23 | DC167: 37 | DD167: 29 | DE167: 70 | DF167: 74 | DG167: 57 | DH167: 45 | DI167: 40 | DJ167: 76 | DK167: 75 | DL167: 92 | DM167: 67 | DN167: 57 | DO167: 67 | DP167: 87 | DQ167: 104 | DR167: 136 | DS167: 79 | DT167: 93 | DU167: 106 | DV167: 108 | DW167: 143 | DX167: 112 | DY167: 99 | DZ167: 58 | EA167: 48 | EB167: 69 | EC167: 106 | ED167: 139 | EE167: 98 | EF167: 135 | EG167: 112 | EH167: 135 | EI167: 111 | EJ167: 116 | EK167: 103 | EL167: 66 | EM167: 62 | EN167: 64 | EO167: 115 | EP167: 116 | EQ167: 110 | ER167: 120
A168: Missouri : Electric Power | C168: ELEC.GEN.WND-MO-98.M
A169: Missouri : Electric Utility | B169: thousand megawatthours | C169: ELEC.GEN.WND-MO-1.M | D169: -- | E169: -- | F169: -- | G169: -- | H169: -- | I169: -- | J169: -- | K169: -- | L169: -- | M169: -- | N169: -- | O169: -- | P169: -- | Q169: -- | R169: -- | S169: -- | T169: -- | U169: -- | V169: -- | W169: -- | X169: -- | Y169: -- | Z169: -- | AA169: -- | AB169: -- | AC169: -- | AD169: -- | AE169: -- | AF169: -- | AG169: -- | AH169: -- | AI169: -- | AJ169: -- | AK169: -- | AL169: -- | AM169: -- | AN169: -- | AO169: -- | AP169: -- | AQ169: -- | AR169: -- | AS169: -- | AT169: -- | AU169: -- | AV169: -- | AW169: -- | AX169: -- | AY169: -- | AZ169: -- | BA169: -- | BB169: -- | BC169: -- | BD169: -- | BE169: -- | BF169: -- | BG169: -- | BH169: -- | BI169: -- | BJ169: -- | BK169: -- | BL169: -- | BM169: -- | BN169: -- | BO169: -- | BP169: -- | BQ169: -- | BR169: -- | BS169: -- | BT169: -- | BU169: -- | BV169: -- | BW169: -- | BX169: -- | BY169: -- | BZ169: -- | CA169: -- | CB169: -- | CC169: -- | CD169: -- | CE169: -- | CF169: -- | CG169: -- | CH169: -- | CI169: -- | CJ169: -- | CK169: -- | CL169: -- | CM169: -- | CN169: -- | CO169: -- | CP169: -- | CQ169: -- | CR169: -- | CS169: -- | CT169: -- | CU169: -- | CV169: -- | CW169: -- | CX169: -- | CY169: -- | CZ169: -- | DA169: -- | DB169: -- | DC169: -- | DD169: -- | DE169: -- | DF169: -- | DG169: -- | DH169: -- | DI169: -- | DJ169: -- | DK169: -- | DL169: -- | DM169: -- | DN169: -- | DO169: -- | DP169: -- | DQ169: -- | DR169: -- | DS169: -- | DT169: -- | DU169: -- | DV169: -- | DW169: -- | DX169: -- | DY169: -- | DZ169: -- | EA169: -- | EB169: -- | EC169: -- | ED169: -- | EE169: -- | EF169: -- | EG169: -- | EH169: -- | EI169: -- | EJ169: -- | EK169: -- | EL169: -- | EM169: -- | EN169: -- | EO169: -- | EP169: -- | EQ169: -- | ER169: --
A170: Missouri : Independent Power Producers | B170: thousand megawatthours | C170: ELEC.GEN.WND-MO-94.M | D170: -- | E170: -- | F170: -- | G170: -- | H170: -- | I170: -- | J170: -- | K170: -- | L170: -- | M170: -- | N170: -- | O170: -- | P170: -- | Q170: -- | R170: -- | S170: -- | T170: -- | U170: -- | V170: -- | W170: -- | X170: -- | Y170: -- | Z170: -- | AA170: -- | AB170: -- | AC170: -- | AD170: -- | AE170: -- | AF170: -- | AG170: -- | AH170: -- | AI170: -- | AJ170: -- | AK170: -- | AL170: -- | AM170: -- | AN170: -- | AO170: -- | AP170: -- | AQ170: -- | AR170: -- | AS170: -- | AT170: -- | AU170: -- | AV170: -- | AW170: -- | AX170: -- | AY170: -- | AZ170: -- | BA170: -- | BB170: -- | BC170: -- | BD170: -- | BE170: -- | BF170: -- | BG170: -- | BH170: -- | BI170: -- | BJ170: -- | BK170: -- | BL170: -- | BM170: -- | BN170: -- | BO170: -- | BP170: -- | BQ170: -- | BR170: -- | BS170: -- | BT170: -- | BU170: -- | BV170: -- | BW170: -- | BX170: -- | BY170: -- | BZ170: -- | CA170: -- | CB170: -- | CC170: -- | CD170: -- | CE170: -- | CF170: -- | CG170: -- | CH170: -- | CI170: -- | CJ170: 11 | CK170: 7 | CL170: 13 | CM170: 19 | CN170: 17 | CO170: 16 | CP170: 17 | CQ170: 12 | CR170: 19 | CS170: 30 | CT170: 12 | CU170: 30 | CV170: 26 | CW170: 26 | CX170: 34 | CY170: 59 | CZ170: 41 | DA170: 23 | DB170: 23 | DC170: 37 | DD170: 29 | DE170: 70 | DF170: 74 | DG170: 57 | DH170: 45 | DI170: 40 | DJ170: 76 | DK170: 75 | DL170: 92 | DM170: 67 | DN170: 57 | DO170: 67 | DP170: 87 | DQ170: 104 | DR170: 136 | DS170: 79 | DT170: 93 | DU170: 106 | DV170: 108 | DW170: 143 | DX170: 112 | DY170: 99 | DZ170: 58 | EA170: 48 | EB170: 69 | EC170: 106 | ED170: 139 | EE170: 98 | EF170: 135 | EG170: 112 | EH170: 135 | EI170: 111 | EJ170: 116 | EK170: 103 | EL170: 66 | EM170: 62 | EN170: 64 | EO170: 115 | EP170: 116 | EQ170: 110 | ER170: 120
A171: Missouri : All Commercial | B171: thousand megawatthours | C171: ELEC.GEN.WND-MO-96.M | D171: -- | E171: -- | F171: -- | G171: -- | H171: -- | I171: -- | J171: -- | K171: -- | L171: -- | M171: -- | N171: -- | O171: -- | P171: -- | Q171: -- | R171: -- | S171: -- | T171: -- | U171: -- | V171: -- | W171: -- | X171: -- | Y171: -- | Z171: -- | AA171: -- | AB171: -- | AC171: -- | AD171: -- | AE171: -- | AF171: -- | AG171: -- | AH171: -- | AI171: -- | AJ171: -- | AK171: -- | AL171: -- | AM171: -- | AN171: -- | AO171: -- | AP171: -- | AQ171: -- | AR171: -- | AS171: -- | AT171: -- | AU171: -- | AV171: -- | AW171: -- | AX171: -- | AY171: -- | AZ171: -- | BA171: -- | BB171: -- | BC171: -- | BD171: -- | BE171: -- | BF171: -- | BG171: -- | BH171: -- | BI171: -- | BJ171: -- | BK171: -- | BL171: -- | BM171: -- | BN171: -- | BO171: -- | BP171: -- | BQ171: -- | BR171: -- | BS171: -- | BT171: -- | BU171: -- | BV171: -- | BW171: -- | BX171: -- | BY171: -- | BZ171: -- | CA171: -- | CB171: -- | CC171: -- | CD171: -- | CE171: -- | CF171: -- | CG171: -- | CH171: -- | CI171: -- | CJ171: -- | CK171: -- | CL171: -- | CM171: -- | CN171: -- | CO171: -- | CP171: -- | CQ171: -- | CR171: -- | CS171: -- | CT171: -- | CU171: -- | CV171: -- | CW171: -- | CX171: -- | CY171: -- | CZ171: -- | DA171: -- | DB171: -- | DC171: -- | DD171: -- | DE171: -- | DF171: -- | DG171: -- | DH171: -- | DI171: -- | DJ171: -- | DK171: -- | DL171: -- | DM171: -- | DN171: -- | DO171: -- | DP171: -- | DQ171: -- | DR171: -- | DS171: -- | DT171: -- | DU171: -- | DV171: -- | DW171: -- | DX171: -- | DY171: -- | DZ171: -- | EA171: -- | EB171: -- | EC171: -- | ED171: -- | EE171: -- | EF171: -- | EG171: -- | EH171: -- | EI171: -- | EJ171: -- | EK171: -- | EL171: -- | EM171: -- | EN171: -- | EO171: -- | EP171: -- | EQ171: -- | ER171: --
A172: Missouri : All Industrial | B172: thousand megawatthours | C172: ELEC.GEN.WND-MO-97.M | D172: -- | E172: -- | F172: -- | G172: -- | H172: -- | I172: -- | J172: -- | K172: -- | L172: -- | M172: -- | N172: -- | O172: -- | P172: -- | Q172: -- | R172: -- | S172: -- | T172: -- | U172: -- | V172: -- | W172: -- | X172: -- | Y172: -- | Z172: -- | AA172: -- | AB172: -- | AC172: -- | AD172: -- | AE172: -- | AF172: -- | AG172: -- | AH172: -- | AI172: -- | AJ172: -- | AK172: -- | AL172: -- | AM172: -- | AN172: -- | AO172: -- | AP172: -- | AQ172: -- | AR172: -- | AS172: -- | AT172: -- | AU172: -- | AV172: -- | AW172: -- | AX172: -- | AY172: -- | AZ172: -- | BA172: -- | BB172: -- | BC172: -- | BD172: -- | BE172: -- | BF172: -- | BG172: -- | BH172: -- | BI172: -- | BJ172: -- | BK172: -- | BL172: -- | BM172: -- | BN172: -- | BO172: -- | BP172: -- | BQ172: -- | BR172: -- | BS172: -- | BT172: -- | BU172: -- | BV172: -- | BW172: -- | BX172: -- | BY172: -- | BZ172: -- | CA172: -- | CB172: -- | CC172: -- | CD172: -- | CE172: -- | CF172: -- | CG172: -- | CH172: -- | CI172: -- | CJ172: -- | CK172: -- | CL172: -- | CM172: -- | CN172: -- | CO172: -- | CP172: -- | CQ172: -- | CR172: -- | CS172: -- | CT172: -- | CU172: -- | CV172: -- | CW172: -- | CX172: -- | CY172: -- | CZ172: -- | DA172: -- | DB172: -- | DC172: -- | DD172: -- | DE172: -- | DF172: -- | DG172: -- | DH172: -- | DI172: -- | DJ172: -- | DK172: -- | DL172: -- | DM172: -- | DN172: -- | DO172: -- | DP172: -- | DQ172: -- | DR172: -- | DS172: -- | DT172: -- | DU172: -- | DV172: -- | DW172: -- | DX172: -- | DY172: -- | DZ172: -- | EA172: -- | EB172: -- | EC172: -- | ED172: -- | EE172: -- | EF172: -- | EG172: -- | EH172: -- | EI172: -- | EJ172: -- | EK172: -- | EL172: -- | EM172: -- | EN172: -- | EO172: -- | EP172: -- | EQ172: -- | ER172: --
A173: Nebraska | B173: thousand megawatthours | C173: ELEC.GEN.WND-NE-99.M
A174: Nebraska : All Sectors | B174: thousand megawatthours | C174: ELEC.GEN.WND-NE-99.M | D174: 0 | E174: 0 | F174: 0 | G174: 0 | H174: 0 | I174: 0 | J174: 0 | K174: 0 | L174: 0 | M174: 0 | N174: 0 | O174: 0 | P174: 1 | Q174: 1 | R174: 0 | S174: 1 | T174: 1 | U174: 1 | V174: 1 | W174: 1 | X174: 1 | Y174: 1 | Z174: 1 | AA174: 1 | AB174: 4 | AC174: 3 | AD174: 3 | AE174: 3 | AF174: 3 | AG174: 3 | AH174: 4 | AI174: 4 | AJ174: 3 | AK174: 3 | AL174: 3 | AM174: 4 | AN174: 3 | AO174: 3 | AP174: 3 | AQ174: 3 | AR174: 3 | AS174: 3 | AT174: 3 | AU174: 3 | AV174: 3 | AW174: 3 | AX174: 3 | AY174: 3 | AZ174: 1 | BA174: 2 | BB174: 3 | BC174: 3 | BD174: 3 | BE174: 3 | BF174: 2 | BG174: 2 | BH174: 3 | BI174: 23 | BJ174: 27 | BK174: 26 | BL174: 28 | BM174: 21 | BN174: 23 | BO174: 25 | BP174: 22 | BQ174: 16 | BR174: 19 | BS174: 18 | BT174: 18 | BU174: 22 | BV174: 23 | BW174: 25 | BX174: 31 | BY174: 15 | BZ174: 22 | CA174: 18 | CB174: 17 | CC174: 17 | CD174: 15 | CE174: 12 | CF174: 14 | CG174: 18 | CH174: 20 | CI174: 18 | CJ174: 22 | CK174: 18 | CL174: 18 | CM174: 23 | CN174: 18 | CO174: 12 | CP174: 14 | CQ174: 14 | CR174: 13 | CS174: 14 | CT174: 20 | CU174: 28 | CV174: 24 | CW174: 17 | CX174: 39 | CY174: 43 | CZ174: 39 | DA174: 19 | DB174: 21 | DC174: 31 | DD174: 36 | DE174: 39 | DF174: 41 | DG174: 33 | DH174: 36 | DI174: 28 | DJ174: 41 | DK174: 42 | DL174: 39 | DM174: 24 | DN174: 28 | DO174: 30 | DP174: 30 | DQ174: 36 | DR174: 38 | DS174: 49 | DT174: 60 | DU174: 96 | DV174: 90 | DW174: 101 | DX174: 102 | DY174: 85 | DZ174: 63 | EA174: 52 | EB174: 59 | EC174: 96 | ED174: 124 | EE174: 122 | EF174: 131 | EG174: 104 | EH174: 115 | EI174: 104 | EJ174: 104 | EK174: 102 | EL174: 81 | EM174: 83 | EN174: 79 | EO174: 113 | EP174: 119 | EQ174: 141 | ER174: 151
A175: Nebraska : Electric Power | C175: ELEC.GEN.WND-NE-98.M
A176: Nebraska : Electric Utility | B176: thousand megawatthours | C176: ELEC.GEN.WND-NE-1.M | D176: 0 | E176: 0 | F176: 0 | G176: 0 | H176: 0 | I176: 0 | J176: 0 | K176: 0 | L176: 0 | M176: 0 | N176: 0 | O176: 0 | P176: 1 | Q176: 1 | R176: 0 | S176: 1 | T176: 1 | U176: 1 | V176: 1 | W176: 1 | X176: 1 | Y176: 1 | Z176: 1 | AA176: 1 | AB176: 4 | AC176: 3 | AD176: 3 | AE176: 3 | AF176: 3 | AG176: 3 | AH176: 4 | AI176: 4 | AJ176: 3 | AK176: 3 | AL176: 3 | AM176: 4 | AN176: 3 | AO176: 3 | AP176: 3 | AQ176: 3 | AR176: 3 | AS176: 3 | AT176: 3 | AU176: 3 | AV176: 3 | AW176: 3 | AX176: 3 | AY176: 3 | AZ176: 1 | BA176: 2 | BB176: 3 | BC176: 3 | BD176: 3 | BE176: 3 | BF176: 2 | BG176: 2 | BH176: 3 | BI176: 23 | BJ176: 27 | BK176: 26 | BL176: 28 | BM176: 21 | BN176: 23 | BO176: 25 | BP176: 22 | BQ176: 16 | BR176: 19 | BS176: 18 | BT176: 18 | BU176: 22 | BV176: 23 | BW176: 25 | BX176: 31 | BY176: 15 | BZ176: 22 | CA176: 18 | CB176: 17 | CC176: 17 | CD176: 15 | CE176: 12 | CF176: 14 | CG176: 18 | CH176: 20 | CI176: 18 | CJ176: 22 | CK176: 18 | CL176: 18 | CM176: 23 | CN176: 18 | CO176: 12 | CP176: 14 | CQ176: 14 | CR176: 13 | CS176: 14 | CT176: 20 | CU176: 28 | CV176: 24 | CW176: 17 | CX176: 22 | CY176: 21 | CZ176: 18 | DA176: 10 | DB176: 11 | DC176: 16 | DD176: 20 | DE176: 19 | DF176: 21 | DG176: 18 | DH176: 16 | DI176: 14 | DJ176: 20 | DK176: 22 | DL176: 20 | DM176: 14 | DN176: 16 | DO176: 17 | DP176: 17 | DQ176: 19 | DR176: 18 | DS176: 21 | DT176: 20 | DU176: 21 | DV176: 18 | DW176: 20 | DX176: 24 | DY176: 17 | DZ176: 16 | EA176: 13 | EB176: 14 | EC176: 19 | ED176: 22 | EE176: 24 | EF176: 25 | EG176: 18 | EH176: 17 | EI176: 14 | EJ176: 14 | EK176: 16 | EL176: 14 | EM176: 15 | EN176: 14 | EO176: 18 | EP176: 19 | EQ176: 19 | ER176: 21
A177: Nebraska : Independent Power Producers | B177: thousand megawatthours | C177: ELEC.GEN.WND-NE-94.M | D177: -- | E177: -- | F177: -- | G177: -- | H177: -- | I177: -- | J177: -- | K177: -- | L177: -- | M177: -- | N177: -- | O177: -- | P177: -- | Q177: -- | R177: -- | S177: -- | T177: -- | U177: -- | V177: -- | W177: -- | X177: -- | Y177: -- | Z177: -- | AA177: -- | AB177: -- | AC177: -- | AD177: -- | AE177: -- | AF177: -- | AG177: -- | AH177: -- | AI177: -- | AJ177: -- | AK177: -- | AL177: -- | AM177: -- | AN177: -- | AO177: -- | AP177: -- | AQ177: -- | AR177: -- | AS177: -- | AT177: -- | AU177: -- | AV177: -- | AW177: -- | AX177: -- | AY177: -- | AZ177: -- | BA177: -- | BB177: -- | BC177: -- | BD177: -- | BE177: -- | BF177: -- | BG177: -- | BH177: -- | BI177: -- | BJ177: -- | BK177: -- | BL177: -- | BM177: -- | BN177: -- | BO177: -- | BP177: -- | BQ177: -- | BR177: -- | BS177: -- | BT177: -- | BU177: -- | BV177: -- | BW177: -- | BX177: -- | BY177: -- | BZ177: -- | CA177: -- | CB177: -- | CC177: -- | CD177: -- | CE177: -- | CF177: -- | CG177: -- | CH177: -- | CI177: -- | CJ177: -- | CK177: -- | CL177: -- | CM177: -- | CN177: -- | CO177: -- | CP177: -- | CQ177: -- | CR177: -- | CS177: -- | CT177: -- | CU177: -- | CV177: -- | CW177: -- | CX177: 17 | CY177: 22 | CZ177: 20 | DA177: 10 | DB177: 10 | DC177: 15 | DD177: 16 | DE177: 20 | DF177: 20 | DG177: 15 | DH177: 20 | DI177: 15 | DJ177: 21 | DK177: 20 | DL177: 19 | DM177: 11 | DN177: 12 | DO177: 13 | DP177: 13 | DQ177: 17 | DR177: 20 | DS177: 28 | DT177: 40 | DU177: 75 | DV177: 72 | DW177: 81 | DX177: 79 | DY177: 67 | DZ177: 47 | EA177: 39 | EB177: 45 | EC177: 77 | ED177: 102 | EE177: 98 | EF177: 106 | EG177: 86 | EH177: 97 | EI177: 90 | EJ177: 90 | EK177: 85 | EL177: 68 | EM177: 69 | EN177: 65 | EO177: 95 | EP177: 100 | EQ177: 121 | ER177: 130
A178: Nebraska : All Commercial | B178: thousand megawatthours | C178: ELEC.GEN.WND-NE-96.M | D178: -- | E178: -- | F178: -- | G178: -- | H178: -- | I178: -- | J178: -- | K178: -- | L178: -- | M178: -- | N178: -- | O178: -- | P178: -- | Q178: -- | R178: -- | S178: -- | T178: -- | U178: -- | V178: -- | W178: -- | X178: -- | Y178: -- | Z178: -- | AA178: -- | AB178: -- | AC178: -- | AD178: -- | AE178: -- | AF178: -- | AG178: -- | AH178: -- | AI178: -- | AJ178: -- | AK178: -- | AL178: -- | AM178: -- | AN178: -- | AO178: -- | AP178: -- | AQ178: -- | AR178: -- | AS178: -- | AT178: -- | AU178: -- | AV178: -- | AW178: -- | AX178: -- | AY178: -- | AZ178: -- | BA178: -- | BB178: -- | BC178: -- | BD178: -- | BE178: -- | BF178: -- | BG178: -- | BH178: -- | BI178: -- | BJ178: -- | BK178: -- | BL178: -- | BM178: -- | BN178: -- | BO178: -- | BP178: -- | BQ178: -- | BR178: -- | BS178: -- | BT178: -- | BU178: -- | BV178: -- | BW178: -- | BX178: -- | BY178: -- | BZ178: -- | CA178: -- | CB178: -- | CC178: -- | CD178: -- | CE178: -- | CF178: -- | CG178: -- | CH178: -- | CI178: -- | CJ178: -- | CK178: -- | CL178: -- | CM178: -- | CN178: -- | CO178: -- | CP178: -- | CQ178: -- | CR178: -- | CS178: -- | CT178: -- | CU178: -- | CV178: -- | CW178: -- | CX178: -- | CY178: -- | CZ178: -- | DA178: -- | DB178: -- | DC178: -- | DD178: -- | DE178: -- | DF178: -- | DG178: -- | DH178: -- | DI178: -- | DJ178: -- | DK178: -- | DL178: -- | DM178: -- | DN178: -- | DO178: -- | DP178: -- | DQ178: -- | DR178: -- | DS178: -- | DT178: -- | DU178: -- | DV178: -- | DW178: -- | DX178: -- | DY178: -- | DZ178: -- | EA178: -- | EB178: -- | EC178: -- | ED178: -- | EE178: -- | EF178: -- | EG178: -- | EH178: -- | EI178: -- | EJ178: -- | EK178: -- | EL178: -- | EM178: -- | EN178: -- | EO178: -- | EP178: -- | EQ178: -- | ER178: --
A179: Nebraska : All Industrial | B179: thousand megawatthours | C179: ELEC.GEN.WND-NE-97.M | D179: -- | E179: -- | F179: -- | G179: -- | H179: -- | I179: -- | J179: -- | K179: -- | L179: -- | M179: -- | N179: -- | O179: -- | P179: -- | Q179: -- | R179: -- | S179: -- | T179: -- | U179: -- | V179: -- | W179: -- | X179: -- | Y179: -- | Z179: -- | AA179: -- | AB179: -- | AC179: -- | AD179: -- | AE179: -- | AF179: -- | AG179: -- | AH179: -- | AI179: -- | AJ179: -- | AK179: -- | AL179: -- | AM179: -- | AN179: -- | AO179: -- | AP179: -- | AQ179: -- | AR179: -- | AS179: -- | AT179: -- | AU179: -- | AV179: -- | AW179: -- | AX179: -- | AY179: -- | AZ179: -- | BA179: -- | BB179: -- | BC179: -- | BD179: -- | BE179: -- | BF179: -- | BG179: -- | BH179: -- | BI179: -- | BJ179: -- | BK179: -- | BL179: -- | BM179: -- | BN179: -- | BO179: -- | BP179: -- | BQ179: -- | BR179: -- | BS179: -- | BT179: -- | BU179: -- | BV179: -- | BW179: -- | BX179: -- | BY179: -- | BZ179: -- | CA179: -- | CB179: -- | CC179: -- | CD179: -- | CE179: -- | CF179: -- | CG179: -- | CH179: -- | CI179: -- | CJ179: -- | CK179: -- | CL179: -- | CM179: -- | CN179: -- | CO179: -- | CP179: -- | CQ179: -- | CR179: -- | CS179: -- | CT179: -- | CU179: -- | CV179: -- | CW179: -- | CX179: -- | CY179: -- | CZ179: -- | DA179: -- | DB179: -- | DC179: -- | DD179: -- | DE179: -- | DF179: -- | DG179: -- | DH179: -- | DI179: -- | DJ179: -- | DK179: -- | DL179: -- | DM179: -- | DN179: -- | DO179: -- | DP179: -- | DQ179: -- | DR179: -- | DS179: -- | DT179: -- | DU179: -- | DV179: -- | DW179: -- | DX179: -- | DY179: -- | DZ179: -- | EA179: -- | EB179: -- | EC179: -- | ED179: -- | EE179: -- | EF179: -- | EG179: -- | EH179: -- | EI179: -- | EJ179: -- | EK179: -- | EL179: -- | EM179: -- | EN179: -- | EO179: -- | EP179: -- | EQ179: -- | ER179: --
A180: North Dakota | B180: thousand megawatthours | C180: ELEC.GEN.WND-ND-99.M
A181: North Dakota : All Sectors | B181: thousand megawatthours | C181: ELEC.GEN.WND-ND-99.M | D181: -- | E181: -- | F181: -- | G181: -- | H181: -- | I181: -- | J181: -- | K181: -- | L181: -- | M181: -- | N181: -- | O181: -- | P181: -- | Q181: -- | R181: -- | S181: -- | T181: -- | U181: -- | V181: -- | W181: -- | X181: -- | Y181: -- | Z181: -- | AA181: -- | AB181: 1 | AC181: 0 | AD181: 0 | AE181: 1 | AF181: 1 | AG181: 0 | AH181: 0 | AI181: 1 | AJ181: 1 | AK181: 13 | AL181: 19 | AM181: 21 | AN181: 17 | AO181: 20 | AP181: 22 | AQ181: 18 | AR181: 20 | AS181: 13 | AT181: 12 | AU181: 14 | AV181: 17 | AW181: 22 | AX181: 20 | AY181: 20 | AZ181: 15 | BA181: 15 | BB181: 19 | BC181: 24 | BD181: 21 | BE181: 16 | BF181: 15 | BG181: 13 | BH181: 16 | BI181: 22 | BJ181: 22 | BK181: 23 | BL181: 28 | BM181: 32 | BN181: 32 | BO181: 32 | BP181: 36 | BQ181: 27 | BR181: 24 | BS181: 23 | BT181: 26 | BU181: 34 | BV181: 31 | BW181: 45 | BX181: 63 | BY181: 39 | BZ181: 56 | CA181: 44 | CB181: 57 | CC181: 45 | CD181: 40 | CE181: 39 | CF181: 54 | CG181: 50 | CH181: 61 | CI181: 73 | CJ181: 58 | CK181: 49 | CL181: 64 | CM181: 97 | CN181: 144 | CO181: 119 | CP181: 109 | CQ181: 159 | CR181: 173 | CS181: 227 | CT181: 201 | CU181: 293 | CV181: 296 | CW181: 245 | CX181: 283 | CY181: 268 | CZ181: 265 | DA181: 161 | DB181: 179 | DC181: 178 | DD181: 259 | DE181: 255 | DF181: 338 | DG181: 269 | DH181: 323 | DI181: 203 | DJ181: 303 | DK181: 359 | DL181: 427 | DM181: 280 | DN181: 257 | DO181: 341 | DP181: 421 | DQ181: 400 | DR181: 400 | DS181: 382 | DT181: 436 | DU181: 523 | DV181: 435 | DW181: 444 | DX181: 525 | DY181: 381 | DZ181: 272 | EA181: 297 | EB181: 360 | EC181: 475 | ED181: 541 | EE181: 547 | EF181: 590 | EG181: 402 | EH181: 549 | EI181: 557 | EJ181: 483 | EK181: 405 | EL181: 274 | EM181: 308 | EN181: 387 | EO181: 553 | EP181: 418 | EQ181: 390 | ER181: 602
A182: North Dakota : Electric Power | C182: ELEC.GEN.WND-ND-98.M
A183: North Dakota : Electric Utility | B183: thousand megawatthours | C183: ELEC.GEN.WND-ND-1.M | D183: -- | E183: -- | F183: -- | G183: -- | H183: -- | I183: -- | J183: -- | K183: -- | L183: -- | M183: -- | N183: -- | O183: -- | P183: -- | Q183: -- | R183: -- | S183: -- | T183: -- | U183: -- | V183: -- | W183: -- | X183: -- | Y183: -- | Z183: -- | AA183: -- | AB183: 1 | AC183: 0 | AD183: 0 | AE183: 1 | AF183: 1 | AG183: 0 | AH183: 0 | AI183: 1 | AJ183: 1 | AK183: 1 | AL183: 1 | AM183: 1 | AN183: 0 | AO183: 0 | AP183: 1 | AQ183: 0 | AR183: 1 | AS183: 0 | AT183: 0 | AU183: 0 | AV183: 0 | AW183: 1 | AX183: 1 | AY183: 1 | AZ183: 0 | BA183: 0 | BB183: 1 | BC183: 1 | BD183: 1 | BE183: 0 | BF183: 0 | BG183: 0 | BH183: 0 | BI183: 0 | BJ183: 0 | BK183: 0 | BL183: -- | BM183: 0 | BN183: 1 | BO183: 1 | BP183: 1 | BQ183: 0 | BR183: 0 | BS183: 0 | BT183: 1 | BU183: 1 | BV183: 1 | BW183: 1 | BX183: 1 | BY183: 1 | BZ183: 1 | CA183: 1 | CB183: 1 | CC183: 1 | CD183: 0 | CE183: 0 | CF183: 1 | CG183: 1 | CH183: 1 | CI183: 0 | CJ183: 0 | CK183: 0 | CL183: 0 | CM183: 0 | CN183: 1 | CO183: 0 | CP183: 0 | CQ183: 1 | CR183: 1 | CS183: 1 | CT183: 1 | CU183: 1 | CV183: 33 | CW183: 28 | CX183: 33 | CY183: 29 | CZ183: 30 | DA183: 19 | DB183: 21 | DC183: 19 | DD183: 40 | DE183: 34 | DF183: 46 | DG183: 39 | DH183: 64 | DI183: 43 | DJ183: 64 | DK183: 76 | DL183: 89 | DM183: 59 | DN183: 57 | DO183: 74 | DP183: 88 | DQ183: 89 | DR183: 84 | DS183: 92 | DT183: 98 | DU183: 106 | DV183: 99 | DW183: 90 | DX183: 105 | DY183: 77 | DZ183: 59 | EA183: 66 | EB183: 74 | EC183: 105 | ED183: 117 | EE183: 125 | EF183: 137 | EG183: 92 | EH183: 128 | EI183: 131 | EJ183: 114 | EK183: 95 | EL183: 64 | EM183: 78 | EN183: 97 | EO183: 132 | EP183: 102 | EQ183: 96 | ER183: 181
A184: North Dakota : Independent Power Producers | B184: thousand megawatthours | C184: ELEC.GEN.WND-ND-94.M | D184: -- | E184: -- | F184: -- | G184: -- | H184: -- | I184: -- | J184: -- | K184: -- | L184: -- | M184: -- | N184: -- | O184: -- | P184: -- | Q184: -- | R184: -- | S184: -- | T184: -- | U184: -- | V184: -- | W184: -- | X184: -- | Y184: -- | Z184: -- | AA184: -- | AB184: -- | AC184: -- | AD184: -- | AE184: -- | AF184: -- | AG184: -- | AH184: -- | AI184: -- | AJ184: -- | AK184: 13 | AL184: 19 | AM184: 21 | AN184: 17 | AO184: 20 | AP184: 21 | AQ184: 17 | AR184: 19 | AS184: 13 | AT184: 12 | AU184: 14 | AV184: 17 | AW184: 21 | AX184: 20 | AY184: 19 | AZ184: 15 | BA184: 15 | BB184: 18 | BC184: 23 | BD184: 21 | BE184: 15 | BF184: 14 | BG184: 12 | BH184: 16 | BI184: 21 | BJ184: 22 | BK184: 23 | BL184: 28 | BM184: 32 | BN184: 31 | BO184: 31 | BP184: 35 | BQ184: 26 | BR184: 23 | BS184: 23 | BT184: 26 | BU184: 34 | BV184: 30 | BW184: 44 | BX184: 62 | BY184: 39 | BZ184: 55 | CA184: 43 | CB184: 56 | CC184: 45 | CD184: 40 | CE184: 38 | CF184: 53 | CG184: 50 | CH184: 60 | CI184: 73 | CJ184: 58 | CK184: 49 | CL184: 64 | CM184: 97 | CN184: 143 | CO184: 118 | CP184: 108 | CQ184: 159 | CR184: 172 | CS184: 226 | CT184: 200 | CU184: 292 | CV184: 263 | CW184: 217 | CX184: 250 | CY184: 239 | CZ184: 235 | DA184: 142 | DB184: 157 | DC184: 159 | DD184: 219 | DE184: 221 | DF184: 292 | DG184: 230 | DH184: 259 | DI184: 160 | DJ184: 239 | DK184: 283 | DL184: 338 | DM184: 221 | DN184: 200 | DO184: 266 | DP184: 333 | DQ184: 311 | DR184: 316 | DS184: 291 | DT184: 337 | DU184: 417 | DV184: 337 | DW184: 354 | DX184: 420 | DY184: 304 | DZ184: 213 | EA184: 231 | EB184: 286 | EC184: 370 | ED184: 424 | EE184: 422 | EF184: 454 | EG184: 309 | EH184: 421 | EI184: 426 | EJ184: 369 | EK184: 310 | EL184: 209 | EM184: 230 | EN184: 291 | EO184: 421 | EP184: 317 | EQ184: 294 | ER184: 421
A185: North Dakota : All Commercial | B185: thousand megawatthours | C185: ELEC.GEN.WND-ND-96.M | D185: -- | E185: -- | F185: -- | G185: -- | H185: -- | I185: -- | J185: -- | K185: -- | L185: -- | M185: -- | N185: -- | O185: -- | P185: -- | Q185: -- | R185: -- | S185: -- | T185: -- | U185: -- | V185: -- | W185: -- | X185: -- | Y185: -- | Z185: -- | AA185: -- | AB185: -- | AC185: -- | AD185: -- | AE185: -- | AF185: -- | AG185: -- | AH185: -- | AI185: -- | AJ185: -- | AK185: -- | AL185: -- | AM185: -- | AN185: -- | AO185: -- | AP185: -- | AQ185: -- | AR185: -- | AS185: -- | AT185: -- | AU185: -- | AV185: -- | AW185: -- | AX185: -- | AY185: -- | AZ185: -- | BA185: -- | BB185: -- | BC185: -- | BD185: -- | BE185: -- | BF185: -- | BG185: -- | BH185: -- | BI185: -- | BJ185: -- | BK185: -- | BL185: -- | BM185: -- | BN185: -- | BO185: -- | BP185: -- | BQ185: -- | BR185: -- | BS185: -- | BT185: -- | BU185: -- | BV185: -- | BW185: -- | BX185: -- | BY185: -- | BZ185: -- | CA185: -- | CB185: -- | CC185: -- | CD185: -- | CE185: -- | CF185: -- | CG185: -- | CH185: -- | CI185: -- | CJ185: -- | CK185: -- | CL185: -- | CM185: -- | CN185: -- | CO185: -- | CP185: -- | CQ185: -- | CR185: -- | CS185: -- | CT185: -- | CU185: -- | CV185: -- | CW185: -- | CX185: -- | CY185: -- | CZ185: -- | DA185: -- | DB185: -- | DC185: -- | DD185: -- | DE185: -- | DF185: -- | DG185: -- | DH185: -- | DI185: -- | DJ185: -- | DK185: -- | DL185: -- | DM185: -- | DN185: -- | DO185: -- | DP185: -- | DQ185: -- | DR185: -- | DS185: -- | DT185: -- | DU185: -- | DV185: -- | DW185: -- | DX185: -- | DY185: -- | DZ185: -- | EA185: -- | EB185: -- | EC185: -- | ED185: -- | EE185: -- | EF185: -- | EG185: -- | EH185: -- | EI185: -- | EJ185: -- | EK185: -- | EL185: -- | EM185: -- | EN185: -- | EO185: -- | EP185: -- | EQ185: -- | ER185: --
A186: North Dakota : All Industrial | B186: thousand megawatthours | C186: ELEC.GEN.WND-ND-97.M | D186: -- | E186: -- | F186: -- | G186: -- | H186: -- | I186: -- | J186: -- | K186: -- | L186: -- | M186: -- | N186: -- | O186: -- | P186: -- | Q186: -- | R186: -- | S186: -- | T186: -- | U186: -- | V186: -- | W186: -- | X186: -- | Y186: -- | Z186: -- | AA186: -- | AB186: -- | AC186: -- | AD186: -- | AE186: -- | AF186: -- | AG186: -- | AH186: -- | AI186: -- | AJ186: -- | AK186: -- | AL186: -- | AM186: -- | AN186: -- | AO186: -- | AP186: -- | AQ186: -- | AR186: -- | AS186: -- | AT186: -- | AU186: -- | AV186: -- | AW186: -- | AX186: -- | AY186: -- | AZ186: -- | BA186: -- | BB186: -- | BC186: -- | BD186: -- | BE186: -- | BF186: -- | BG186: -- | BH186: -- | BI186: -- | BJ186: -- | BK186: -- | BL186: -- | BM186: -- | BN186: -- | BO186: -- | BP186: -- | BQ186: -- | BR186: -- | BS186: -- | BT186: -- | BU186: -- | BV186: -- | BW186: -- | BX186: -- | BY186: -- | BZ186: -- | CA186: -- | CB186: -- | CC186: -- | CD186: -- | CE186: -- | CF186: -- | CG186: -- | CH186: -- | CI186: -- | CJ186: -- | CK186: -- | CL186: -- | CM186: -- | CN186: -- | CO186: -- | CP186: -- | CQ186: -- | CR186: -- | CS186: -- | CT186: -- | CU186: -- | CV186: -- | CW186: -- | CX186: -- | CY186: -- | CZ186: -- | DA186: -- | DB186: -- | DC186: -- | DD186: -- | DE186: -- | DF186: -- | DG186: -- | DH186: -- | DI186: -- | DJ186: -- | DK186: -- | DL186: -- | DM186: -- | DN186: -- | DO186: -- | DP186: -- | DQ186: -- | DR186: -- | DS186: -- | DT186: -- | DU186: -- | DV186: -- | DW186: -- | DX186: -- | DY186: -- | DZ186: -- | EA186: -- | EB186: -- | EC186: -- | ED186: -- | EE186: -- | EF186: -- | EG186: -- | EH186: -- | EI186: -- | EJ186: -- | EK186: -- | EL186: -- | EM186: -- | EN186: -- | EO186: -- | EP186: -- | EQ186: -- | ER186: --
A187: South Dakota | B187: thousand megawatthours | C187: ELEC.GEN.WND-SD-99.M
A188: South Dakota : All Sectors | B188: thousand megawatthours | C188: ELEC.GEN.WND-SD-99.M | D188: -- | E188: -- | F188: -- | G188: -- | H188: -- | I188: -- | J188: -- | K188: -- | L188: -- | M188: -- | N188: 0 | O188: 0 | P188: 0 | Q188: 1 | R188: 0 | S188: 1 | T188: 1 | U188: 0 | V188: 0 | W188: 0 | X188: 0 | Y188: 0 | Z188: 1 | AA188: 0 | AB188: 0 | AC188: 0 | AD188: 1 | AE188: 1 | AF188: 1 | AG188: 0 | AH188: 0 | AI188: 0 | AJ188: 0 | AK188: 10 | AL188: 14 | AM188: 16 | AN188: 13 | AO188: 15 | AP188: 16 | AQ188: 13 | AR188: 15 | AS188: 9 | AT188: 9 | AU188: 11 | AV188: 14 | AW188: 15 | AX188: 13 | AY188: 15 | AZ188: 12 | BA188: 10 | BB188: 13 | BC188: 17 | BD188: 16 | BE188: 13 | BF188: 12 | BG188: 10 | BH188: 14 | BI188: 13 | BJ188: 14 | BK188: 15 | BL188: 12 | BM188: 12 | BN188: 16 | BO188: 13 | BP188: 14 | BQ188: 9 | BR188: 10 | BS188: 11 | BT188: 11 | BU188: 13 | BV188: 12 | BW188: 14 | BX188: 16 | BY188: 11 | BZ188: 14 | CA188: 12 | CB188: 15 | CC188: 12 | CD188: 10 | CE188: 9 | CF188: 15 | CG188: 14 | CH188: 13 | CI188: 10 | CJ188: 11 | CK188: 9 | CL188: 10 | CM188: 14 | CN188: 12 | CO188: 9 | CP188: 8 | CQ188: 8 | CR188: 10 | CS188: 14 | CT188: 15 | CU188: 26 | CV188: 17 | CW188: 25 | CX188: 25 | CY188: 53 | CZ188: 45 | DA188: 25 | DB188: 27 | DC188: 33 | DD188: 37 | DE188: 43 | DF188: 41 | DG188: 49 | DH188: 84 | DI188: 60 | DJ188: 99 | DK188: 130 | DL188: 150 | DM188: 102 | DN188: 97 | DO188: 119 | DP188: 132 | DQ188: 130 | DR188: 134 | DS188: 134 | DT188: 183 | DU188: 264 | DV188: 234 | DW188: 263 | DX188: 283 | DY188: 208 | DZ188: 149 | EA188: 157 | EB188: 142 | EC188: 253 | ED188: 275 | EE188: 257 | EF188: 289 | EG188: 225 | EH188: 289 | EI188: 286 | EJ188: 271 | EK188: 228 | EL188: 184 | EM188: 174 | EN188: 198 | EO188: 294 | EP188: 262 | EQ188: 214 | ER188: 263
A189: South Dakota : Electric Power | C189: ELEC.GEN.WND-SD-98.M
A190: South Dakota : Electric Utility | B190: thousand megawatthours | C190: ELEC.GEN.WND-SD-1.M | D190: -- | E190: -- | F190: -- | G190: -- | H190: -- | I190: -- | J190: -- | K190: -- | L190: -- | M190: -- | N190: 0 | O190: 0 | P190: 0 | Q190: 1 | R190: 0 | S190: 1 | T190: 1 | U190: 0 | V190: 0 | W190: 0 | X190: 0 | Y190: 0 | Z190: 1 | AA190: 0 | AB190: 0 | AC190: 0 | AD190: 1 | AE190: 1 | AF190: 1 | AG190: 0 | AH190: 0 | AI190: 0 | AJ190: 0 | AK190: 0 | AL190: 0 | AM190: 1 | AN190: 0 | AO190: 1 | AP190: 1 | AQ190: 0 | AR190: 0 | AS190: 0 | AT190: 0 | AU190: 0 | AV190: 0 | AW190: 0 | AX190: 0 | AY190: 0 | AZ190: 0 | BA190: 0 | BB190: 1 | BC190: 1 | BD190: 1 | BE190: 1 | BF190: 0 | BG190: 0 | BH190: 0 | BI190: 0 | BJ190: 1 | BK190: 0 | BL190: 0 | BM190: 0 | BN190: 1 | BO190: 1 | BP190: 1 | BQ190: 0 | BR190: 0 | BS190: 0 | BT190: 0 | BU190: 1 | BV190: 0 | BW190: 0 | BX190: 0 | BY190: 0 | BZ190: 0 | CA190: 0 | CB190: 1 | CC190: 0 | CD190: 0 | CE190: 0 | CF190: 1 | CG190: 1 | CH190: 1 | CI190: 0 | CJ190: 0 | CK190: 0 | CL190: 0 | CM190: 1 | CN190: 0 | CO190: 0 | CP190: 0 | CQ190: 0 | CR190: 0 | CS190: 1 | CT190: 1 | CU190: 1 | CV190: 0 | CW190: 0 | CX190: 0 | CY190: 1 | CZ190: 1 | DA190: 0 | DB190: 0 | DC190: 0 | DD190: 0 | DE190: 1 | DF190: 0 | DG190: 1 | DH190: 0 | DI190: 0 | DJ190: 0 | DK190: 0 | DL190: 1 | DM190: 0 | DN190: 0 | DO190: 0 | DP190: 0 | DQ190: 0 | DR190: 0 | DS190: 0 | DT190: 12 | DU190: 36 | DV190: 45 | DW190: 57 | DX190: 52 | DY190: 41 | DZ190: 35 | EA190: 35 | EB190: 27 | EC190: 59 | ED190: 54 | EE190: 56 | EF190: 66 | EG190: 49 | EH190: 65 | EI190: 64 | EJ190: 61 | EK190: 57 | EL190: 46 | EM190: 45 | EN190: 48 | EO190: 62 | EP190: 55 | EQ190: 50 | ER190: 57
A191: South Dakota : Independent Power Producers | B191: thousand megawatthours | C191: ELEC.GEN.WND-SD-94.M | D191: -- | E191: -- | F191: -- | G191: -- | H191: -- | I191: -- | J191: -- | K191: -- | L191: -- | M191: -- | N191: -- | O191: -- | P191: -- | Q191: -- | R191: -- | S191: -- | T191: -- | U191: -- | V191: -- | W191: -- | X191: -- | Y191: -- | Z191: -- | AA191: -- | AB191: -- | AC191: -- | AD191: -- | AE191: -- | AF191: -- | AG191: -- | AH191: -- | AI191: -- | AJ191: -- | AK191: 10 | AL191: 14 | AM191: 15 | AN191: 12 | AO191: 14 | AP191: 16 | AQ191: 13 | AR191: 14 | AS191: 9 | AT191: 9 | AU191: 11 | AV191: 13 | AW191: 15 | AX191: 12 | AY191: 14 | AZ191: 12 | BA191: 9 | BB191: 12 | BC191: 17 | BD191: 15 | BE191: 13 | BF191: 11 | BG191: 10 | BH191: 13 | BI191: 13 | BJ191: 13 | BK191: 14 | BL191: 12 | BM191: 12 | BN191: 16 | BO191: 13 | BP191: 14 | BQ191: 9 | BR191: 9 | BS191: 11 | BT191: 10 | BU191: 13 | BV191: 12 | BW191: 14 | BX191: 15 | BY191: 11 | BZ191: 14 | CA191: 11 | CB191: 14 | CC191: 11 | CD191: 9 | CE191: 9 | CF191: 14 | CG191: 14 | CH191: 13 | CI191: 9 | CJ191: 11 | CK191: 8 | CL191: 10 | CM191: 13 | CN191: 12 | CO191: 9 | CP191: 7 | CQ191: 7 | CR191: 10 | CS191: 13 | CT191: 14 | CU191: 25 | CV191: 17 | CW191: 25 | CX191: 24 | CY191: 53 | CZ191: 45 | DA191: 25 | DB191: 26 | DC191: 33 | DD191: 37 | DE191: 42 | DF191: 41 | DG191: 48 | DH191: 84 | DI191: 60 | DJ191: 99 | DK191: 130 | DL191: 149 | DM191: 101 | DN191: 96 | DO191: 119 | DP191: 132 | DQ191: 130 | DR191: 134 | DS191: 133 | DT191: 171 | DU191: 227 | DV191: 189 | DW191: 206 | DX191: 231 | DY191: 167 | DZ191: 114 | EA191: 122 | EB191: 115 | EC191: 194 | ED191: 221 | EE191: 201 | EF191: 222 | EG191: 175 | EH191: 225 | EI191: 222 | EJ191: 210 | EK191: 171 | EL191: 138 | EM191: 129 | EN191: 150 | EO191: 232 | EP191: 207 | EQ191: 164 | ER191: 206
A192: South Dakota : All Commercial | B192: thousand megawatthours | C192: ELEC.GEN.WND-SD-96.M | D192: -- | E192: -- | F192: -- | G192: -- | H192: -- | I192: -- | J192: -- | K192: -- | L192: -- | M192: -- | N192: -- | O192: -- | P192: -- | Q192: -- | R192: -- | S192: -- | T192: -- | U192: -- | V192: -- | W192: -- | X192: -- | Y192: -- | Z192: -- | AA192: -- | AB192: -- | AC192: -- | AD192: -- | AE192: -- | AF192: -- | AG192: -- | AH192: -- | AI192: -- | AJ192: -- | AK192: -- | AL192: -- | AM192: -- | AN192: -- | AO192: -- | AP192: -- | AQ192: -- | AR192: -- | AS192: -- | AT192: -- | AU192: -- | AV192: -- | AW192: -- | AX192: -- | AY192: -- | AZ192: -- | BA192: -- | BB192: -- | BC192: -- | BD192: -- | BE192: -- | BF192: -- | BG192: -- | BH192: -- | BI192: -- | BJ192: -- | BK192: -- | BL192: -- | BM192: -- | BN192: -- | BO192: -- | BP192: -- | BQ192: -- | BR192: -- | BS192: -- | BT192: -- | BU192: -- | BV192: -- | BW192: -- | BX192: -- | BY192: -- | BZ192: -- | CA192: -- | CB192: -- | CC192: -- | CD192: -- | CE192: -- | CF192: -- | CG192: -- | CH192: -- | CI192: -- | CJ192: -- | CK192: -- | CL192: -- | CM192: -- | CN192: -- | CO192: -- | CP192: -- | CQ192: -- | CR192: -- | CS192: -- | CT192: -- | CU192: -- | CV192: -- | CW192: -- | CX192: -- | CY192: -- | CZ192: -- | DA192: -- | DB192: -- | DC192: -- | DD192: -- | DE192: -- | DF192: -- | DG192: -- | DH192: -- | DI192: -- | DJ192: -- | DK192: -- | DL192: -- | DM192: -- | DN192: -- | DO192: -- | DP192: -- | DQ192: -- | DR192: -- | DS192: -- | DT192: -- | DU192: -- | DV192: -- | DW192: -- | DX192: -- | DY192: -- | DZ192: -- | EA192: -- | EB192: -- | EC192: -- | ED192: -- | EE192: -- | EF192: -- | EG192: -- | EH192: -- | EI192: -- | EJ192: -- | EK192: -- | EL192: -- | EM192: -- | EN192: -- | EO192: -- | EP192: -- | EQ192: -- | ER192: --
A193: South Dakota : All Industrial | B193: thousand megawatthours | C193: ELEC.GEN.WND-SD-97.M | D193: -- | E193: -- | F193: -- | G193: -- | H193: -- | I193: -- | J193: -- | K193: -- | L193: -- | M193: -- | N193: -- | O193: -- | P193: -- | Q193: -- | R193: -- | S193: -- | T193: -- | U193: -- | V193: -- | W193: -- | X193: -- | Y193: -- | Z193: -- | AA193: -- | AB193: -- | AC193: -- | AD193: -- | AE193: -- | AF193: -- | AG193: -- | AH193: -- | AI193: -- | AJ193: -- | AK193: -- | AL193: -- | AM193: -- | AN193: -- | AO193: -- | AP193: -- | AQ193: -- | AR193: -- | AS193: -- | AT193: -- | AU193: -- | AV193: -- | AW193: -- | AX193: -- | AY193: -- | AZ193: -- | BA193: -- | BB193: -- | BC193: -- | BD193: -- | BE193: -- | BF193: -- | BG193: -- | BH193: -- | BI193: -- | BJ193: -- | BK193: -- | BL193: -- | BM193: -- | BN193: -- | BO193: -- | BP193: -- | BQ193: -- | BR193: -- | BS193: -- | BT193: -- | BU193: -- | BV193: -- | BW193: -- | BX193: -- | BY193: -- | BZ193: -- | CA193: -- | CB193: -- | CC193: -- | CD193: -- | CE193: -- | CF193: -- | CG193: -- | CH193: -- | CI193: -- | CJ193: -- | CK193: -- | CL193: -- | CM193: -- | CN193: -- | CO193: -- | CP193: -- | CQ193: -- | CR193: -- | CS193: -- | CT193: -- | CU193: -- | CV193: -- | CW193: -- | CX193: -- | CY193: -- | CZ193: -- | DA193: -- | DB193: -- | DC193: -- | DD193: -- | DE193: -- | DF193: -- | DG193: -- | DH193: -- | DI193: -- | DJ193: -- | DK193: -- | DL193: -- | DM193: -- | DN193: -- | DO193: -- | DP193: -- | DQ193: -- | DR193: -- | DS193: -- | DT193: -- | DU193: -- | DV193: -- | DW193: -- | DX193: -- | DY193: -- | DZ193: -- | EA193: -- | EB193: -- | EC193: -- | ED193: -- | EE193: -- | EF193: -- | EG193: -- | EH193: -- | EI193: -- | EJ193: -- | EK193: -- | EL193: -- | EM193: -- | EN193: -- | EO193: -- | EP193: -- | EQ193: -- | ER193: --
A194: South Atlantic | B194: thousand megawatthours | C194: ELEC.GEN.WND-SAT-99.M
A195: South Atlantic : All Sectors | B195: thousand megawatthours | C195: ELEC.GEN.WND-SAT-99.M | D195: -- | E195: -- | F195: -- | G195: -- | H195: -- | I195: -- | J195: -- | K195: -- | L195: -- | M195: -- | N195: -- | O195: -- | P195: -- | Q195: -- | R195: -- | S195: -- | T195: -- | U195: -- | V195: -- | W195: -- | X195: -- | Y195: -- | Z195: -- | AA195: 9 | AB195: 16 | AC195: 15 | AD195: 17 | AE195: 17 | AF195: 14 | AG195: 10 | AH195: 11 | AI195: 4 | AJ195: 12 | AK195: 16 | AL195: 19 | AM195: 20 | AN195: 24 | AO195: 17 | AP195: 18 | AQ195: 16 | AR195: 12 | AS195: 8 | AT195: 8 | AU195: 4 | AV195: 9 | AW195: 10 | AX195: 15 | AY195: 19 | AZ195: 14 | BA195: 15 | BB195: 17 | BC195: 16 | BD195: 11 | BE195: 9 | BF195: 5 | BG195: 7 | BH195: 8 | BI195: 12 | BJ195: 18 | BK195: 22 | BL195: 24 | BM195: 23 | BN195: 16 | BO195: 13 | BP195: 13 | BQ195: 6 | BR195: 8 | BS195: 7 | BT195: 10 | BU195: 19 | BV195: 11 | BW195: 23 | BX195: 22 | BY195: 20 | BZ195: 17 | CA195: 19 | CB195: 9 | CC195: 7 | CD195: 7 | CE195: 5 | CF195: 6 | CG195: 13 | CH195: 19 | CI195: 22 | CJ195: 22 | CK195: 19 | CL195: 25 | CM195: 20 | CN195: 20 | CO195: 26 | CP195: 19 | CQ195: 22 | CR195: 24 | CS195: 56 | CT195: 68 | CU195: 72 | CV195: 86 | CW195: 86 | CX195: 69 | CY195: 71 | CZ195: 31 | DA195: 49 | DB195: 49 | DC195: 32 | DD195: 46 | DE195: 71 | DF195: 68 | DG195: 86 | DH195: 92 | DI195: 79 | DJ195: 85 | DK195: 86 | DL195: 66 | DM195: 69 | DN195: 49 | DO195: 33 | DP195: 67 | DQ195: 114 | DR195: 90 | DS195: 114 | DT195: 121 | DU195: 137 | DV195: 135 | DW195: 139 | DX195: 60 | DY195: 74 | DZ195: 52 | EA195: 87 | EB195: 79 | EC195: 162 | ED195: 163 | EE195: 169 | EF195: 241 | EG195: 184 | EH195: 170 | EI195: 160 | EJ195: 75 | EK195: 113 | EL195: 103 | EM195: 52 | EN195: 81 | EO195: 124 | EP195: 131 | EQ195: 170 | ER195: 211
A196: South Atlantic : Electric Power | C196: ELEC.GEN.WND-SAT-98.M
A197: South Atlantic : Electric Utility | B197: thousand megawatthours | C197: ELEC.GEN.WND-SAT-1.M | D197: -- | E197: -- | F197: -- | G197: -- | H197: -- | I197: -- | J197: -- | K197: -- | L197: -- | M197: -- | N197: -- | O197: -- | P197: -- | Q197: -- | R197: -- | S197: -- | T197: -- | U197: -- | V197: -- | W197: -- | X197: -- | Y197: -- | Z197: -- | AA197: -- | AB197: -- | AC197: -- | AD197: -- | AE197: -- | AF197: -- | AG197: -- | AH197: -- | AI197: -- | AJ197: -- | AK197: -- | AL197: -- | AM197: -- | AN197: -- | AO197: -- | AP197: -- | AQ197: -- | AR197: -- | AS197: -- | AT197: -- | AU197: -- | AV197: -- | AW197: -- | AX197: -- | AY197: -- | AZ197: -- | BA197: -- | BB197: -- | BC197: -- | BD197: -- | BE197: -- | BF197: -- | BG197: -- | BH197: -- | BI197: -- | BJ197: -- | BK197: -- | BL197: -- | BM197: -- | BN197: -- | BO197: -- | BP197: -- | BQ197: -- | BR197: -- | BS197: -- | BT197: -- | BU197: -- | BV197: -- | BW197: -- | BX197: -- | BY197: -- | BZ197: -- | CA197: -- | CB197: -- | CC197: -- | CD197: -- | CE197: -- | CF197: -- | CG197: -- | CH197: -- | CI197: -- | CJ197: -- | CK197: -- | CL197: -- | CM197: -- | CN197: -- | CO197: -- | CP197: -- | CQ197: -- | CR197: -- | CS197: -- | CT197: -- | CU197: -- | CV197: -- | CW197: -- | CX197: -- | CY197: -- | CZ197: -- | DA197: -- | DB197: -- | DC197: -- | DD197: -- | DE197: -- | DF197: -- | DG197: -- | DH197: -- | DI197: -- | DJ197: -- | DK197: -- | DL197: -- | DM197: -- | DN197: -- | DO197: -- | DP197: -- | DQ197: -- | DR197: -- | DS197: -- | DT197: -- | DU197: -- | DV197: -- | DW197: -- | DX197: -- | DY197: -- | DZ197: -- | EA197: -- | EB197: -- | EC197: -- | ED197: -- | EE197: -- | EF197: -- | EG197: -- | EH197: -- | EI197: -- | EJ197: -- | EK197: -- | EL197: -- | EM197: -- | EN197: -- | EO197: -- | EP197: -- | EQ197: -- | ER197: --
A198: South Atlantic : Independent Power Producers | B198: thousand megawatthours | C198: ELEC.GEN.WND-SAT-94.M | D198: -- | E198: -- | F198: -- | G198: -- | H198: -- | I198: -- | J198: -- | K198: -- | L198: -- | M198: -- | N198: -- | O198: -- | P198: -- | Q198: -- | R198: -- | S198: -- | T198: -- | U198: -- | V198: -- | W198: -- | X198: -- | Y198: -- | Z198: -- | AA198: 9 | AB198: 16 | AC198: 15 | AD198: 17 | AE198: 17 | AF198: 14 | AG198: 10 | AH198: 11 | AI198: 4 | AJ198: 12 | AK198: 16 | AL198: 19 | AM198: 20 | AN198: 24 | AO198: 17 | AP198: 18 | AQ198: 16 | AR198: 12 | AS198: 8 | AT198: 8 | AU198: 4 | AV198: 9 | AW198: 10 | AX198: 15 | AY198: 19 | AZ198: 14 | BA198: 15 | BB198: 17 | BC198: 16 | BD198: 11 | BE198: 9 | BF198: 5 | BG198: 7 | BH198: 8 | BI198: 12 | BJ198: 18 | BK198: 22 | BL198: 24 | BM198: 23 | BN198: 16 | BO198: 13 | BP198: 13 | BQ198: 6 | BR198: 8 | BS198: 7 | BT198: 10 | BU198: 19 | BV198: 11 | BW198: 23 | BX198: 22 | BY198: 20 | BZ198: 17 | CA198: 19 | CB198: 9 | CC198: 7 | CD198: 7 | CE198: 5 | CF198: 6 | CG198: 13 | CH198: 19 | CI198: 22 | CJ198: 22 | CK198: 19 | CL198: 25 | CM198: 20 | CN198: 20 | CO198: 26 | CP198: 19 | CQ198: 22 | CR198: 24 | CS198: 56 | CT198: 68 | CU198: 72 | CV198: 86 | CW198: 86 | CX198: 69 | CY198: 71 | CZ198: 31 | DA198: 49 | DB198: 49 | DC198: 32 | DD198: 46 | DE198: 71 | DF198: 68 | DG198: 86 | DH198: 92 | DI198: 79 | DJ198: 85 | DK198: 86 | DL198: 66 | DM198: 69 | DN198: 49 | DO198: 33 | DP198: 67 | DQ198: 114 | DR198: 90 | DS198: 114 | DT198: 121 | DU198: 137 | DV198: 134 | DW198: 138 | DX198: 59 | DY198: 74 | DZ198: 52 | EA198: 87 | EB198: 79 | EC198: 161 | ED198: 163 | EE198: 168 | EF198: 240 | EG198: 184 | EH198: 169 | EI198: 159 | EJ198: 75 | EK198: 113 | EL198: 103 | EM198: 52 | EN198: 81 | EO198: 123 | EP198: 130 | EQ198: 170 | ER198: 210
A199: South Atlantic : All Commercial | B199: thousand megawatthours | C199: ELEC.GEN.WND-SAT-96.M | D199: -- | E199: -- | F199: -- | G199: -- | H199: -- | I199: -- | J199: -- | K199: -- | L199: -- | M199: -- | N199: -- | O199: -- | P199: -- | Q199: -- | R199: -- | S199: -- | T199: -- | U199: -- | V199: -- | W199: -- | X199: -- | Y199: -- | Z199: -- | AA199: -- | AB199: -- | AC199: -- | AD199: -- | AE199: -- | AF199: -- | AG199: -- | AH199: -- | AI199: -- | AJ199: -- | AK199: -- | AL199: -- | AM199: -- | AN199: -- | AO199: -- | AP199: -- | AQ199: -- | AR199: -- | AS199: -- | AT199: -- | AU199: -- | AV199: -- | AW199: -- | AX199: -- | AY199: -- | AZ199: -- | BA199: -- | BB199: -- | BC199: -- | BD199: -- | BE199: -- | BF199: -- | BG199: -- | BH199: -- | BI199: -- | BJ199: -- | BK199: -- | BL199: -- | BM199: -- | BN199: -- | BO199: -- | BP199: -- | BQ199: -- | BR199: -- | BS199: -- | BT199: -- | BU199: -- | BV199: -- | BW199: -- | BX199: -- | BY199: -- | BZ199: -- | CA199: -- | CB199: -- | CC199: -- | CD199: -- | CE199: -- | CF199: -- | CG199: -- | CH199: -- | CI199: -- | CJ199: -- | CK199: -- | CL199: -- | CM199: -- | CN199: -- | CO199: -- | CP199: -- | CQ199: -- | CR199: -- | CS199: -- | CT199: -- | CU199: -- | CV199: -- | CW199: -- | CX199: -- | CY199: -- | CZ199: -- | DA199: -- | DB199: -- | DC199: -- | DD199: -- | DE199: -- | DF199: -- | DG199: -- | DH199: -- | DI199: -- | DJ199: -- | DK199: -- | DL199: -- | DM199: -- | DN199: -- | DO199: -- | DP199: -- | DQ199: -- | DR199: -- | DS199: -- | DT199: 0 | DU199: 0 | DV199: 0 | DW199: 0 | DX199: 0 | DY199: 0 | DZ199: 0 | EA199: 0 | EB199: 0 | EC199: 1 | ED199: 1 | EE199: 1 | EF199: NM | EG199: NM | EH199: NM | EI199: NM | EJ199: NM | EK199: NM | EL199: NM | EM199: NM | EN199: NM | EO199: NM | EP199: NM | EQ199: NM | ER199: NM
A200: South Atlantic : All Industrial | B200: thousand megawatthours | C200: ELEC.GEN.WND-SAT-97.M | D200: -- | E200: -- | F200: -- | G200: -- | H200: -- | I200: -- | J200: -- | K200: -- | L200: -- | M200: -- | N200: -- | O200: -- | P200: -- | Q200: -- | R200: -- | S200: -- | T200: -- | U200: -- | V200: -- | W200: -- | X200: -- | Y200: -- | Z200: -- | AA200: -- | AB200: -- | AC200: -- | AD200: -- | AE200: -- | AF200: -- | AG200: -- | AH200: -- | AI200: -- | AJ200: -- | AK200: -- | AL200: -- | AM200: -- | AN200: -- | AO200: -- | AP200: -- | AQ200: -- | AR200: -- | AS200: -- | AT200: -- | AU200: -- | AV200: -- | AW200: -- | AX200: -- | AY200: -- | AZ200: -- | BA200: -- | BB200: -- | BC200: -- | BD200: -- | BE200: -- | BF200: -- | BG200: -- | BH200: -- | BI200: -- | BJ200: -- | BK200: -- | BL200: -- | BM200: -- | BN200: -- | BO200: -- | BP200: -- | BQ200: -- | BR200: -- | BS200: -- | BT200: -- | BU200: -- | BV200: -- | BW200: -- | BX200: -- | BY200: -- | BZ200: -- | CA200: -- | CB200: -- | CC200: -- | CD200: -- | CE200: -- | CF200: -- | CG200: -- | CH200: -- | CI200: -- | CJ200: -- | CK200: -- | CL200: -- | CM200: -- | CN200: -- | CO200: -- | CP200: -- | CQ200: -- | CR200: -- | CS200: -- | CT200: -- | CU200: -- | CV200: -- | CW200: -- | CX200: -- | CY200: -- | CZ200: -- | DA200: -- | DB200: -- | DC200: -- | DD200: -- | DE200: -- | DF200: -- | DG200: -- | DH200: -- | DI200: -- | DJ200: -- | DK200: -- | DL200: -- | DM200: -- | DN200: -- | DO200: -- | DP200: -- | DQ200: -- | DR200: -- | DS200: -- | DT200: -- | DU200: -- | DV200: -- | DW200: -- | DX200: -- | DY200: -- | DZ200: -- | EA200: -- | EB200: -- | EC200: -- | ED200: -- | EE200: -- | EF200: -- | EG200: -- | EH200: -- | EI200: -- | EJ200: -- | EK200: -- | EL200: -- | EM200: -- | EN200: -- | EO200: -- | EP200: -- | EQ200: -- | ER200: --
... 245 more rows

Sheet Utah Summary
A2: Data obtained from Utah Office of Energy Development
A3: http://www.energy.utah.gov/renewable_energy/wind/anemometerdata/index.htm
A4: 2002-2011
A5: 50 meter towers screened for sites with data for all 12 calendar months (n=18 of 23 total)
A9: Month | B9: Aagard Ranch | C9: Camp Williams | D9: Crawford | E9: Cricket II | F9: Garrison | G9: Home Ranch | H9: Hurricane | I9: Kennecott | J9: Milford | K9: Pintura | L9: Porcupine Ridge | M9: Raft River | N9: Simpson Springs | O9: State Prison | P9: Thousand Peaks | Q9: Wah Wah | R9: Weber Canyon | S9: WEECO | T9: Utah Monthly Avg (mph) n=18 | U9: Annual Monthly Avg
A10: Jan | B10: 12.26 | C10: 12.4395 | D10: 11 | E10: 11.535 | F10: 14.08 | G10: 11.79 | H10: 10.785 | I10: 9.095 | J10: 9.915 | K10: 13.9 | L10: 12.43 | M10: 10.285 | N10: 14.8 | O10: 9.77 | P10: 10.725 | Q10: 15.64 | R10: 11.87 | S10: 8.95 | T10: =AVERAGE(B10:S10) -> 11.73719444 | U10: =AVERAGE($T$10:$T$21) -> 12.12489198
A11: Feb | B11: 13.27 | C11: 11.5185 | D11: 10.1 | E11: 11.575 | F11: 14.62 | G11: 10.04 | H11: 11.14 | I11: 11.77 | J11: 9.29 | K11: 15.55 | L11: 11.02 | M11: 9.425 | N11: 11.77 | O11: 8.8 | P11: 8.785 | Q11: 12.04 | R11: 13.655 | S11: 8.65 | T11: =AVERAGE(B11:S11) -> 11.27880556 | U11: =AVERAGE($T$10:$T$21) -> 12.12489198
A12: Mar | B12: 13.905 | C12: 15.419 | D12: 15 | E12: 11.53 | F12: 11.78 | G12: 13.21 | H12: 9.795 | I12: 13.555 | J12: 11.415 | K12: 13.8 | L12: 12.54 | M12: 12.14 | N12: 12.57 | O12: 10.6 | P12: 12.06 | Q12: 12.53 | R12: 13.655 | S12: 10.2 | T12: 12.53911111 | U12: 12.12489198
A13: Apr | B13: 13.85 | C13: 14.8555 | D13: 15.25 | E13: 12.19666667 | F13: 12.3 | G13: 12.025 | H13: 11.035 | I13: 14.08 | J13: 13.19 | K13: 12.95 | L13: 15.48 | M13: 13.035 | N13: 13.9 | O13: 12.03333333 | P13: 11.02 | Q13: 15.27 | R13: 12.29 | S13: 12.6 | T13: 13.18669444 | U13: 12.12489198
A14: May | B14: 12.49 | C14: 13.3135 | D14: 13.2 | E14: 12.63 | F14: 13.93 | G14: 11.18 | H14: 12.33 | I14: 11.68 | J14: 10.82666667 | K14: 13.3 | L14: 14.31 | M14: 13.125 | N14: 12.52 | O14: 10.8 | P14: 10.6 | Q14: 12.79 | R14: 13.3 | S14: 11.45 | T14: 12.4319537 | U14: 12.12489198
A15: Jun | B15: 15.52 | C15: 13.9715 | D15: 12.9 | E15: 13.5125 | F15: 14.22 | G15: 11.24 | H15: 11.1 | I15: 12.31 | J15: 11.3325 | K15: 14.4 | L15: 15.58 | M15: 12.18 | N15: 11.84 | O15: 8.9 | P15: 10.285 | Q15: 13.77 | R15: 16.8 | S15: 11.9 | T15: 12.87563889 | U15: 12.12489198
A16: Jul | B16: 12.38 | C16: 11.531 | D16: 12.5 | E16: 12.53 | F16: 12.51 | G16: 10.25 | H16: 9.92 | I16: 11.55 | J16: 10.07 | K16: 11.6 | L16: 13.66 | M16: 10.47 | N16: 11.76 | O16: 10.8 | P16: 8.935 | Q16: 12.76 | R16: 18.12 | S16: 10.1 | T16: 11.747 | U16: 12.12489198
A17: Aug | B17: 14.63 | C17: 14.047 | D17: 12.1 | E17: 14.83666667 | F17: 15.12 | G17: 10.29 | H17: 9.06 | I17: 15.87 | J17: 9.936666667 | K17: 10.05 | L17: 15.16 | M17: 12.025 | N17: 13.45 | O17: 9.4 | P17: 9.96 | Q17: 14.78 | R17: 18.46 | S17: 10.9 | T17: 12.78196296 | U17: 12.12489198
A18: Sep | B18: 13.68 | C18: 12.9695 | D18: 12.3 | E18: 11.19666667 | F18: 14.41 | G18: 10.1 | H18: 10.85 | I18: 12.27 | J18: 9.676666667 | K18: 10.3 | L18: 12.67 | M18: 10.56 | N18: 12.72 | O18: 11 | P18: 9.27 | Q18: 12.72 | R18: 20.13 | S18: 9 | T18: 11.99015741 | U18: 12.12489198
A19: Oct | B19: 12.6 | C19: 13.3655 | D19: 10.7 | E19: 10.92333333 | F19: 13.64 | G19: 10.505 | H19: 9.89 | I19: 11.23 | J19: 10.07 | K19: 18.1 | L19: 13.065 | M19: 11.35 | N19: 12.44 | O19: 11.1 | P19: 12.01 | Q19: 13.71 | R19: 13.81 | S19: 8.7 | T19: 12.06715741 | U19: 12.12489198
A20: Nov | B20: 14.285 | C20: 11.993 | D20: 8.9 | E20: 10.85 | F20: 12.36 | G20: 10.67 | H20: 9.5 | I20: 13.42 | J20: 10.41 | K20: 11.2 | L20: 14.42 | M20: 9.175 | N20: 11.03 | O20: 9.166666667 | P20: 9.755 | Q20: 10.21 | R20: 13.575 | S20: 7.3 | T20: 11.0122037 | U20: 12.12489198
A21: Dec | B21: 13.395 | C21: 13.5415 | D21: 10.7 | E21: 10.725 | F21: 13.325 | G21: 12.04 | H21: 10.65 | I21: 9.765 | J21: 10.13 | K21: 14.1 | L21: 13.74 | M21: 10.765 | N21: 13.6 | O21: 11.23333333 | P21: 12.44 | Q21: 12.52 | R21: 13.145 | S21: 7.5 | T21: 11.85082407 | U21: 12.12489198

Sheet Aagard Ranch
A2: Renewable Energy: Wind Energy:
A3: Anemometer Location Map and Data: Aagard Ranch
A5: Preliminary Average Wind Speed: 13.51 mph
A7: Site #: | B7: 90929
A8: Dates of Service: | B8: 09/29/09 - present
A9: Coordinates: | B9: lat N 40 56 59.11 | lon W 111 4 40.59
A10: Site Elevation: | B10: 7897 ft
A12: Monthly Mean Value of Wind Speed (MPH)
A14: Month | B14: 2009 | C14: 2010 | D14: 2011 | E14: Mean of Month
A15: Jan | B15: . | C15: 11.35 | D15: 13.17 | E15: =AVERAGE(B15:D15) -> 12.26
A16: Feb | B16: . | C16: 9.12 | D16: 17.42 | E16: =AVERAGE(B16:D16) -> 13.27
A17: Mar | B17: . | C17: 11.88 | D17: 15.93 | E17: 13.905
A18: Apr | B18: . | C18: 13.85 | D18: . | E18: 13.85
A19: May | B19: . | C19: 12.49 | D19: . | E19: 12.49
A20: Jun | B20: . | C20: 15.52 | D20: . | E20: 15.52
A21: Jul | B21: . | C21: 12.38 | D21: . | E21: 12.38
A22: Aug | B22: . | C22: 14.63 | D22: . | E22: 14.63
A23: Sep | B23: . | C23: 13.68 | D23: . | E23: 13.68
A24: Oct | B24: 14.42 | C24: 10.78 | D24: . | E24: 12.6
A25: Nov | B25: 12.81 | C25: 15.76 | D25: . | E25: 14.285
A26: Dec | B26: 12.81 | C26: 13.98 | D26: . | E26: 13.395

Sheet Camp Williams
A2: enewable Energy: Wind Energy:
A3: Anemometer Location Map and Data: Camp Williams
A5: Preliminary Average Wind Speed: 13.248 mph
A7: Site #: | B7: 52507
A8: Dates of Service: | B8: 05/25/07 - 05/27/09
A9: Coordinates: | B9: lat N 40 25 57.5 | lon W 111 57 3
A10: Site Elevation: | B10: 5594 ft
A12: Monthly Mean Value of Wind Speed (MPH)
A14: Month | B14: 2007 | C14: 2008 | D14: 2009 | E14: Mean of Month
A15: Jan | B15: . | C15: 15.082 | D15: 9.797 | E15: =AVERAGE(B15:D15) -> 12.4395
A16: Feb | B16: . | C16: 10.786 | D16: 12.251 | E16: =AVERAGE(B16:D16) -> 11.5185
A17: Mar | B17: . | C17: 15.283 | D17: 15.555 | E17: 15.419
A18: Apr | B18: . | C18: 15.837 | D18: 13.874 | E18: 14.8555
A19: May | B19: . | C19: 13.676 | D19: 12.951 | E19: 13.3135
A20: Jun | B20: 14.947 | C20: 12.996 | D20: . | E20: 13.9715
A21: Jul | B21: . | C21: 11.531 | D21: . | E21: 11.531
A22: Aug | B22: 14.75 | C22: 13.344 | D22: . | E22: 14.047
A23: Sep | B23: 14.721 | C23: 11.218 | D23: . | E23: 12.9695
A24: Oct | B24: 14.753 | C24: 11.978 | D24: . | E24: 13.3655
A25: Nov | B25: 13.249 | C25: 10.737 | D25: . | E25: 11.993
A26: Dec | B26: 14.34 | C26: 12.743 | D26: . | E26: 13.5415

Sheet Crawford
A2: Renewable Energy: Wind Energy:
A3: Anemometer Location Map and Data: Crawford
A5: Average Wind Speed: 12.5 mph
A7: Site #: | B7: 3001
A8: Dates of Service: | B8: 3/05/02 - 8/26/03
A9: Coordinates: | B9: Lat 41° 39' 5.9" | Long 111 ° 11' 46.0"
A10: Site Elevation: | B10: 6820 ft
A12: Monthly Mean Value of Wind Speed (MPH)
A14: Month | B14: 2002 | C14: 2003 | D14: Mean of Month
A15: Jan | B15: . | C15: 11 | D15: =AVERAGE(B15:C15) -> 11
A16: Feb | B16: . | C16: 10.1 | D16: =AVERAGE(B16:C16) -> 10.1
A17: Mar | B17: 13.4 | C17: 16.6 | D17: 15
A18: Apr | B18: 15.7 | C18: 14.8 | D18: 15.25
A19: May | B19: 14.1 | C19: 12.3 | D19: 13.2
A20: Jun | B20: 12.8 | C20: 13 | D20: 12.9
A21: Jul | B21: 14.3 | C21: 10.7 | D21: 12.5
A22: Aug | B22: 14.1 | C22: 10.1 | D22: 12.1
A23: Sep | B23: 12.3 | C23: . | D23: 12.3
A24: Oct | B24: 10.7 | C24: . | D24: 10.7
A25: Nov | B25: 8.9 | C25: . | D25: 8.9
A26: Dec | B26: 10.7 | C26: . | D26: 10.7

Sheet Cricket II
A2: Renewable Energy: Wind Energy:
A3: Anemometer Location Map and Data: Cricket II
A5: Preliminary Average Wind Speed: 12.12 mph
A7: Site #: | B7: 7856
A8: Dates of Service: | B8: 06/04/06 - 08/05/09
A9: Coordinates: | B9: lat N 38 56 22.6 | lon W 112 52 42
A10: Site Elevation: | B10: 5134 ft
A12: Monthly Mean Value of Wind Speed (MPH)
A14: Month | B14: 2006 | C14: 2007 | D14: 2008 | E14: 2009 | F14: Mean of Month
A15: Jan | B15: . | C15: 7.69 | D15: 15.38 | E15: . | F15: =AVERAGE(B15:E15) -> 11.535
A16: Feb | B16: . | C16: 13.27 | D16: 9.88 | E16: . | F16: =AVERAGE(B16:E16) -> 11.575
A17: Mar | B17: . | C17: 11.33 | D17: 11.73 | E17: . | F17: 11.53
A18: Apr | B18: . | C18: 12.05 | D18: 14.7 | E18: 9.84 | F18: 12.19666667
A19: May | B19: . | C19: 14.74 | D19: 12.93 | E19: 10.22 | F19: 12.63
A20: Jun | B20: 13.29 | C20: 15.75 | D20: 13.01 | E20: 12 | F20: 13.5125
A21: Jul | B21: 11.39 | C21: 13.29 | D21: 13.4 | E21: 12.04 | F21: 12.53
A22: Aug | B22: 14.69 | C22: 15.54 | D22: 14.28 | E22: . | F22: 14.83666667
A23: Sep | B23: 10.15 | C23: 13.59 | D23: 9.85 | E23: . | F23: 11.19666667
A24: Oct | B24: 10.04 | C24: 12.47 | D24: 10.26 | E24: . | F24: 10.92333333
A25: Nov | B25: 12.15 | C25: 9.55 | D25: . | E25: . | F25: 10.85
A26: Dec | B26: 8.73 | C26: 12.72 | D26: . | E26: . | F26: 10.725

Sheet Garrison
A2: Renewable Energy: Wind Energy:
A3: Anemometer Location Map and Data: Garrison
A5: Preliminary Average Wind Speed: 13.5 mph
A7: 50m
A8: Site #: | B8: 305
A9: Dates of Service: | B9: 12/15/06 - 5/14/08
A10: Coordinates: | B10: Lat 38° 56` 9.5`` | Long 114° 2` 9.3``
A11: Site Elevation: | B11: 5283 ft
A13: Monthly Mean Value of Wind Speed (MPH)
A15: Month | B15: 2006 | C15: 2007 | D15: 2008 | E15: Mean of Month
A16: Jan | B16: . | C16: 11.3 | D16: 16.86 | E16: =AVERAGE(B16:D16) -> 14.08
A17: Feb | B17: . | C17: 14.62 | D17: . | E17: =AVERAGE(B17:D17) -> 14.62
A18: Mar | B18: . | C18: 11.78 | D18: . | E18: 11.78
A19: Apr | B19: . | C19: 12.3 | D19: . | E19: 12.3
A20: May | B20: . | C20: 13.93 | D20: . | E20: 13.93
A21: Jun | B21: . | C21: 14.22 | D21: . | E21: 14.22
A22: Jul | B22: . | C22: 12.51 | D22: . | E22: 12.51
A23: Aug | B23: . | C23: 15.12 | D23: . | E23: 15.12
A24: Sep | B24: . | C24: 14.41 | D24: . | E24: 14.41
A25: Oct | B25: . | C25: 13.64 | D25: . | E25: 13.64
A26: Nov | B26: . | C26: 12.36 | D26: . | E26: 12.36
A27: Dec | B27: 13.06 | C27: 13.59 | D27: . | E27: 13.325

Sheet Home Ranch
A2: Renewable Energy: Wind Energy:
A3: Anemometer Location Map and Data: Home Ranch
A5: Preliminary Average Wind Speed: 11.15 mph
A7: Site #: | B7: 52607
A8: Dates of Service: | B8: 08/17/07 - 09/24/09
A9: Coordinates: | B9: lat N 41 25 45.45 | lon W 111 16 18.62
A10: Site Elevation: | B10: 7246 ft
A12: Monthly Mean Value of Wind Speed (MPH)
A14: Month | B14: 2007 | C14: 2008 | D14: 2009 | E14: Mean of Month
A15: Jan | B15: . | C15: 11.91 | D15: 11.67 | E15: =AVERAGE(B15:D15) -> 11.79
A16: Feb | B16: . | C16: 11.05 | D16: 9.03 | E16: =AVERAGE(B16:D16) -> 10.04
A17: Mar | B17: . | C17: 12.72 | D17: 13.7 | E17: 13.21
A18: Apr | B18: . | C18: 12.41 | D18: 11.64 | E18: 12.025
A19: May | B19: . | C19: 11.3 | D19: 11.06 | E19: 11.18
A20: Jun | B20: . | C20: 11.95 | D20: 10.53 | E20: 11.24
A21: Jul | B21: . | C21: 10.16 | D21: 10.34 | E21: 10.25
A22: Aug | B22: . | C22: 10.7 | D22: 9.88 | E22: 10.29
A23: Sep | B23: 11.64 | C23: 9.25 | D23: 9.41 | E23: 10.1
A24: Oct | B24: 11.2 | C24: 9.81 | D24: . | E24: 10.505
A25: Nov | B25: 11.21 | C25: 10.13 | D25: . | E25: 10.67
A26: Dec | B26: 11.17 | C26: 12.91 | D26: . | E26: 12.04

Sheet Hurricane
A2: Renewable Energy: Wind Energy:
A3: Anemometer Location Map and Data: Hurricane
A5: Preliminary Average Wind Speed: 9.71 mph
A7: Site #: | B7: 7546
A8: Dates of Service: | B8: 01/21/06 - 05/15/07
A9: Coordinates: | B9: Lat 37° 11' 15.1" | Long 113° 17' 54.8"
A10: Site Elevation: | B10: 3559 ft
A12: Monthly Mean Value of Wind Speed (MPH)
A14: Month | B14: 2006 | C14: 2007 | D14: Mean of Month
A15: Jan | B15: 7.74 | C15: 13.83 | D15: =AVERAGE(B15:C15) -> 10.785
A16: Feb | B16: 11.14 | C16: . | D16: =AVERAGE(B16:C16) -> 11.14
A17: Mar | B17: 8.14 | C17: 11.45 | D17: 9.795
A18: Apr | B18: 10.93 | C18: 11.14 | D18: 11.035
A19: May | B19: 11.96 | C19: 12.7 | D19: 12.33
A20: Jun | B20: 11.1 | C20: . | D20: 11.1
A21: Jul | B21: 9.92 | C21: . | D21: 9.92
A22: Aug | B22: 9.06 | C22: . | D22: 9.06
A23: Sep | B23: 10.85 | C23: . | D23: 10.85
A24: Oct | B24: 9.89 | C24: . | D24: 9.89
A25: Nov | B25: 9.5 | C25: . | D25: 9.5
A26: Dec | B26: 10.65 | C26: . | D26: 10.65

Sheet Kennecott
A2: Renewable Energy: Wind Energy:
A3: Anemometer Location Map and Data: Kennecott
A5: Preliminary Average Wind Speed: 12.20 mph
A7: Site #: | B7: 91110
A8: Dates of Service: | B8: 11/10/09 - present
A9: Coordinates: | B9: lat N 40 39 7.70 | lon W 112 3 56.70
A10: Site Elevation: | B10: 5064 ft
A12: Monthly Mean Value of Wind Speed (MPH)
A14: Month | B14: 2009 | C14: 2010 | D14: 2011 | E14: Mean of Month
A15: Jan | B15: . | C15: 10.06 | D15: 8.13 | E15: =AVERAGE(B15:D15) -> 9.095
A16: Feb | B16: . | C16: 8.67 | D16: 14.87 | E16: =AVERAGE(B16:D16) -> 11.77
A17: Mar | B17: . | C17: 12.98 | D17: 14.13 | E17: 13.555
A18: Apr | B18: . | C18: 14.08 | D18: . | E18: 14.08
A19: May | B19: . | C19: 11.68 | D19: . | E19: 11.68
A20: Jun | B20: . | C20: 12.31 | D20: . | E20: 12.31
A21: Jul | B21: . | C21: 11.55 | D21: . | E21: 11.55
A22: Aug | B22: . | C22: 15.87 | D22: . | E22: 15.87
A23: Sep | B23: . | C23: 12.27 | D23: . | E23: 12.27
A24: Oct | B24: . | C24: 11.23 | D24: . | E24: 11.23
A25: Nov | B25: . | C25: 13.42 | D25: . | E25: 13.42
A26: Dec | B26: 9.26 | C26: 10.27 | D26: . | E26: 9.765

Sheet Milford
A2: Renewable Energy: Wind Energy:
A3: Anemometer Location Map and Data: Milford
A5: Preliminary Average Wind Speed: 10.55 mph
A7: Site #: | B7: 8915
A8: Dates of Service: | B8: 05/28/06 - 08/05/2009
A9: Coordinates: | B9: lat N 38 15 0.69 | lon W 113 7 3.55
A10: Site Elevation: | B10: 5014 ft
A12: Monthly Mean Value of Wind Speed (MPH)
A14: Month | B14: 2006 | C14: 2007 | D14: 2008 | E14: 2009 | F14: Mean of Month
A15: Jan | B15: . | C15: 8.3 | D15: 11.53 | E15: . | F15: =AVERAGE(B15:E15) -> 9.915
A16: Feb | B16: . | C16: 9.94 | D16: 8.64 | E16: . | F16: =AVERAGE(B16:E16) -> 9.29
A17: Mar | B17: . | C17: 10.6 | D17: 12.23 | E17: . | F17: 11.415
A18: Apr | B18: . | C18: 11.72 | D18: 14.66 | E18: . | F18: 13.19
A19: May | B19: . | C19: 12.59 | D19: 12.12 | E19: 7.77 | F19: 10.82666667
A20: Jun | B20: 12.2 | C20: 12.23 | D20: 10.92 | E20: 9.98 | F20: 11.3325
A21: Jul | B21: 10.77 | C21: 10.49 | D21: 10.74 | E21: 8.28 | F21: 10.07
A22: Aug | B22: 11.48 | C22: 8.58 | D22: 9.75 | E22: . | F22: 9.936666667
A23: Sep | B23: 9.89 | C23: 9.67 | D23: 9.47 | E23: . | F23: 9.676666667
A24: Oct | B24: 9.65 | C24: 11.41 | D24: 9.15 | E24: . | F24: 10.07
A25: Nov | B25: 10.61 | C25: 10.21 | D25: . | E25: . | F25: 10.41
A26: Dec | B26: 9.3 | C26: 10.96 | D26: . | E26: . | F26: 10.13

Sheet Pintura
A2: Renewable Energy: Wind Energy:
A3: Anemometer Location Map and Data: Pintura
A5: Average Wind Speed: 13.2 mph
A7: Site #: | B7: 4001
A8: Dates of Service: | B8: 2/1/02 - 8/22/03
A9: Coordinates: | B9: Lat 37° 19` 41`` | Long 113° 17` 21``
A10: Site Elevation: | B10: 6780 ft
A12: Monthly Mean Value of Wind Speed (MPH)
A14: Month | B14: 2002 | C14: 2003 | D14: Mean of Month
A15: Jan | B15: . | C15: 13.9 | D15: =AVERAGE(B15:C15) -> 13.9
A16: Feb | B16: 16.8 | C16: 14.3 | D16: =AVERAGE(B16:C16) -> 15.55
A17: Mar | B17: 14.8 | C17: 12.8 | D17: 13.8
A18: Apr | B18: 14.3 | C18: 11.6 | D18: 12.95
A19: May | B19: 14.1 | C19: 12.5 | D19: 13.3
A20: Jun | B20: 15.4 | C20: 13.4 | D20: 14.4
A21: Jul | B21: 13.4 | C21: 9.8 | D21: 11.6
A22: Aug | B22: 11.2 | C22: 8.9 | D22: 10.05
A23: Sep | B23: 10.3 | C23: . | D23: 10.3
A24: Oct | B24: 18.1 | C24: . | D24: 18.1
A25: Nov | B25: 11.2 | C25: . | D25: 11.2
A26: Dec | B26: 14.1 | C26: . | D26: 14.1

Sheet Porcupine Ridge
A2: Renewable Energy: Wind Energy:
A3: Anemometer Location Map and Data: Porcupine Ridge
A5: Preliminary Average Wind Speed: 13.69 mph
A7: Site #: | B7: 90925
A8: Dates of Service: | B8: 09/25/09 - present
A9: Coordinates: | B9: lat N 41 6 11.70 | lon W 111 6 25.30
A10: Site Elevation: | B10: 7508 ft
A12: Monthly Mean Value of Wind Speed (MPH)
A14: Month | B14: 2009 | C14: 2010 | D14: Mean of Month
A15: Jan | B15: . | C15: 12.43 | D15: =AVERAGE(B15:C15) -> 12.43
A16: Feb | B16: . | C16: 11.02 | D16: =AVERAGE(B16:C16) -> 11.02
A17: Mar | B17: . | C17: 12.54 | D17: =AVERAGE(B17:C17) -> 12.54
A18: Apr | B18: . | C18: 15.48 | D18: =AVERAGE(B18:C18) -> 15.48
A19: May | B19: . | C19: 14.31 | D19: 14.31
A20: Jun | B20: . | C20: 15.58 | D20: 15.58
A21: Jul | B21: . | C21: 13.66 | D21: 13.66
A22: Aug | B22: . | C22: 15.16 | D22: 15.16
A23: Sep | B23: . | C23: 12.67 | D23: 12.67
A24: Oct | B24: 15.31 | C24: 10.82 | D24: 13.065
A25: Nov | B25: 12.74 | C25: 16.1 | D25: 14.42
A26: Dec | B26: 14.01 | C26: 13.47 | D26: 13.74

Sheet Raft River
A2: Renewable Energy: Wind Energy:
A3: Anemometer Location Map and Data: Raft River
A5: Preliminary Average Wind Speed: 11.2 mph
A7: Site #: | B7: 804
A8: Dates of Service: | B8: 08/15/07 - 05/28/08
A9: Coordinates: | B9: Lat 41° 53' 43.22" | Long 113° 09' 21.41"
A10: Site Elevation: | B10: 5099 ft
A12: Monthly Mean Value of Wind Speed (MPH)
A14: Month | B14: 2006 | C14: 2007 | D14: 2008 | E14: Mean of Month
A15: Jan | B15: . | C15: 9.86 | D15: 10.71 | E15: =AVERAGE(B15:D15) -> 10.285
A16: Feb | B16: . | C16: 9.78 | D16: 9.07 | E16: =AVERAGE(B16:D16) -> 9.425
A17: Mar | B17: . | C17: 12.09 | D17: 12.19 | E17: 12.14
A18: Apr | B18: . | C18: 13.18 | D18: 12.89 | E18: 13.035
A19: May | B19: . | C19: 13.02 | D19: 13.23 | E19: 13.125
A20: Jun | B20: . | C20: 12.18 | D20: . | E20: 12.18
A21: Jul | B21: . | C21: 10.47 | D21: . | E21: 10.47
A22: Aug | B22: 12.8 | C22: 11.25 | D22: . | E22: 12.025
A23: Sep | B23: 9.8 | C23: 11.32 | D23: . | E23: 10.56
A24: Oct | B24: 9.9 | C24: 12.8 | D24: . | E24: 11.35
A25: Nov | B25: 9.5 | C25: 8.85 | D25: . | E25: 9.175
A26: Dec | B26: 9.6 | C26: 11.93 | D26: . | E26: 10.765

Sheet Simpson Springs
A2: Renewable Energy: Wind Energy:
A3: Anemometer Location Map and Data: Simpson Springs
A5: Preliminary Average Wind Speed: 12.7 mph
A7: Site #: | B7: 2596
A8: Dates of Service: | B8: 5/24/2007 - 5/6/2008
A9: Coordinates: | B9: Lat 39° 54’ 30.80” | Long 112° 48’ 49.99”
A10: Site Elevation: | B10: 4584 ft
A12: Monthly Mean Value of Wind Speed (MPH)
A14: Month | B14: 2007 | C14: 2008 | D14: Mean of Month
A15: Jan | B15: . | C15: 14.8 | D15: =AVERAGE(B15:C15) -> 14.8
A16: Feb | B16: . | C16: 11.77 | D16: =AVERAGE(B16:C16) -> 11.77
A17: Mar | B17: . | C17: 12.57 | D17: 12.57
A18: Apr | B18: . | C18: 13.9 | D18: 13.9
A19: May | B19: 12.52 | C19: . | D19: 12.52
A20: Jun | B20: 11.84 | C20: . | D20: 11.84
A21: Jul | B21: 11.76 | C21: . | D21: 11.76
A22: Aug | B22: 13.45 | C22: . | D22: 13.45
A23: Sep | B23: 12.72 | C23: . | D23: 12.72
A24: Oct | B24: 12.44 | C24: . | D24: 12.44
A25: Nov | B25: 11.03 | C25: . | D25: 11.03
A26: Dec | B26: 13.6 | C26: . | D26: 13.6

Sheet State Prison
A2: Renewable Energy: Wind Energy:
A3: Anemometer Location Map and Data: Utah State Prison—Draper
A5: Preliminary Average Wind Speed: 10.3 mph
A7: Site #: | B7: 1031
A8: Dates of Service: | B8: 11/19/03 - 06/03/06
A9: Coordinates: | B9: Lat 40° 29' 19.92" | Long 111° 53' 22.02"
A10: Site Elevation: | B10: 4594 ft
A12: Monthly Mean Value of Wind Speed (MPH)
A14: Month | B14: 2003 | C14: 2004 | D14: 2005 | E14: 2006 | F14: Mean of month
A15: Jan | B15: . | C15: 7.4 | D15: 7.9 | E15: 14.01 | F15: =AVERAGE(B15:E15) -> 9.77
A16: Feb | B16: . | C16: 8.9 | D16: 7.2 | E16: 10.3 | F16: =AVERAGE(B16:E16) -> 8.8
A17: Mar | B17: . | C17: 8.7 | D17: 9.9 | E17: 13.2 | F17: 10.6
A18: Apr | B18: . | C18: 10.4 | D18: 12.1 | E18: 13.6 | F18: 12.03333333
A19: May | B19: . | C19: 10.6 | D19: . | E19: 11 | F19: 10.8
A20: Jun | B20: . | C20: 8.9 | D20: . | E20: . | F20: 8.9
A21: Jul | B21: . | C21: 10.8 | D21: . | E21: . | F21: 10.8
A22: Aug | B22: . | C22: 9.4 | D22: 9.4 | E22: . | F22: 9.4
A23: Sep | B23: . | C23: 10.4 | D23: 11.6 | E23: . | F23: 11
A24: Oct | B24: . | C24: 10.6 | D24: 11.6 | E24: . | F24: 11.1
A25: Nov | B25: 9.7 | C25: 6.4 | D25: 11.4 | E25: . | F25: 9.166666667
A26: Dec | B26: 11.9 | C26: 9.5 | D26: 12.3 | E26: . | F26: 11.23333333

Sheet Thousand Peaks
A2: Renewable Energy: Wind Energy:
A3: Anemometer Location Map and Data: Thousand Peaks
A5: Preliminary Average Wind Speed: 10.46 mph
A7: Site #: | B7: 81023
A8: Dates of Service: | B8: 10/24/09 - 8/31/10
A9: Coordinates: | B9: lat N 41 1 24.48 | lon W 111 2 51.11
A10: Site Elevation: | B10: 7261 ft
A12: Monthly Mean Value of Wind Speed (MPH)
A14: Month | B14: 2008 | C14: 2009 | D14: 2010 | E14: Mean of Month
A15: Jan | B15: . | C15: 12.4 | D15: 9.05 | E15: =AVERAGE(B15:D15) -> 10.725
A16: Feb | B16: . | C16: 10.44 | D16: 7.13 | E16: =AVERAGE(B16:D16) -> 8.785
A17: Mar | B17: . | C17: 14.79 | D17: 9.33 | E17: 12.06
A18: Apr | B18: . | C18: 10.36 | D18: 11.68 | E18: 11.02
A19: May | B19: . | C19: 9.97 | D19: 11.23 | E19: 10.6
A20: Jun | B20: . | C20: 9.24 | D20: 11.33 | E20: 10.285
A21: Jul | B21: . | C21: 8.5 | D21: 9.37 | E21: 8.935
A22: Aug | B22: . | C22: 9.2 | D22: 10.72 | E22: 9.96
A23: Sep | B23: . | C23: 9.27 | D23: . | E23: 9.27
A24: Oct | B24: . | C24: 12.01 | D24: . | E24: 12.01
A25: Nov | B25: 10.18 | C25: 9.33 | D25: . | E25: 9.755
A26: Dec | B26: 14.47 | C26: 10.41 | D26: . | E26: 12.44

Sheet Wah Wah
A2: Renewable Energy: Wind Energy:
A3: Anemometer Location Map and Data: Wah Wah
A5: Preliminary Average Wind Speed: 13.22 mph
A7: Site #: | B7: 2595
A8: Dates of Service: | B8: 05/23/2007 - present
A9: Coordinates: | B9: Lat 38°34'51.54" | Long 113°23'34.45"
A10: Site Elevation:
A12: Monthly Mean Value of Wind Speed (MPH)
A14: Month | B14: 2007 | C14: 2008 | D14: Mean of Month
A15: Jan | B15: . | C15: 15.64 | D15: =AVERAGE(B15:C15) -> 15.64
A16: Feb | B16: . | C16: 12.04 | D16: 12.04
A17: Mar | B17: . | C17: 12.53 | D17: =AVERAGE(B17:C17) -> 12.53
A18: Apr | B18: . | C18: 15.27 | D18: =AVERAGE(B18:C18) -> 15.27
A19: May | B19: 12.74 | C19: 12.84 | D19: 12.79
A20: Jun | B20: 14.76 | C20: 12.78 | D20: 13.77
A21: Jul | B21: 13.28 | C21: 12.24 | D21: 12.76
A22: Aug | B22: 15.81 | C22: 13.75 | D22: 14.78
A23: Sep | B23: 14.57 | C23: 10.87 | D23: 12.72
A24: Oct | B24: 13.71 | C24: . | D24: 13.71
A25: Nov | B25: 10.21 | C25: . | D25: 10.21
A26: Dec | B26: 12.52 | C26: . | D26: 12.52

Sheet Weber Canyon
A2: Renewable Energy: Wind Energy:
A3: Anemometer Location Map and Data: Weber Canyon
A5: Preliminary Average Wind Speed: 14.89 mph
A7: Site #: | B7: 90924
A8: Dates of Service: | B8: 09/24/09 - present
A9: Coordinates: | B9: lat N 41 8 13 | lon W 111 54 34
A10: Site Elevation: | B10: 4523 ft
A12: Monthly Mean Value of Wind Speed (MPH)
A14: Month | B14: 2009 | C14: 2010 | D14: 2011 | E14: Mean of Month
A15: Jan | B15: . | C15: 13.5 | D15: 10.24 | E15: =AVERAGE(B15:D15) -> 11.87
A16: Feb | B16: . | C16: 14.53 | D16: 12.78 | E16: =AVERAGE(B16:D16) -> 13.655
A17: Mar | B17: . | C17: 14.29 | D17: 13.02 | E17: 13.655
A18: Apr | B18: . | C18: 13.71 | D18: 10.87 | E18: 12.29
A19: May | B19: . | C19: 13.3 | D19: . | E19: 13.3
A20: Jun | B20: . | C20: 16.8 | D20: . | E20: 16.8
A21: Jul | B21: . | C21: 18.12 | D21: . | E21: 18.12
A22: Aug | B22: . | C22: 18.46 | D22: . | E22: 18.46
A23: Sep | B23: . | C23: 20.13 | D23: . | E23: 20.13
A24: Oct | B24: 12.62 | C24: 15 | D24: . | E24: 13.81
A25: Nov | B25: 15.21 | C25: 11.94 | D25: . | E25: 13.575
A26: Dec | B26: 13 | C26: 13.29 | D26: . | E26: =AVERAGE(B26:D26) -> 13.145

Sheet WECCO
A2: Renewable Energy: Wind Energy:
A3: Anemometer Location Map and Data: WECCO
A5: Preliminary Average Wind Speed: 9.8 mph
A7: Site #:
A8: Dates of Service: | B8: 12/7/05 - 05/24/07
A9: Coordinates: | B9: Lat 37 ° 47` 44.6`` | Long 113° 17` 34.2``
A10: Site Elevation: | B10: 5310 ft
A12: Monthly Mean Value of Wind Speed (MPH)
A14: Month | B14: 2005 | C14: 2006 | D14: 2007 | E14: Mean of Month
A15: Jan | B15: . | C15: 11.8 | D15: 6.1 | E15: =AVERAGE(B15:D15) -> 8.95
A16: Feb | B16: . | C16: 8.7 | D16: 8.6 | E16: =AVERAGE(B16:D16) -> 8.65
A17: Mar | B17: . | C17: 10.5 | D17: 9.9 | E17: 10.2
A18: Apr | B18: . | C18: 13.9 | D18: 11.3 | E18: 12.6
A19: May | B19: . | C19: 10.7 | D19: 12.2 | E19: 11.45
A20: Jun | B20: . | C20: 11.9 | D20: . | E20: 11.9
A21: Jul | B21: . | C21: 10.1 | D21: . | E21: 10.1
A22: Aug | B22: . | C22: 10.9 | D22: . | E22: 10.9
A23: Sep | B23: . | C23: 9 | D23: . | E23: 9
A24: Oct | B24: . | C24: 8.7 | D24: . | E24: 8.7
A25: Nov | B25: . | C25: 7.3 | D25: . | E25: 7.3
A26: Dec | B26: 7.2 | C26: 7.8 | D26: . | E26: 7.5
